Workbook

Sheet Introduction
C2: Australian Dairy Carbon Calculator
G7: Version 5.2, April 2024
B9: Introduction
B10: The Australian Dairy Carbon Calculator (ADCC, and previously known as DGAS) was developed to explore the implications of a range of diet, herd or feedbase management options on the greenhouse gas (GHG) emissions for a dairy enterprise. In addition, a replication of the baseline farm is provided to users to give them the ability to alter one or more components of the whole farm system.
B14: The GHG emissions estimations are based on Australia's current National Greenhouse Gas Inventory (NGGI) methodology. This is changing in 2022, with updated global warming potential values and some other minor changes. ADCC estimates the carbon dioxide, methane and nitrous oxide emissions of an Australian dairy enterprise based on carbon dioxide equivalents. More information on the NGGI methodology can be found at:
B17: https://www.dcceew.gov.au/climate-change/publications/national-inventory-report-2022
B19: How to enter data into the Australian Dairy Carbon Calculator
B20: The first step in using the carbon calculator is to enter data on the baseline farm sheet. This is the farm system prior to exploring any mitigation options or strategies. The accuracy of the baseline farm system is important, both in terms of an accurate assessment of it's GHG emissions and the ramifications for when an abatement strategy is implemented. An example of a baseline farm can be viewed on the Example worksheet. There are comments attached to many of the cells to assist with additional information regarding what the question is asking for.
B26: Users then progress to the Abatement Strategies schematic worksheet and select which abatement strategy they wish to explore. Abatement options are segmented into three theme areas: Herd and breeding management, Diet manipulation, Feedbase management. Clicking on an abatement strategy box below any of these theme areas will take the user to the relevant worksheet. Alternatively, users can click on the relevant tab at the bottom of the workbook. In addition, by clicking on the Whole farm abatement strategy link, users will progress to the Strategy farm where they can alter one or more components of the whole farm system. When comparing the baseline farm system to the abatement strategy farm system, you are comparing two steady state systems, the change from one farm to the other has been fully completed. This is especially important with the reproductive strategies which will take many years to fully achieve (e.g. extended lactation for the whole herd). Therefore the reduction in GHG emissions and/or increase in farm profitability will not reach the results presented here until the abatement strategy has been fully implemented.
B38: Entering data for the strategy specific worksheets
B39: Once the user has clicked on the box representing the abatement strategy they wish to explore, the worksheet is divided into 6 sections.
B40: Where applicable, users are informed of what each question is asking for (shown by hovering over the cell) and the factors users need to consider (e.g. indirect expenses associated with implementing an abatement strategy).
B43: The Introduction section (coloured grey) is a brief explanation of what the abatement strategy explores and how to fill in the data.
B45: The second Baseline farm system section (coloured green) is a series of baseline farm data questions. For most abatement strategies, the baseline data for the herd is already linked to the baseline worksheet and therefore the user does not need to enter any data. An equation will appear in the green coloured data cell and it will also be protected. However, if the cells corresponding to the questions relating to the baseline farm system are coloured white, a figure will need to be entered by the user. For example, with the 'Extended lactation' strategy, the user needs to enter the baseline daily milk production for both the 1st lactation cows and subsequent lactation cows as this distinction cannot be made with respect to milk production when entering the baseline farm data.
B51: The third Key variables section (coloured pink) is a series of key questions relevant to the abatement strategy being explored (e.g. percentage reduction in enteric methane as a result of breeding or management). Data is entered either by using the up/down arrows or entering data (e.g. calving date for the extended lactation strategy). All the cells that require numbers will begin at zero when the carbon calculator is opened for the first time.
B55: The fourth Variation in production section (coloured purple) contains production changes (e.g. increase in milk production).
B57: The fifth GHG and economic results section (coloured blue) contains the reductions in GHG emissions and changes in financial results as a consequence of implementing the abatement strategy. Unlike all other sections, this section is consistent across all abatement strategies.
B60: The Graphics section illustrates the relative change in economic results when implementing an abatement strategy. There are four columns and all are monetary figures representing an increase in income and expenses relative to the baseline farm system. Carbon credits represents an additional source of income the farmer would receive if the abatement strategy explored qualified for payment as part of a carbon offset scheme. Implementation expenses represents the additional expenses associated with implementing the abatement strategy being explored. Additional milk income represents any additional income from increased milk production if the strategy resulted in more energy available for milk production. Total farm benefit represents the sum of income from carbon credits and additional milk production minus the implementation expenses.
B67: Entering data for the Abatement strategy whole farm worksheet
B68: When opening up the Abatement strategy whole farm worksheet for the first time, it looks like a mirror image of the baseline farm system as all data entry cells are linked to the baseline farm system worksheet. Users then can alter one or more cells by typing in a new figure (e.g. increasing the herd size, reducing N fertiliser inputs etc). Wherever new data is entered, the cells will change from being coloured white with black text to being coloured red with white text. This gives the user a visual indication of which cells have been altered between the baseline and strategy farm systems (see image below showing that the milking cow and heifers > 1 numbers have been altered but Heifers < 1 have not). If the user has made a mistake and incorrect cells were altered, the link to the baseline farm system has been broken and the user has three options available to re-correct. If the error is identified straight away, they can click on the blue undo button generally located at the top left hand of the worksheet. However, if several changes have been made, it will take a lot of clicks of the undo button to get the data correct again. Users can then either re-enter the correct equation back into the cell (e.g. retyping ='Baseline farm'!D9:F9 in the Strategy farm D9 cell to correct the strategy owner ID) or manually typing in the correct number. Once any one of these three options is completed, the cell will go back to being white with black text to indicate that it is now exactly the same as per the baseline farm system.
B86: Results of the changes to the whole farm abatement strategy are presented in table form as per the baseline farm system results. In addition, a column chart shows the baseline and whole farm abatement results for each GHG source, on a per kg of fat and protein corrected milk (FPCM) basis. Unlike all other strategy-specific worksheets, with this strategy we have very few questions relating to the economics associated with implementation.
B91: What the Australian Dairy Carbon Calculator can't do
B92: The carbon calculator is built using a static approach. ADCC is not dynamic and therefore can't inform the users if the abatement strategy being explored can be achieved on farm.
B93: For example, if the abatement strategy being explored is the Extended lactation strategy, the milkers spend a greater proportion of their time lactating, it may be that there are larger feed deficits at times of the year, such as autumn, where feed demand is higher with the strategy farm compared to the baseline farm. Users need to firstly identify if this would be true for the farm system being explored and then decide how best to reduce this feed deficit, for example with additional grain/supplements which need to added to the analysis.
B98: The Australian Dairy Carbon Calculator development and disclaimers
B100: The Australian Dairy Carbon Calculator (versions 1 through 4) was developed by staff from the University of Tasmania, University of Melbourne and the Victorian Department of Environment and Primary Industries and was funded by the Australian Department of Agriculture, Dairy Australia, Meat and Livestock Australia and Australian Wool Innovation as part of the WFSAM project.
B104: ADCC (version 5) was funded by Dairy Australia, and developed by staff from the University of Tasmania, with input from staff at Dairy Australia, University of Melbourne, Agriculture Victoria and XCheque.
B107: The funding bodies and developers of the calculator do not guarantee that the calculator is without flaw of any kind and therefore disclaims all liability for any error, loss or other consequence which may arise from reliance on any information contained herein.
B109: The calculator is subject to development at all times and the methodology for estimating GHG emissions alters over time so we take no responsibility for the calculator being current. If required, professional advice should be sought when entering the baseline farm systems, deciding on the degree of change possible when implementing an abatement strategy and interpretation of the results. The carbon calculator can be used as a first review of the potential changes in GHG emissions associated with implementing any of the intervention strategies currently available. However, the marginal economic analysis is only a guide and therefore a full farm systems and economic analysis is recommended to better inform the productivity and profitability implications on farm, especially if capital investment is required to implement a strategy.
B124: Changes between version 4 and version 5.1
B125: 1. Alteration of the global warming potentials for methane from 25 to 28 times that of carbon dioxide, and for nitrous oxide from 298 to 265 times that of carbon dioxide
B126: 2. Minor changes to a range of emission factors (EF), which has resulted in a net increase in indirect N2O losses (e.g. EF for N lost through leaching has increased from 0.0075 to 0.011 Gg N2O-N/Gg N)
B127: 3. Inclusion of carbon dioxide emissions associated with the breakdown of urea and lime when applied to pastures, leading to a loss of carbon dioxide emissions
B128: 4. Alteration of the emission factors for pre-farm embedded emissions (grain, forage, fertiliser) to align with the same factors used in the SB-GAF tool (estimation of sheep and beef GHG emissions)
B129: 5. Alterations to emission factors and reporting of electricity and diesel consumption. Scope 1 diesel emissions are those emitted on farm with the consumption of fuel in vehicles,
B130: tractors, irrigation pumps etc. Scope 3 diesel emissions are associated with the extraction and manufacturing of diesel (previously included in the total diesel GHG emission estimates).
B131: Scope 2 electricity emissions are associated with the generation and subsequent consumption of electricity on farm. Scope 3 electricity emissions are those associated with loss of electricity
B132: during the transmission and delivery process. For example, to supply 1kWh of power to farm, approx. 1.3 kWh need to be generated to take into consideration electricity lost in the transmission phase.
B133: 6. An explanation of each emission source has been included as a note in the results table.
B134: 7. Two 'Other stock' classes for non-replacement animals and young bulls. This was critical to allow for the inclusion of raising heifers and steers as dairy beef
B135: 8. New data entry required to estimate total meat sold from CFA cows, bulls and young stock.
B136: 9. Allocation of GHG emissions to milk vs meat, based on energy allocation as per the IDF (2022)
B137: 10. Emissions intensity for the farm analysed based on the proportion of emissions are allocated to milk, both still presented as kg CO2e/kg FPCM and kg CO2e/kg MS, and emissions intensity for meat presented as kg CO2e/kg liveweight
B138: 11. Typical average farm emissions based on assessment of the DFMP 2015/16 to 2020/21 datasets
B139: 12. Tree carbon sequestration estimations have been redesigned and based on those in other national GHG tools such as SB-GAF
B142: Changes between version 5.1 and 5.2
B143: 1. Implementation of a pathway to import a DairyBase farm dataset into ADCC, including how to implement macros which everyone will need to do, not just those importing a dataset from DairyBase
B144: 2. Ability to clear all data entry for the baseline farm tab
B145: 3. Clarification around electricity consumption now only based on that purchased from the national grid
B146: 4. Altered the design of the tree carbon sequestration section, including removing the data entry drop-down list for soils and disengaged the Vlookup function to determine soil type for sequestration estimates. There was only a very small number of regions by tree species interaction that resulted in slight difference in results (formulas still intact if we decide to re-instate in the future),
B147: 5. Built in the option to explore up to four areas of trees for carbon sequestration
B148: 6. Fixed the cell protection not allowing to pick the other option from the drop-down list and altered to being a white cell to identify that this is a data entry cell
B149: 7. Tidying up of a few spelling mistakes
B150: 8. Amended an equation error for non-state based manure management for livestock when heifers manure is stored in a sump/dispersal system prior to spreading onto pastures
B151: 9. Included industry comparison emissions intensities, broken down into each source, per kg FPCM, kg MS and kg LW and ratio of emissions to milk vs meat
B152: 10. A rebuild of the Reduce enteric methane through breeding or management (renamed Inc. milk or reduce CH4 so that we can explore multiple options of either no change or change in enteric methane and/or milk production with or without a change in diet quality
B153: 11. Altered the Reduce CH4 through breeding or management to now just be management. Any improvement through breeding can be assessed with the Increased milk production tab
B154: 12. N/A
B155: 13. If users determine that N fertiliser is entered in as tonnes of element, the cells related to entering N fert based on kg of element per hectare are coloured over to indicate these cells do not require any data entry
B156: 14. Previosuly all embedded emissions associated with purchased fodder was allocated to the milk enterprise. Users now need to define the percentage to milk, with a default of 100% if the cell is not filled in. This will be more critical for farms that purchase a large amount of fodder for their beef operation
B158: DairyBase Import Instructions
B159: To import farm data from DairyBase you must first export your data from the DairyBase website. | L159: Go to DairyBase website
B160: 1. Login to the DairyBase website and then click on the Carbon Calculator button at the top right of the page (1).
B187: 2. Select the dataset you wish to bring into the Australian Dairy Carbon Calculator spreadsheet by clicking on it (1).
B216: 3. Confirm you want to load the carbon dataset by clicking on the 'Load Carbon Dataset' button (1).
B245: 4. Once the dataset has loaded click on the 'Download Spreadsheet' text at the top of the window (1). You may need to confirm the download or select a location to save the file to. If this is the case choose your Downloads folder.
B274: 5. The downloaded will be named something like 'DairyBaseData_1278_17774_08-09-4-13.xlsx' with the numbers varying depending on your user ID and the date and time.
B275: 6. Now we have the DairyBase data in a file we can import the data into the Australian Dairy Carbon Calculator spreadsheet by clicking on the 'Import from DairyBase' button at the top right of the Baseline farm sheet.
B276: 7. The importer will first ask you to confirm you wish to overwrite all the existing data on already entered into the Baseline farm sheet. If this is okay click 'Yes' to continue.
B296: 8. A file selection window will open for you to select the spreadsheet file you previously downloaded from the DairyBase website to your 'Downloads' folder.
B312: Allowing the DairyBase import macro to run
B345: 9. As shown in the figure above navigate to the Downloads folder and select the DairyBase file. Then click the 'OK' button.
B346: 10. The importer will now run copying the data from the DairyBase file into the Baseline farm sheet. This may take a minute, and then the importer will tell you it has finished.
B348: Return to the Baseline farm sheet
B352: Changing Macro Security Settings (Excel for Windows, Excel for Mac instructions are below)
B353: In order to run the macro to import your data from a DairyBase file the Excel macro security settings must set correctly.
B354: If they are too high you will get a message like the one below when you open the spreadsheet.
B367: 1. If you get the message above click on the 'Trust Center' button to go straight to the macro security settings options you can go to step 3.
B368: If you get a red warning similar to the one below continue.
B372: 2. Click on the 'File' menu at the top left of the Excel window. Now click on 'Options' at the bottom left (1).
B411: 3. Within the Options window click on the 'Trust Center' from the left side menu (1), the 'Trust Center Settings' button on the right (2).
B446: 4. Within the Trust Center, select the 'Macro Settings' of the left (1), then change the Macro Settings to the second level down (2) 'Disable VBA macros with notification'.
B447: You can then click on the 'Okay' button (3) two times to return to the spreadsheet window.
B482: Now when a spreadsheet containing a macro opens for the first time you will be prompted at the top of the window that macros have been disabled, but you
B483: can enable then if the spreadsheet is from a trusted source by clicking on the 'Enable Content' button as shown below.
B496: Warning: Never enable macros in a spreadsheet unless you are sure it can be trusted! Macros in Office documents are a common source of malicious content.
B498: Return to the Baseline farm sheet
B502: Changing Macro Security Settings (Excel for Mac, Excel for Windows instructions are above)
B503: In order to run the macro to import your data from a DairyBase file the Excel macro security settings must set correctly.
B504: If they are too high you will get a message like the one below when you attempt to import DairyBase data.
B527: 1. Go to the Excel menu at the top right of the screen and click on the Preferences sub-menu.
B556: 2. Click on the 'Security' preferences in the 'Sharing and Privacy' section.
B579: 3. Set the Macro Security setting to the second level, 'Disable all macros with notification' as shown above (1).
B580: 4. Exit the Preferences by clicking on the red close button and return to the spreadsheet window.
B582: Now when a spreadsheet containing a macro opens for the first time you will be prompted at the top of the window that macros have been disabled, but you
B583: can enable then if the spreadsheet is from a trusted source by clicking on the 'Enable Content' button as shown below.
B611: Warning: Never enable macros in a spreadsheet unless you are sure it can be trusted! Macros in Office documents are a common source of malicious content.
B613: Return to the Baseline farm sheet

Sheet Emission factors (hidden)
A1: Global Warming Potential and Conversion Factors
B3: Gas | C3: CO2-e
B4: CH4 | C4: 28
B5: N2O | C5: 265

Sheet Industry averages (hidden)
A1: Emissions intensity for regions/ grain feeding groups
U2: Industry average accessing
C3: Australia-wide | D3: Victoria | E3: Victoria- Gippsland | F3: Victoria- Northern | G3: Victoria- South West | H3: New South Wales | I3: NSW- North | J3: NSW- South | K3: Queensland | L3: QLD- North | M3: QLD- South | N3: South Australia | O3: Tasmania | P3: Western Australia | Q3: Low grain (< 1 t DM/cow.annum) | R3: Medium grain (1-2 t DM/cow.annum) | S3: High grain (> 2 t DM/cow.annum) | U3: ='Baseline farm'!K226 -> 0
B4: Milk EI | C4: 0.9364370049 | D4: 0.9266849002 | E4: 0.9388349844 | F4: 0.8919153683 | G4: 0.9508711857 | H4: 0.9937171702 | I4: 1.037713138 | J4: 0.9442217065 | K4: 0.9637440867 | L4: 0.9979638077 | M4: 0.9551486118 | N4: 0.8761926871 | O4: 0.8650955127 | P4: 0.922132894 | Q4: 0.9427214012 | R4: 0.9280554455 | S4: 0.928164928 | U4: =HLOOKUP('Baseline farm'!$K$226,'Industry averages'!$B$3:$S$20,2,FALSE) -> 
B5: Meat EI | C5: 4.356552343 | D5: 4.356947966 | E5: 4.557286519 | F5: 4.087239785 | G5: 4.433612511 | H5: 4.413589624 | I5: 4.566905782 | J5: 4.241108946 | K5: 4.472728269 | L5: 4.684817617 | M5: 4.419454641 | N5: 4.108806803 | O5: 4.398536781 | P5: 4.210734688 | Q5: 4.855599994 | R5: 4.38087257 | S5: 4.20262085 | U5: =HLOOKUP('Baseline farm'!$K$226,'Industry averages'!$B$3:$S$20,3,FALSE) -> 
B6: Milk MS EI | C6: 11.26421238 | D6: 11.37249697 | E6: 11.45412228 | F6: 11.00353113 | G6: 11.67863122 | H6: 12.09439679 | I6: 12.58398895 | J6: 11.54360562 | K6: 11.13180963 | L6: 11.23483911 | M6: 11.10593019 | N6: 10.87174024 | O6: 10.3790853 | P6: 10.8832398 | Q6: 11.23071009 | R6: 11.27685498 | S6: 11.33837751 | U6: =HLOOKUP('Baseline farm'!$K$226,'Industry averages'!$B$3:$S$20,4,FALSE) -> 
B7: Enteric methane | C7: 0.5699468245 | D7: 0.5525940611 | E7: 0.5612987507 | F7: 0.5434759198 | G7: 0.5531656576 | H7: 0.5719381135 | I7: 0.5850275236 | J7: 0.5572125271 | K7: 0.6150550315 | L7: 0.6436576761 | M7: 0.607870481 | N7: 0.538307982 | O7: 0.5676963226 | P7: 0.557439888 | Q7: 0.6024187413 | R7: 0.5572861919 | S7: 0.5515242182 | U7: =HLOOKUP('Baseline farm'!$K$226,'Industry averages'!$B$3:$S$20,5,FALSE) -> 
B8: Waste methane | C8: 0.08887865293 | D8: 0.09095915047 | E8: 0.09115163423 | F8: 0.0914645455 | G8: 0.09022159182 | H8: 0.09775292331 | I8: 0.09652534052 | J8: 0.09913395395 | K8: 0.09508415769 | L8: 0.09494360361 | M8: 0.09511946274 | N8: 0.08337717533 | O8: 0.06592945001 | P8: 0.07800285209 | Q8: 0.0872285241 | R8: 0.08747961539 | S8: 0.08688273921 | U8: =HLOOKUP('Baseline farm'!$K$226,'Industry averages'!$B$3:$S$20,6,FALSE) -> 
B9: N2O direct grazing | C9: 0.03209385739 | D9: 0.03146729227 | E9: 0.03248431781 | F9: 0.03050609316 | G9: 0.0314235837 | H9: 0.03117919844 | I9: 0.03239704316 | J9: 0.02980912313 | K9: 0.03448282733 | L9: 0.03669344249 | M9: 0.03392755433 | N9: 0.02898636444 | O9: 0.03353254332 | P9: 0.03204311369 | Q9: 0.03630288291 | R9: 0.03162863081 | S9: 0.03058998846 | U9: =HLOOKUP('Baseline farm'!$K$226,'Industry averages'!$B$3:$S$20,7,FALSE) -> 
B10: Manure storage & spread | C10: 0.009349602543 | D10: 0.007785273709 | E10: 0.008169164442 | F10: 0.007500882893 | G10: 0.007685558388 | H10: 0.01083374381 | I10: 0.01099905078 | J10: 0.01064777348 | K10: 0.01121118762 | L10: 0.01166962629 | M10: 0.01109603478 | N10: 0.009546149486 | O10: 0.008387895263 | P10: 0.00874830084 | Q10: 0.009682041157 | R10: 0.008625152532 | S10: 0.008915368823 | U10: =HLOOKUP('Baseline farm'!$K$226,'Industry averages'!$B$3:$S$20,8,FALSE) -> 
B11: Indirect N waste | C11: 0.0181677172 | D11: 0.01785576883 | E11: 0.02095958922 | F11: 0.01057166733 | G11: 0.02233872084 | H11: 0.01906922905 | I11: 0.0228079082 | J11: 0.01486321501 | K11: 0.01851386365 | L11: 0.02027472514 | M11: 0.01807156195 | N11: 0.01407562824 | O11: 0.01810386833 | P11: 0.02006472947 | Q11: 0.01777822892 | R11: 0.01891814026 | S11: 0.01738403362 | U11: =HLOOKUP('Baseline farm'!$K$226,'Industry averages'!$B$3:$S$20,9,FALSE) -> 
B12: Direct N fert | C12: 0.03222123639 | D12: 0.03117685011 | E12: 0.03224905487 | F12: 0.03020178426 | G12: 0.03109014858 | H12: 0.0320375362 | I12: 0.0331602586 | J12: 0.0307744735 | K12: 0.03494378738 | L12: 0.03706917741 | M12: 0.03440992164 | N12: 0.02949481268 | O12: 0.03300239395 | P12: 0.03186573984 | Q12: 0.03611210245 | R12: 0.03157546375 | S12: 0.03073865603 | U12: =HLOOKUP('Baseline farm'!$K$226,'Industry averages'!$B$3:$S$20,10,FALSE) -> 
B13: Indirect N fert | C13: 0.0143478382 | D13: 0.01410147897 | E13: 0.01655270123 | F13: 0.008348906507 | G13: 0.01764186159 | H13: 0.0150598014 | I13: 0.01801239929 | J13: 0.01173812878 | K13: 0.01462120514 | L13: 0.01601183421 | M13: 0.01427190021 | N13: 0.01111613718 | O13: 0.01429741397 | P13: 0.01584599148 | Q13: 0.01404024232 | R13: 0.01494048 | S13: 0.01372892912 | U13: =HLOOKUP('Baseline farm'!$K$226,'Industry averages'!$B$3:$S$20,11,FALSE) -> 
B14: Electricity | C14: 0.03098283838 | D14: 0.04441660324 | E14: 0.04192634868 | F14: 0.04517502918 | G14: 0.04621617322 | H14: 0.05819196676 | I14: 0.07108329886 | J14: 0.04368921815 | K14: 0 | L14: 0 | M14: 0 | N14: 0.027553731 | O14: 0.008053354769 | P14: 0.02868218496 | Q14: 0.024898667 | R14: 0.04198114334 | S14: 0.0394014734 | U14: =HLOOKUP('Baseline farm'!$K$226,'Industry averages'!$B$3:$S$20,12,FALSE) -> 
B15: Fuel | C15: 0.01456143973 | D15: 0.01537325045 | E15: 0.01097262229 | F15: 0.01708888074 | G15: 0.01815503249 | H15: 0.02331046593 | I15: 0.02371722692 | J15: 0.02285285981 | K15: 0 | L15: 0 | M15: 0 | N15: 0.02739317023 | O15: 0.009450244995 | P15: 0.02077266439 | Q15: 0.01798585004 | R15: 0.01734915855 | S15: 0.01987373979 | U15: =HLOOKUP('Baseline farm'!$K$226,'Industry averages'!$B$3:$S$19,13,FALSE) -> 
B16: Urea & Lime | C16: 0.01511645767 | D16: 0.0153117384 | E16: 0.01827865268 | F16: 0.01052629699 | G16: 0.01728661702 | H16: 0.01706867154 | I16: 0.02035934238 | J16: 0.01336666685 | K16: 0.01599446532 | L16: 0.02305110918 | M16: 0.0142219434 | N16: 0.008590317432 | O16: 0.01547568034 | P16: 0.01458110917 | Q16: 0.01628994387 | R16: 0.01601865641 | S16: 0.01366566719 | U16: =HLOOKUP('Baseline farm'!$K$226,'Industry averages'!$B$3:$S$19,14,FALSE) -> 
B17: Concs | C17: 0.04979448499 | D17: 0.04419446366 | E17: 0.04293246902 | F17: 0.04272049493 | G17: 0.04707824168 | H17: 0.05353095116 | I17: 0.05366699293 | J17: 0.05337790416 | K17: 0.06303363933 | L17: 0.05529750794 | M17: 0.06497683821 | N17: 0.04252231223 | O17: 0.03350336176 | P17: 0.05182869214 | Q17: 0.02405822631 | R17: 0.04037540795 | S17: 0.05443543978 | U17: =HLOOKUP('Baseline farm'!$K$226,'Industry averages'!$B$3:$S$20,15,FALSE) -> 
B18: Fodder | C18: 0.01235256627 | D18: 0.01387867015 | E18: 0.007731679596 | F18: 0.02515344956 | G18: 0.008343886695 | H18: 0.01273534835 | I18: 0.009179898821 | J18: 0.01673522906 | K18: 0.01332259094 | L18: 0.006938691552 | M18: 0.01492612964 | N18: 0.01540536184 | O18: 0.00858840448 | P18: 0.00605703337 | Q18: 0.007056466076 | R18: 0.01138031642 | S18: 0.01338992422 | U18: =HLOOKUP('Baseline farm'!$K$226,'Industry averages'!$B$3:$S$20,16,FALSE) -> 
B19: Fertiliser | C19: 0.04874402906 | D19: 0.0479304392 | E19: 0.05519790549 | F19: 0.0291814174 | G19: 0.06022411208 | H19: 0.05100922077 | I19: 0.06077685395 | J19: 0.04002063345 | K19: 0.04748133078 | L19: 0.05235641382 | M19: 0.04625678386 | N19: 0.03982354494 | O19: 0.04907457891 | P19: 0.05620059461 | Q19: 0.04886948476 | R19: 0.05084116589 | S19: 0.0476347501 | U19: =HLOOKUP('Baseline farm'!$K$226,'Industry averages'!$B$3:$S$20,17,FALSE) -> 
B20: Milk to meat ratio | C20: 0.8595227762 | D20: 0.8823487797 | E20: 0.8795453156 | F20: 0.886600588 | G20: 0.8807691862 | H20: 0.8639626041 | I20: 0.8587652528 | J20: 0.8698096243 | K20: 0.8213679556 | L20: 0.7944473967 | M20: 0.8281299917 | N20: 0.8823720791 | O20: 0.8713611112 | P20: 0.8349264445 | Q20: 0.8641615056 | R20: 0.8743850656 | S20: 0.8669913664 | U20: =HLOOKUP('Baseline farm'!$K$226,'Industry averages'!$B$3:$S$20,18,FALSE) -> 
B22: Data generated from the file:
B23: Towards carbon neutral dairy industry > New Archive data from DB > DairyBase production downlaod following carbon calculator update 06-07 to 20-21 file. Run a pivot table over the whole dataset and then select each state/region
B25: This data is then transferred to the Regional and farm system data for DBCC and ADCC file in the same folder
B27: I then manipulate QLD's data to add in an EI for electricity (assume 0.04) and fuel (0.02) and then increase the total milk EI by 0.06, meat EI can remain the same as the main source of energy is electricity which goes to milk and only a smaller proportion of fuel GHG goes to meat and increase the milk to meat ratio by 0.06 (make the value similar to other states)
B29: So this is the data I use below here
C32: Australia-wide | D32: Victoria | E32: Victoria- Gippsland | F32: Victoria- Northern | G32: Victoria- South West | H32: New South Wales | I32: NSW- North | J32: NSW- South | K32: Queensland | L32: QLD- North | M32: QLD- South | N32: South Australia | O32: Tasmania | P32: Western Australia | Q32: Low grain (< 1 t DM/cow.annum) | R32: Medium grain (1-2 t DM/cow.annum) | S32: High grain (> 2 t DM/cow.annum) | T32: ='Baseline farm'!K226 -> 0
B33: Milk EI | C33: 0.9364370049 | D33: 0.9266849002 | E33: 0.9388349844 | F33: 0.8919153683 | G33: 0.9508711857 | H33: 0.9937171702 | I33: 1.037713138 | J33: 0.9442217065 | K33: 1.023744087 | L33: 1.057963808 | M33: 1.015148612 | N33: 0.8761926871 | O33: 0.8650955127 | P33: 0.922132894 | Q33: 0.9427214012 | R33: 0.9280554455 | S33: 0.928164928 | T33: =HLOOKUP($T$32,$B$32:$S$50,2,FALSE) -> 
B34: Meat EI | C34: 4.356552343 | D34: 4.356947966 | E34: 4.557286519 | F34: 4.087239785 | G34: 4.433612511 | H34: 4.413589624 | I34: 4.566905782 | J34: 4.241108946 | K34: 4.472728269 | L34: 4.684817617 | M34: 4.419454641 | N34: 4.108806803 | O34: 4.398536781 | P34: 4.210734688 | Q34: 4.855599994 | R34: 4.38087257 | S34: 4.20262085 | T34: =HLOOKUP($T$32,$B$32:$S$50,3,FALSE) -> 
B35: Milk MS EI | C35: 11.26421238 | D35: 11.37249697 | E35: 11.45412228 | F35: 11.00353113 | G35: 11.67863122 | H35: 12.09439679 | I35: 12.58398895 | J35: 11.54360562 | K35: 11.13180963 | L35: 11.23483911 | M35: 11.10593019 | N35: 10.87174024 | O35: 10.3790853 | P35: 10.8832398 | Q35: 11.23071009 | R35: 11.27685498 | S35: 11.33837751 | T35: =HLOOKUP($T$32,$B$32:$S$50,4,FALSE) -> 
B36: Enteric methane | C36: 0.5699468245 | D36: 0.5525940611 | E36: 0.5612987507 | F36: 0.5434759198 | G36: 0.5531656576 | H36: 0.5719381135 | I36: 0.5850275236 | J36: 0.5572125271 | K36: 0.6150550315 | L36: 0.6436576761 | M36: 0.607870481 | N36: 0.538307982 | O36: 0.5676963226 | P36: 0.557439888 | Q36: 0.6024187413 | R36: 0.5572861919 | S36: 0.5515242182 | T36: =HLOOKUP($T$32,$B$32:$S$50,5,FALSE) -> 
B37: Waste methane | C37: 0.08887865293 | D37: 0.09095915047 | E37: 0.09115163423 | F37: 0.0914645455 | G37: 0.09022159182 | H37: 0.09775292331 | I37: 0.09652534052 | J37: 0.09913395395 | K37: 0.09508415769 | L37: 0.09494360361 | M37: 0.09511946274 | N37: 0.08337717533 | O37: 0.06592945001 | P37: 0.07800285209 | Q37: 0.0872285241 | R37: 0.08747961539 | S37: 0.08688273921 | T37: =HLOOKUP($T$32,$B$32:$S$50,6,FALSE) -> 
B38: N2O direct grazing | C38: 0.03209385739 | D38: 0.03146729227 | E38: 0.03248431781 | F38: 0.03050609316 | G38: 0.0314235837 | H38: 0.03117919844 | I38: 0.03239704316 | J38: 0.02980912313 | K38: 0.03448282733 | L38: 0.03669344249 | M38: 0.03392755433 | N38: 0.02898636444 | O38: 0.03353254332 | P38: 0.03204311369 | Q38: 0.03630288291 | R38: 0.03162863081 | S38: 0.03058998846 | T38: =HLOOKUP($T$32,$B$32:$S$50,7,FALSE) -> 
B39: Manure storage & spread | C39: 0.009349602543 | D39: 0.007785273709 | E39: 0.008169164442 | F39: 0.007500882893 | G39: 0.007685558388 | H39: 0.01083374381 | I39: 0.01099905078 | J39: 0.01064777348 | K39: 0.01121118762 | L39: 0.01166962629 | M39: 0.01109603478 | N39: 0.009546149486 | O39: 0.008387895263 | P39: 0.00874830084 | Q39: 0.009682041157 | R39: 0.008625152532 | S39: 0.008915368823 | T39: =HLOOKUP($T$32,$B$32:$S$50,8,FALSE) -> 
B40: Indirect N waste | C40: 0.0181677172 | D40: 0.01785576883 | E40: 0.02095958922 | F40: 0.01057166733 | G40: 0.02233872084 | H40: 0.01906922905 | I40: 0.0228079082 | J40: 0.01486321501 | K40: 0.01851386365 | L40: 0.02027472514 | M40: 0.01807156195 | N40: 0.01407562824 | O40: 0.01810386833 | P40: 0.02006472947 | Q40: 0.01777822892 | R40: 0.01891814026 | S40: 0.01738403362 | T40: =HLOOKUP($T$32,$B$32:$S$50,9,FALSE) -> 
B41: Direct N fert | C41: 0.03222123639 | D41: 0.03117685011 | E41: 0.03224905487 | F41: 0.03020178426 | G41: 0.03109014858 | H41: 0.0320375362 | I41: 0.0331602586 | J41: 0.0307744735 | K41: 0.03494378738 | L41: 0.03706917741 | M41: 0.03440992164 | N41: 0.02949481268 | O41: 0.03300239395 | P41: 0.03186573984 | Q41: 0.03611210245 | R41: 0.03157546375 | S41: 0.03073865603 | T41: =HLOOKUP($T$32,$B$32:$S$50,10,FALSE) -> 
B42: Indirect N fert | C42: 0.0143478382 | D42: 0.01410147897 | E42: 0.01655270123 | F42: 0.008348906507 | G42: 0.01764186159 | H42: 0.0150598014 | I42: 0.01801239929 | J42: 0.01173812878 | K42: 0.01462120514 | L42: 0.01601183421 | M42: 0.01427190021 | N42: 0.01111613718 | O42: 0.01429741397 | P42: 0.01584599148 | Q42: 0.01404024232 | R42: 0.01494048 | S42: 0.01372892912 | T42: =HLOOKUP($T$32,$B$32:$S$50,11,FALSE) -> 
B43: Electricity | C43: 0.03098283838 | D43: 0.04441660324 | E43: 0.04192634868 | F43: 0.04517502918 | G43: 0.04621617322 | H43: 0.05819196676 | I43: 0.07108329886 | J43: 0.04368921815 | K43: 0.04 | L43: 0.04 | M43: 0.04 | N43: 0.027553731 | O43: 0.008053354769 | P43: 0.02868218496 | Q43: 0.024898667 | R43: 0.04198114334 | S43: 0.0394014734 | T43: =HLOOKUP($T$32,$B$32:$S$50,12,FALSE) -> 
B44: Fuel | C44: 0.01456143973 | D44: 0.01537325045 | E44: 0.01097262229 | F44: 0.01708888074 | G44: 0.01815503249 | H44: 0.02331046593 | I44: 0.02371722692 | J44: 0.02285285981 | K44: 0.02 | L44: 0.02 | M44: 0.02 | N44: 0.02739317023 | O44: 0.009450244995 | P44: 0.02077266439 | Q44: 0.01798585004 | R44: 0.01734915855 | S44: 0.01987373979 | T44: =HLOOKUP($T$32,$B$32:$S$50,13,FALSE) -> 
B45: Urea & Lime | C45: 0.01511645767 | D45: 0.0153117384 | E45: 0.01827865268 | F45: 0.01052629699 | G45: 0.01728661702 | H45: 0.01706867154 | I45: 0.02035934238 | J45: 0.01336666685 | K45: 0.01599446532 | L45: 0.02305110918 | M45: 0.0142219434 | N45: 0.008590317432 | O45: 0.01547568034 | P45: 0.01458110917 | Q45: 0.01628994387 | R45: 0.01601865641 | S45: 0.01366566719 | T45: =HLOOKUP($T$32,$B$32:$S$50,14,FALSE) -> 
B46: Concs | C46: 0.04979448499 | D46: 0.04419446366 | E46: 0.04293246902 | F46: 0.04272049493 | G46: 0.04707824168 | H46: 0.05353095116 | I46: 0.05366699293 | J46: 0.05337790416 | K46: 0.06303363933 | L46: 0.05529750794 | M46: 0.06497683821 | N46: 0.04252231223 | O46: 0.03350336176 | P46: 0.05182869214 | Q46: 0.02405822631 | R46: 0.04037540795 | S46: 0.05443543978 | T46: =HLOOKUP($T$32,$B$32:$S$50,15,FALSE) -> 
B47: Fodder | C47: 0.01235256627 | D47: 0.01387867015 | E47: 0.007731679596 | F47: 0.02515344956 | G47: 0.008343886695 | H47: 0.01273534835 | I47: 0.009179898821 | J47: 0.01673522906 | K47: 0.01332259094 | L47: 0.006938691552 | M47: 0.01492612964 | N47: 0.01540536184 | O47: 0.00858840448 | P47: 0.00605703337 | Q47: 0.007056466076 | R47: 0.01138031642 | S47: 0.01338992422 | T47: =HLOOKUP($T$32,$B$32:$S$50,16,FALSE) -> 
B48: Fertiliser | C48: 0.04874402906 | D48: 0.0479304392 | E48: 0.05519790549 | F48: 0.0291814174 | G48: 0.06022411208 | H48: 0.05100922077 | I48: 0.06077685395 | J48: 0.04002063345 | K48: 0.04748133078 | L48: 0.05235641382 | M48: 0.04625678386 | N48: 0.03982354494 | O48: 0.04907457891 | P48: 0.05620059461 | Q48: 0.04886948476 | R48: 0.05084116589 | S48: 0.0476347501 | T48: =HLOOKUP($T$32,$B$32:$S$50,17,FALSE) -> 
B49: Milk to meat ratio | C49: 0.8595227762 | D49: 0.8823487797 | E49: 0.8795453156 | F49: 0.886600588 | G49: 0.8807691862 | H49: 0.8639626041 | I49: 0.8587652528 | J49: 0.8698096243 | K49: =K20+0.06 -> 0.8813679556 | L49: =L20+0.06 -> 0.8544473967 | M49: =M20+0.06 -> 0.8881299917 | N49: 0.8823720791 | O49: 0.8713611112 | P49: 0.8349264445 | Q49: 0.8641615056 | R49: 0.8743850656 | S49: 0.8669913664 | T49: =HLOOKUP($T$32,$B$32:$S$50,18,FALSE) -> 
B50: Meat to milk ratio | C50: =1-C49 -> 0.1404772238 | D50: =1-D49 -> 0.1176512203 | E50: 0.1204546844 | F50: 0.113399412 | G50: 0.1192308138 | H50: 0.1360373959 | I50: 0.1412347472 | J50: 0.1301903757 | K50: 0.1186320444 | L50: 0.1455526033 | M50: 0.1118700083 | N50: 0.1176279209 | O50: 0.1286388888 | P50: 0.1650735555 | Q50: 0.1358384944 | R50: 0.1256149344 | S50: 0.1330086336 | T50: =HLOOKUP($T$32,$B$32:$S$50,19,FALSE) -> 

Sheet Data for graphs (hidden)
A1: Column graph chart | B1: Baseline | C1: Example baseline farm | D1: Typical averages (baseline farm) | E1: Typical averages (example baseline farm) | G1: Whole farm strategy column graph | I1: Baseline farm | J1: Strategy farm | L1: Column graph chart | M1: Current 2022 methodology | N1: 1990 methodology | P1: Column graph chart | Q1: Current 2022 methodology | R1: 2015 methodology | T1: Column graphs | U1: Strategy farm | Y1: Reduce CH4 through breeding and management | AB1: Increased milk production | AF1: Replacing Sup with a source of fat | AJ1: Supp with dietary fats | AN1: Improve diet DMD by supplementation | AR1: Improve diet DMD by management | AV1: N Inhibitor applied to feed/animal | AZ1: N inhibitor applied to fertiliser | BD1: Extended lactation | BH1: Extended longevity
A2: Enteric methane | B2: ='Baseline farm'!K118/'Baseline farm'!K134 ->  | C2: ='Example baseline farm'!L118 -> 0.5640709393 | D2: =U23 ->  | E2: =V23 -> 0.5834463063 | G2: Methane | H2: Enteric fermentation | I2: =IF('Baseline farm'!$D$32="kg milksolids per herd per annum",'Baseline farm'!K118*1000*'Baseline farm'!$Q$280/'Baseline farm'!$R$213,'Baseline farm'!K118*1000*'Baseline farm'!$Q$280/'Baseline farm'!$R$218) ->  | J2: =IF('Strategy farm'!$D$32="kg milksolids per herd per annum",'Strategy farm'!K118*1000*'Strategy farm'!$P$323/'Strategy farm'!$Q$256,'Strategy farm'!K118*1000*'Strategy farm'!$P$323/'Strategy farm'!$Q$261) ->  | L2: Enteric methane | M2: ='Baseline farm'!L118 ->  | N2: ='1990 methodology comparison'!L117 ->  | P2: Enteric methane | Q2: =M2 ->  | R2: ='2015 methodology comparison '!$L$118 -> 
A3: Manure methane | B3: ='Baseline farm'!K119/'Baseline farm'!K134 ->  | C3: ='Example baseline farm'!L119 -> 0.09237888319 | D3: =U24 ->  | E3: =V24 -> 0.09508448797 | H3: Manure management | I3: =IF('Baseline farm'!$D$32="kg milksolids per herd per annum",'Baseline farm'!K119*1000*'Baseline farm'!$Q$280/'Baseline farm'!$R$213,'Baseline farm'!K119*1000*'Baseline farm'!$Q$280/'Baseline farm'!$R$218) ->  | J3: =IF('Strategy farm'!$D$32="kg milksolids per herd per annum",'Strategy farm'!K119*1000*'Strategy farm'!$P$323/'Strategy farm'!$Q$256,'Strategy farm'!K119*1000*'Strategy farm'!$P$323/'Strategy farm'!$Q$261) ->  | L3: Manure methane | M3: ='Baseline farm'!L119 ->  | N3: ='1990 methodology comparison'!L118 ->  | P3: Manure methane | Q3: =M3 ->  | R3: ='2015 methodology comparison '!$L$119 ->  | T3: Carbon credit income | U3: ='Strategy farm'!F244 -> 0 | X3: Carbon credit income | Y3: =#REF! ->  | AA3: Carbon credit income | AB3: ='Reduce CH4 and or Increase milk'!$C$46 ->  | AF3: Carbon credit income | AG3: ='Replacing Sup with dietary fats'!C88 ->  | AJ3: Carbon credit income | AK3: ='Supplementing with dietary fats'!C82 ->  | AN3: Carbon credit income | AO3: ='Improved diet DMD by Supplement'!C77 ->  | AR3: Carbon credit income | AS3: ='Improved diet DMD by management'!C76 ->  | AV3: Carbon credit income | AW3: =' N inhibitor applied to feed'!C69 ->  | AZ3: Carbon credit income | BA3: ='N fertiliser inhibitor coated'!C87 -> 0 | BD3: Carbon credit income | BE3: ='Extended lactation'!C74 ->  | BH3: Carbon credit income | BI3: ='Extended longevity'!C58 -> 
A4: Direct N2O animal waste | B4: =SUM('Baseline farm'!K120:K121)/'Baseline farm'!K134 ->  | C4: =SUM('Example baseline farm'!L120:L121) -> 0.045435938 | D4: =U25+U26 ->  | E4: =V25+V26 -> 0.0412358421 | G4: Nitrous oxide | H4: Dung & urine voided | I4: =IF('Baseline farm'!$D$32="kg milksolids per herd per annum",'Baseline farm'!K120*1000*'Baseline farm'!$Q$280/'Baseline farm'!$R$213,'Baseline farm'!K120*1000*'Baseline farm'!$Q$280/'Baseline farm'!$R$218) ->  | J4: =IF('Strategy farm'!$D$32="kg milksolids per herd per annum",'Strategy farm'!K120*1000*'Strategy farm'!$P$323/'Strategy farm'!$Q$256,'Strategy farm'!K120*1000*'Strategy farm'!$P$323/'Strategy farm'!$Q$261) ->  | L4: Direct N2O from animal waste | M4: ='Baseline farm'!L120+'Baseline farm'!L121 ->  | N4: ='1990 methodology comparison'!L119+'1990 methodology comparison'!L120 ->  | P4: Direct N2O from animal waste | R4: ='2015 methodology comparison '!$L$120+'2015 methodology comparison '!$L$121 ->  | T4: Implementation expenses | U4: ='Strategy farm'!F247 -> 0 | X4: Implementation expenses | Y4: =#REF! ->  | AA4: Implementation expenses | AB4: ='Reduce CH4 and or Increase milk'!$C$47 -> 0 | AF4: Implementation expenses | AG4: ='Replacing Sup with dietary fats'!C89 ->  | AJ4: Implementation expenses | AK4: ='Supplementing with dietary fats'!C83 -> 0 | AN4: Implementation expenses | AO4: ='Improved diet DMD by Supplement'!C78 -> 0 | AR4: Implementation expenses | AS4: ='Improved diet DMD by management'!C77 -> 5000 | AV4: Implementation expenses | AW4: =' N inhibitor applied to feed'!C70 -> 0 | AZ4: Implementation expenses | BA4: ='N fertiliser inhibitor coated'!C88 -> 0 | BD4: Implementation expenses | BE4: ='Extended lactation'!C75 -> 0 | BH4: Implementation expenses | BI4: ='Extended longevity'!$C$59 -> 184500
A5: Indirect N2O animal waste | B5: ='Baseline farm'!K122/'Baseline farm'!K134 ->  | C5: ='Example baseline farm'!L122 -> 0.03578219257 | D5: =U27 ->  | E5: 0.02310400236 | H5: Manure during storage and spread | I5: =IF('Baseline farm'!$D$32="kg milksolids per herd per annum",'Baseline farm'!K121*1000*'Baseline farm'!$Q$280/'Baseline farm'!$R$213,'Baseline farm'!K121*1000*'Baseline farm'!$Q$280/'Baseline farm'!$R$218) ->  | J5: =IF('Strategy farm'!$D$32="kg milksolids per herd per annum",'Strategy farm'!K121*1000*'Strategy farm'!$P$323/'Strategy farm'!$Q$256,'Strategy farm'!K121*1000*'Strategy farm'!$P$323/'Strategy farm'!$Q$261) ->  | L5: Direct N2O from N fertiliser | M5: ='Baseline farm'!L123 ->  | N5: ='1990 methodology comparison'!L122 ->  | P5: Direct N2O from N fertiliser | R5: ='2015 methodology comparison '!$L$123 ->  | T5: Additional milk income | U5: ='Strategy farm'!F249 -> 0 | X5: Additional milk income | Y5: =#REF! ->  | AA5: Additional milk income | AB5: ='Reduce CH4 and or Increase milk'!$C$49 -> 0 | AF5: Additional milk income | AG5: ='Replacing Sup with dietary fats'!C90 ->  | AJ5: Additional milk income | AK5: ='Supplementing with dietary fats'!C84 ->  | AN5: Additional milk income | AO5: ='Improved diet DMD by Supplement'!C79 ->  | AR5: Additional milk income | AS5: ='Improved diet DMD by management'!C78 ->  | AV5: Additional milk income | AW5: =' N inhibitor applied to feed'!C71 -> 0 | AZ5: Additional milk income | BA5: ='N fertiliser inhibitor coated'!C89 -> 18537.7752 | BD5: Additional milk income | BE5: ='Extended lactation'!C76 -> 0 | BH5: Additional milk income | BI5: 0
A6: Direct N2O N fertiliser | B6: ='Baseline farm'!K123/'Baseline farm'!K134 ->  | C6: ='Example baseline farm'!L123 -> 0.02486358911 | E6: 0.03277762923 | H6: Indirect N waste | I6: =IF('Baseline farm'!$D$32="kg milksolids per herd per annum",'Baseline farm'!K122*1000*'Baseline farm'!$Q$280/'Baseline farm'!$R$213,'Baseline farm'!K122*1000*'Baseline farm'!$Q$280/'Baseline farm'!$R$218) ->  | J6: =IF('Strategy farm'!$D$32="kg milksolids per herd per annum",'Strategy farm'!K122*1000*'Strategy farm'!$P$323/'Strategy farm'!$Q$256,'Strategy farm'!K122*1000*'Strategy farm'!$P$323/'Strategy farm'!$Q$261) ->  | L6: Indirect N2O from animal waste | M6: ='Baseline farm'!L122 ->  | N6: ='1990 methodology comparison'!L121 ->  | P6: Indirect N2O from animal waste | R6: ='2015 methodology comparison '!$L$122 ->  | T6: Total farm benefit | U6: ='Strategy farm'!F250 -> 0 | X6: Total farm benefit | Y6: =#REF! ->  | AA6: Total farm benefit | AB6: ='Reduce CH4 and or Increase milk'!$C$50 ->  | AF6: Total farm benefit | AG6: ='Replacing Sup with dietary fats'!C91 ->  | AJ6: Total farm benefit | AK6: ='Supplementing with dietary fats'!C85 ->  | AN6: Total farm benefit | AO6: ='Improved diet DMD by Supplement'!C80 ->  | AR6: Total farm benefit | AS6: ='Improved diet DMD by management'!C79 ->  | AV6: Total farm benefit | AW6: =' N inhibitor applied to feed'!C72 ->  | AZ6: Total farm benefit | BA6: ='N fertiliser inhibitor coated'!C90 -> 18537.7752 | BD6: Total farm benefit | BE6: ='Extended lactation'!C77 ->  | BH6: Total farm benefit | BI6: ='Extended longevity'!C61 -> 
A7: Indirect N2O N fertiliser | B7: ='Baseline farm'!K124/'Baseline farm'!K134 ->  | C7: ='Example baseline farm'!L124 -> 0.01963586012 | E7: 0.01824623776 | H7: Direct N fertiliser | I7: =IF('Baseline farm'!$D$32="kg milksolids per herd per annum",'Baseline farm'!K123*1000*'Baseline farm'!$Q$280/'Baseline farm'!$R$213,'Baseline farm'!K123*1000*'Baseline farm'!$Q$280/'Baseline farm'!$R$218) ->  | J7: =IF('Strategy farm'!$D$32="kg milksolids per herd per annum",'Strategy farm'!K123*1000*'Strategy farm'!$P$323/'Strategy farm'!$Q$256,'Strategy farm'!K123*1000*'Strategy farm'!$P$323/'Strategy farm'!$Q$261) ->  | L7: Indirect N2O from N fertiliser | M7: ='Baseline farm'!L124 ->  | N7: ='1990 methodology comparison'!L123 ->  | P7: Indirect N2O from N fertiliser | R7: ='2015 methodology comparison '!$L$124 -> 
A8: Energy consumption | B8: =SUM('Baseline farm'!K125:K128)/'Baseline farm'!K134 ->  | C8: =SUM('Example baseline farm'!$L$125:$L$128) -> 0.06104391227 | D8: =U30+U31 ->  | E8: =V30+V31 -> 0.06700864137 | H8: Indirect N fertiliser | I8: =IF('Baseline farm'!$D$32="kg milksolids per herd per annum",'Baseline farm'!K124*1000*'Baseline farm'!$Q$280/'Baseline farm'!$R$213,'Baseline farm'!K124*1000*'Baseline farm'!$Q$280/'Baseline farm'!$R$218) ->  | J8: =IF('Strategy farm'!$D$32="kg milksolids per herd per annum",'Strategy farm'!K124*1000*'Strategy farm'!$P$323/'Strategy farm'!$Q$256,'Strategy farm'!K124*1000*'Strategy farm'!$P$323/'Strategy farm'!$Q$261) ->  | L8: Energy consumption | M8: ='Baseline farm'!L125+'Baseline farm'!L127+'Baseline farm'!L126+'Baseline farm'!L128 ->  | N8: ='1990 methodology comparison'!L124+'1990 methodology comparison'!L125 ->  | P8: Energy consumption | R8: ='2015 methodology comparison '!$L$125+'2015 methodology comparison '!$L$126 -> 
A9: Urea and lime | B9: ='Baseline farm'!$K$129/'Baseline farm'!$K$134 ->  | C9: ='Example baseline farm'!L129 -> 0.04155730547 | D9: =U32 ->  | E9: =V32 -> 0.01786878492 | G9: Carbon dioxide: | H9: Electricity | I9: =IF('Baseline farm'!$D$32="kg milksolids per herd per annum",'Baseline farm'!K125*1000*'Baseline farm'!$Q$280/'Baseline farm'!$R$213,'Baseline farm'!K125*1000*'Baseline farm'!$Q$280/'Baseline farm'!$R$218) ->  | J9: =IF('Strategy farm'!$D$32="kg milksolids per herd per annum",'Strategy farm'!K125*1000*'Strategy farm'!$P$323/'Strategy farm'!$Q$256,'Strategy farm'!K125*1000*'Strategy farm'!$P$323/'Strategy farm'!$Q$261) ->  | L9: CO2 urea and lime | M9: ='Baseline farm'!L129 ->  | N9: 0 | P9: CO2 urea and lime | Q9: ='Baseline farm'!L129 ->  | R9: 0
A10: Pre-farm embedded | B10: =SUM('Baseline farm'!K130:K132)/'Baseline farm'!K134 ->  | C10: =SUM('Example baseline farm'!L130:L132) -> 0.11523138 | D10: =SUM(U33:U35) ->  | E10: =SUM(V33:V35) -> 0.121228068 | H10: Diesel and unleaded petrol | I10: =IF('Baseline farm'!$D$32="kg milksolids per herd per annum",'Baseline farm'!K126*1000*'Baseline farm'!$Q$280/'Baseline farm'!$R$213,'Baseline farm'!K126*1000*'Baseline farm'!$Q$280/'Baseline farm'!$R$218) ->  | J10: =IF('Strategy farm'!$D$32="kg milksolids per herd per annum",'Strategy farm'!K126*1000*'Strategy farm'!$P$323/'Strategy farm'!$Q$256,'Strategy farm'!K126*1000*'Strategy farm'!$P$323/'Strategy farm'!$Q$261) ->  | L10: Pre-farm embedded | M10: =SUM('Baseline farm'!L130:L132) ->  | N10: =SUM('1990 methodology comparison'!L126:L128) ->  | P10: Pre-farm embedded | Q10: =M10 ->  | R10: ='2015 methodology comparison '!$L$127+'2015 methodology comparison '!$L$128+'2015 methodology comparison '!$L$129 -> 
A11: Tree carbon sequestration | B11: ='Baseline farm'!K137/'Baseline farm'!K134 ->  | C11: ='Example baseline farm'!K137/'Example baseline farm'!K134 -> -0.008172445927 | D11: =U36 ->  | E11: =V36 -> 0 | H11: Urea and Lime | I11: =IF('Baseline farm'!$D$32="kg milksolids per herd per annum",'Baseline farm'!K127*1000*'Baseline farm'!$Q$280/'Baseline farm'!$R$213,'Baseline farm'!K127*1000*'Baseline farm'!$Q$280/'Baseline farm'!$R$218) ->  | J11: =IF('Strategy farm'!$D$32="kg milksolids per herd per annum",'Strategy farm'!K127*1000*'Strategy farm'!$P$323/'Strategy farm'!$Q$256,'Strategy farm'!K127*1000*'Strategy farm'!$P$323/'Strategy farm'!$Q$261) ->  | M11: =SUM(M2:M10) ->  | N11: =SUM(N2:N10) ->  | Q11: =SUM(Q2:Q10) ->  | R11: =SUM(R2:R10) -> 
B12: =SUM(B2:B11) ->  | C12: =SUM(C2:C11) -> 0.9918275541 | D12: =SUM(D2:D11) ->  | E12: =SUM(E2:E11) -> 1 | G12: Pre-farm embedded | H12: Grain/ concentrates | I12: =IF('Baseline farm'!$D$32="kg milksolids per herd per annum",'Baseline farm'!K128*1000*'Baseline farm'!$Q$280/'Baseline farm'!$R$213,'Baseline farm'!K128*1000*'Baseline farm'!$Q$280/'Baseline farm'!$R$218) ->  | J12: =IF('Strategy farm'!$D$32="kg milksolids per herd per annum",'Strategy farm'!K128*1000*'Strategy farm'!$P$323/'Strategy farm'!$Q$256,'Strategy farm'!K128*1000*'Strategy farm'!$P$323/'Strategy farm'!$Q$261) -> 
H13: Forages | I13: =IF('Baseline farm'!$D$32="kg milksolids per herd per annum",'Baseline farm'!K129*1000*'Baseline farm'!$Q$280/'Baseline farm'!$R$213,'Baseline farm'!K129*1000*'Baseline farm'!$Q$280/'Baseline farm'!$R$218) ->  | J13: =IF('Strategy farm'!$D$32="kg milksolids per herd per annum",'Strategy farm'!K129*1000*'Strategy farm'!$P$323/'Strategy farm'!$Q$256,'Strategy farm'!K129*1000*'Strategy farm'!$P$323/'Strategy farm'!$Q$261) -> 
H14: Fertilisers | I14: =IF('Baseline farm'!$D$32="kg milksolids per herd per annum",'Baseline farm'!K130*1000*'Baseline farm'!$Q$280/'Baseline farm'!$R$213,'Baseline farm'!K130*1000*'Baseline farm'!$Q$280/'Baseline farm'!$R$218) ->  | J14: =IF('Strategy farm'!$D$32="kg milksolids per herd per annum",'Strategy farm'!K130*1000*'Strategy farm'!$P$323/'Strategy farm'!$Q$256,'Strategy farm'!K130*1000*'Strategy farm'!$P$323/'Strategy farm'!$Q$261) -> 
G15: Sequestration | H15: Tree plantings (minus) | I15: =IF('Baseline farm'!$D$32="kg milksolids per herd per annum",'Baseline farm'!K131*1000*'Baseline farm'!$Q$280/'Baseline farm'!$R$213,'Baseline farm'!K131*1000*'Baseline farm'!$Q$280/'Baseline farm'!$R$218) ->  | J15: =IF('Strategy farm'!$D$32="kg milksolids per herd per annum",'Strategy farm'!K131*1000*'Strategy farm'!$P$323/'Strategy farm'!$Q$256,'Strategy farm'!K131*1000*'Strategy farm'!$P$323/'Strategy farm'!$Q$261) -> 
G17: GHG emissions intensity | I17: =IF('Baseline farm'!D32="kg milksolids per herd per annum","kg CO2e per kg milksolids","kg CO2e per litre of fat and protein corrected milk") -> kg CO2e per litre of fat and protein corrected milk
K20: Leave QLD as is due to issues with missing data etc
B21: % emissions each source for ADCC industry average graph | U21: Selected Baseline farm | V21: Selected Example Baseline farm
C22: Australia-wide | D22: Victoria | E22: Victoria- Gippsland | F22: Victoria- Northern | G22: Victoria- South West | H22: New South Wales | I22: NSW- North | J22: NSW- South | K22: Queensland | L22: QLD- North | M22: QLD- South | N22: South Australia | O22: Tasmania | P22: Western Australia | Q22: Low grain (< 1 t DM/cow.annum) | R22: Medium grain (1-2 t DM/cow.annum) | S22: High grain (> 2 t DM/cow.annum) | U22: ='Baseline farm'!K226 -> 0 | V22: ='Example baseline farm'!H13 -> Victoria- South West
B23: Enteric methane | C23: 0.6109349419 | D23: 0.5981429682 | E23: 0.5994209225 | F23: 0.6107342124 | G23: 0.5834463063 | H23: 0.5786785875 | I23: 0.5658474247 | J23: 0.5931136457 | K23: 0.6016916193 | L23: 0.6129264533 | M23: 0.5994334097 | N23: 0.615211216 | O23: 0.6584684808 | P23: 0.605521679 | Q23: 0.6419061988 | R23: 0.6039545343 | S23: 0.5964064843 | U23: =HLOOKUP(U22,B22:S36,2,FALSE) ->  | V23: =HLOOKUP(V22,B22:S36,2,FALSE) -> 0.5834463063
B24: Waste methane | C24: 0.09490856134 | D24: 0.09845639041 | E24: 0.09719898418 | F24: 0.1028735406 | G24: 0.09508448797 | H24: 0.09830112548 | I24: 0.09336612932 | J24: 0.1038529962 | K24: 0.09286519891 | L24: 0.09033297473 | M24: 0.09377543254 | N24: 0.09526808416 | O24: 0.07645744742 | P24: 0.08479751319 | Q24: 0.09203927353 | R24: 0.0944545065 | S24: 0.09348774478 | V24: 0.09508448797
B25: N2O direct grazing | C25: 0.03436265779 | D25: 0.03401216378 | E25: 0.03467476121 | F25: 0.03419606707 | G25: 0.03312408435 | H25: 0.03152531413 | I25: 0.03132663725 | J25: 0.03174882562 | K25: 0.03376018009 | L25: 0.03480762368 | M25: 0.03346593293 | N25: 0.0330870247 | O25: 0.03884223753 | P25: 0.03473933928 | Q25: 0.03870703572 | R25: 0.0342507187 | S25: 0.03305224468 | V25: 0.03312408435
B26: Manure storage & spread | C26: 0.009978470538 | D26: 0.008422685303 | E26: 0.008724451258 | F26: 0.008418293747 | G26: 0.008111757748 | H26: 0.01089616564 | I26: 0.01063872229 | J26: 0.01118578941 | K26: 0.01096521456 | L26: 0.01105303204 | M26: 0.01095382483 | N26: 0.01090966571 | O26: 0.009723392847 | P26: 0.009510290295 | Q26: 0.01031326637 | R26: 0.009318906648 | S26: 0.009584751563 | V26: 0.008111757748
B27: Indirect N waste | C27: 0.0190158114 | D27: 0.01875785243 | E27: 0.02192997791 | F27: 0.01153535724 | G27: 0.02310400236 | H27: 0.01881016148 | I27: 0.02174951395 | J27: 0.01550338995 | K27: 0.01781571551 | L27: 0.01839248768 | M27: 0.01760211859 | N27: 0.01595491658 | O27: 0.02049948708 | P27: 0.02160884651 | Q27: 0.0186287001 | R27: 0.01985290175 | S27: 0.01845833104 | V27: 0.02310400236
B28: Direct N fert | C28: 0.03448585963 | D28: 0.03370203461 | E28: 0.03442579849 | F28: 0.03385988677 | G28: 0.03277762923 | H28: 0.03236397334 | I28: 0.03206603017 | J28: 0.03269915941 | K28: 0.03420661908 | L28: 0.03515661932 | M28: 0.03394560159 | N28: 0.03367324247 | O28: 0.0382314837 | P28: 0.0345588367 | Q28: 0.03849233541 | R28: 0.03418339305 | S28: 0.03319074636 | V28: 0.03277762923
B29: Indirect N fert | C29: 0.01501761516 | D29: 0.01481389371 | E29: 0.01731905948 | F29: 0.009109974434 | G29: 0.01824623776 | H29: 0.01485520445 | I29: 0.01717653922 | J29: 0.01224370283 | K29: 0.01406984712 | L29: 0.01452534924 | M29: 0.01390116032 | N29: 0.0126002931 | O29: 0.01618933851 | P29: 0.01706544801 | Q29: 0.01471189649 | R29: 0.0156787019 | S29: 0.01457734862 | V29: 0.01824623776
B30: Electricity | C30: 0.03263377426 | D30: 0.04785367641 | E30: 0.04487043594 | F30: 0.05025263347 | G30: 0.04842809558 | H30: 0.05724013564 | I30: 0.06733940554 | J30: 0.04587845702 | K30: 0.03927635355 | L30: 0.03799854488 | M30: 0.03965046394 | N30: 0.03155445177 | O30: 0.009264142094 | P30: 0.03061966959 | Q30: 0.02541626174 | R30: 0.04399638943 | S30: 0.04179250684 | V30: 0.04842809558
B31: Fuel | C31: 0.01552018232 | D31: 0.01638213085 | E31: 0.01167414359 | F31: 0.0189504898 | G31: 0.0185805458 | H31: 0.02351589558 | I31: 0.02284516837 | J31: 0.02427046371 | K31: 0.01963817677 | L31: 0.01899927244 | M31: 0.01982523197 | N31: 0.03082691988 | O31: 0.0106989398 | P31: 0.02246707293 | Q31: 0.01883329605 | R31: 0.01836979892 | S31: 0.02132446005 | V31: 0.0185805458
B32: Urea & Lime | C32: 0.01565544657 | D32: 0.01613087411 | E32: 0.01918620193 | F32: 0.01148162066 | G32: 0.01786878492 | H32: 0.01656594953 | I32: 0.01898984275 | J32: 0.01383906966 | K32: 0.01548600762 | L32: 0.02103447792 | M32: 0.01391282062 | N32: 0.009699013566 | O32: 0.01710288837 | P32: 0.01534869133 | Q32: 0.01661996226 | R32: 0.01669526431 | S32: 0.0143023101 | V32: 0.01786878492
B33: Concs | C33: 0.05323230637 | D33: 0.04805784668 | E33: 0.04612942451 | F33: 0.04823682834 | G33: 0.04988468167 | H33: 0.05412472356 | I33: 0.05193685319 | J33: 0.05658607772 | K33: 0.06170791884 | L33: 0.05039096665 | M33: 0.06428316021 | N33: 0.04859802145 | O33: 0.03900184392 | P33: 0.05651781354 | Q33: 0.02564992713 | R33: 0.04370376144 | S33: 0.05871201048 | V33: 0.04988468167
B34: Fodder | C34: 0.01333700175 | D34: 0.01537328968 | E34: 0.008285367134 | F34: 0.02843403269 | G34: 0.008927504269 | H34: 0.01280968698 | I34: 0.008759242925 | J34: 0.01736643654 | K34: 0.01294770921 | L34: 0.006981564878 | M34: 0.01435601546 | N34: 0.01745342401 | O34: 0.009876642629 | P34: 0.006689464182 | Q34: 0.007439474331 | R34: 0.01260647016 | S34: 0.01446422634 | V34: 0.008927504269
B35: Fertiliser | C35: 0.0510992628 | D35: 0.05043763467 | E35: 0.05777492728 | F35: 0.03191706277 | G35: 0.06241588203 | H35: 0.05031307669 | I35: 0.05795849035 | J35: 0.04171198632 | K35: 0.04556943946 | L35: 0.04740063328 | M35: 0.04489482728 | N35: 0.04516372662 | O35: 0.05564367529 | P35: 0.06055533542 | Q35: 0.05124237206 | R35: 0.0534538557 | S35: 0.05064683489 | V35: 0.06241588203
B36: Trees | C36: 0 | D36: 0 | E36: 0 | F36: 0 | G36: 0 | H36: 0 | I36: 0 | J36: 0 | K36: 0 | L36: 0 | M36: 0 | N36: 0 | O36: 0 | P36: 0 | Q36: 0 | R36: 0 | S36: 0 | V36: 0

Sheet Baseline farm
B2: Australian Dairy Carbon Calculator Baseline farm system
B7: Enter your farm data in the white cells and select from the drop-down boxes (arrow on right hand side will appear once you go into the white cells) | K7: DairyBase import help
B8: Additional information for individual questions will appear if the question as a red triangle in the top right corner. Hover over the heading/ question and a comment will appear | K8: Cannot run macro help | M8: NOTES: | N8: Use inside this boxed area to enter any comments, notes, calculations to determine data entry
N9: You can enter notes outside of this box but it will not be deleted if you select the 'Clear input cells' button
B10: Farmer details
C11: Owner or sharefarmer ID | G11: Supplier Number
C13: Address | G13: Year reviewed
C15: Choose your state in Australia | F15: Choose your region/ farm system comparison
B17: Livestock dynamics | D17: Milking Cows | E17: Heifers >1 yr age | F17: Heifers <1 yr age | G17: Mature bulls | H17: Other stock < 1 yr age | I17: Other stock > 1 yr age | J17: Calves
C19: Livestock numbers | K19: head
C21: Liveweight | K21: kg/head
C23: Daily liveweight gain | K23: kg/day
C25: Number of stock sold each year | K25: head
C27: Liveweight at point of sale | K27: kg/head
J29: =SUMPRODUCT(D25:J25,D27:J27)/1000 -> 0 | K29: t LW/annum
B31: Milk production
C32: Select option for milk production | F32: Amount of milk produced | I32: =IF(V225="1","litres of milk per herd per annum","kg milksolids per herd per annum") -> kg milksolids per herd per annum
C34: Average annual milk fat (%) | E34: % | F34: Average annual milk protein | I34: %
C36: Average lactation length (days) | E36: days | F36: Average milk production | H36: =ROUND(R220,1) ->  | I36: litres per cow per day
B38: Milkers average annual diet intakes and quality | D38: Intake (kg DM/day) | F38: Dry matter digestibility (DMD; %) | H38: Crude protein (CP; %)
C39: Pastures
B40: Estimated intake based | C40: Concentrates/ grain
B41: on data entry | C41: Silage
B42: =R224 &" kg DM/cow.day" ->  | C42: Hay
C43: By-products
B44: Click here for help regarding feed quality | C44: Other
C45: Total (kg DM/day) or average (%) | D45: =SUM(D39:E44) -> 0 | F45: =R222 ->  | H45: =R223 -> 
B47: Average annual dry matter digestibility (DMD) for all other stock (%) | E47: %
B49: Average annual crude protein (CP) for all other stock (%) | E49: %
B51: Fertilisers
C52: How do you which to enter the fertiliser rates? | I52: Click here to work out fertiliser rates
C54: Area of N fertiliser | G54: Rate of N fert.
B55: Area of pastures fertilised with N | D55: ha | E55: Amount of N applied to pastures | H55: =IF($V$213="1","kg per ha per annum","t per annum") -> t per annum
B57: Area of crops fertilised with N | D57: ha | E57: Amount of N applied to crops | H57: =H55 -> t per annum
E59: Percentage of N fertiliser that is urea | H59: %
C61: Area of P K S & Lime fertiliser | G61: Rate of P fert. | H61: Rate of K fert. | I61: Rate of S fert. | J61: Rate of Lime/dolomite
B62: Area of pastures fertilised with P K S & Lime | D62: ha | E62: Rate of P K S & Lime/dolomite to pastures | K62: =H55 -> t per annum
B64: Area of crops fertilised with P K S & Lime | D64: ha | E64: Rate of P K S & Lime/dolomite to crops | K64: =H55 -> t per annum
B66: Energy consumption
B67: Annual Electricity Use (kWh) | D67: kWh | E67: Where does your electricity come from?
B69: Annual Diesel/ unleaded petrol (litres) | D69: litres | E69: What % of electricity is from renewables? | I69: %
B71: Purchased supplementary feed
B72: Pasture or cereal hay (t DM) | D72: t DM | E72: Lucerne/ legume hay (t DM) | I72: t DM | J72: Proportion of purchased fodder allocated to dairy (%)
B74: Pasture silage (t DM) | D74: t DM | E74: Cereal/ maize silage (t DM) | I74: t DM
B76: Grain/ concentrates (t DM) | D76: t DM | E76: By-products (t DM) | I76: t DM
B78: Carbon sequestration in tree plantations
B79: How are you estimating this? | F79: Area of trees (ha) | H79: Age of Trees
B81: Choose your region of Australia
F82: Amount of carbon sequestered using other tools | I82: t CO2e/ha.annum
B83: Choose the type of trees planted
B85: Manure management
C86: Choose which option you are using to estimate how animal effluent is handled | H86: Volatile solids | I86: =D256 ->  | J86: kg VS/head.day for the milking cows
B87: % effluent to each manure management system
C88: Anaerobic lagoon | D88: Sump dispersal | E88: Drain to paddock | F88: Solid storage | G88: Pasture
B89: Milkers | C89: =AJ238 ->  | D89: =AK238 ->  | E89: =AL238 ->  | F89: =AN238 ->  | G89: =AI238 -> 
B90: All other stock | C90: =AJ241 -> 0 | D90: =AK241 -> 0 | E90: =AL241 -> 0 | F90: =AN241 -> 0 | G90: =AI241 -> 100
B91: Only answer the following questions if you which to enter your own farm management practices to estimate the percentage of effluent to each of the abovementioned manure management systems. In addition, you must have selected the User-defined factors and fractions option in the drop-down list at the beginning of this section otherwise the results with still reflect the default state-based fractions and factors.
B95: Milkers | G95: Hours per day | H95: Days per annum
B96: Number of hours per day and days per annum a milker spends at the dairy and adjacent yards where her effluent is flushed with water
B98: Percentage of effluent that is flushed and then drains to the paddock with no treatment/ removal of solids | H98: %
B99: Percentage of effluent that is flushed and then spread daily from a sump/dispersal system (with or without removal of solids) | H99: %
B100: Balance assumed to be flushed and then enter a pond/lagoon system | G100: =(100-(G98+G99)) -> 100 | H100: %
B102: Do you pre-treat the effluent prior to spreading daily or entering the lagoon (e.g. weeping wall, solids trap, mechanical separator to remove a fraction of the solids)?
G104: Hours per day | H104: Days per annum
B105: Number of hours per day and days per annum a milker spend on a feedpad or loafing area or are housed (TMR farm)
B107: Select the option which best describes how the majority of this effluent from the feedpad or loafing area is best handled | I107: Integrated MCF % | J107: =AP238 -> 
B109: Heifers | G109: Hours per day | H109: Days per annum
B110: Number of hours per day and days per annum the heifers spend in yards or are housed where her effluent is deposited
B112: Select the option which best describes how this effluent from the feedpad or loafing area is best handled | I112: Integrated MCF % | J112: =AP241 -> 1
B115: Results for baseline farm system
D116: =D17 -> Milking Cows | E116: Heifers >1 yr age | F116: Heifers <1 yr age | G116: Mature bulls | H116: Other stock < 1 yr age | I116: Other stock > 1 yr age | J116: N fertiliser | K116: Total GHG (tonnes CO2e/annum) | L116: % of total GHG (exc. C sequestration in trees) | M116: kg CO2e/kg FPCM (your farm) | N116: kg CO2e/kg FPCM (industry comparison)
B118: Methane (Scope 1): | C118: Enteric fermentation | D118: =D244*'Emission factors'!$C$4*10^3 ->  | E118: =E244*'Emission factors'!$C$4*10^3 -> 0 | F118: =(F244+I244)*'Emission factors'!$C$4*10^3 -> 0 | G118: =G244*'Emission factors'!$C$4*10^3 -> 0 | H118: =(H244+J244)*'Emission factors'!$C$4*10^3 -> 0 | I118: =(K244)*'Emission factors'!$C$4*10^3 -> 0 | K118: =SUM(D118:I118) ->  | L118: =K118/$K$134 ->  | M118: =K118*1000/$R$218*$Q$280 ->  | N118: ='Industry averages'!T36 ->  | O118: Enteric fermentation
C119: Manure management | D119: =D269*'Emission factors'!$C$4*10^3 ->  | E119: =E269*'Emission factors'!$C$4*10^3 -> 0 | F119: =(F269+I269)*'Emission factors'!$C$4*10^3 -> 0 | G119: =G269*'Emission factors'!$C$4*10^3 -> 0 | H119: =(H269+J269)*'Emission factors'!$C$4*10^3 -> 0 | I119: =(K269)*'Emission factors'!$C$4*10^3 -> 0 | K119: =SUM(D119:I119) ->  | N119: ='Industry averages'!T37 ->  | O119: Manure management
B120: Nitrous oxide (Scope 1): | C120: Direct from dung & urine voided onto pastures | D120: =D452*'Emission factors'!$C$5*10^3 ->  | E120: =E452*'Emission factors'!$C$5*10^3 ->  | F120: =(F452+I452)*'Emission factors'!$C$5*10^3 ->  | G120: =G452*'Emission factors'!$C$5*10^3 ->  | H120: =(H452+J452)*'Emission factors'!$C$5*10^3 ->  | I120: =(K452)*'Emission factors'!$C$5*10^3 ->  | K120: =SUM(D120:I120) ->  | N120: ='Industry averages'!T38 ->  | O120: Direct from dung & urine voided onto pastures
C121: Direct from manure (storage & spread) | D121: =(D331+D407)*'Emission factors'!$C$5*10^3 ->  | E121: =(E331+E407)*'Emission factors'!$C$5*10^3 ->  | F121: =((F331+I331)+(F407+I407))*'Emission factors'!$C$5*10^3 ->  | G121: =(G331+G407)*'Emission factors'!$C$5*10^3 ->  | H121: =((H331+J331)+(H407+J407))*'Emission factors'!$C$5*10^3 ->  | I121: =((K331+K407))*'Emission factors'!$C$5*10^3 ->  | K121: =SUM(D121:I121) ->  | N121: ='Industry averages'!T39 ->  | O121: Direct from manure (storage & spread)
C122: Indirect N waste | D122: =(D346+D355+D489+D523)*'Emission factors'!$C$5*10^3 ->  | E122: =(E346+E355+E489+E523)*'Emission factors'!$C$5*10^3 ->  | F122: =(F346+F355+F489+F523+I346+I355+I489+I523)*'Emission factors'!$C$5*10^3 ->  | G122: =(G346+G355+G489+G523)*'Emission factors'!$C$5*10^3 ->  | H122: =(H346+H355+H489+H523+J346+J355+J489+J523)*'Emission factors'!$C$5*10^3 ->  | I122: =(K346+K355+K489+K523)*'Emission factors'!$C$5*10^3 ->  | K122: =SUM(D122:I122) ->  | N122: ='Industry averages'!T40 ->  | O122: Indirect N waste
C123: Direct N fertiliser | J123: =C385 -> 0 | K123: =J123 -> 0 | N123: ='Industry averages'!T41 ->  | O123: Direct N fertiliser
C124: Indirect N fertiliser | J124: =(SUM(D484:D485)+SUM(D518:D519))*'Emission factors'!$C$5*10^3 -> 0 | K124: =J124 -> 0 | N124: ='Industry averages'!T42 ->  | O124: Indirect N fertiliser
B125: Carbon dioxide: | C125: Electricity (Scope 2) | K125: =J546 -> 0 | M125: =(K125+K126)*1000/$R$218*$Q$280 ->  | N125: ='Industry averages'!T43 ->  | O125: Electricity (Scope 2 &3)
C126: Electricity (Scope 3) | K126: =J550 -> 0
C127: Diesel and unleaded petrol (Scope 1) | K127: =H538 -> 0 | M127: =(K127+K128)*1000/$R$218*$Q$280 ->  | N127: ='Industry averages'!T44 ->  | O127: Diesel and unleaded petrol (Scope 1 & 3)
C128: Diesel and unleaded petrol (Scope 3) | K128: =J538 -> 0
C129: Urea and Lime/dolomite (Scope 1) | K129: =C581+C588 -> 0 | M129: =K129*1000/$R$218*$Q$280 ->  | N129: ='Industry averages'!T45 ->  | O129: Urea and Lime/dolomite
B130: Pre-farm gate embedded (Scope 3) | C130: Grain/ concentrates | K130: =E565 -> 0 | M130: =K130*1000/$R$218*$Q$280 ->  | N130: ='Industry averages'!T46 ->  | O130: Grain/ concentrates
C131: Forages | K131: =SUM(E561:E564) -> 0 | M131: =K131*1000/$R$218*$Q$280 ->  | N131: ='Industry averages'!T47 ->  | O131: Forages
C132: Fertilisers | K132: =E574 -> 0 | M132: =K132*1000/$R$218*$Q$280 ->  | N132: ='Industry averages'!T48 ->  | O132: Fertilisers
B134: Total GHG emissions | D134: =SUM(D118:D132) ->  | E134: =SUM(E118:E132) ->  | H134: =SUM(H118:H132) ->  | I134: =SUM(I118:I132) ->  | J134: =SUM(J118:J132) -> 0 | K134: =SUM(K118:K132) ->  | L134: t CO2e/annum
B135: % of total GHG emissions (before carbon sequestration is taken into account) | D135: =D134/SUM($K$118:$K$132) -> 
B137: Carbon sequestration | C137: Tree plantings, with negative figures representing amount of carbon sequestered | K137: =IF(C79="",0,IF(V220=1,0,IF(V220=3,H82*G79*-1,F599*-1))) -> 0 | L137: t CO2e/annum
B139: Net GHG emissions | K139: =K134+K137 ->  | L139: t CO2e/annum
B141: GHG emissions intensity (kg CO2e/kg fat and protein corrected milk (FPCM)) | M141: =S277 ->  | N141: ='Industry averages'!T33 ->  | O141: kg CO2e/kg FPCM (post carbon sequestration)
B142: GHG emissions intensity (kg CO2e/kg milksolids) | M142: =S278 ->  | N142: ='Industry averages'!T35 ->  | O142: kg CO2e/kg milksolids (post-carbon sequestration)
B143: GHG emissions intensity (kg CO2e/kg liveweight) | M143: =S279 ->  | N143: ='Industry averages'!T34 ->  | O143: kg CO2e/kg liveweight meat (post-carbon sequestration)
B145: Proportion of net emissions allocated to milk | M145: =Q280 ->  | N145: ='Industry averages'!T49 ->  | O145: Proportion of emissions allocated to milk
B146: Proportion of net emissions allocated to meat | M146: =Q281 ->  | N146: ='Industry averages'!T50 ->  | O146: Proportion of emissions allocated to meat
B151: Note: Total GHG emissions for each stock class does not include carbon sequestered in trees. However, Net GHG emissions and emissions intensities includes any carbon sequestration in tree plantings.
B153: Typical GHG emissions intensity, based on 70-90% of net emissions allocated to milk production, should range between 0.6 and 1.2 kg CO2e/ kg FPCM or between 8 and 18 kg CO2e/kg milksolids. If your emissions intensity is outside these ranges, review your data entry for potential errors.
B198: State and dairy region for tree plantings
C200: State | D200: Victoria | E200: New South Wales | F200: Tasmania | G200: Queensland | H200: South Australia | I200: Western Australia
B201: 1 | C201: Victoria | D201: Mallee region VIC | E201: Northern coastal NSW | F201: North East TAS | G201: Northern QLD | H201: South East SA | I201: South West WA
B202: 2 | C202: New.South.Wales | D202: Northern region VIC | E202: Southern coastal NSW | F202: Central North & Midlands TAS | G202: Southern QLD | H202: Murray River SA
B203: 3 | C203: Tasmania | D203: North East region VIC | E203: Central Inland & Riverina NSW | F203: Southern TAS
B204: 4 | C204: Queensland | D204: East Gippsland | F204: North West TAS
B205: 5 | C205: South.Australia | D205: South & West Gippsland
B206: 6 | C206: Western.Australia | D206: South West VIC
K208: RDPs for linking to Industry average farm
J209: 1 | K209: Australia-wide | AI209: Milkers- dairy | AR209: Milkers | AV209: Heifers
B210: Selected State | C210: =D15 -> 0 | D210: Selected Region | E210: =C81 -> 0 | G210: Calves sold | H210: Calves sold soon after birth | J210: 2 | K210: Victoria | P210: Milk production | T210: N fertiliser rates | U210: kg of element per ha per annum | W210: Graphs | AC210: Manure management | AD210: 1 | AE210: Default state factors and fractions | AI210: Hours per day at dairy | AJ210: =G96 -> 0 | AM210: Heifers | AR210: % to grazing | AT210: =1-((AJ210/24*AJ211/365)+(AJ215/24*AJ216/365)) -> 1 | AV210: % to grazing | AW210: =1-(AO211/24*AO212/365) -> 1 | AZ210: MCF calculations- milkers
H211: Calves sold post-weaning | J211: 3 | K211: Victoria- Gippsland | U211: tonnes of element per annum | W211: Enteric methane | X211: =L118 ->  | AD211: 2 | AE211: User-defined factors and fractions | AI211: Days per annum at dairy | AJ211: =H96 -> 0 | AM211: Hours per day | AO211: =G110 -> 0 | AR211: % from dairy & drains to paddock | AT211: =(AJ210/24)*(AJ211/365)*(AJ212/100) -> 0 | AV211: % drains to paddock | AW211: =IF(AN224=1,((AO211/24)*(AO212/365)),0) -> 0 | BA211: Lagoon | BB211: Sump and dispersal | BC211: Drains to paddock | BD211: Solids storage | BE211: Voided pasture
G212: Selected | H212: =IF(K17=H210,1,2) -> 2 | J212: 4 | K212: Victoria- Northern | P212: Litres per annum | R212: =IF(V225="1",H32,0) -> 0 | W212: Waste methane | X212: =L119 ->  | AD212: Selected | AE212: =IF(F86="",1,IF(F86=AE210,1,2)) -> 1 | AI212: % drained daily from sump | AJ212: =G98 -> 0 | AM212: Days per annum | AO212: =H110 -> 0 | AR212: % from dairy & spread daily | AT212: =(AJ210/24*AJ211/365*AJ213/100)*IF(AE217=2,0.8,1) -> 0 | AV212: % spread sump/dispersal system | AW212: =IF(AN224=2,AO211/24*AO212/365*IF(AE217=2,0.8,1),0) -> 0 | AY212: 1 | AZ212: Victoria | BA212: 74 | BB212: 0.5 | BC212: 17 | BD212: 2 | BE212: 1
H213: =IF(H212=1,H210,H211) -> Calves sold post-weaning | J213: 5 | K213: Victoria- South West | P213: MS per annum | R213: =IF(V225="2",H32,0) -> 0 | T213: Selected | U213: =E52 -> 0 | V213: =IF(U213="kg of element per ha per annum","1","2") -> 2 | W213: Direct N2O waste | X213: =L120+L121 ->  | AI213: % spread daily from sump | AJ213: =G99 -> 0 | AR213: % from dairy & spread daily & treated so its solid storage | AT213: =(AJ210/24*AJ211/365*AJ213/100)*IF(AE217=1,0,0.2) -> 0 | AV213: % of spread daily to SS | AW213: =IF(AN224=2,AO211/24*AO212/365)*IF(AE217=2,0.2,0) -> 0 | AY213: 2 | AZ213: New.South.Wales | BA213: 75 | BB213: 0.5 | BC213: 18 | BD213: 2 | BE213: 1
J214: 6 | K214: New South Wales | P214: Fat % | R214: =(IF(D34="",4,D34)) -> 4 | W214: Direct N2O N fertiliser | X214: =L123 ->  | AI214: % to lagoon | AJ214: =G100 -> 100 | AR214: % from dairy & to lagoon (no pre-treatment) | AT214: =IF(AE217=1,(AJ210/24*AJ211/365*AJ214/100),(AJ210/24*AJ211/365*AJ214/100)*0.8) -> 0 | AV214: % to lagoon (no pre-treatment) | AW214: =IF(AN224=3,(AO211/24*AO212/365)*IF(AE217=2,0.8,1),0) -> 0 | AY214: 3 | AZ214: Tasmania | BA214: 70 | BB214: 0.1 | BC214: 15 | BD214: 2 | BE214: 1
J215: 7 | K215: NSW- North | P215: Protein % | R215: =IF(H34="",3.3,H34) -> 3.3 | W215: Indirect N2O waste | X215: =L122 ->  | AC215: Pre-treat | AD215: 1 | AE215: NO | AI215: Hours per day on feedpad | AJ215: =G105 -> 0 | AR215: % from dairy & to lagoon (pre-treated & to solid storage fraction) | AT215: =IF(AE217=1,0,(AJ210/24*AJ211/365*AJ214/100)*0.2) -> 0 | AV215: % to lagoon (pre-treated & to solid storage) | AW215: =IF(AN224=3,(AO211/24*AO212/365*IF(AE217=2,0.2,0)),0) -> 0 | AY215: 4 | AZ215: Queensland | BA215: 77 | BB215: 0.5 | BC215: 24 | BD215: 2 | BE215: 1
J216: 8 | K216: NSW- South | P216: DGAS estimated kg MS if litres entered | R216: =IF(R212=0,R213,(R212*(R214+R215)/100)) -> 0 | T216: Tree sequestration | U216: No estimate of carbon sequestration | W216: Indirect N2O N fertiliser | X216: =L124 ->  | AD216: 2 | AE216: YES | AI216: Days per annum on feedpad | AJ216: =H105 -> 0 | AR216: % from feedpad and drains to paddock | AT216: =IF(AI224=1,(AJ215/24*AJ216/365),0) -> 0 | AV216: % to solid storage | AW216: =IF(AN224=4,AO211/24*AO212/365,0) -> 0 | AY216: 5 | AZ216: South.Australia | BA216: 74 | BB216: 0.5 | BC216: 17 | BD216: 2 | BE216: 1
J217: 9 | K217: Queensland | P217: DGAS estimated litres per annum | R217: =IF(R212=0,(R213/((R214+R215)/100)),R212) -> 0 | U217: Based on data entered here | W217: Energy consumption | X217: =L125+L127 ->  | AD217: Selected | AE217: =IF(G102="",1,IF(G102=AE215,1,2)) -> 1 | AR217: % from feedpad spread daily | AT217: =IF(AI224=2,(AJ215/24*AJ216/365),0)*IF(AE217=2,0.8,1) -> 0 | AV217: % sum solid storage | AW217: =AW213+AW215+AW216 -> 0 | AY217: 6 | AZ217: Western.Australia | BA217: 75 | BB217: 0.5 | BC217: 18 | BD217: 2 | BE217: 1
J218: 10 | K218: QLD- North | P218: FPCM (kg per annum; IDF equation) | R218: =(R217*1.03)*(0.2534+0.1226*R214+0.0776*R215) -> 0 | U218: Carbon sequestered using other tools | W218: Pre-farm embedded | X218: =SUM(L130:L132) ->  | AI218: Milkers- feedpad | AL218: Heifers- feedpad | AR218: % of feedpad spread daily going to SS | AT218: =IF(AI224=2,(AJ215/24*AJ216/365)*IF(AE217=2,0.2,0),0) -> 0 | AV218: % drains to paddock | AW218: =AW211 -> 0
J219: 11 | K219: QLD- South | P219: kg milk per cow per day | R219: =ROUND((R218/D19/D36),1) ->  | AR219: % from feedpad to lagoon without treatment | AT219: =IF(AI224=3,(AJ215/24*AJ216/365*IF(AE217=2,0.8,1)),0) -> 0 | AV219: % sum lagoon | AW219: =AW214 -> 0 | AY219: Selected | AZ219: =VLOOKUP($D$15,$AZ$212:$BE$218,1,FALSE) ->  | BA219: =VLOOKUP($D$15,$AZ$212:$BE$218,2,FALSE) ->  | BB219: =VLOOKUP($D$15,$AZ$212:$BE$218,3,FALSE) ->  | BC219: =VLOOKUP($D$15,$AZ$212:$BE$218,4,FALSE) ->  | BD219: =VLOOKUP($D$15,$AZ$212:$BE$218,5,FALSE) ->  | BE219: =VLOOKUP($D$15,$AZ$212:$BE$218,6,FALSE) -> 
J220: 12 | K220: South Australia | P220: litres per cow per day | R220: =(R217/D19/D36) ->  | T220: Selected | U220: =C79 -> 0 | V220: =IF(C79="",0,IF(C79=U216,1,IF(C79=U217,2,3))) -> 0 | AH220: 1 | AI220: Flushed & drains daily to the paddock | AL220: Feedpad waste- heifers | AM220: 1 | AN220: Flushed & drains daily to the paddock | AR220: % from feedpad and to lagoon but with pre-treatment to make it solid storage | AT220: =(IF(AI224=3,(AJ215/24*AJ216/365*IF(AE217=2,0.2,0)),0)) -> 0 | AV220: % sum sump and dispersal | AW220: =AW212 -> 0
J221: 13 | K221: Tasmania | P221: kg MS per cow per day | R221: =(R220*((R214+R215)/100)) ->  | AH221: 2 | AI221: Flushed & spread daily from a sump | AM221: 2 | AN221: Flushed & spread daily from a sump | AR221: % from feedpad wet-lotted (solid storage) | AT221: =(IF(AI224=4,(AJ215/24*AJ216/365),0)) -> 0 | AY221: Milker MCF | BA221: =BA219*AT224 ->  | BB221: =BB219*AT225 ->  | BC221: =BC219*AT223 ->  | BD221: =BD219*AT222 ->  | BE221: =BE219*AT210 -> 
J222: 14 | K222: Western Australia | P222: Average DMD | R222: =((D39*F39)+(D40*F40)+(D41*F41)+(D42*F42)+(D43*F43)+(D44*F44))/D45 ->  | T222: Milk production | U222: litres per herd per annum | AH222: 3 | AI222: Flushed to a pond/lagoon system | AM222: 3 | AN222: Flushed to a pond/lagoon system | AR222: % sum solid storage | AT222: =AT213+AT218+AT221+AT215+AT220 -> 0 | AY222: Integrated MCF | BE222: =SUM(BA221:BE221) -> 
J223: 15 | K223: Low grain (< 1 t DM/cow.annum) | P223: Average CP | R223: =((D39*H39)+(D40*H40)+(D41*H41)+(D42*H42)+(D43*H43)+(D44*H44))/D45 ->  | U223: kg milksolids per herd per annum | AH223: 4 | AI223: Scrapped & stockpiled | AM223: 4 | AN223: Scrapped & stockpiled | AR223: % drains to paddock | AT223: =AT211+AT216 -> 0
J224: 16 | K224: Medium grain (1-2 t DM/cow.annum) | P224: Average intake required | R224: =ROUND((1.185+(0.00454*D21)-(0.0000026*(D21)^2)+((0.315*0)))^2*1.1+((R220*D36/365)*3.054/0.6/(0.00795*R222-0.0014)/18.4),1) ->  | AH224: Selected | AI224: =IF(G107=AI220,1,IF(G107=AI221,2,IF(G107=AI222,3,4))) -> 4 | AM224: Selected | AN224: =IF(G112=AN220,1,IF(G112=AN221,2,IF(G112=AN222,3,4))) -> 4 | AR224: % sum lagoon | AT224: =AT214+AT219 -> 0 | AY224: Other stock MCF | BA224: =BA219*AW219 ->  | BB224: =BB219*AW220 ->  | BC224: =BC219*AW218 ->  | BD224: =BD219*AW217 ->  | BE224: =BE219*AW210 -> 
J225: 17 | K225: High grain (> 2 t DM/cow.annum) | T225: Selected | U225: =D32 -> 0 | V225: =IF(D32=U222,"1","2") -> 2 | AR225: % sum sump and dispersal | AT225: =AT212+AT217 -> 0 | AY225: Integrated MCF | BE225: =SUM(BA224:BE224) -> 
J226: Selected | K226: =H15 -> 0 | P226: Net GHG emissions (kg) | R226: =K139*1000 -> 
P227: EI (litres FPCM) | R227: =R226/R218 ->  | AI227: Pasture | AJ227: Lagoon | AK227: Sump/dispersal | AL227: Drain to paddock | AN227: Solid storage | AP227: Integrated MCF | AW227: MCF % | AX227: % of waste to this system | AY227: multiplication of these two factors | AZ227: % of total
B228: Methane Calculation | C228: Seasons | D228: =D17 -> Milking Cows | E228: =E17 -> Heifers >1 yr age | F228: =F17 -> Heifers <1 yr age | G228: =G17 -> Mature bulls | H228: =H17 -> Other stock < 1 yr age | I228: Unweaned heifers | J228: Unweaned bulls | K228: Bulls/steers (1-2 yrs) | L228: Units | M228: Inventory reference | P228: EI (kg MS) | R228: =R226/R216 ->  | AG228: 1 | AH228: Victoria | AI228: 84.29 | AJ228: 11.6 | AK228: 1.1 | AL228: 0.55 | AN228: 2.46 | AP228: 9.5751 | AQ228: Vic data mislabelled in NGGI meth documentation | AV228: Pastures | AW228: 1 | AX228: 84.29 | AY228: =AW228*AX228 -> 84.29 | AZ228: =AY228/$AY$233 -> 0.08803041222
AG229: 2 | AH229: New.South.Wales | AI229: 79.25 | AJ229: 12.04 | AK229: 2.42 | AL229: 1.21 | AN229: 5.08 | AP229: 10.154 | AV229: Lagoon | AW229: 74 | AX229: 11.6 | AY229: =AW229*AX229 -> 858.4 | AZ229: =AY229/$AY$233 -> 0.8964919426
B230: Feed Intake | D230: I = (1.185 +(0.00454 x W) - (0.0000026 x (W)^2) + ((0.315 x LWG)))^2 x MR + MI | M230: 3A.1a_1 | P230: FPCM (kg per annum based on IDF equation) | R230: =R218 -> 0 | AG230: 3 | AH230: Tasmania | AI230: 85.19 | AJ230: 7.98 | AK230: 3.41 | AL230: 1.43 | AN230: 1.99 | AP230: 6.69561 | AV230: Sump and dispersal | AW230: 0.5 | AX230: 1.1 | AY230: =AW230*AX230 -> 0.55 | AZ230: =AY230/$AY$233 -> 0.0005744065336
C231: Annual | D231: =(1.185+(0.00454*D21)-(0.0000026*(D21)^2)+((0.315*D23)))^2*1.1+D235 ->  | E231: =(1.185+(0.00454*E21)-(0.0000026*(E21)^2)+((0.315*E23)))^2*1+E235 -> 1.404225 | F231: =(1.185+(0.00454*F21)-(0.0000026*(F21)^2)+((0.315*F23)))^2*1+F235 -> 1.404225 | G231: =(1.185+(0.00454*G21)-(0.0000026*(G21)^2)+((0.315*G23)))^2*1+G235 -> 1.404225 | H231: =(1.185+(0.00454*H21)-(0.0000026*(H21)^2)+((0.315*H23)))^2*1+H235 -> 1.404225 | K231: =(1.185+(0.00454*I21)-(0.0000026*(I21)^2)+((0.315*I23)))^2*1+K235 -> 1.404225 | L231: kg DM/head/day | P231: Meat production | R231: Cull cows | S231: Heifers < 1 | T231: Heifers > 1 | U231: Bulls | V231: Other stock < 1 | W231: Other stock > 1 | AG231: 4 | AH231: Queensland | AI231: 79.37 | AJ231: 9.68 | AK231: 2.64 | AL231: 3.3 | AN231: 5.01 | AP231: 9.1527 | AV231: Drains to paddock | AW231: 17 | AX231: 0.55 | AY231: =AW231*AX231 -> 9.35 | AZ231: =AY231/$AY$233 -> 0.009764911071
D232: =D231-'Example baseline farm'!D220 ->  | P232: Cull cows | R232: =IF(AND(D25>0,D27=""),(D25*D21),(D25*D27)) -> 0 | S232: 0 | T232: 0 | U232: 0 | V232: 0 | W232: 0 | AG232: 5 | AH232: South.Australia | AI232: 80.67 | AJ232: 10.81 | AK232: 3.52 | AL232: 0.66 | AN232: 4.34 | AP232: 9.0227 | AV232: Solids storage | AW232: 2 | AX232: 2.46 | AY232: =AW232*AX232 -> 4.92 | AZ232: =AY232/$AY$233 -> 0.005138327537
B233: Additional intake for milk production | D233: MI = MP x 1.03 x NE / k / qm / 18.4 | P233: Total meat | R233: =SUM(R232:W232) -> 0 | AG233: 6 | AH233: Western.Australia | AI233: 81.86 | AJ233: 10.35 | AK233: 2.53 | AL233: 1.54 | AN233: 3.72 | AP233: 8.94535 | AV233: Total | AX233: =SUM(AX228:AX232) -> 100 | AY233: =SUM(AY228:AY232) -> 957.51
D234: MP x 1.03 (convert litres to kg milk) x 3.054 (MJ net energy/kg milk) / 0.6 / (0.00795 x DMD - 0.0014) / 18.4 | M234: 3A.1a_2
C235: Annual | D235: =(R220*1.03*D36/365)*3.054/0.6/((0.00795*F45)-0.0014)/18.4 ->  | E235: =0*3.054/0.6/(0.00795*D47-0.0014)/18.4 -> 0 | F235: =0*3.054/0.6/(0.00795*D47-0.0014)/18.4 -> 0 | G235: =0*3.054/0.6/(0.00795*D47-0.0014)/18.4 -> 0 | H235: =0*3.054/0.6/(0.00795*D47-0.0014)/18.4 -> 0 | K235: =0*3.054/0.6/(0.00795*D47-0.0014)/18.4 -> 0 | L235: kg DM/head/day
D236: =D235-'Example baseline farm'!D224 ->  | AG236: Default fractions | AH236: =K217 -> Queensland | AI236: =VLOOKUP($D$15,$AH$228:$AP$234,2,FALSE) ->  | AJ236: =VLOOKUP($D$15,$AH$228:$AP$234,3,FALSE) ->  | AK236: =VLOOKUP($D$15,$AH$228:$AP$234,4,FALSE) ->  | AL236: =VLOOKUP($D$15,$AH$228:$AP$234,5,FALSE) ->  | AN236: =VLOOKUP($D$15,$AH$228:$AP$234,7,FALSE) ->  | AP236: =VLOOKUP($D$15,$AH$228:$AP$234,9,FALSE) -> 
B237: Daily Methane Yield (M) | D237: M = 20.7 x I/1000 | M237: 3A.1a_3 | AG237: Milker User defined fractions | AI237: =AT210*100 -> 100 | AJ237: =AT224*100 -> 0 | AK237: =AT225*100 -> 0 | AL237: =AT223*100 -> 0 | AN237: =AT222*100 -> 0 | AP237: =BE222 -> 
AG238: Which fractions and MCF to use for milkers | AI238: =IF($AE$212=1,AI236,AI237) ->  | AJ238: =IF($AE$212=1,AJ236,AJ237) ->  | AK238: =IF($AE$212=1,AK236,AK237) ->  | AL238: =IF($AE$212=1,AL236,AL237) ->  | AN238: =IF($AE$212=1,AN236,AN237) ->  | AP238: =IF($AE$212=1,AP236,AP237) -> 
C239: Annual | D239: =20.7*D231/1000 ->  | E239: =20.7*E231/1000 -> 0.0290674575 | F239: =20.7*F231/1000 -> 0.0290674575 | G239: 0.0290674575 | H239: 0.0290674575 | I239: 0.0176 | J239: 0.0204 | K239: =20.7*K231/1000 -> 0.0290674575 | L239: kg CH4/head/day | AG239: Default other stock fractions | AI239: 100 | AJ239: 0 | AK239: 0 | AL239: 0 | AN239: 0 | AP239: 1
AG240: Other stock User defined fraction | AI240: =AW210*100 -> 100 | AJ240: =AW219*100 -> 0 | AK240: =AW220*100 -> 0 | AL240: =AW218*100 -> 0 | AN240: =AW217*100 -> 0 | AP240: =BE225 -> 
B241: Annual Australian methane production (Gg) for all classes of dairy cattle across all states | AG241: Which fractions and MCF to use for other stock | AI241: =IF($AE$212=1,AI239,AI240) -> 100 | AJ241: =IF($AE$212=1,AJ239,AJ240) -> 0 | AK241: =IF($AE$212=1,AK239,AK240) -> 0 | AL241: =IF($AE$212=1,AL239,AL240) -> 0 | AN241: =IF($AE$212=1,AN239,AN240) -> 0 | AP241: =IF($AE$212=1,AP239,AP240) -> 1
D242: E =(365 x N x M) x 10^-6 for > 1, (281 x N x M) x 10^-6 for weaned 0-1 years and (84 x N x M) x 10^-6 for unweaned | M242: 3A.1a_4
C244: Annual | D244: =(365*D19*D239)*10^-6 ->  | E244: =(365*E19*E239)*10^-6 -> 0 | F244: =(281*F19*F239)*10^-6 -> 0 | G244: =(365*G19*G239)*10^-6 -> 0 | H244: =(281*H19*H239)*10^-6 -> 0 | I244: =(84*F19*I239)*10^-6 -> 0 | J244: =(84*H19*J239)*10^-6 -> 0 | K244: =(365*I19*K239)*10^-6 -> 0 | L244: Gg CH4/farm/annum
D245: =D244-'Example baseline farm'!D233 ->  | E245: =E244-'Example baseline farm'!E233 -> -0.0064925705 | F245: =F244-'Example baseline farm'!F233 -> -0.002990353837 | G245: =G244-'Example baseline farm'!G233 -> -0.0005342481357 | H245: =H244-'Example baseline farm'!H233 -> -0.003087746335 | I245: =I244-'Example baseline farm'!I233 -> -0.0001848 | J245: =J244-'Example baseline farm'!J233 -> -0.00017136 | K245: =K244-'Example baseline farm'!K233 -> 0 | P245: New IDF (2022)-aligned method of estimating milk and meat allocations and emissions intensities
B246: Grand Total | C246: =SUM(D244:K244) ->  | L246: Gg CH4/year/farm
B247: Grand Total | C247: =C246*'Emission factors'!$C$4 ->  | L247: Gg CO2-e/year/farm | P247: Liveweight Cull Cows (inc bulls) | Q247: =D25*D27+BullSalesNumber*BullSalesLiveweight -> 0
B248: Grand Total | C248: =C247*10^3 ->  | L248: t CO2-e/year/farm | P248: Liveweight Calves at Birth | Q248: =IF(H212=1,J25*J27,0) -> 0
P249: Liveweight Calves Weaned | Q249: =IF(H212=2,J25*J27,0) -> 0
B250: Methane from waste | D250: =D228 -> Milking Cows | E250: Heifers >1 yr age | F250: Heifers <1 yr age | G250: Mature bulls | H250: Other stock < 1 yr age | I250: Unweaned heifers | J250: Unweaned bulls | K250: Bulls/steers (1-2 yrs) | L250: Units | M250: Inventory reference | P250: Liveweight Fattened Dairy Livestock | Q250: =SUMPRODUCT(E25:F25,E27:F27) -> 0
B251: Ash content (A) | C251: 0.08 | L251: fraction | P251: Liveweight Fattened Other Livestock | Q251: =SUMPRODUCT(H25:I25,H27:I27) -> 0
B252: Emission potential (Bo) | C252: 0.24 | L252: m3 CH4/kg VS | P252: Total Liveweight Sold | Q252: =SUM(Q247:Q251) -> 0
B253: Density of methane (r) | C253: 0.6784 | L253: kg/m3
Q254: Factor | R254: Dairy | S254: % of Dairy Meat | T254: All Meat | U254: % of All Meat
B255: Volatile solids (VS) | C255: VS = (I x (1 - DMD) + (0.04 x I)) x (1 - A) | M255: 3B.1a_1 | P255: Energy Demand Cull Cows | Q255: 15 | R255: =Q247*Q255 -> 0 | S255: =R255/$R$260 ->  | T255: =Q247*Q255 -> 0 | U255: =T255/$T$260 -> 
C256: Annual | D256: =(D231*(1-(F45/100))+(0.04*D231))*(1-$C$251) ->  | E256: =(E231*(1-($D$47/100))+(0.04*E231))*(1-$C$251) -> 1.34356248 | F256: =(F231*(1-($D$47/100))+(0.04*F231))*(1-$C$251) -> 1.34356248 | G256: =(G231*(1-($D$47/100))+(0.04*G231))*(1-$C$251) -> 1.34356248 | H256: =(H231*(1-($D$47/100))+(0.04*H231))*(1-$C$251) -> 1.34356248 | I256: 0.2685 | J256: 0.3003 | K256: =(K231*(1-($D$47/100))+(0.04*K231))*(1-$C$251) -> 1.34356248 | L256: kg/head/day | P256: Energy Demand Calves at Birth | Q256: 27.5 | R256: =Q248*Q256 -> 0 | S256: =R256/$R$260 ->  | T256: =Q248*Q256 -> 0 | U256: =T256/$T$260 -> 
P257: Energy Demand Calves Weaned | Q257: 15 | R257: =Q249*Q257 -> 0 | S257: =R257/$R$260 ->  | T257: =Q249*Q257 -> 0 | U257: =T257/$T$260 -> 
B258: Methane production from manure | C258: M = VS x Bo x MCF x r | M258: 3B.1a_2 | P258: Energy Demand Fattened Dairy Livestock | Q258: 11 | R258: =Q250*Q258 -> 0 | S258: =R258/$R$260 ->  | T258: =Q250*Q258 -> 0 | U258: =T258/$T$260 -> 
C259: MCF = Integrated methane conversion factor - based on the proportion of different manure management regimes | P259: Energy Demand Fattened Other Livestock | Q259: 11 | S259: =R259/$R$260 ->  | T259: =Q251*Q259 -> 0 | U259: =T259/$T$260 -> 
P260: Total Energy Demand Meat | R260: =SUM(R255:R259) -> 0 | S260: =SUM(S255:S259) ->  | T260: =SUM(T255:T259) -> 0 | U260: =SUM(U255:U259) -> 
C262: Methane for each manure management system and MCF associated, for each class of cattle separately | P262: Energy Demand Milk | Q262: 3.1 | R262: =R230*Q262 -> 0 | T262: =R262 -> 0
C264: Annual | D264: =D256*$C$252*J107%*$C$253 ->  | E264: =E256*$C$252*J112%*$C$253 -> 0.002187534687 | F264: =F256*$C$252*J112%*$C$253 -> 0.002187534687 | G264: =G256*$C$252*J112%*$C$253 -> 0.002187534687 | H264: =H256*$C$252*J112%*$C$253 -> 0.002187534687 | I264: =I256*$C$252*$J$112%*$C$253 -> 0.00043716096 | J264: =J256*$C$252*$J$112%*$C$253 -> 0.000488936448 | K264: =K256*$C$252*$J$112%*$C$253 -> 0.002187534687 | L264: kg CH4/head/day | P264: Total Energy Demand | R264: =R262+R260 -> 0 | T264: =T262+T260 -> 0
B266: The annual methane production (Gg) from the manure of dairy cattle | P266: % Milk of Energy | R266: =R262/R264 ->  | T266: =T262/T264 -> 
C267: Total = (365 x N x M) x 10^-6 for > 1 yr olds, (281 x N x M) x 10^-6 for 0 to 1 yr olds and (84 x N x M) x 10^-6 for unweaned | M267: 3B.1a_3
P268: Milk only CO2 (Electricity) | Q268: =K125+K126 -> 0 | S268: Percentage of purchased fodder to dairy
C269: Annual | D269: =(365*D19*D264)*10^-6 ->  | E269: =(365*E19*E264)*10^-6 -> 0 | F269: =(281*F19*F264)*10^-6 -> 0 | G269: =(365*G19*G264)*10^-6 -> 0 | H269: =(281*H19*H264)*10^-6 -> 0 | I269: =(84*F19*I264)*10^-6 -> 0 | J269: =(84*H19*J264)*10^-6 -> 0 | K269: =(365*I19*K264)*10^-6 -> 0 | L269: Gg CH4/farm/annum | P269: Milk only CO2 (Pre-farm gate grain) | Q269: =K130 -> 0 | S269: =J74 -> 0
P270: Milk only CO2 (Pre-farm gate fodder) | Q270: =K131*S269% -> 0
B271: Grand total | C271: =SUM(D269:K269) ->  | L271: Gg CH4/farm/year | P271: Meat only CO2 (Other Livestock) | Q271: =H134+I134 -> 
B272: Grand total | C272: =C271*'Emission factors'!$C$4 ->  | L272: Gg CO2-e/farm/year | P272: Meat only CO2 (Pre-farm gate fodder) | Q272: =(100-S269)%*K131 -> 0
B273: Grand total | C273: =C272*10^3 ->  | L273: t CO2-e/farm/year | P273: Dairy Livestock CO2 (Dairy Livestock) | Q273: =D134+E134+F134+G134 -> 
P274: General Farm CO2 (Fertiliser + Fuel - Trees) | Q274: =SUM(K123:K124)+SUM(K127:K129)+K132+K137 -> 0
B275: Faecal nitrous oxide calculation | C275: Seasons | D275: =D250 -> Milking Cows | E275: =E250 -> Heifers >1 yr age | F275: Heifers <1 yr age | G275: Mature bulls | H275: Other stock < 1 yr age | I275: Unweaned heifers | J275: Unweaned bulls | K275: Bulls/steers (1-2 yrs) | L275: Units | M275: Inventory reference | P275: Total Farm CO2 | Q275: =SUM(Q268:Q274) -> 
S276: Calculated from spreadsheet data
B277: The crude protein intake of dairy cattle | D277: CPI = I x CP | M277: 3B.1a_4 | P277: Total milk CO2 allocated emissions | Q277: =Q268+Q269+Q273*R266+Q274*T266+Q270 ->  | S277: =Q277*1000/R230 ->  | T277: kg CO2 / kg FPCM
C278: Annual | D278: =D231*H45% ->  | E278: =E231*D49% -> 0 | F278: =F231*D49% -> 0 | G278: =G231*D49% -> 0 | H278: =H231*D49% -> 0 | K278: =K231*D49% -> 0 | L278: kg/head/day | P278: Total meat CO2 allocated emissions | Q278: =Q271+Q272+Q273*(1-R266)+Q274*(1-T266) ->  | S278: =Q277*1000/R216 ->  | T278: kg CO2 / kg MS
S279: =Q278*1000/Q252 ->  | T279: kg CO2 / kg LW
B280: Nitrogen excreted in faeces (F) | D280: F = {0.3 x (CPI x (1 - [(DMD + 10) / 100])) + 0.105 x (ME x I x 0.008) + (0.0152 x I)} / 6.25 | M280: 3B.1a_6 | P280: % of total CO2 allocated to milk | Q280: =Q277/Q275 -> 
D281: ME (Metabolisable energy) = 0.1604 x DMD - 1.037 | P281: % of total CO2 allocated to meat | Q281: =Q278/Q275 -> 
D282: 1 / 6.25 = Factor for converting crude protein into nitrogen
C283: Annual | D283: =(0.3*((D278*(1-((F45+10)/100))))+(0.105*((0.1604*F45-1.037)*D231*0.008))+(0.0152*D231))/6.25 ->  | E283: =(0.3*((E278*(1-((D47+10)/100))))+(0.105*((0.1604*D47-1.037)*E231*0.008))+(0.0152*E231))/6.25 -> 0.00321936443 | F283: =(0.3*((F278*(1-((D47+10)/100))))+(0.105*((0.1604*D47-1.037)*F231*0.008))+(0.0152*F231))/6.25 -> 0.00321936443 | G283: =(0.3*((G278*(1-((D47+10)/100))))+(0.105*((0.1604*D47-1.037)*G231*0.008))+(0.0152*G231))/6.25 -> 0.00321936443 | H283: =(0.3*((H278*(1-((D47+10)/100))))+(0.105*((0.1604*D47-1.037)*H231*0.008))+(0.0152*H231))/6.25 -> 0.00321936443 | I283: 0.0055 | J283: 0.005 | K283: =(0.3*((K278*(1-((D47+10)/100))))+(0.105*((0.1604*D47-1.037)*K231*0.008))+(0.0152*K231))/6.25 -> 0.00321936443 | L283: kg/head/day | P283: Meat Allocation Detail | Q283: kg LW sold | S283: tonnes of CO2 | T283: % of Meat | U283: % of CO2 | V283: kg CO2 / kg LW
P284: Cull Cows/bulls | Q284: =Q247 -> 0 | S284: =$Q$273*(1-$R$266)*S255+Q$274*(1-$T$266)*U255 ->  | T284: =S284/$S$289 ->  | U284: =T284*$Q$281 ->  | V284: =S284*1000/Q284 -> 
B285: Nitrogen retained (NR) by the body | D285: NR = {(0.032 x MP x 1.03/6.38) + {0.212-0.008 x (L - 2) - [(0.140 - 0.008 x (L - 2)) / (1+exp x (-6 x (Z - 0.4)))]} x (LWG x 0.92)} /6.25 | M285: 3B.1a_5 | P285: Calves at Birth | Q285: 0 | S285: =$Q$273*(1-$R$266)*S256+Q$274*(1-$T$266)*U256 ->  | T285: =S285/$S$289 ->  | U285: =T285*$Q$281 ->  | V285: =S285*1000/Q285 -> 
P286: Calves Weaned | Q286: 0 | S286: =$Q$273*(1-$R$266)*S257+Q$274*(1-$T$266)*U257 ->  | T286: =S286/$S$289 ->  | U286: =T286*$Q$281 ->  | V286: =S286*1000/Q286 -> 
C287: Dairy cattle standard reference weight to calculate relative size (Z) | M287: Table 5.A.3 | P287: Fattened Dairy Livestock | Q287: 0 | S287: =$Q$273*(1-$R$266)*S258+Q$274*(1-$T$266)*U258 ->  | T287: =S287/$S$289 ->  | U287: =T287*$Q$281 ->  | V287: =S287*1000/Q287 -> 
D288: Milking Cows | E288: Heifers >1 | F288: Heifers <1 | G288: Mature bulls | H288: Dairy Bulls <1 | I288: Dairy Bulls >1 | P288: Fattened Other Livestock | Q288: 0 | S288: =Q271+Q$274*(1-$T$266)*U259+Q272 ->  | T288: =S288/$S$289 ->  | U288: =T288*$Q$281 ->  | V288: =S288*1000/Q288 -> 
B289: 1 | C289: Victoria | D289: 590 | E289: 590 | F289: 590 | G289: 770 | H289: 770 | I289: 770 | P289: Total Meat | Q289: 0 | S289: =SUM(S284:S288) ->  | T289: =SUM(T284:T288) ->  | U289: =SUM(U284:U288) ->  | V289: =S289*1000/Q289 -> 
B290: 2 | C290: New.South.Wales | D290: 590 | E290: 590 | F290: 590 | G290: 770 | H290: 770 | I290: 770
B291: 3 | C291: Tasmania | D291: 590 | E291: 590 | F291: 590 | G291: 770 | H291: 770 | I291: 770
B292: 4 | C292: Queensland | D292: 590 | E292: 590 | F292: 590 | G292: 770 | H292: 770 | I292: 770
B293: 5 | C293: South.Australia | D293: 590 | E293: 590 | F293: 590 | G293: 770 | H293: 770 | I293: 770
B294: 6 | C294: Western.Australia | D294: 590 | E294: 590 | F294: 590 | G294: 770 | H294: 770 | I294: 770
B295: 7 | C295: Northern.Territory | D295: 590 | E295: 590 | F295: 590 | G295: 770 | H295: 770 | I295: 770
B296: Selected | C296: =VLOOKUP($D$15,$C$289:$I$295,1,FALSE) ->  | D296: =VLOOKUP($D$15,$C$289:$I$295,2,FALSE) ->  | E296: =VLOOKUP($D$15,$C$289:$I$295,3,FALSE) ->  | F296: =VLOOKUP($D$15,$C$289:$I$295,4,FALSE) ->  | G296: =VLOOKUP($D$15,$C$289:$I$295,5,FALSE) ->  | H296: =VLOOKUP($D$15,$C$289:$I$295,6,FALSE) ->  | I296: =VLOOKUP($D$15,$C$289:$I$295,7,FALSE) -> 
C297: Z | D297: =IF(D296>0,D21/D296,0) -> 
B299: L intake relative that that needed for maintenance | D299: =D231/(1.185+(0.00454*D21)-(0.0000026*(D21)^2)+((0.315*0)))^2 ->  | E299: =E231/(1.185+(0.00454*E21)-(0.0000026*(E21)^2)+((0.315*0)))^2 -> 1 | F299: =F231/(1.185+(0.00454*F21)-(0.0000026*(F21)^2)+((0.315*0)))^2 -> 1 | G299: =G231/(1.185+(0.00454*G21)-(0.0000026*(G21)^2)+((0.315*0)))^2 -> 1 | H299: =H231/(1.185+(0.00454*H21)-(0.0000026*(H21)^2)+((0.315*0)))^2 -> 1 | I299: =K231/(1.185+(0.00454*I21)-(0.0000026*(I21)^2)+((0.315*0)))^2 -> 1
B301: Nitrogen retained (NR) by the body | C301: Annual | D301: =((0.032*(R220*1.03*D36/365)/6.38)+((0.212-0.008*(D299-2)-((0.14-0.008*(D299-2))/(1+EXP(-6*(D$297-0.4)))))*(D23*0.92))/6.25) ->  | E301: =((0.032*0)+((0.212-0.008*(E299-2)-((0.14-0.008*(E299-2))/(1+EXP(-6*(E$297-0.4)))))*(E23*0.92))/6.25) ->  | F301: =((0.032*0)+((0.212-0.008*(F299-2)-((0.14-0.008*(F299-2))/(1+EXP(-6*(F$297-0.4)))))*(F23*0.92))/6.25) ->  | G301: =((0.032*0)+((0.212-0.008*(G299-2)-((0.14-0.008*(G299-2))/(1+EXP(-6*(G$297-0.4)))))*(G23*0.92))/6.25) ->  | H301: =((0.032*0)+((0.212-0.008*(H299-2)-((0.14-0.008*(H299-2))/(1+EXP(-6*(H$297-0.4)))))*(H23*0.92))/6.25) ->  | I301: =((0.032*0)+((0.212-0.008*(I299-2)-((0.14-0.008*(I299-2))/(1+EXP(-6*(I$297-0.4)))))*(I23*0.92))/6.25) ->  | L301: kg N/head/day
B303: Nitrogen excreted in urine (U) | D303: U = (CPI / 6.25) - NR - F - [(1.1 x 10^-4 x W^0.75) / 6.25] | M303: 3B.1a_7
C304: Annual | D304: =(D278/6.25)-D301-D283-((1.1*10^-4*D21^0.75)/6.25) ->  | E304: =(E278/6.25)-E301-E283-((1.1*10^-4*E21^0.75)/6.25) ->  | F304: =(F278/6.25)-F301-F283-((1.1*10^-4*F21^0.75)/6.25) ->  | G304: =(G278/6.25)-G301-G283-((1.1*10^-4*G21^0.75)/6.25) ->  | H304: =(H278/6.25)-H301-H283-((1.1*10^-4*H21^0.75)/6.25) ->  | I304: 0.0082 | J304: 0.0042 | K304: =(K278/6.25)-I301-K283-((1.1*10^-4*I21^0.75)/6.25) ->  | L304: kg N/head/day
B306: Total annual faecal (AF) nitrogen excreted | D306: AF = ∑ (365 x N x F) x 10^-6 for > 1 yr olds, (281 x N X F) x 10^-6 for 0 to 1 yr olds and (84 x N x F) x 10^-6 for unweaned | M306: 3B.1a_8a
C308: Annual | D308: =(365*D19*D283)*10^-6 ->  | E308: =(365*E19*E283)*10^-6 -> 0 | F308: =(281*F19*F283)*10^-6 -> 0 | G308: =(365*G19*G283)*10^-6 -> 0 | H308: =(281*H19*H283)*10^-6 -> 0 | I308: =(84*F19*I283)*10^-6 -> 0 | J308: =(84*H19*J283)*10^-6 -> 0 | K308: =(365*I19*K283)*10^-6 -> 0 | L308: Gg N/farm/annum
B310: Total annual urinary (AU) nitrogen excreted | D310: AU = ∑ (365 x N x U) x 10^-6 for > 1 yr olds, (281 x N X U) x 10^-6 for 0 to 1 yr olds and (84 x N x U) x 10^-6 for unweaned | M310: 3B.1a_8b
C312: Annual | D312: =(365*D19*D304)*10^-6 ->  | E312: =(365*E19*E304)*10^-6 ->  | F312: =(281*F19*F304)*10^-6 ->  | G312: =(365*G19*G304)*10^-6 ->  | H312: =(281*H19*H304)*10^-6 ->  | I312: =(84*F19*I304)*10^-6 -> 0 | J312: =(84*H19*J304)*10^-6 -> 0 | K312: =(365*I19*K304)*10^-6 ->  | L312: Gg N/farm/annum
B314: Annual faecal and urinary nitrogen in the different manure management systems | D314: FNMMS = (AF x MMS) +(AU x MMS)
... 404 more rows

Sheet Vegetation
B1: VEGETATION
B3: Area 1 | C3: State
C4: Region
C5: Species of Tree
C6: Area of Trees | E6: ha | H6: Make sure you enter from the top and work your way down the sheet as altering the tree species before you alter the state or region within a state may result in an error
C7: Age of Trees | E7: years
H8: Area of Trees can be a decimal point but Age of Trees must be a whole number otherwise the calculations do not work
B9: Area 2 | C9: State
C10: Region
C11: Species of Tree
C12: Area of Trees | E12: ha
C13: Age of Trees | E13: years
B15: Area 3 | C15: State
C16: Region
C17: Species of Tree
C18: Area of Trees | E18: ha
C19: Age of Trees | E19: years
B21: Area 4 | C21: State
C22: Region
C23: Species of Tree
C24: Area of Trees | E24: ha
C25: Age of Trees | E25: years
B27: Tonnes sequestered | C27: Area 1 | D27: =IF(D6="","",IF(D6=0,"",' Trees'!E5)) ->  | E27: t CO2e/ha
C28: Area 2 | D28: =IF(D12="","",IF(D12=0,"",' Trees'!Z5)) ->  | E28: t CO2e/ha
C29: Area 3 | D29: =IF(D18="","",IF(D18=0,"",' Trees'!AU5)) ->  | E29: t CO2e/ha
C30: Area 4 | D30: =IF(D24="","",IF(D24=0,"",' Trees'!BP5)) ->  | E30: t CO2e/ha
C31: Average | D31: =AVERAGE(D27:D30) ->  | E31: t CO2e/ha
C32: Total | D32: =' Trees'!E7+' Trees'!Z7+' Trees'!AU7+' Trees'!BP7 -> 0 | E32: t CO2e/annum
B34: When entering the total amount of carbon sequestred estimated here, enter the necessary data to estimate the total tonnes sequestered. Copy the amount, then go back to the Baseline tab, select 'Carbon sequestered using other tools'
B35: from the drop-down list, enter 1 ha of trees and paste the result in cell D32 from here into the 'Amount of carbon sequestered if using other tools' cell in ADCC. This will now appear in the Carbon sequestration row of results.
B36: If the value is different than here, check you have only entered 1 ha of trees and that you have selected 'Carbon sequestered using other tools'. You won't need to select your region, tree species or enter Age of trees.

Sheet Trees (hidden)
A1: Trees 1 | V1: Trees 2 | AQ1: Trees 3 | BL1: Trees 4
A2: Data Input | D2: Amount of carbon sequestered by trees | H2: Location | P2: Chart source data | V2: Data Input | Y2: Amount of carbon sequestered by trees | AC2: Location | AK2: Chart source data | AQ2: Data Input | AT2: Amount of carbon sequestered by trees | AX2: Location | BF2: Chart source data | BL2: Data Input | BO2: Amount of carbon sequestered by trees | BS2: Location | CA2: Chart source data
A3: State | B3: =Vegetation!D3 -> 0 | D3: =CONCATENATE("Amount of carbon grown in the trees between Year ",FIXED(B10-1,0)," and Year ",FIXED(B10,0)," = ") -> Amount of carbon grown in the trees between Year -1 and Year 0 = | E3: =IF(ISERROR(E27),"",E27) -> 0 | F3: tonnes per hectare | H3: NSW | V3: State | W3: =Vegetation!D9 -> 0 | Y3: =CONCATENATE("Amount of carbon grown in the trees between Year ",FIXED(W10-1,0)," and Year ",FIXED(W10,0)," = ") -> Amount of carbon grown in the trees between Year -1 and Year 0 = | Z3: =IF(ISERROR(Z27),"",Z27) -> 0 | AA3: tonnes per hectare | AC3: NSW | AQ3: State | AR3: =Vegetation!D15 -> 0 | AT3: =CONCATENATE("Amount of carbon grown in the trees between Year ",FIXED(AR10-1,0)," and Year ",FIXED(AR10,0)," = ") -> Amount of carbon grown in the trees between Year -1 and Year 0 = | AU3: =IF(ISERROR(AU27),"",AU27) -> 0 | AV3: tonnes per hectare | AX3: NSW | BL3: State | BM3: =Vegetation!D21 -> 0 | BO3: =CONCATENATE("Amount of carbon grown in the trees between Year ",FIXED(BM10-1,0)," and Year ",FIXED(BM10,0)," = ") -> Amount of carbon grown in the trees between Year -1 and Year 0 = | BP3: =IF(ISERROR(BP27),"",BP27) -> 0 | BQ3: tonnes per hectare | BS3: NSW
A4: Region | B4: =Vegetation!D4 -> 0 | H4: TAS | P4: Location | Q4: =CONCATENATE(B3," -- ",B4) -> 0 -- 0 | V4: Region | W4: =Vegetation!D10 -> 0 | AC4: TAS | AK4: Location | AL4: =CONCATENATE(W3," -- ",W4) -> 0 -- 0 | AQ4: Region | AR4: =Vegetation!D16 -> 0 | AX4: TAS | BF4: Location | BG4: =CONCATENATE(AR3," -- ",AR4) -> 0 -- 0 | BL4: Region | BM4: =Vegetation!D22 -> 0 | BS4: TAS | CA4: Location | CB4: =CONCATENATE(BM3," -- ",BM4) -> 0 -- 0
D5: Annual CO2 equivalent (1 tonne tree carbon = 3.67 tonnes CO2) = | E5: =IF(ISERROR(-E3*E10),"",E3*E10) -> 0 | F5: tonnes per hectare | H5: WA | P5: Tree type | Q5: =B6 -> 0 | Y5: Annual CO2 equivalent (1 tonne tree carbon = 3.67 tonnes CO2) = | Z5: =IF(ISERROR(-Z3*Z10),"",Z3*Z10) -> 0 | AA5: tonnes per hectare | AC5: WA | AK5: Tree type | AL5: =W6 -> 0 | AT5: Annual CO2 equivalent (1 tonne tree carbon = 3.67 tonnes CO2) = | AU5: =IF(ISERROR(-AU3*AU10),"",AU3*AU10) -> 0 | AV5: tonnes per hectare | AX5: WA | BF5: Tree type | BG5: =AR6 -> 0 | BO5: Annual CO2 equivalent (1 tonne tree carbon = 3.67 tonnes CO2) = | BP5: =IF(ISERROR(-BP3*BP10),"",BP3*BP10) -> 0 | BQ5: tonnes per hectare | BS5: WA | CA5: Tree type | CB5: =BM6 -> 0
A6: Species of Tree | B6: =Vegetation!D5 -> 0 | H6: SA | P6: Soil type | Q6: =B7 -> 0 | V6: Species of Tree | W6: =Vegetation!D11 -> 0 | AC6: SA | AK6: Soil type | AL6: =W7 -> 0 | AQ6: Species of Tree | AR6: =Vegetation!D17 -> 0 | AX6: SA | BF6: Soil type | BG6: =AR7 -> 0 | BL6: Species of Tree | BM6: =Vegetation!D23 -> 0 | BS6: SA | CA6: Soil type | CB6: =BM7 -> 0
D7: =CONCATENATE("Annual amount of CO2-e sequestered by trees on the ",FIXED(B9,0)," hectares = ") -> Annual amount of CO2-e sequestered by trees on the 0 hectares = | E7: =IF(ISERROR(E5*Vegetation!D6),0,(E5*Vegetation!D6)) -> 0 | F7: =IF(E5>0,CONCATENATE("Total tonnes CO2 sequestered in Year ",Vegetation!C6),"") ->  | H7: VIC | P7: Years | Q7: Total Tree Carbon production | S7: Annual Carbon production | T7: Current year | Y7: =CONCATENATE("Annual amount of CO2-e sequestered by trees on the ",FIXED(W9,0)," hectares = ") -> Annual amount of CO2-e sequestered by trees on the 0 hectares = | Z7: =IF(ISERROR(Z5*Vegetation!D12),0,(Z5*Vegetation!D12)) -> 0 | AA7: =IF(Z5>0,CONCATENATE("Total tonnes CO2 sequestered in Year ",Vegetation!P6),"") ->  | AC7: VIC | AK7: Years | AL7: Total Tree Carbon production | AN7: Annual Carbon production | AO7: Current year | AT7: =CONCATENATE("Annual amount of CO2-e sequestered by trees on the ",FIXED(AR9,0)," hectares = ") -> Annual amount of CO2-e sequestered by trees on the 0 hectares = | AU7: =IF(ISERROR(AU5*Vegetation!D18),0,(AU5*Vegetation!D18)) -> 0 | AV7: =IF(AU5>0,CONCATENATE("Total tonnes CO2 sequestered in Year ",Vegetation!AK6),"") ->  | AX7: VIC | BF7: Years | BG7: Total Tree Carbon production | BI7: Annual Carbon production | BJ7: Current year | BL7: Soil Type | BO7: =CONCATENATE("Annual amount of CO2-e sequestered by trees on the ",FIXED(BM9,0)," hectares = ") -> Annual amount of CO2-e sequestered by trees on the 0 hectares = | BP7: =IF(ISERROR(BP5*Vegetation!D24),0,(BP5*Vegetation!D24)) -> 0 | BQ7: =IF(BP5>0,CONCATENATE("Total tonnes CO2 sequestered in Year ",Vegetation!BF6),"") ->  | BS7: VIC | CA7: Years | CB7: Total Tree Carbon production | CD7: Annual Carbon production | CE7: Current year
H8: QLD | P8: 0 | Q8: 0 | S8: 0 | T8: =IF(P8=D25,Q8-0,"") -> 0 | AC8: QLD | AK8: 0 | AL8: 0 | AN8: 0 | AO8: =IF(AK8=Y25,AL8-0,"") -> 0 | AX8: QLD | BF8: 0 | BG8: 0 | BI8: 0 | BJ8: =IF(BF8=AT25,BG8-0,"") -> 0 | BS8: QLD | CA8: 0 | CB8: 0 | CD8: 0 | CE8: =IF(CA8=BO25,CB8-0,"") -> 0
A9: Area of trees | B9: =Vegetation!D6 -> 0 | P9: 1 | Q9: =IF(E27>0,HLOOKUP(D22,B116:UI216,P9+1,FALSE),0) -> 0 | S9: =AVERAGE(S8,S10) -> 0 | T9: =IF(P9=D25,Q9-0,"") ->  | V9: Area of trees | W9: =Vegetation!D12 -> 0 | AK9: 1 | AL9: =IF(Z27>0,HLOOKUP(Y22,W116:VD216,AK9+1,FALSE),0) -> 0 | AN9: =AVERAGE(AN8,AN10) -> 0 | AO9: =IF(AK9=Y25,AL9-0,"") ->  | AQ9: Area of trees | AR9: =Vegetation!D18 -> 0 | BF9: 1 | BG9: =IF(AU27>0,HLOOKUP(AT22,AR116:VY216,BF9+1,FALSE),0) -> 0 | BI9: =AVERAGE(BI8,BI10) -> 0 | BJ9: =IF(BF9=AT25,BG9-0,"") ->  | BL9: Area of trees | BM9: =Vegetation!D24 -> 0 | CA9: 1 | CB9: =IF(BP27>0,HLOOKUP(BO22,BM116:WT216,CA9+1,FALSE),0) -> 0 | CD9: =AVERAGE(CD8,CD10) -> 0 | CE9: =IF(CA9=BO25,CB9-0,"") -> 
A10: Age of trees | B10: =Vegetation!D7 -> 0 | D10: CO2 -equivalent factor (per tonne of tree carbon grown): | E10: 3.67 | P10: 2 | Q10: =IF(E27>0,HLOOKUP(D22,B116:UI216,P10+1,FALSE),0) -> 0 | S10: =Q10-Q9 -> 0 | T10: =IF(P10=D25,Q10-Q9,"") ->  | V10: Age of trees | W10: =Vegetation!D13 -> 0 | Y10: CO2 -equivalent factor (per tonne of tree carbon grown): | Z10: 3.67 | AK10: 2 | AL10: =IF(Z27>0,HLOOKUP(Y22,W116:VD216,AK10+1,FALSE),0) -> 0 | AN10: =AL10-AL9 -> 0 | AO10: =IF(AK10=Y25,AL10-AL9,"") ->  | AQ10: Age of trees | AR10: =Vegetation!D19 -> 0 | AT10: CO2 -equivalent factor (per tonne of tree carbon grown): | AU10: 3.67 | BF10: 2 | BG10: =IF(AU27>0,HLOOKUP(AT22,AR116:VY216,BF10+1,FALSE),0) -> 0 | BI10: =BG10-BG9 -> 0 | BJ10: =IF(BF10=AT25,BG10-BG9,"") ->  | BL10: Age of trees | BM10: =Vegetation!D25 -> 0 | BO10: CO2 -equivalent factor (per tonne of tree carbon grown): | BP10: 3.67 | CA10: 2 | CB10: =IF(BP27>0,HLOOKUP(BO22,BM116:WT216,CA10+1,FALSE),0) -> 0 | CD10: =CB10-CB9 -> 0 | CE10: =IF(CA10=BO25,CB10-CB9,"") -> 
E11: Tonnes per Ha | F11: Total Tonnes | P11: 3 | Q11: =IF(E27>0,HLOOKUP(D22,B116:UI216,P11+1,FALSE),0) -> 0 | S11: 0 | T11: =IF(P11=D25,Q11-Q10,"") ->  | Z11: Tonnes per Ha | AA11: Total Tonnes | AK11: 3 | AL11: =IF(Z27>0,HLOOKUP(Y22,W116:VD216,AK11+1,FALSE),0) -> 0 | AN11: 0 | AO11: =IF(AK11=Y25,AL11-AL10,"") ->  | AU11: Tonnes per Ha | AV11: Total Tonnes | BF11: 3 | BG11: =IF(AU27>0,HLOOKUP(AT22,AR116:VY216,BF11+1,FALSE),0) -> 0 | BI11: 0 | BJ11: =IF(BF11=AT25,BG11-BG10,"") ->  | BP11: Tonnes per Ha | BQ11: Total Tonnes | CA11: 3 | CB11: =IF(BP27>0,HLOOKUP(BO22,BM116:WT216,CA11+1,FALSE),0) -> 0 | CD11: 0 | CE11: =IF(CA11=BO25,CB11-CB10,"") -> 
D12: Average yearly increase in Tree Carbon = (over the long term - 100 years) | E12: =IF(ISERROR(E27),"",E28) -> 0 | F12: =IF(AND(E12>0,Vegetation!D7>0),E12*Vegetation!D7,0) -> 0 | P12: 4 | Q12: =IF(E27>0,HLOOKUP(D22,B116:UI216,P12+1,FALSE),0) -> 0 | S12: 0 | T12: =IF(P12=D25,Q12-Q11,"") ->  | Y12: Average yearly increase in Tree Carbon = (over the long term - 100 years) | Z12: =IF(ISERROR(Z27),"",Z28) -> 0 | AA12: =IF(AND(Z12>0,Vegetation!D13>0),Z12*Vegetation!D13,0) -> 0 | AK12: 4 | AL12: =IF(Z27>0,HLOOKUP(Y22,W116:VD216,AK12+1,FALSE),0) -> 0 | AN12: 0 | AO12: =IF(AK12=Y25,AL12-AL11,"") ->  | AT12: Average yearly increase in Tree Carbon = (over the long term - 100 years) | AU12: =IF(ISERROR(AU27),"",AU28) -> 0 | AV12: =IF(AND(AU12>0,Vegetation!D19>0),AU12*Vegetation!D19,0) -> 0 | BF12: 4 | BG12: =IF(AU27>0,HLOOKUP(AT22,AR116:VY216,BF12+1,FALSE),0) -> 0 | BI12: 0 | BJ12: =IF(BF12=AT25,BG12-BG11,"") ->  | BO12: Average yearly increase in Tree Carbon = (over the long term - 100 years) | BP12: =IF(ISERROR(BP27),"",BP28) -> 0 | BQ12: =IF(AND(BP12>0,Vegetation!D25>0),BP12*Vegetation!D25,0) -> 0 | CA12: 4 | CB12: =IF(BP27>0,HLOOKUP(BO22,BM116:WT216,CA12+1,FALSE),0) -> 0 | CD12: 0 | CE12: =IF(CA12=BO25,CB12-CB11,"") -> 
D13: Tonnes CO2 equivalent = | E13: =IF(E12>0,(E10*E12),"") ->  | F13: =IF(F12>0,(F12*E10),"") ->  | P13: 5 | Q13: =IF(E27>0,HLOOKUP(D22,B116:UI216,P13+1,FALSE),0) -> 0 | S13: 0 | T13: =IF(P13=D25,Q13-Q12,"") ->  | Y13: Tonnes CO2 equivalent = | Z13: =IF(Z12>0,(Z10*Z12),"") ->  | AA13: =IF(AA12>0,(AA12*E10),"") ->  | AK13: 5 | AL13: =IF(Z27>0,HLOOKUP(Y22,W116:VD216,AK13+1,FALSE),0) -> 0 | AN13: 0 | AO13: =IF(AK13=Y25,AL13-AL12,"") ->  | AT13: Tonnes CO2 equivalent = | AU13: =IF(AU12>0,(AU10*AU12),"") ->  | AV13: =IF(AV12>0,(AV12*E10),"") ->  | BF13: 5 | BG13: =IF(AU27>0,HLOOKUP(AT22,AR116:VY216,BF13+1,FALSE),0) -> 0 | BI13: 0 | BJ13: =IF(BF13=AT25,BG13-BG12,"") ->  | BO13: Tonnes CO2 equivalent = | BP13: =IF(BP12>0,(BP10*BP12),"") ->  | BQ13: =IF(BQ12>0,(BQ12*E10),"") ->  | CA13: 5 | CB13: =IF(BP27>0,HLOOKUP(BO22,BM116:WT216,CA13+1,FALSE),0) -> 0 | CD13: 0 | CE13: =IF(CA13=BO25,CB13-CB12,"") -> 
P14: 6 | Q14: =IF(E27>0,HLOOKUP(D22,B116:UI216,P14+1,FALSE),0) -> 0 | S14: 0 | T14: =IF(P14=D25,Q14-Q13,"") ->  | AK14: 6 | AL14: =IF(Z27>0,HLOOKUP(Y22,W116:VD216,AK14+1,FALSE),0) -> 0 | AN14: 0 | AO14: =IF(AK14=Y25,AL14-AL13,"") ->  | BF14: 6 | BG14: =IF(AU27>0,HLOOKUP(AT22,AR116:VY216,BF14+1,FALSE),0) -> 0 | BI14: 0 | BJ14: =IF(BF14=AT25,BG14-BG13,"") ->  | CA14: 6 | CB14: =IF(BP27>0,HLOOKUP(BO22,BM116:WT216,CA14+1,FALSE),0) -> 0 | CD14: 0 | CE14: =IF(CA14=BO25,CB14-CB13,"") -> 
P15: 7 | Q15: =IF(E27>0,HLOOKUP(D22,B116:UI216,P15+1,FALSE),0) -> 0 | S15: 0 | T15: =IF(P15=D25,Q15-Q14,"") ->  | AK15: 7 | AL15: =IF(Z27>0,HLOOKUP(Y22,W116:VD216,AK15+1,FALSE),0) -> 0 | AN15: 0 | AO15: =IF(AK15=Y25,AL15-AL14,"") ->  | BF15: 7 | BG15: =IF(AU27>0,HLOOKUP(AT22,AR116:VY216,BF15+1,FALSE),0) -> 0 | BI15: 0 | BJ15: =IF(BF15=AT25,BG15-BG14,"") ->  | CA15: 7 | CB15: =IF(BP27>0,HLOOKUP(BO22,BM116:WT216,CA15+1,FALSE),0) -> 0 | CD15: 0 | CE15: =IF(CA15=BO25,CB15-CB14,"") -> 
P16: 8 | Q16: =IF(E27>0,HLOOKUP(D22,B116:UI216,P16+1,FALSE),0) -> 0 | S16: 0 | T16: =IF(P16=D25,Q16-Q15,"") ->  | AK16: 8 | AL16: =IF(Z27>0,HLOOKUP(Y22,W116:VD216,AK16+1,FALSE),0) -> 0 | AN16: 0 | AO16: =IF(AK16=Y25,AL16-AL15,"") ->  | BF16: 8 | BG16: =IF(AU27>0,HLOOKUP(AT22,AR116:VY216,BF16+1,FALSE),0) -> 0 | BI16: 0 | BJ16: =IF(BF16=AT25,BG16-BG15,"") ->  | CA16: 8 | CB16: =IF(BP27>0,HLOOKUP(BO22,BM116:WT216,CA16+1,FALSE),0) -> 0 | CD16: 0 | CE16: =IF(CA16=BO25,CB16-CB15,"") -> 
A17: Calculation of annual increment in tree carbon | P17: 9 | Q17: =IF(E27>0,HLOOKUP(D22,B116:UI216,P17+1,FALSE),0) -> 0 | S17: 0 | T17: =IF(P17=D25,Q17-Q16,"") ->  | V17: Calculation of annual increment in tree carbon | AK17: 9 | AL17: =IF(Z27>0,HLOOKUP(Y22,W116:VD216,AK17+1,FALSE),0) -> 0 | AN17: 0 | AO17: =IF(AK17=Y25,AL17-AL16,"") ->  | AQ17: Calculation of annual increment in tree carbon | BF17: 9 | BG17: =IF(AU27>0,HLOOKUP(AT22,AR116:VY216,BF17+1,FALSE),0) -> 0 | BI17: 0 | BJ17: =IF(BF17=AT25,BG17-BG16,"") ->  | BL17: Calculation of annual increment in tree carbon | CA17: 9 | CB17: =IF(BP27>0,HLOOKUP(BO22,BM116:WT216,CA17+1,FALSE),0) -> 0 | CD17: 0 | CE17: =IF(CA17=BO25,CB17-CB16,"") -> 
B18: State/Territory : | C18: =B3 -> 0 | D18: Codes | P18: 10 | Q18: =IF(E27>0,HLOOKUP(D22,B116:UI216,P18+1,FALSE),0) -> 0 | S18: 0 | T18: =IF(P18=D25,Q18-Q17,"") ->  | W18: State/Territory : | X18: =W3 -> 0 | Y18: Codes | AK18: 10 | AL18: =IF(Z27>0,HLOOKUP(Y22,W116:VD216,AK18+1,FALSE),0) -> 0 | AN18: 0 | AO18: =IF(AK18=Y25,AL18-AL17,"") ->  | AR18: State/Territory : | AS18: =AR3 -> 0 | AT18: Codes | BF18: 10 | BG18: =IF(AU27>0,HLOOKUP(AT22,AR116:VY216,BF18+1,FALSE),0) -> 0 | BI18: 0 | BJ18: =IF(BF18=AT25,BG18-BG17,"") ->  | BM18: State/Territory : | BN18: =BM3 -> 0 | BO18: Codes | CA18: 10 | CB18: =IF(BP27>0,HLOOKUP(BO22,BM116:WT216,CA18+1,FALSE),0) -> 0 | CD18: 0 | CE18: =IF(CA18=BO25,CB18-CB17,"") -> 
B19: Region : | C19: =B4 -> 0 | D19: =IF(ISERROR(VLOOKUP(C19,B33:C50,2,FALSE)),0,VLOOKUP(C19,B33:C50,2,FALSE)) -> 0 | P19: 11 | Q19: =IF(E27>0,HLOOKUP(D22,B116:UI216,P19+1,FALSE),0) -> 0 | S19: 0 | T19: =IF(P19=D25,Q19-Q18,"") ->  | W19: Region : | X19: =W4 -> 0 | Y19: =IF(ISERROR(VLOOKUP(X19,B33:C50,2,FALSE)),0,VLOOKUP(X19,B33:C50,2,FALSE)) -> 0 | AK19: 11 | AL19: =IF(Z27>0,HLOOKUP(Y22,W116:VD216,AK19+1,FALSE),0) -> 0 | AN19: 0 | AO19: =IF(AK19=Y25,AL19-AL18,"") ->  | AR19: Region : | AS19: =AR4 -> 0 | AT19: =IF(ISERROR(VLOOKUP(AS19,B33:C50,2,FALSE)),0,VLOOKUP(AS19,B33:C50,2,FALSE)) -> 0 | BF19: 11 | BG19: =IF(AU27>0,HLOOKUP(AT22,AR116:VY216,BF19+1,FALSE),0) -> 0 | BI19: 0 | BJ19: =IF(BF19=AT25,BG19-BG18,"") ->  | BM19: Region : | BN19: =BM4 -> 0 | BO19: =IF(ISERROR(VLOOKUP(BN19,B33:C50,2,FALSE)),0,VLOOKUP(BN19,B33:C50,2,FALSE)) -> 0 | CA19: 11 | CB19: =IF(BP27>0,HLOOKUP(BO22,BM116:WT216,CA19+1,FALSE),0) -> 0 | CD19: 0 | CE19: =IF(CA19=BO25,CB19-CB18,"") -> 
B20: Tree Species : | C20: =B6 -> 0 | D20: =IF(VLOOKUP(D19,C33:L50,5,FALSE)=C20,1,IF(VLOOKUP(D19,C33:L50,6,FALSE)=C20,2,IF(VLOOKUP(D19,C33:L50,7,FALSE)=C20,3,IF(VLOOKUP(D19,C33:L50,8,FALSE)=C20,4,IF(VLOOKUP(D19,C33:L50,9,FALSE)=C20,5,IF(VLOOKUP(D19,C33:L50,10,FALSE)=C20,6,0)))))) ->  | P20: 12 | Q20: =IF(E27>0,HLOOKUP(D22,B116:UI216,P20+1,FALSE),0) -> 0 | S20: 0 | T20: =IF(P20=D25,Q20-Q19,"") ->  | W20: Tree Species : | X20: =W6 -> 0 | Y20: =IF(VLOOKUP(Y19,C33:L50,5,FALSE)=X20,1,IF(VLOOKUP(Y19,C33:L50,6,FALSE)=X20,2,IF(VLOOKUP(Y19,C33:L50,7,FALSE)=X20,3,IF(VLOOKUP(Y19,C33:L50,8,FALSE)=X20,4,IF(VLOOKUP(Y19,C33:L50,9,FALSE)=X20,5,IF(VLOOKUP(Y19,C33:L50,10,FALSE)=X20,6,0)))))) ->  | AK20: 12 | AL20: =IF(Z27>0,HLOOKUP(Y22,W116:VD216,AK20+1,FALSE),0) -> 0 | AN20: 0 | AO20: =IF(AK20=Y25,AL20-AL19,"") ->  | AR20: Tree Species : | AS20: =AR6 -> 0 | AT20: =IF(VLOOKUP(AT19,C33:L50,5,FALSE)=AS20,1,IF(VLOOKUP(AT19,C33:L50,6,FALSE)=AS20,2,IF(VLOOKUP(AT19,C33:L50,7,FALSE)=AS20,3,IF(VLOOKUP(AT19,C33:L50,8,FALSE)=AS20,4,IF(VLOOKUP(AT19,C33:L50,9,FALSE)=AS20,5,IF(VLOOKUP(AT19,C33:L50,10,FALSE)=AS20,6,0)))))) ->  | BF20: 12 | BG20: =IF(AU27>0,HLOOKUP(AT22,AR116:VY216,BF20+1,FALSE),0) -> 0 | BI20: 0 | BJ20: =IF(BF20=AT25,BG20-BG19,"") ->  | BM20: Tree Species : | BN20: =BM6 -> 0 | BO20: =IF(VLOOKUP(BO19,C33:L50,5,FALSE)=BN20,1,IF(VLOOKUP(BO19,C33:L50,6,FALSE)=BN20,2,IF(VLOOKUP(BO19,C33:L50,7,FALSE)=BN20,3,IF(VLOOKUP(BO19,C33:L50,8,FALSE)=BN20,4,IF(VLOOKUP(BO19,C33:L50,9,FALSE)=BN20,5,IF(VLOOKUP(BO19,C33:L50,10,FALSE)=BN20,6,0)))))) ->  | CA20: 12 | CB20: =IF(BP27>0,HLOOKUP(BO22,BM116:WT216,CA20+1,FALSE),0) -> 0 | CD20: 0 | CE20: =IF(CA20=BO25,CB20-CB19,"") -> 
B21: Soil Type : | D21: 1 | P21: 13 | Q21: =IF(E27>0,HLOOKUP(D22,B116:UI216,P21+1,FALSE),0) -> 0 | S21: 0 | T21: =IF(P21=D25,Q21-Q20,"") ->  | W21: Soil Type : | Y21: 1 | AK21: 13 | AL21: =IF(Z27>0,HLOOKUP(Y22,W116:VD216,AK21+1,FALSE),0) -> 0 | AN21: 0 | AO21: =IF(AK21=Y25,AL21-AL20,"") ->  | AR21: Soil Type : | AT21: 1 | BF21: 13 | BG21: =IF(AU27>0,HLOOKUP(AT22,AR116:VY216,BF21+1,FALSE),0) -> 0 | BI21: 0 | BJ21: =IF(BF21=AT25,BG21-BG20,"") ->  | BM21: Soil Type : | BO21: 1 | CA21: 13 | CB21: =IF(BP27>0,HLOOKUP(BO22,BM116:WT216,CA21+1,FALSE),0) -> 0 | CD21: 0 | CE21: =IF(CA21=BO25,CB21-CB20,"") -> 
C22: Tree Lookup Code : | D22: =CONCATENATE("R",D19,"T",D20,"S",D21) ->  | P22: 14 | Q22: =IF(E27>0,HLOOKUP(D22,B116:UI216,P22+1,FALSE),0) -> 0 | S22: 0 | T22: =IF(P22=D25,Q22-Q21,"") ->  | X22: Tree Lookup Code : | Y22: =CONCATENATE("R",Y19,"T",Y20,"S",Y21) ->  | AK22: 14 | AL22: =IF(Z27>0,HLOOKUP(Y22,W116:VD216,AK22+1,FALSE),0) -> 0 | AN22: 0 | AO22: =IF(AK22=Y25,AL22-AL21,"") ->  | AS22: Tree Lookup Code : | AT22: =CONCATENATE("R",AT19,"T",AT20,"S",AT21) ->  | BF22: 14 | BG22: =IF(AU27>0,HLOOKUP(AT22,AR116:VY216,BF22+1,FALSE),0) -> 0 | BI22: 0 | BJ22: =IF(BF22=AT25,BG22-BG21,"") ->  | BN22: Tree Lookup Code : | BO22: =CONCATENATE("R",BO19,"T",BO20,"S",BO21) ->  | CA22: 14 | CB22: =IF(BP27>0,HLOOKUP(BO22,BM116:WT216,CA22+1,FALSE),0) -> 0 | CD22: 0 | CE22: =IF(CA22=BO25,CB22-CB21,"") -> 
P23: 15 | Q23: =IF(E27>0,HLOOKUP(D22,B116:UI216,P23+1,FALSE),0) -> 0 | S23: 0 | T23: =IF(P23=D25,Q23-Q22,"") ->  | AK23: 15 | AL23: =IF(Z27>0,HLOOKUP(Y22,W116:VD216,AK23+1,FALSE),0) -> 0 | AN23: 0 | AO23: =IF(AK23=Y25,AL23-AL22,"") ->  | BF23: 15 | BG23: =IF(AU27>0,HLOOKUP(AT22,AR116:VY216,BF23+1,FALSE),0) -> 0 | BI23: 0 | BJ23: =IF(BF23=AT25,BG23-BG22,"") ->  | CA23: 15 | CB23: =IF(BP27>0,HLOOKUP(BO22,BM116:WT216,CA23+1,FALSE),0) -> 0 | CD23: 0 | CE23: =IF(CA23=BO25,CB23-CB22,"") -> 
D24: Year | E24: Carbon (t/ha) | P24: 16 | Q24: =IF(E27>0,HLOOKUP(D22,B116:UI216,P24+1,FALSE),0) -> 0 | S24: 0 | T24: =IF(P24=D25,Q24-Q23,"") ->  | Y24: Year | Z24: Carbon (t/ha) | AK24: 16 | AL24: =IF(Z27>0,HLOOKUP(Y22,W116:VD216,AK24+1,FALSE),0) -> 0 | AN24: 0 | AO24: =IF(AK24=Y25,AL24-AL23,"") ->  | AT24: Year | AU24: Carbon (t/ha) | BF24: 16 | BG24: =IF(AU27>0,HLOOKUP(AT22,AR116:VY216,BF24+1,FALSE),0) -> 0 | BI24: 0 | BJ24: =IF(BF24=AT25,BG24-BG23,"") ->  | BO24: Year | BP24: Carbon (t/ha) | CA24: 16 | CB24: =IF(BP27>0,HLOOKUP(BO22,BM116:WT216,CA24+1,FALSE),0) -> 0 | CD24: 0 | CE24: =IF(CA24=BO25,CB24-CB23,"") -> 
B25: Tree carbon mass in year: | D25: =IF(Vegetation!D7>0,Vegetation!D7,0) -> 0 | E25: =IF(D25>0,HLOOKUP(D22,A116:UH216,(D25+1),FALSE),0) -> 0 | P25: 17 | Q25: =IF(E27>0,HLOOKUP(D22,B116:UI216,P25+1,FALSE),0) -> 0 | S25: 0 | T25: =IF(P25=D25,Q25-Q24,"") ->  | W25: Tree carbon mass in year: | Y25: =IF(Vegetation!D13>0,Vegetation!D13,0) -> 0 | Z25: =IF(Y25>0,HLOOKUP(Y22,A116:UH216,(Y25+1),FALSE),0) -> 0 | AK25: 17 | AL25: =IF(Z27>0,HLOOKUP(Y22,W116:VD216,AK25+1,FALSE),0) -> 0 | AN25: 0 | AO25: =IF(AK25=Y25,AL25-AL24,"") ->  | AR25: Tree carbon mass in year: | AT25: =IF(Vegetation!D19>0,Vegetation!D19,0) -> 0 | AU25: =IF(AT25>0,HLOOKUP(AT22,A116:UH216,(AT25+1),FALSE),0) -> 0 | BF25: 17 | BG25: =IF(AU27>0,HLOOKUP(AT22,AR116:VY216,BF25+1,FALSE),0) -> 0 | BI25: 0 | BJ25: =IF(BF25=AT25,BG25-BG24,"") ->  | BM25: Tree carbon mass in year: | BO25: =IF(Vegetation!D25>0,Vegetation!D25,0) -> 0 | BP25: =IF(BO25>0,HLOOKUP(BO22,A116:UH216,(BO25+1),FALSE),0) -> 0 | CA25: 17 | CB25: =IF(BP27>0,HLOOKUP(BO22,BM116:WT216,CA25+1,FALSE),0) -> 0 | CD25: 0 | CE25: =IF(CA25=BO25,CB25-CB24,"") -> 
B26: Tree carbon mass in year: | D26: =IF(D25>0,D25-1,0) -> 0 | E26: =IF(D26>0,HLOOKUP(D22,B116:UI216,(D26+1),FALSE),0) -> 0 | P26: 18 | Q26: =IF(E27>0,HLOOKUP(D22,B116:UI216,P26+1,FALSE),0) -> 0 | S26: 0 | T26: =IF(P26=D25,Q26-Q25,"") ->  | W26: Tree carbon mass in year: | Y26: =IF(Y25>0,Y25-1,0) -> 0 | Z26: =IF(Y26>0,HLOOKUP(Y22,B116:UI216,(Y26+1),FALSE),0) -> 0 | AK26: 18 | AL26: =IF(Z27>0,HLOOKUP(Y22,W116:VD216,AK26+1,FALSE),0) -> 0 | AN26: 0 | AO26: =IF(AK26=Y25,AL26-AL25,"") ->  | AR26: Tree carbon mass in year: | AT26: =IF(AT25>0,AT25-1,0) -> 0 | AU26: =IF(AT26>0,HLOOKUP(AT22,B116:UI216,(AT26+1),FALSE),0) -> 0 | BF26: 18 | BG26: =IF(AU27>0,HLOOKUP(AT22,AR116:VY216,BF26+1,FALSE),0) -> 0 | BI26: 0 | BJ26: =IF(BF26=AT25,BG26-BG25,"") ->  | BM26: Tree carbon mass in year: | BO26: =IF(BO25>0,BO25-1,0) -> 0 | BP26: =IF(BO26>0,HLOOKUP(BO22,B116:UI216,(BO26+1),FALSE),0) -> 0 | CA26: 18 | CB26: =IF(BP27>0,HLOOKUP(BO22,BM116:WT216,CA26+1,FALSE),0) -> 0 | CD26: 0 | CE26: =IF(CA26=BO25,CB26-CB25,"") -> 
D27: Change: | E27: =E25-E26 -> 0 | P27: 19 | Q27: =IF(E27>0,HLOOKUP(D22,B116:UI216,P27+1,FALSE),0) -> 0 | S27: 0 | T27: =IF(P27=D25,Q27-Q26,"") ->  | Y27: Change: | Z27: =Z25-Z26 -> 0 | AK27: 19 | AL27: =IF(Z27>0,HLOOKUP(Y22,W116:VD216,AK27+1,FALSE),0) -> 0 | AN27: 0 | AO27: =IF(AK27=Y25,AL27-AL26,"") ->  | AT27: Change: | AU27: =AU25-AU26 -> 0 | BF27: 19 | BG27: =IF(AU27>0,HLOOKUP(AT22,AR116:VY216,BF27+1,FALSE),0) -> 0 | BI27: 0 | BJ27: =IF(BF27=AT25,BG27-BG26,"") ->  | BO27: Change: | BP27: =BP25-BP26 -> 0 | CA27: 19 | CB27: =IF(BP27>0,HLOOKUP(BO22,BM116:WT216,CA27+1,FALSE),0) -> 0 | CD27: 0 | CE27: =IF(CA27=BO25,CB27-CB26,"") -> 
D28: Average annual carbon sequestration: | E28: =IF(OR(ISERROR(E27),E27=0),0,AVERAGE(S9:S108)) -> 0 | P28: 20 | Q28: =IF(E27>0,HLOOKUP(D22,B116:UI216,P28+1,FALSE),0) -> 0 | S28: 0 | T28: =IF(P28=D25,Q28-Q27,"") ->  | Y28: Average annual carbon sequestration: | Z28: =IF(OR(ISERROR(Z27),Z27=0),0,AVERAGE(AN9:AN108)) -> 0 | AK28: 20 | AL28: =IF(Z27>0,HLOOKUP(Y22,W116:VD216,AK28+1,FALSE),0) -> 0 | AN28: 0 | AO28: =IF(AK28=Y25,AL28-AL27,"") ->  | AT28: Average annual carbon sequestration: | AU28: =IF(OR(ISERROR(AU27),AU27=0),0,AVERAGE(BI9:BI108)) -> 0 | BF28: 20 | BG28: =IF(AU27>0,HLOOKUP(AT22,AR116:VY216,BF28+1,FALSE),0) -> 0 | BI28: 0 | BJ28: =IF(BF28=AT25,BG28-BG27,"") ->  | BO28: Average annual carbon sequestration: | BP28: =IF(OR(ISERROR(BP27),BP27=0),0,AVERAGE(CD9:CD108)) -> 0 | CA28: 20 | CB28: =IF(BP27>0,HLOOKUP(BO22,BM116:WT216,CA28+1,FALSE),0) -> 0 | CD28: 0 | CE28: =IF(CA28=BO25,CB28-CB27,"") -> 
P29: 21 | Q29: =IF(E27>0,HLOOKUP(D22,B116:UI216,P29+1,FALSE),0) -> 0 | S29: 0 | T29: =IF(P29=D25,Q29-Q28,"") ->  | AK29: 21 | AL29: =IF(Z27>0,HLOOKUP(Y22,W116:VD216,AK29+1,FALSE),0) -> 0 | AN29: 0 | AO29: =IF(AK29=Y25,AL29-AL28,"") ->  | BF29: 21 | BG29: =IF(AU27>0,HLOOKUP(AT22,AR116:VY216,BF29+1,FALSE),0) -> 0 | BI29: 0 | BJ29: =IF(BF29=AT25,BG29-BG28,"") ->  | CA29: 21 | CB29: =IF(BP27>0,HLOOKUP(BO22,BM116:WT216,CA29+1,FALSE),0) -> 0 | CD29: 0 | CE29: =IF(CA29=BO25,CB29-CB28,"") -> 
P30: 22 | Q30: =IF(E27>0,HLOOKUP(D22,B116:UI216,P30+1,FALSE),0) -> 0 | S30: 0 | T30: =IF(P30=D25,Q30-Q29,"") ->  | AK30: 22 | AL30: =IF(Z27>0,HLOOKUP(Y22,W116:VD216,AK30+1,FALSE),0) -> 0 | AN30: 0 | AO30: =IF(AK30=Y25,AL30-AL29,"") ->  | BF30: 22 | BG30: =IF(AU27>0,HLOOKUP(AT22,AR116:VY216,BF30+1,FALSE),0) -> 0 | BI30: 0 | BJ30: =IF(BF30=AT25,BG30-BG29,"") ->  | CA30: 22 | CB30: =IF(BP27>0,HLOOKUP(BO22,BM116:WT216,CA30+1,FALSE),0) -> 0 | CD30: 0 | CE30: =IF(CA30=BO25,CB30-CB29,"") -> 
A31: Lookup table for zones | C31: REGION No (Nathan's) | D31: Soil Types (2 per region) | G31: Tree Species (up to 6) | P31: 23 | Q31: =IF(E27>0,HLOOKUP(D22,B116:UI216,P31+1,FALSE),0) -> 0 | S31: 0 | T31: =IF(P31=D25,Q31-Q30,"") ->  | V31: Lookup table for zones | X31: REGION No (Nathan's) | Y31: Soil Types (2 per region) | AB31: Tree Species (up to 6) | AK31: 23 | AL31: =IF(Z27>0,HLOOKUP(Y22,W116:VD216,AK31+1,FALSE),0) -> 0 | AN31: 0 | AO31: =IF(AK31=Y25,AL31-AL30,"") ->  | AQ31: Lookup table for zones | AS31: REGION No (Nathan's) | AT31: Soil Types (2 per region) | AW31: Tree Species (up to 6) | BF31: 23 | BG31: =IF(AU27>0,HLOOKUP(AT22,AR116:VY216,BF31+1,FALSE),0) -> 0 | BI31: 0 | BJ31: =IF(BF31=AT25,BG31-BG30,"") ->  | BL31: Lookup table for zones | BN31: REGION No (Nathan's) | BO31: Soil Types (2 per region) | BR31: Tree Species (up to 6) | CA31: 23 | CB31: =IF(BP27>0,HLOOKUP(BO22,BM116:WT216,CA31+1,FALSE),0) -> 0 | CD31: 0 | CE31: =IF(CA31=BO25,CB31-CB30,"") -> 
A32: State/Territory | B32: Rainfall region | C32: R | D32: S1 | E32: S2 | G32: T1 | H32: T2 | I32: T3 | J32: T4 | K32: T5 | L32: T6 | P32: 24 | Q32: =IF(E27>0,HLOOKUP(D22,B116:UI216,P32+1,FALSE),0) -> 0 | S32: 0 | T32: =IF(P32=D25,Q32-Q31,"") ->  | V32: State/Territory | W32: Rainfall region | X32: R | Y32: S1 | Z32: S2 | AB32: T1 | AC32: T2 | AD32: T3 | AE32: T4 | AF32: T5 | AG32: T6 | AK32: 24 | AL32: =IF(Z27>0,HLOOKUP(Y22,W116:VD216,AK32+1,FALSE),0) -> 0 | AN32: 0 | AO32: =IF(AK32=Y25,AL32-AL31,"") ->  | AQ32: State/Territory | AR32: Rainfall region | AS32: R | AT32: S1 | AU32: S2 | AW32: T1 | AX32: T2 | AY32: T3 | AZ32: T4 | BA32: T5 | BB32: T6 | BF32: 24 | BG32: =IF(AU27>0,HLOOKUP(AT22,AR116:VY216,BF32+1,FALSE),0) -> 0 | BI32: 0 | BJ32: =IF(BF32=AT25,BG32-BG31,"") ->  | BL32: State/Territory | BM32: Rainfall region | BN32: R | BO32: S1 | BP32: S2 | BR32: T1 | BS32: T2 | BT32: T3 | BU32: T4 | BV32: T5 | BW32: T6 | CA32: 24 | CB32: =IF(BP27>0,HLOOKUP(BO22,BM116:WT216,CA32+1,FALSE),0) -> 0 | CD32: 0 | CE32: =IF(CA32=BO25,CB32-CB31,"") -> 
A33: Western Australia | B33: South West WA | C33: 1 | D33: Sandy Duplexes | G33: Mixed species (Environmental Plantings) | H33: Tasmanian Blue Gum | I33: Sydney Blue Gum | J33: Maritime Pine | K33: Pinus Radiata | L33: No tree data available | P33: 25 | Q33: =IF(E27>0,HLOOKUP(D22,B116:UI216,P33+1,FALSE),0) -> 0 | S33: 0 | T33: =IF(P33=D25,Q33-Q32,"") ->  | V33: Western Australia | W33: South West WA | X33: 1 | Y33: Sandy Duplexes | AB33: Mixed species (Environmental Plantings) | AC33: Tasmanian Blue Gum | AD33: Sydney Blue Gum | AE33: Maritime Pine | AF33: Pinus Radiata | AG33: No tree data available | AK33: 25 | AL33: =IF(Z27>0,HLOOKUP(Y22,W116:VD216,AK33+1,FALSE),0) -> 0 | AN33: 0 | AO33: =IF(AK33=Y25,AL33-AL32,"") ->  | AQ33: Western Australia | AR33: South West WA | AS33: 1 | AT33: Sandy Duplexes | AW33: Mixed species (Environmental Plantings) | AX33: Tasmanian Blue Gum | AY33: Sydney Blue Gum | AZ33: Maritime Pine | BA33: Pinus Radiata | BB33: No tree data available | BF33: 25 | BG33: =IF(AU27>0,HLOOKUP(AT22,AR116:VY216,BF33+1,FALSE),0) -> 0 | BI33: 0 | BJ33: =IF(BF33=AT25,BG33-BG32,"") ->  | BL33: Western Australia | BM33: South West WA | BN33: 1 | BO33: Sandy Duplexes | BR33: Mixed species (Environmental Plantings) | BS33: Tasmanian Blue Gum | BT33: Sydney Blue Gum | BU33: Maritime Pine | BV33: Pinus Radiata | BW33: No tree data available | CA33: 25 | CB33: =IF(BP27>0,HLOOKUP(BO22,BM116:WT216,CA33+1,FALSE),0) -> 0 | CD33: 0 | CE33: =IF(CA33=BO25,CB33-CB32,"") -> 
A34: New South Wales | B34: Northern coastal NSW | C34: 10 | D34: Clay & Red Loam | G34: Mixed species (Environmental Plantings) | H34: Spotted Gum | I34: Dunn's White Gum | J34: Flooded Gum | K34: Slash Pine | L34: Loblolly Pine | P34: 26 | Q34: =IF(E27>0,HLOOKUP(D22,B116:UI216,P34+1,FALSE),0) -> 0 | S34: 0 | T34: =IF(P34=D25,Q34-Q33,"") ->  | V34: New South Wales | W34: Northern coastal NSW | X34: 10 | Y34: Clay & Red Loam | AB34: Mixed species (Environmental Plantings) | AC34: Spotted Gum | AD34: Dunn's White Gum | AE34: Flooded Gum | AF34: Slash Pine | AG34: Loblolly Pine | AK34: 26 | AL34: =IF(Z27>0,HLOOKUP(Y22,W116:VD216,AK34+1,FALSE),0) -> 0 | AN34: 0 | AO34: =IF(AK34=Y25,AL34-AL33,"") ->  | AQ34: New South Wales | AR34: Northern coastal NSW | AS34: 10 | AT34: Clay & Red Loam | AW34: Mixed species (Environmental Plantings) | AX34: Spotted Gum | AY34: Dunn's White Gum | AZ34: Flooded Gum | BA34: Slash Pine | BB34: Loblolly Pine | BF34: 26 | BG34: =IF(AU27>0,HLOOKUP(AT22,AR116:VY216,BF34+1,FALSE),0) -> 0 | BI34: 0 | BJ34: =IF(BF34=AT25,BG34-BG33,"") ->  | BL34: New South Wales | BM34: Northern coastal NSW | BN34: 10 | BO34: Clay & Red Loam | BR34: Mixed species (Environmental Plantings) | BS34: Spotted Gum | BT34: Dunn's White Gum | BU34: Flooded Gum | BV34: Slash Pine | BW34: Loblolly Pine | CA34: 26 | CB34: =IF(BP27>0,HLOOKUP(BO22,BM116:WT216,CA34+1,FALSE),0) -> 0 | CD34: 0 | CE34: =IF(CA34=BO25,CB34-CB33,"") -> 
A35: New South Wales | B35: Southern coastal NSW | C35: 11 | D35: Loam | G35: Mixed species (Environmental Plantings) | H35: Sugar Gum | I35: Tasmanian Blue Gum | J35: Red Ironbark | K35: Radiata Pine (low input) | L35: Radiata Pine (high input) | P35: 27 | Q35: =IF(E27>0,HLOOKUP(D22,B116:UI216,P35+1,FALSE),0) -> 0 | S35: 0 | T35: =IF(P35=D25,Q35-Q34,"") ->  | V35: New South Wales | W35: Southern coastal NSW | X35: 11 | Y35: Loam | AB35: Mixed species (Environmental Plantings) | AC35: Sugar Gum | AD35: Tasmanian Blue Gum | AE35: Red Ironbark | AF35: Radiata Pine (low input) | AG35: Radiata Pine (high input) | AK35: 27 | AL35: =IF(Z27>0,HLOOKUP(Y22,W116:VD216,AK35+1,FALSE),0) -> 0 | AN35: 0 | AO35: =IF(AK35=Y25,AL35-AL34,"") ->  | AQ35: New South Wales | AR35: Southern coastal NSW | AS35: 11 | AT35: Loam | AW35: Mixed species (Environmental Plantings) | AX35: Sugar Gum | AY35: Tasmanian Blue Gum | AZ35: Red Ironbark | BA35: Radiata Pine (low input) | BB35: Radiata Pine (high input) | BF35: 27 | BG35: =IF(AU27>0,HLOOKUP(AT22,AR116:VY216,BF35+1,FALSE),0) -> 0 | BI35: 0 | BJ35: =IF(BF35=AT25,BG35-BG34,"") ->  | BL35: New South Wales | BM35: Southern coastal NSW | BN35: 11 | BO35: Loam | BR35: Mixed species (Environmental Plantings) | BS35: Sugar Gum | BT35: Tasmanian Blue Gum | BU35: Red Ironbark | BV35: Radiata Pine (low input) | BW35: Radiata Pine (high input) | CA35: 27 | CB35: =IF(BP27>0,HLOOKUP(BO22,BM116:WT216,CA35+1,FALSE),0) -> 0 | CD35: 0 | CE35: =IF(CA35=BO25,CB35-CB34,"") -> 
A36: New South Wales | B36: Central Inland & Riverina NSW | C36: 15 | D36: Loam | G36: Mixed species (Environmental Plantings) | H36: Sugar Gum | I36: Tasmanian Blue Gum | J36: Red Ironbark | K36: Radiata Pine (low input) | L36: Radiata Pine (high input) | P36: 28 | Q36: =IF(E27>0,HLOOKUP(D22,B116:UI216,P36+1,FALSE),0) -> 0 | S36: 0 | T36: =IF(P36=D25,Q36-Q35,"") ->  | V36: New South Wales | W36: Central Inland & Riverina NSW | X36: 15 | Y36: Loam | AB36: Mixed species (Environmental Plantings) | AC36: Sugar Gum | AD36: Tasmanian Blue Gum | AE36: Red Ironbark | AF36: Radiata Pine (low input) | AG36: Radiata Pine (high input) | AK36: 28 | AL36: =IF(Z27>0,HLOOKUP(Y22,W116:VD216,AK36+1,FALSE),0) -> 0 | AN36: 0 | AO36: =IF(AK36=Y25,AL36-AL35,"") ->  | AQ36: New South Wales | AR36: Central Inland & Riverina NSW | AS36: 15 | AT36: Loam | AW36: Mixed species (Environmental Plantings) | AX36: Sugar Gum | AY36: Tasmanian Blue Gum | AZ36: Red Ironbark | BA36: Radiata Pine (low input) | BB36: Radiata Pine (high input) | BF36: 28 | BG36: =IF(AU27>0,HLOOKUP(AT22,AR116:VY216,BF36+1,FALSE),0) -> 0 | BI36: 0 | BJ36: =IF(BF36=AT25,BG36-BG35,"") ->  | BL36: New South Wales | BM36: Central Inland & Riverina NSW | BN36: 15 | BO36: Loam | BR36: Mixed species (Environmental Plantings) | BS36: Sugar Gum | BT36: Tasmanian Blue Gum | BU36: Red Ironbark | BV36: Radiata Pine (low input) | BW36: Radiata Pine (high input) | CA36: 28 | CB36: =IF(BP27>0,HLOOKUP(BO22,BM116:WT216,CA36+1,FALSE),0) -> 0 | CD36: 0 | CE36: =IF(CA36=BO25,CB36-CB35,"") -> 
A37: Tasmania | B37: North East TAS | C37: 17 | D37: All other Soils | G37: Mixed species (Environmental Plantings) | H37: Tasmanian Blue Gum | I37: Shining Gum | J37: Radiata Pine (low input) | K37: Radiata Pine (high input) | L37: No tree data available | P37: 29 | Q37: =IF(E27>0,HLOOKUP(D22,B116:UI216,P37+1,FALSE),0) -> 0 | S37: 0 | T37: =IF(P37=D25,Q37-Q36,"") ->  | V37: Tasmania | W37: North East TAS | X37: 17 | Y37: All other Soils | AB37: Mixed species (Environmental Plantings) | AC37: Tasmanian Blue Gum | AD37: Shining Gum | AE37: Radiata Pine (low input) | AF37: Radiata Pine (high input) | AG37: No tree data available | AK37: 29 | AL37: =IF(Z27>0,HLOOKUP(Y22,W116:VD216,AK37+1,FALSE),0) -> 0 | AN37: 0 | AO37: =IF(AK37=Y25,AL37-AL36,"") ->  | AQ37: Tasmania | AR37: North East TAS | AS37: 17 | AT37: All other Soils | AW37: Mixed species (Environmental Plantings) | AX37: Tasmanian Blue Gum | AY37: Shining Gum | AZ37: Radiata Pine (low input) | BA37: Radiata Pine (high input) | BB37: No tree data available | BF37: 29 | BG37: =IF(AU27>0,HLOOKUP(AT22,AR116:VY216,BF37+1,FALSE),0) -> 0 | BI37: 0 | BJ37: =IF(BF37=AT25,BG37-BG36,"") ->  | BL37: Tasmania | BM37: North East TAS | BN37: 17 | BO37: All other Soils | BR37: Mixed species (Environmental Plantings) | BS37: Tasmanian Blue Gum | BT37: Shining Gum | BU37: Radiata Pine (low input) | BV37: Radiata Pine (high input) | BW37: No tree data available | CA37: 29 | CB37: =IF(BP27>0,HLOOKUP(BO22,BM116:WT216,CA37+1,FALSE),0) -> 0 | CD37: 0 | CE37: =IF(CA37=BO25,CB37-CB36,"") -> 
A38: Tasmania | B38: Central North & Midlands TAS | C38: 19 | D38: All other Soils | G38: Mixed species (Environmental Plantings) | H38: Tasmanian Blue Gum | I38: Shining Gum | J38: Radiata Pine (low input) | K38: Radiata Pine (high input) | L38: No tree data available | P38: 30 | Q38: =IF(E27>0,HLOOKUP(D22,B116:UI216,P38+1,FALSE),0) -> 0 | S38: 0 | T38: =IF(P38=D25,Q38-Q37,"") ->  | V38: Tasmania | W38: Central North & Midlands TAS | X38: 19 | Y38: All other Soils | AB38: Mixed species (Environmental Plantings) | AC38: Tasmanian Blue Gum | AD38: Shining Gum | AE38: Radiata Pine (low input) | AF38: Radiata Pine (high input) | AG38: No tree data available | AK38: 30 | AL38: =IF(Z27>0,HLOOKUP(Y22,W116:VD216,AK38+1,FALSE),0) -> 0 | AN38: 0 | AO38: =IF(AK38=Y25,AL38-AL37,"") ->  | AQ38: Tasmania | AR38: Central North & Midlands TAS | AS38: 19 | AT38: All other Soils | AW38: Mixed species (Environmental Plantings) | AX38: Tasmanian Blue Gum | AY38: Shining Gum | AZ38: Radiata Pine (low input) | BA38: Radiata Pine (high input) | BB38: No tree data available | BF38: 30 | BG38: =IF(AU27>0,HLOOKUP(AT22,AR116:VY216,BF38+1,FALSE),0) -> 0 | BI38: 0 | BJ38: =IF(BF38=AT25,BG38-BG37,"") ->  | BL38: Tasmania | BM38: Central North & Midlands TAS | BN38: 19 | BO38: All other Soils | BR38: Mixed species (Environmental Plantings) | BS38: Tasmanian Blue Gum | BT38: Shining Gum | BU38: Radiata Pine (low input) | BV38: Radiata Pine (high input) | BW38: No tree data available | CA38: 30 | CB38: =IF(BP27>0,HLOOKUP(BO22,BM116:WT216,CA38+1,FALSE),0) -> 0 | CD38: 0 | CE38: =IF(CA38=BO25,CB38-CB37,"") -> 
A39: Tasmania | B39: Southern & Derwent Valley TAS | C39: 20 | D39: All other Soils | G39: Mixed species (Environmental Plantings) | H39: Tasmanian Blue Gum | I39: Shining Gum | J39: Radiata Pine (low input) | K39: Radiata Pine (high input) | L39: No tree data available | P39: 31 | Q39: =IF(E27>0,HLOOKUP(D22,B116:UI216,P39+1,FALSE),0) -> 0 | S39: 0 | T39: =IF(P39=D25,Q39-Q38,"") ->  | V39: Tasmania | W39: Southern & Derwent Valley TAS | X39: 20 | Y39: All other Soils | AB39: Mixed species (Environmental Plantings) | AC39: Tasmanian Blue Gum | AD39: Shining Gum | AE39: Radiata Pine (low input) | AF39: Radiata Pine (high input) | AG39: No tree data available | AK39: 31 | AL39: =IF(Z27>0,HLOOKUP(Y22,W116:VD216,AK39+1,FALSE),0) -> 0 | AN39: 0 | AO39: =IF(AK39=Y25,AL39-AL38,"") ->  | AQ39: Tasmania | AR39: Southern & Derwent Valley TAS | AS39: 20 | AT39: All other Soils | AW39: Mixed species (Environmental Plantings) | AX39: Tasmanian Blue Gum | AY39: Shining Gum | AZ39: Radiata Pine (low input) | BA39: Radiata Pine (high input) | BB39: No tree data available | BF39: 31 | BG39: =IF(AU27>0,HLOOKUP(AT22,AR116:VY216,BF39+1,FALSE),0) -> 0 | BI39: 0 | BJ39: =IF(BF39=AT25,BG39-BG38,"") ->  | BL39: Tasmania | BM39: Southern & Derwent Valley TAS | BN39: 20 | BO39: All other Soils | BR39: Mixed species (Environmental Plantings) | BS39: Tasmanian Blue Gum | BT39: Shining Gum | BU39: Radiata Pine (low input) | BV39: Radiata Pine (high input) | BW39: No tree data available | CA39: 31 | CB39: =IF(BP27>0,HLOOKUP(BO22,BM116:WT216,CA39+1,FALSE),0) -> 0 | CD39: 0 | CE39: =IF(CA39=BO25,CB39-CB38,"") -> 
A40: Tasmania | B40: North West TAS | C40: 22 | D40: All other Soils | G40: Mixed species (Environmental Plantings) | H40: Tasmanian Blue Gum | I40: Shining Gum | J40: Radiata Pine (low input) | K40: Radiata Pine (high input) | L40: No tree data available | P40: 32 | Q40: =IF(E27>0,HLOOKUP(D22,B116:UI216,P40+1,FALSE),0) -> 0 | S40: 0 | T40: =IF(P40=D25,Q40-Q39,"") ->  | V40: Tasmania | W40: North West TAS | X40: 22 | Y40: All other Soils | AB40: Mixed species (Environmental Plantings) | AC40: Tasmanian Blue Gum | AD40: Shining Gum | AE40: Radiata Pine (low input) | AF40: Radiata Pine (high input) | AG40: No tree data available | AK40: 32 | AL40: =IF(Z27>0,HLOOKUP(Y22,W116:VD216,AK40+1,FALSE),0) -> 0 | AN40: 0 | AO40: =IF(AK40=Y25,AL40-AL39,"") ->  | AQ40: Tasmania | AR40: North West TAS | AS40: 22 | AT40: All other Soils | AW40: Mixed species (Environmental Plantings) | AX40: Tasmanian Blue Gum | AY40: Shining Gum | AZ40: Radiata Pine (low input) | BA40: Radiata Pine (high input) | BB40: No tree data available | BF40: 32 | BG40: =IF(AU27>0,HLOOKUP(AT22,AR116:VY216,BF40+1,FALSE),0) -> 0 | BI40: 0 | BJ40: =IF(BF40=AT25,BG40-BG39,"") ->  | BL40: Tasmania | BM40: North West TAS | BN40: 22 | BO40: All other Soils | BR40: Mixed species (Environmental Plantings) | BS40: Tasmanian Blue Gum | BT40: Shining Gum | BU40: Radiata Pine (low input) | BV40: Radiata Pine (high input) | BW40: No tree data available | CA40: 32 | CB40: =IF(BP27>0,HLOOKUP(BO22,BM116:WT216,CA40+1,FALSE),0) -> 0 | CD40: 0 | CE40: =IF(CA40=BO25,CB40-CB39,"") -> 
A41: South Australia | B41: South East SA | C41: 23 | D41: Cracking Clays | G41: Mixed species (Environmental Plantings) | H41: Tasmanian Blue Gum | I41: Pinus Radiata | J41: No tree data available | K41: No tree data available | L41: No tree data available | P41: 33 | Q41: =IF(E27>0,HLOOKUP(D22,B116:UI216,P41+1,FALSE),0) -> 0 | S41: 0 | T41: =IF(P41=D25,Q41-Q40,"") ->  | V41: South Australia | W41: South East SA | X41: 23 | Y41: Cracking Clays | AB41: Mixed species (Environmental Plantings) | AC41: Tasmanian Blue Gum | AD41: Pinus Radiata | AE41: No tree data available | AF41: No tree data available | AG41: No tree data available | AK41: 33 | AL41: =IF(Z27>0,HLOOKUP(Y22,W116:VD216,AK41+1,FALSE),0) -> 0 | AN41: 0 | AO41: =IF(AK41=Y25,AL41-AL40,"") ->  | AQ41: South Australia | AR41: South East SA | AS41: 23 | AT41: Cracking Clays | AW41: Mixed species (Environmental Plantings) | AX41: Tasmanian Blue Gum | AY41: Pinus Radiata | AZ41: No tree data available | BA41: No tree data available | BB41: No tree data available | BF41: 33 | BG41: =IF(AU27>0,HLOOKUP(AT22,AR116:VY216,BF41+1,FALSE),0) -> 0 | BI41: 0 | BJ41: =IF(BF41=AT25,BG41-BG40,"") ->  | BL41: South Australia | BM41: South East SA | BN41: 23 | BO41: Cracking Clays | BR41: Mixed species (Environmental Plantings) | BS41: Tasmanian Blue Gum | BT41: Pinus Radiata | BU41: No tree data available | BV41: No tree data available | BW41: No tree data available | CA41: 33 | CB41: =IF(BP27>0,HLOOKUP(BO22,BM116:WT216,CA41+1,FALSE),0) -> 0 | CD41: 0 | CE41: =IF(CA41=BO25,CB41-CB40,"") -> 
A42: South Australia | B42: Murray River SA | C42: 24 | D42: Cracking Clays | G42: Mixed species (Environmental Plantings) | H42: Tasmanian Blue Gum | I42: Pinus Radiata | J42: No tree data available | K42: No tree data available | L42: No tree data available | P42: 34 | Q42: =IF(E27>0,HLOOKUP(D22,B116:UI216,P42+1,FALSE),0) -> 0 | S42: =Q42-Q41 -> 0 | T42: =IF(P42=D25,Q42-Q41,"") ->  | V42: South Australia | W42: Murray River SA | X42: 24 | Y42: Cracking Clays | AB42: Mixed species (Environmental Plantings) | AC42: Tasmanian Blue Gum | AD42: Pinus Radiata | AE42: No tree data available | AF42: No tree data available | AG42: No tree data available | AK42: 34 | AL42: =IF(Z27>0,HLOOKUP(Y22,W116:VD216,AK42+1,FALSE),0) -> 0 | AN42: =AL42-AL41 -> 0 | AO42: =IF(AK42=Y25,AL42-AL41,"") ->  | AQ42: South Australia | AR42: Murray River SA | AS42: 24 | AT42: Cracking Clays | AW42: Mixed species (Environmental Plantings) | AX42: Tasmanian Blue Gum | AY42: Pinus Radiata | AZ42: No tree data available | BA42: No tree data available | BB42: No tree data available | BF42: 34 | BG42: =IF(AU27>0,HLOOKUP(AT22,AR116:VY216,BF42+1,FALSE),0) -> 0 | BI42: =BG42-BG41 -> 0 | BJ42: =IF(BF42=AT25,BG42-BG41,"") ->  | BL42: South Australia | BM42: Murray River SA | BN42: 24 | BO42: Cracking Clays | BR42: Mixed species (Environmental Plantings) | BS42: Tasmanian Blue Gum | BT42: Pinus Radiata | BU42: No tree data available | BV42: No tree data available | BW42: No tree data available | CA42: 34 | CB42: =IF(BP27>0,HLOOKUP(BO22,BM116:WT216,CA42+1,FALSE),0) -> 0 | CD42: =CB42-CB41 -> 0 | CE42: =IF(CA42=BO25,CB42-CB41,"") -> 
A43: Victoria | B43: Mallee region VIC | C43: 28 | D43: Yellow Duplex | G43: Mixed species (Environmental Plantings) | H43: Sugar Gum | I43: Tasmanian Blue Gum | J43: Shining Gum | K43: Pinus Radiata (low input) | L43: Pinus Radiata (high input) | P43: 35 | Q43: =IF(E27>0,HLOOKUP(D22,B116:UI216,P43+1,FALSE),0) -> 0 | S43: 0 | T43: =IF(P43=D25,Q43-Q42,"") ->  | V43: Victoria | W43: Mallee region VIC | X43: 28 | Y43: Yellow Duplex | AB43: Mixed species (Environmental Plantings) | AC43: Sugar Gum | AD43: Tasmanian Blue Gum | AE43: Shining Gum | AF43: Pinus Radiata (low input) | AG43: Pinus Radiata (high input) | AK43: 35 | AL43: =IF(Z27>0,HLOOKUP(Y22,W116:VD216,AK43+1,FALSE),0) -> 0 | AN43: 0 | AO43: =IF(AK43=Y25,AL43-AL42,"") ->  | AQ43: Victoria | AR43: Mallee region VIC | AS43: 28 | AT43: Yellow Duplex | AW43: Mixed species (Environmental Plantings) | AX43: Sugar Gum | AY43: Tasmanian Blue Gum | AZ43: Shining Gum | BA43: Pinus Radiata (low input) | BB43: Pinus Radiata (high input) | BF43: 35 | BG43: =IF(AU27>0,HLOOKUP(AT22,AR116:VY216,BF43+1,FALSE),0) -> 0 | BI43: 0 | BJ43: =IF(BF43=AT25,BG43-BG42,"") ->  | BL43: Victoria | BM43: Mallee region VIC | BN43: 28 | BO43: Yellow Duplex | BR43: Mixed species (Environmental Plantings) | BS43: Sugar Gum | BT43: Tasmanian Blue Gum | BU43: Shining Gum | BV43: Pinus Radiata (low input) | BW43: Pinus Radiata (high input) | CA43: 35 | CB43: =IF(BP27>0,HLOOKUP(BO22,BM116:WT216,CA43+1,FALSE),0) -> 0 | CD43: 0 | CE43: =IF(CA43=BO25,CB43-CB42,"") -> 
A44: Victoria | B44: Northern region VIC | C44: 30 | D44: Red Duplex | G44: Mixed species (Environmental Plantings) | H44: Sugar Gum | I44: Tasmanian Blue Gum | J44: Shining Gum | K44: Pinus Radiata | L44: No tree data available | P44: 36 | Q44: =IF(E27>0,HLOOKUP(D22,B116:UI216,P44+1,FALSE),0) -> 0 | S44: 0 | T44: =IF(P44=D25,Q44-Q43,"") ->  | V44: Victoria | W44: Northern region VIC | X44: 30 | Y44: Red Duplex | AB44: Mixed species (Environmental Plantings) | AC44: Sugar Gum | AD44: Tasmanian Blue Gum | AE44: Shining Gum | AF44: Pinus Radiata | AG44: No tree data available | AK44: 36 | AL44: =IF(Z27>0,HLOOKUP(Y22,W116:VD216,AK44+1,FALSE),0) -> 0 | AN44: 0 | AO44: =IF(AK44=Y25,AL44-AL43,"") ->  | AQ44: Victoria | AR44: Northern region VIC | AS44: 30 | AT44: Red Duplex | AW44: Mixed species (Environmental Plantings) | AX44: Sugar Gum | AY44: Tasmanian Blue Gum | AZ44: Shining Gum | BA44: Pinus Radiata | BB44: No tree data available | BF44: 36 | BG44: =IF(AU27>0,HLOOKUP(AT22,AR116:VY216,BF44+1,FALSE),0) -> 0 | BI44: 0 | BJ44: =IF(BF44=AT25,BG44-BG43,"") ->  | BL44: Victoria | BM44: Northern region VIC | BN44: 30 | BO44: Red Duplex | BR44: Mixed species (Environmental Plantings) | BS44: Sugar Gum | BT44: Tasmanian Blue Gum | BU44: Shining Gum | BV44: Pinus Radiata | BW44: No tree data available | CA44: 36 | CB44: =IF(BP27>0,HLOOKUP(BO22,BM116:WT216,CA44+1,FALSE),0) -> 0 | CD44: 0 | CE44: =IF(CA44=BO25,CB44-CB43,"") -> 
A45: Victoria | B45: North East region VIC | C45: 31 | D45: Red Duplex | G45: Mixed species (Environmental Plantings) | H45: Sugar Gum | I45: Tasmanian Blue Gum | J45: Shining Gum | K45: Pinus Radiata | L45: No tree data available | P45: 37 | Q45: =IF(E27>0,HLOOKUP(D22,B116:UI216,P45+1,FALSE),0) -> 0 | S45: 0 | T45: =IF(P45=D25,Q45-Q44,"") ->  | V45: Victoria | W45: North East region VIC | X45: 31 | Y45: Red Duplex | AB45: Mixed species (Environmental Plantings) | AC45: Sugar Gum | AD45: Tasmanian Blue Gum | AE45: Shining Gum | AF45: Pinus Radiata | AG45: No tree data available | AK45: 37 | AL45: =IF(Z27>0,HLOOKUP(Y22,W116:VD216,AK45+1,FALSE),0) -> 0 | AN45: 0 | AO45: =IF(AK45=Y25,AL45-AL44,"") ->  | AQ45: Victoria | AR45: North East region VIC | AS45: 31 | AT45: Red Duplex | AW45: Mixed species (Environmental Plantings) | AX45: Sugar Gum | AY45: Tasmanian Blue Gum | AZ45: Shining Gum | BA45: Pinus Radiata | BB45: No tree data available | BF45: 37 | BG45: =IF(AU27>0,HLOOKUP(AT22,AR116:VY216,BF45+1,FALSE),0) -> 0 | BI45: 0 | BJ45: =IF(BF45=AT25,BG45-BG44,"") ->  | BL45: Victoria | BM45: North East region VIC | BN45: 31 | BO45: Red Duplex | BR45: Mixed species (Environmental Plantings) | BS45: Sugar Gum | BT45: Tasmanian Blue Gum | BU45: Shining Gum | BV45: Pinus Radiata | BW45: No tree data available | CA45: 37 | CB45: =IF(BP27>0,HLOOKUP(BO22,BM116:WT216,CA45+1,FALSE),0) -> 0 | CD45: 0 | CE45: =IF(CA45=BO25,CB45-CB44,"") -> 
A46: Victoria | B46: East Gippsland | C46: 32 | D46: Yellow Duplex | G46: Mixed species (Environmental Plantings) | H46: Tasmanian Blue Gum | I46: Shining Gum | J46: Pinus Radiata | K46: No tree data available | L46: No tree data available | P46: 38 | Q46: =IF(E27>0,HLOOKUP(D22,B116:UI216,P46+1,FALSE),0) -> 0 | S46: 0 | T46: =IF(P46=D25,Q46-Q45,"") ->  | V46: Victoria | W46: East Gippsland | X46: 32 | Y46: Yellow Duplex | AB46: Mixed species (Environmental Plantings) | AC46: Tasmanian Blue Gum | AD46: Shining Gum | AE46: Pinus Radiata | AF46: No tree data available | AG46: No tree data available | AK46: 38 | AL46: =IF(Z27>0,HLOOKUP(Y22,W116:VD216,AK46+1,FALSE),0) -> 0 | AN46: 0 | AO46: =IF(AK46=Y25,AL46-AL45,"") ->  | AQ46: Victoria | AR46: East Gippsland | AS46: 32 | AT46: Yellow Duplex | AW46: Mixed species (Environmental Plantings) | AX46: Tasmanian Blue Gum | AY46: Shining Gum | AZ46: Pinus Radiata | BA46: No tree data available | BB46: No tree data available | BF46: 38 | BG46: =IF(AU27>0,HLOOKUP(AT22,AR116:VY216,BF46+1,FALSE),0) -> 0 | BI46: 0 | BJ46: =IF(BF46=AT25,BG46-BG45,"") ->  | BL46: Victoria | BM46: East Gippsland | BN46: 32 | BO46: Yellow Duplex | BR46: Mixed species (Environmental Plantings) | BS46: Tasmanian Blue Gum | BT46: Shining Gum | BU46: Pinus Radiata | BV46: No tree data available | BW46: No tree data available | CA46: 38 | CB46: =IF(BP27>0,HLOOKUP(BO22,BM116:WT216,CA46+1,FALSE),0) -> 0 | CD46: 0 | CE46: =IF(CA46=BO25,CB46-CB45,"") -> 
A47: Victoria | B47: South & West Gippsland | C47: 33 | D47: Gradational soils | G47: Mixed species (Environmental Plantings) | H47: Tasmanian Blue Gum | I47: Shining Gum | J47: Mountain Ash | K47: Pinus Radiata | L47: No tree data available | P47: 39 | Q47: =IF(E27>0,HLOOKUP(D22,B116:UI216,P47+1,FALSE),0) -> 0 | S47: 0 | T47: =IF(P47=D25,Q47-Q46,"") ->  | V47: Victoria | W47: South & West Gippsland | X47: 33 | Y47: Gradational soils | AB47: Mixed species (Environmental Plantings) | AC47: Tasmanian Blue Gum | AD47: Shining Gum | AE47: Mountain Ash | AF47: Pinus Radiata | AG47: No tree data available | AK47: 39 | AL47: =IF(Z27>0,HLOOKUP(Y22,W116:VD216,AK47+1,FALSE),0) -> 0 | AN47: 0 | AO47: =IF(AK47=Y25,AL47-AL46,"") ->  | AQ47: Victoria | AR47: South & West Gippsland | AS47: 33 | AT47: Gradational soils | AW47: Mixed species (Environmental Plantings) | AX47: Tasmanian Blue Gum | AY47: Shining Gum | AZ47: Mountain Ash | BA47: Pinus Radiata | BB47: No tree data available | BF47: 39 | BG47: =IF(AU27>0,HLOOKUP(AT22,AR116:VY216,BF47+1,FALSE),0) -> 0 | BI47: 0 | BJ47: =IF(BF47=AT25,BG47-BG46,"") ->  | BL47: Victoria | BM47: South & West Gippsland | BN47: 33 | BO47: Gradational soils | BR47: Mixed species (Environmental Plantings) | BS47: Tasmanian Blue Gum | BT47: Shining Gum | BU47: Mountain Ash | BV47: Pinus Radiata | BW47: No tree data available | CA47: 39 | CB47: =IF(BP27>0,HLOOKUP(BO22,BM116:WT216,CA47+1,FALSE),0) -> 0 | CD47: 0 | CE47: =IF(CA47=BO25,CB47-CB46,"") -> 
A48: Victoria | B48: South West VIC | C48: 35 | D48: Red Duplex | G48: Mixed species (Environmental Plantings) | H48: Sugar Gum | I48: Tasmanian Blue Gum | J48: Shining Gum | K48: Pinus Radiata | L48: No tree data available | P48: 40 | Q48: =IF(E27>0,HLOOKUP(D22,B116:UI216,P48+1,FALSE),0) -> 0 | S48: 0 | T48: =IF(P48=D25,Q48-Q47,"") ->  | V48: Victoria | W48: South West VIC | X48: 35 | Y48: Red Duplex | AB48: Mixed species (Environmental Plantings) | AC48: Sugar Gum | AD48: Tasmanian Blue Gum | AE48: Shining Gum | AF48: Pinus Radiata | AG48: No tree data available | AK48: 40 | AL48: =IF(Z27>0,HLOOKUP(Y22,W116:VD216,AK48+1,FALSE),0) -> 0 | AN48: 0 | AO48: =IF(AK48=Y25,AL48-AL47,"") ->  | AQ48: Victoria | AR48: South West VIC | AS48: 35 | AT48: Red Duplex | AW48: Mixed species (Environmental Plantings) | AX48: Sugar Gum | AY48: Tasmanian Blue Gum | AZ48: Shining Gum | BA48: Pinus Radiata | BB48: No tree data available | BF48: 40 | BG48: =IF(AU27>0,HLOOKUP(AT22,AR116:VY216,BF48+1,FALSE),0) -> 0 | BI48: 0 | BJ48: =IF(BF48=AT25,BG48-BG47,"") ->  | BL48: Victoria | BM48: South West VIC | BN48: 35 | BO48: Red Duplex | BR48: Mixed species (Environmental Plantings) | BS48: Sugar Gum | BT48: Tasmanian Blue Gum | BU48: Shining Gum | BV48: Pinus Radiata | BW48: No tree data available | CA48: 40 | CB48: =IF(BP27>0,HLOOKUP(BO22,BM116:WT216,CA48+1,FALSE),0) -> 0 | CD48: 0 | CE48: =IF(CA48=BO25,CB48-CB47,"") -> 
A49: Queensland | B49: Northern QLD | C49: 36 | D49: Duplex | G49: Mixed species (Environmental Plantings) | H49: Hoop Pine | I49: Lemon-scented Gum | J49: Western White Gum | K49: Blackbutt | L49: Pinus Hybrids | P49: 41 | Q49: =IF(E27>0,HLOOKUP(D22,B116:UI216,P49+1,FALSE),0) -> 0 | S49: 0 | T49: =IF(P49=D25,Q49-Q48,"") ->  | V49: Queensland | W49: Northern QLD | X49: 36 | Y49: Duplex | AB49: Mixed species (Environmental Plantings) | AC49: Hoop Pine | AD49: Lemon-scented Gum | AE49: Western White Gum | AF49: Blackbutt | AG49: Pinus Hybrids | AK49: 41 | AL49: =IF(Z27>0,HLOOKUP(Y22,W116:VD216,AK49+1,FALSE),0) -> 0 | AN49: 0 | AO49: =IF(AK49=Y25,AL49-AL48,"") ->  | AQ49: Queensland | AR49: Northern QLD | AS49: 36 | AT49: Duplex | AW49: Mixed species (Environmental Plantings) | AX49: Hoop Pine | AY49: Lemon-scented Gum | AZ49: Western White Gum | BA49: Blackbutt | BB49: Pinus Hybrids | BF49: 41 | BG49: =IF(AU27>0,HLOOKUP(AT22,AR116:VY216,BF49+1,FALSE),0) -> 0 | BI49: 0 | BJ49: =IF(BF49=AT25,BG49-BG48,"") ->  | BL49: Queensland | BM49: Northern QLD | BN49: 36 | BO49: Duplex | BR49: Mixed species (Environmental Plantings) | BS49: Hoop Pine | BT49: Lemon-scented Gum | BU49: Western White Gum | BV49: Blackbutt | BW49: Pinus Hybrids | CA49: 41 | CB49: =IF(BP27>0,HLOOKUP(BO22,BM116:WT216,CA49+1,FALSE),0) -> 0 | CD49: 0 | CE49: =IF(CA49=BO25,CB49-CB48,"") -> 
A50: Queensland | B50: Southern QLD | C50: 40 | D50: Duplex Woodland | G50: Mixed species (Environmental Plantings) | H50: Hoop Pine | I50: Lemon-scented Gum | J50: Western White Gum | K50: Blackbutt | L50: Pinus Hybrids | P50: 42 | Q50: =IF(E27>0,HLOOKUP(D22,B116:UI216,P50+1,FALSE),0) -> 0 | S50: 0 | T50: =IF(P50=D25,Q50-Q49,"") ->  | V50: Queensland | W50: Southern QLD | X50: 40 | Y50: Duplex Woodland | AB50: Mixed species (Environmental Plantings) | AC50: Hoop Pine | AD50: Lemon-scented Gum | AE50: Western White Gum | AF50: Blackbutt | AG50: Pinus Hybrids | AK50: 42 | AL50: =IF(Z27>0,HLOOKUP(Y22,W116:VD216,AK50+1,FALSE),0) -> 0 | AN50: 0 | AO50: =IF(AK50=Y25,AL50-AL49,"") ->  | AQ50: Queensland | AR50: Southern QLD | AS50: 40 | AT50: Duplex Woodland | AW50: Mixed species (Environmental Plantings) | AX50: Hoop Pine | AY50: Lemon-scented Gum | AZ50: Western White Gum | BA50: Blackbutt | BB50: Pinus Hybrids | BF50: 42 | BG50: =IF(AU27>0,HLOOKUP(AT22,AR116:VY216,BF50+1,FALSE),0) -> 0 | BI50: 0 | BJ50: =IF(BF50=AT25,BG50-BG49,"") ->  | BL50: Queensland | BM50: Southern QLD | BN50: 40 | BO50: Duplex Woodland | BR50: Mixed species (Environmental Plantings) | BS50: Hoop Pine | BT50: Lemon-scented Gum | BU50: Western White Gum | BV50: Blackbutt | BW50: Pinus Hybrids | CA50: 42 | CB50: =IF(BP27>0,HLOOKUP(BO22,BM116:WT216,CA50+1,FALSE),0) -> 0 | CD50: 0 | CE50: =IF(CA50=BO25,CB50-CB49,"") -> 
P51: 43 | Q51: =IF(E27>0,HLOOKUP(D22,B116:UI216,P51+1,FALSE),0) -> 0 | S51: 0 | T51: =IF(P51=D25,Q51-Q50,"") ->  | AK51: 43 | AL51: =IF(Z27>0,HLOOKUP(Y22,W116:VD216,AK51+1,FALSE),0) -> 0 | AN51: 0 | AO51: =IF(AK51=Y25,AL51-AL50,"") ->  | BF51: 43 | BG51: =IF(AU27>0,HLOOKUP(AT22,AR116:VY216,BF51+1,FALSE),0) -> 0 | BI51: 0 | BJ51: =IF(BF51=AT25,BG51-BG50,"") ->  | CA51: 43 | CB51: =IF(BP27>0,HLOOKUP(BO22,BM116:WT216,CA51+1,FALSE),0) -> 0 | CD51: 0 | CE51: =IF(CA51=BO25,CB51-CB50,"") -> 
P52: 44 | Q52: =IF(E27>0,HLOOKUP(D22,B116:UI216,P52+1,FALSE),0) -> 0 | S52: 0 | T52: =IF(P52=D25,Q52-Q51,"") ->  | AK52: 44 | AL52: =IF(Z27>0,HLOOKUP(Y22,W116:VD216,AK52+1,FALSE),0) -> 0 | AN52: 0 | AO52: =IF(AK52=Y25,AL52-AL51,"") ->  | BF52: 44 | BG52: =IF(AU27>0,HLOOKUP(AT22,AR116:VY216,BF52+1,FALSE),0) -> 0 | BI52: 0 | BJ52: =IF(BF52=AT25,BG52-BG51,"") ->  | CA52: 44 | CB52: =IF(BP27>0,HLOOKUP(BO22,BM116:WT216,CA52+1,FALSE),0) -> 0 | CD52: 0 | CE52: =IF(CA52=BO25,CB52-CB51,"") -> 
P53: 45 | Q53: =IF(E27>0,HLOOKUP(D22,B116:UI216,P53+1,FALSE),0) -> 0 | S53: 0 | T53: =IF(P53=D25,Q53-Q52,"") ->  | AK53: 45 | AL53: =IF(Z27>0,HLOOKUP(Y22,W116:VD216,AK53+1,FALSE),0) -> 0 | AN53: 0 | AO53: =IF(AK53=Y25,AL53-AL52,"") ->  | BF53: 45 | BG53: =IF(AU27>0,HLOOKUP(AT22,AR116:VY216,BF53+1,FALSE),0) -> 0 | BI53: 0 | BJ53: =IF(BF53=AT25,BG53-BG52,"") ->  | CA53: 45 | CB53: =IF(BP27>0,HLOOKUP(BO22,BM116:WT216,CA53+1,FALSE),0) -> 0 | CD53: 0 | CE53: =IF(CA53=BO25,CB53-CB52,"") -> 
P54: 46 | Q54: =IF(E27>0,HLOOKUP(D22,B116:UI216,P54+1,FALSE),0) -> 0 | S54: 0 | T54: =IF(P54=D25,Q54-Q53,"") ->  | AK54: 46 | AL54: =IF(Z27>0,HLOOKUP(Y22,W116:VD216,AK54+1,FALSE),0) -> 0 | AN54: 0 | AO54: =IF(AK54=Y25,AL54-AL53,"") ->  | BF54: 46 | BG54: =IF(AU27>0,HLOOKUP(AT22,AR116:VY216,BF54+1,FALSE),0) -> 0 | BI54: 0 | BJ54: =IF(BF54=AT25,BG54-BG53,"") ->  | CA54: 46 | CB54: =IF(BP27>0,HLOOKUP(BO22,BM116:WT216,CA54+1,FALSE),0) -> 0 | CD54: 0 | CE54: =IF(CA54=BO25,CB54-CB53,"") -> 
P55: 47 | Q55: =IF(E27>0,HLOOKUP(D22,B116:UI216,P55+1,FALSE),0) -> 0 | S55: 0 | T55: =IF(P55=D25,Q55-Q54,"") ->  | AK55: 47 | AL55: =IF(Z27>0,HLOOKUP(Y22,W116:VD216,AK55+1,FALSE),0) -> 0 | AN55: 0 | AO55: =IF(AK55=Y25,AL55-AL54,"") ->  | BF55: 47 | BG55: =IF(AU27>0,HLOOKUP(AT22,AR116:VY216,BF55+1,FALSE),0) -> 0 | BI55: 0 | BJ55: =IF(BF55=AT25,BG55-BG54,"") ->  | CA55: 47 | CB55: =IF(BP27>0,HLOOKUP(BO22,BM116:WT216,CA55+1,FALSE),0) -> 0 | CD55: 0 | CE55: =IF(CA55=BO25,CB55-CB54,"") -> 
P56: 48 | Q56: =IF(E27>0,HLOOKUP(D22,B116:UI216,P56+1,FALSE),0) -> 0 | S56: 0 | T56: =IF(P56=D25,Q56-Q55,"") ->  | AK56: 48 | AL56: =IF(Z27>0,HLOOKUP(Y22,W116:VD216,AK56+1,FALSE),0) -> 0 | AN56: 0 | AO56: =IF(AK56=Y25,AL56-AL55,"") ->  | BF56: 48 | BG56: =IF(AU27>0,HLOOKUP(AT22,AR116:VY216,BF56+1,FALSE),0) -> 0 | BI56: 0 | BJ56: =IF(BF56=AT25,BG56-BG55,"") ->  | CA56: 48 | CB56: =IF(BP27>0,HLOOKUP(BO22,BM116:WT216,CA56+1,FALSE),0) -> 0 | CD56: 0 | CE56: =IF(CA56=BO25,CB56-CB55,"") -> 
P57: 49 | Q57: =IF(E27>0,HLOOKUP(D22,B116:UI216,P57+1,FALSE),0) -> 0 | S57: 0 | T57: =IF(P57=D25,Q57-Q56,"") ->  | AK57: 49 | AL57: =IF(Z27>0,HLOOKUP(Y22,W116:VD216,AK57+1,FALSE),0) -> 0 | AN57: 0 | AO57: =IF(AK57=Y25,AL57-AL56,"") ->  | BF57: 49 | BG57: =IF(AU27>0,HLOOKUP(AT22,AR116:VY216,BF57+1,FALSE),0) -> 0 | BI57: 0 | BJ57: =IF(BF57=AT25,BG57-BG56,"") ->  | CA57: 49 | CB57: =IF(BP27>0,HLOOKUP(BO22,BM116:WT216,CA57+1,FALSE),0) -> 0 | CD57: 0 | CE57: =IF(CA57=BO25,CB57-CB56,"") -> 
P58: 50 | Q58: =IF(E27>0,HLOOKUP(D22,B116:UI216,P58+1,FALSE),0) -> 0 | S58: 0 | T58: =IF(P58=D25,Q58-Q57,"") ->  | AK58: 50 | AL58: =IF(Z27>0,HLOOKUP(Y22,W116:VD216,AK58+1,FALSE),0) -> 0 | AN58: 0 | AO58: =IF(AK58=Y25,AL58-AL57,"") ->  | BF58: 50 | BG58: =IF(AU27>0,HLOOKUP(AT22,AR116:VY216,BF58+1,FALSE),0) -> 0 | BI58: 0 | BJ58: =IF(BF58=AT25,BG58-BG57,"") ->  | CA58: 50 | CB58: =IF(BP27>0,HLOOKUP(BO22,BM116:WT216,CA58+1,FALSE),0) -> 0 | CD58: 0 | CE58: =IF(CA58=BO25,CB58-CB57,"") -> 
P59: 51 | Q59: =IF(E27>0,HLOOKUP(D22,B116:UI216,P59+1,FALSE),0) -> 0 | S59: 0 | T59: =IF(P59=D25,Q59-Q58,"") ->  | AK59: 51 | AL59: =IF(Z27>0,HLOOKUP(Y22,W116:VD216,AK59+1,FALSE),0) -> 0 | AN59: 0 | AO59: =IF(AK59=Y25,AL59-AL58,"") ->  | BF59: 51 | BG59: =IF(AU27>0,HLOOKUP(AT22,AR116:VY216,BF59+1,FALSE),0) -> 0 | BI59: 0 | BJ59: =IF(BF59=AT25,BG59-BG58,"") ->  | CA59: 51 | CB59: =IF(BP27>0,HLOOKUP(BO22,BM116:WT216,CA59+1,FALSE),0) -> 0 | CD59: 0 | CE59: =IF(CA59=BO25,CB59-CB58,"") -> 
P60: 52 | Q60: =IF(E27>0,HLOOKUP(D22,B116:UI216,P60+1,FALSE),0) -> 0 | S60: 0 | T60: =IF(P60=D25,Q60-Q59,"") ->  | AK60: 52 | AL60: =IF(Z27>0,HLOOKUP(Y22,W116:VD216,AK60+1,FALSE),0) -> 0 | AN60: 0 | AO60: =IF(AK60=Y25,AL60-AL59,"") ->  | BF60: 52 | BG60: =IF(AU27>0,HLOOKUP(AT22,AR116:VY216,BF60+1,FALSE),0) -> 0 | BI60: 0 | BJ60: =IF(BF60=AT25,BG60-BG59,"") ->  | CA60: 52 | CB60: =IF(BP27>0,HLOOKUP(BO22,BM116:WT216,CA60+1,FALSE),0) -> 0 | CD60: 0 | CE60: =IF(CA60=BO25,CB60-CB59,"") -> 
P61: 53 | Q61: =IF(E27>0,HLOOKUP(D22,B116:UI216,P61+1,FALSE),0) -> 0 | S61: 0 | T61: =IF(P61=D25,Q61-Q60,"") ->  | AK61: 53 | AL61: =IF(Z27>0,HLOOKUP(Y22,W116:VD216,AK61+1,FALSE),0) -> 0 | AN61: 0 | AO61: =IF(AK61=Y25,AL61-AL60,"") ->  | BF61: 53 | BG61: =IF(AU27>0,HLOOKUP(AT22,AR116:VY216,BF61+1,FALSE),0) -> 0 | BI61: 0 | BJ61: =IF(BF61=AT25,BG61-BG60,"") ->  | CA61: 53 | CB61: =IF(BP27>0,HLOOKUP(BO22,BM116:WT216,CA61+1,FALSE),0) -> 0 | CD61: 0 | CE61: =IF(CA61=BO25,CB61-CB60,"") -> 
P62: 54 | Q62: =IF(E27>0,HLOOKUP(D22,B116:UI216,P62+1,FALSE),0) -> 0 | S62: 0 | T62: =IF(P62=D25,Q62-Q61,"") ->  | AK62: 54 | AL62: =IF(Z27>0,HLOOKUP(Y22,W116:VD216,AK62+1,FALSE),0) -> 0 | AN62: 0 | AO62: =IF(AK62=Y25,AL62-AL61,"") ->  | BF62: 54 | BG62: =IF(AU27>0,HLOOKUP(AT22,AR116:VY216,BF62+1,FALSE),0) -> 0 | BI62: 0 | BJ62: =IF(BF62=AT25,BG62-BG61,"") ->  | CA62: 54 | CB62: =IF(BP27>0,HLOOKUP(BO22,BM116:WT216,CA62+1,FALSE),0) -> 0 | CD62: 0 | CE62: =IF(CA62=BO25,CB62-CB61,"") -> 
P63: 55 | Q63: =IF(E27>0,HLOOKUP(D22,B116:UI216,P63+1,FALSE),0) -> 0 | S63: 0 | T63: =IF(P63=D25,Q63-Q62,"") ->  | AK63: 55 | AL63: =IF(Z27>0,HLOOKUP(Y22,W116:VD216,AK63+1,FALSE),0) -> 0 | AN63: 0 | AO63: =IF(AK63=Y25,AL63-AL62,"") ->  | BF63: 55 | BG63: =IF(AU27>0,HLOOKUP(AT22,AR116:VY216,BF63+1,FALSE),0) -> 0 | BI63: 0 | BJ63: =IF(BF63=AT25,BG63-BG62,"") ->  | CA63: 55 | CB63: =IF(BP27>0,HLOOKUP(BO22,BM116:WT216,CA63+1,FALSE),0) -> 0 | CD63: 0 | CE63: =IF(CA63=BO25,CB63-CB62,"") -> 
P64: 56 | Q64: =IF(E27>0,HLOOKUP(D22,B116:UI216,P64+1,FALSE),0) -> 0 | S64: 0 | T64: =IF(P64=D25,Q64-Q63,"") ->  | AK64: 56 | AL64: =IF(Z27>0,HLOOKUP(Y22,W116:VD216,AK64+1,FALSE),0) -> 0 | AN64: 0 | AO64: =IF(AK64=Y25,AL64-AL63,"") ->  | BF64: 56 | BG64: =IF(AU27>0,HLOOKUP(AT22,AR116:VY216,BF64+1,FALSE),0) -> 0 | BI64: 0 | BJ64: =IF(BF64=AT25,BG64-BG63,"") ->  | CA64: 56 | CB64: =IF(BP27>0,HLOOKUP(BO22,BM116:WT216,CA64+1,FALSE),0) -> 0 | CD64: 0 | CE64: =IF(CA64=BO25,CB64-CB63,"") -> 
P65: 57 | Q65: =IF(E27>0,HLOOKUP(D22,B116:UI216,P65+1,FALSE),0) -> 0 | S65: 0 | T65: =IF(P65=D25,Q65-Q64,"") ->  | AK65: 57 | AL65: =IF(Z27>0,HLOOKUP(Y22,W116:VD216,AK65+1,FALSE),0) -> 0 | AN65: 0 | AO65: =IF(AK65=Y25,AL65-AL64,"") ->  | BF65: 57 | BG65: =IF(AU27>0,HLOOKUP(AT22,AR116:VY216,BF65+1,FALSE),0) -> 0 | BI65: 0 | BJ65: =IF(BF65=AT25,BG65-BG64,"") ->  | CA65: 57 | CB65: =IF(BP27>0,HLOOKUP(BO22,BM116:WT216,CA65+1,FALSE),0) -> 0 | CD65: 0 | CE65: =IF(CA65=BO25,CB65-CB64,"") -> 
P66: 58 | Q66: =IF(E27>0,HLOOKUP(D22,B116:UI216,P66+1,FALSE),0) -> 0 | S66: 0 | T66: =IF(P66=D25,Q66-Q65,"") ->  | AK66: 58 | AL66: =IF(Z27>0,HLOOKUP(Y22,W116:VD216,AK66+1,FALSE),0) -> 0 | AN66: 0 | AO66: =IF(AK66=Y25,AL66-AL65,"") ->  | BF66: 58 | BG66: =IF(AU27>0,HLOOKUP(AT22,AR116:VY216,BF66+1,FALSE),0) -> 0 | BI66: 0 | BJ66: =IF(BF66=AT25,BG66-BG65,"") ->  | CA66: 58 | CB66: =IF(BP27>0,HLOOKUP(BO22,BM116:WT216,CA66+1,FALSE),0) -> 0 | CD66: 0 | CE66: =IF(CA66=BO25,CB66-CB65,"") -> 
P67: 59 | Q67: =IF(E27>0,HLOOKUP(D22,B116:UI216,P67+1,FALSE),0) -> 0 | S67: 0 | T67: =IF(P67=D25,Q67-Q66,"") ->  | AK67: 59 | AL67: =IF(Z27>0,HLOOKUP(Y22,W116:VD216,AK67+1,FALSE),0) -> 0 | AN67: 0 | AO67: =IF(AK67=Y25,AL67-AL66,"") ->  | BF67: 59 | BG67: =IF(AU27>0,HLOOKUP(AT22,AR116:VY216,BF67+1,FALSE),0) -> 0 | BI67: 0 | BJ67: =IF(BF67=AT25,BG67-BG66,"") ->  | CA67: 59 | CB67: =IF(BP27>0,HLOOKUP(BO22,BM116:WT216,CA67+1,FALSE),0) -> 0 | CD67: 0 | CE67: =IF(CA67=BO25,CB67-CB66,"") -> 
P68: 60 | Q68: =IF(E27>0,HLOOKUP(D22,B116:UI216,P68+1,FALSE),0) -> 0 | S68: 0 | T68: =IF(P68=D25,Q68-Q67,"") ->  | AK68: 60 | AL68: =IF(Z27>0,HLOOKUP(Y22,W116:VD216,AK68+1,FALSE),0) -> 0 | AN68: 0 | AO68: =IF(AK68=Y25,AL68-AL67,"") ->  | BF68: 60 | BG68: =IF(AU27>0,HLOOKUP(AT22,AR116:VY216,BF68+1,FALSE),0) -> 0 | BI68: 0 | BJ68: =IF(BF68=AT25,BG68-BG67,"") ->  | CA68: 60 | CB68: =IF(BP27>0,HLOOKUP(BO22,BM116:WT216,CA68+1,FALSE),0) -> 0 | CD68: 0 | CE68: =IF(CA68=BO25,CB68-CB67,"") -> 
P69: 61 | Q69: =IF(E27>0,HLOOKUP(D22,B116:UI216,P69+1,FALSE),0) -> 0 | S69: 0 | T69: =IF(P69=D25,Q69-Q68,"") ->  | AK69: 61 | AL69: =IF(Z27>0,HLOOKUP(Y22,W116:VD216,AK69+1,FALSE),0) -> 0 | AN69: 0 | AO69: =IF(AK69=Y25,AL69-AL68,"") ->  | BF69: 61 | BG69: =IF(AU27>0,HLOOKUP(AT22,AR116:VY216,BF69+1,FALSE),0) -> 0 | BI69: 0 | BJ69: =IF(BF69=AT25,BG69-BG68,"") ->  | CA69: 61 | CB69: =IF(BP27>0,HLOOKUP(BO22,BM116:WT216,CA69+1,FALSE),0) -> 0 | CD69: 0 | CE69: =IF(CA69=BO25,CB69-CB68,"") -> 
P70: 62 | Q70: =IF(E27>0,HLOOKUP(D22,B116:UI216,P70+1,FALSE),0) -> 0 | S70: 0 | T70: =IF(P70=D25,Q70-Q69,"") ->  | AK70: 62 | AL70: =IF(Z27>0,HLOOKUP(Y22,W116:VD216,AK70+1,FALSE),0) -> 0 | AN70: 0 | AO70: =IF(AK70=Y25,AL70-AL69,"") ->  | BF70: 62 | BG70: =IF(AU27>0,HLOOKUP(AT22,AR116:VY216,BF70+1,FALSE),0) -> 0 | BI70: 0 | BJ70: =IF(BF70=AT25,BG70-BG69,"") ->  | CA70: 62 | CB70: =IF(BP27>0,HLOOKUP(BO22,BM116:WT216,CA70+1,FALSE),0) -> 0 | CD70: 0 | CE70: =IF(CA70=BO25,CB70-CB69,"") -> 
P71: 63 | Q71: =IF(E27>0,HLOOKUP(D22,B116:UI216,P71+1,FALSE),0) -> 0 | S71: 0 | T71: =IF(P71=D25,Q71-Q70,"") ->  | AK71: 63 | AL71: =IF(Z27>0,HLOOKUP(Y22,W116:VD216,AK71+1,FALSE),0) -> 0 | AN71: 0 | AO71: =IF(AK71=Y25,AL71-AL70,"") ->  | BF71: 63 | BG71: =IF(AU27>0,HLOOKUP(AT22,AR116:VY216,BF71+1,FALSE),0) -> 0 | BI71: 0 | BJ71: =IF(BF71=AT25,BG71-BG70,"") ->  | CA71: 63 | CB71: =IF(BP27>0,HLOOKUP(BO22,BM116:WT216,CA71+1,FALSE),0) -> 0 | CD71: 0 | CE71: =IF(CA71=BO25,CB71-CB70,"") -> 
P72: 64 | Q72: =IF(E27>0,HLOOKUP(D22,B116:UI216,P72+1,FALSE),0) -> 0 | S72: 0 | T72: =IF(P72=D25,Q72-Q71,"") ->  | AK72: 64 | AL72: =IF(Z27>0,HLOOKUP(Y22,W116:VD216,AK72+1,FALSE),0) -> 0 | AN72: 0 | AO72: =IF(AK72=Y25,AL72-AL71,"") ->  | BF72: 64 | BG72: =IF(AU27>0,HLOOKUP(AT22,AR116:VY216,BF72+1,FALSE),0) -> 0 | BI72: 0 | BJ72: =IF(BF72=AT25,BG72-BG71,"") ->  | CA72: 64 | CB72: =IF(BP27>0,HLOOKUP(BO22,BM116:WT216,CA72+1,FALSE),0) -> 0 | CD72: 0 | CE72: =IF(CA72=BO25,CB72-CB71,"") -> 
P73: 65 | Q73: =IF(E27>0,HLOOKUP(D22,B116:UI216,P73+1,FALSE),0) -> 0 | S73: 0 | T73: =IF(P73=D25,Q73-Q72,"") ->  | AK73: 65 | AL73: =IF(Z27>0,HLOOKUP(Y22,W116:VD216,AK73+1,FALSE),0) -> 0 | AN73: 0 | AO73: =IF(AK73=Y25,AL73-AL72,"") ->  | BF73: 65 | BG73: =IF(AU27>0,HLOOKUP(AT22,AR116:VY216,BF73+1,FALSE),0) -> 0 | BI73: 0 | BJ73: =IF(BF73=AT25,BG73-BG72,"") ->  | CA73: 65 | CB73: =IF(BP27>0,HLOOKUP(BO22,BM116:WT216,CA73+1,FALSE),0) -> 0 | CD73: 0 | CE73: =IF(CA73=BO25,CB73-CB72,"") -> 
P74: 66 | Q74: =IF(E27>0,HLOOKUP(D22,B116:UI216,P74+1,FALSE),0) -> 0 | S74: =Q74-Q73 -> 0 | T74: =IF(P74=D25,Q74-Q73,"") ->  | AK74: 66 | AL74: =IF(Z27>0,HLOOKUP(Y22,W116:VD216,AK74+1,FALSE),0) -> 0 | AN74: =AL74-AL73 -> 0 | AO74: =IF(AK74=Y25,AL74-AL73,"") ->  | BF74: 66 | BG74: =IF(AU27>0,HLOOKUP(AT22,AR116:VY216,BF74+1,FALSE),0) -> 0 | BI74: =BG74-BG73 -> 0 | BJ74: =IF(BF74=AT25,BG74-BG73,"") ->  | CA74: 66 | CB74: =IF(BP27>0,HLOOKUP(BO22,BM116:WT216,CA74+1,FALSE),0) -> 0 | CD74: =CB74-CB73 -> 0 | CE74: =IF(CA74=BO25,CB74-CB73,"") -> 
P75: 67 | Q75: =IF(E27>0,HLOOKUP(D22,B116:UI216,P75+1,FALSE),0) -> 0 | S75: 0 | T75: =IF(P75=D25,Q75-Q74,"") ->  | AK75: 67 | AL75: =IF(Z27>0,HLOOKUP(Y22,W116:VD216,AK75+1,FALSE),0) -> 0 | AN75: 0 | AO75: =IF(AK75=Y25,AL75-AL74,"") ->  | BF75: 67 | BG75: =IF(AU27>0,HLOOKUP(AT22,AR116:VY216,BF75+1,FALSE),0) -> 0 | BI75: 0 | BJ75: =IF(BF75=AT25,BG75-BG74,"") ->  | CA75: 67 | CB75: =IF(BP27>0,HLOOKUP(BO22,BM116:WT216,CA75+1,FALSE),0) -> 0 | CD75: 0 | CE75: =IF(CA75=BO25,CB75-CB74,"") -> 
P76: 68 | Q76: =IF(E27>0,HLOOKUP(D22,B116:UI216,P76+1,FALSE),0) -> 0 | S76: 0 | T76: =IF(P76=D25,Q76-Q75,"") ->  | AK76: 68 | AL76: =IF(Z27>0,HLOOKUP(Y22,W116:VD216,AK76+1,FALSE),0) -> 0 | AN76: 0 | AO76: =IF(AK76=Y25,AL76-AL75,"") ->  | BF76: 68 | BG76: =IF(AU27>0,HLOOKUP(AT22,AR116:VY216,BF76+1,FALSE),0) -> 0 | BI76: 0 | BJ76: =IF(BF76=AT25,BG76-BG75,"") ->  | CA76: 68 | CB76: =IF(BP27>0,HLOOKUP(BO22,BM116:WT216,CA76+1,FALSE),0) -> 0 | CD76: 0 | CE76: =IF(CA76=BO25,CB76-CB75,"") -> 
P77: 69 | Q77: =IF(E27>0,HLOOKUP(D22,B116:UI216,P77+1,FALSE),0) -> 0 | S77: 0 | T77: =IF(P77=D25,Q77-Q76,"") ->  | AK77: 69 | AL77: =IF(Z27>0,HLOOKUP(Y22,W116:VD216,AK77+1,FALSE),0) -> 0 | AN77: 0 | AO77: =IF(AK77=Y25,AL77-AL76,"") ->  | BF77: 69 | BG77: =IF(AU27>0,HLOOKUP(AT22,AR116:VY216,BF77+1,FALSE),0) -> 0 | BI77: 0 | BJ77: =IF(BF77=AT25,BG77-BG76,"") ->  | CA77: 69 | CB77: =IF(BP27>0,HLOOKUP(BO22,BM116:WT216,CA77+1,FALSE),0) -> 0 | CD77: 0 | CE77: =IF(CA77=BO25,CB77-CB76,"") -> 
P78: 70 | Q78: =IF(E27>0,HLOOKUP(D22,B116:UI216,P78+1,FALSE),0) -> 0 | S78: 0 | T78: =IF(P78=D25,Q78-Q77,"") ->  | AK78: 70 | AL78: =IF(Z27>0,HLOOKUP(Y22,W116:VD216,AK78+1,FALSE),0) -> 0 | AN78: 0 | AO78: =IF(AK78=Y25,AL78-AL77,"") ->  | BF78: 70 | BG78: =IF(AU27>0,HLOOKUP(AT22,AR116:VY216,BF78+1,FALSE),0) -> 0 | BI78: 0 | BJ78: =IF(BF78=AT25,BG78-BG77,"") ->  | CA78: 70 | CB78: =IF(BP27>0,HLOOKUP(BO22,BM116:WT216,CA78+1,FALSE),0) -> 0 | CD78: 0 | CE78: =IF(CA78=BO25,CB78-CB77,"") -> 
P79: 71 | Q79: =IF(E27>0,HLOOKUP(D22,B116:UI216,P79+1,FALSE),0) -> 0 | S79: 0 | T79: =IF(P79=D25,Q79-Q78,"") ->  | AK79: 71 | AL79: =IF(Z27>0,HLOOKUP(Y22,W116:VD216,AK79+1,FALSE),0) -> 0 | AN79: 0 | AO79: =IF(AK79=Y25,AL79-AL78,"") ->  | BF79: 71 | BG79: =IF(AU27>0,HLOOKUP(AT22,AR116:VY216,BF79+1,FALSE),0) -> 0 | BI79: 0 | BJ79: =IF(BF79=AT25,BG79-BG78,"") ->  | CA79: 71 | CB79: =IF(BP27>0,HLOOKUP(BO22,BM116:WT216,CA79+1,FALSE),0) -> 0 | CD79: 0 | CE79: =IF(CA79=BO25,CB79-CB78,"") -> 
P80: 72 | Q80: =IF(E27>0,HLOOKUP(D22,B116:UI216,P80+1,FALSE),0) -> 0 | S80: 0 | T80: =IF(P80=D25,Q80-Q79,"") ->  | AK80: 72 | AL80: =IF(Z27>0,HLOOKUP(Y22,W116:VD216,AK80+1,FALSE),0) -> 0 | AN80: 0 | AO80: =IF(AK80=Y25,AL80-AL79,"") ->  | BF80: 72 | BG80: =IF(AU27>0,HLOOKUP(AT22,AR116:VY216,BF80+1,FALSE),0) -> 0 | BI80: 0 | BJ80: =IF(BF80=AT25,BG80-BG79,"") ->  | CA80: 72 | CB80: =IF(BP27>0,HLOOKUP(BO22,BM116:WT216,CA80+1,FALSE),0) -> 0 | CD80: 0 | CE80: =IF(CA80=BO25,CB80-CB79,"") -> 
P81: 73 | Q81: =IF(E27>0,HLOOKUP(D22,B116:UI216,P81+1,FALSE),0) -> 0 | S81: 0 | T81: =IF(P81=D25,Q81-Q80,"") ->  | AK81: 73 | AL81: =IF(Z27>0,HLOOKUP(Y22,W116:VD216,AK81+1,FALSE),0) -> 0 | AN81: 0 | AO81: =IF(AK81=Y25,AL81-AL80,"") ->  | BF81: 73 | BG81: =IF(AU27>0,HLOOKUP(AT22,AR116:VY216,BF81+1,FALSE),0) -> 0 | BI81: 0 | BJ81: =IF(BF81=AT25,BG81-BG80,"") ->  | CA81: 73 | CB81: =IF(BP27>0,HLOOKUP(BO22,BM116:WT216,CA81+1,FALSE),0) -> 0 | CD81: 0 | CE81: =IF(CA81=BO25,CB81-CB80,"") -> 
P82: 74 | Q82: =IF(E27>0,HLOOKUP(D22,B116:UI216,P82+1,FALSE),0) -> 0 | S82: 0 | T82: =IF(P82=D25,Q82-Q81,"") ->  | AK82: 74 | AL82: =IF(Z27>0,HLOOKUP(Y22,W116:VD216,AK82+1,FALSE),0) -> 0 | AN82: 0 | AO82: =IF(AK82=Y25,AL82-AL81,"") ->  | BF82: 74 | BG82: =IF(AU27>0,HLOOKUP(AT22,AR116:VY216,BF82+1,FALSE),0) -> 0 | BI82: 0 | BJ82: =IF(BF82=AT25,BG82-BG81,"") ->  | CA82: 74 | CB82: =IF(BP27>0,HLOOKUP(BO22,BM116:WT216,CA82+1,FALSE),0) -> 0 | CD82: 0 | CE82: =IF(CA82=BO25,CB82-CB81,"") -> 
P83: 75 | Q83: =IF(E27>0,HLOOKUP(D22,B116:UI216,P83+1,FALSE),0) -> 0 | S83: 0 | T83: =IF(P83=D25,Q83-Q82,"") ->  | AK83: 75 | AL83: =IF(Z27>0,HLOOKUP(Y22,W116:VD216,AK83+1,FALSE),0) -> 0 | AN83: 0 | AO83: =IF(AK83=Y25,AL83-AL82,"") ->  | BF83: 75 | BG83: =IF(AU27>0,HLOOKUP(AT22,AR116:VY216,BF83+1,FALSE),0) -> 0 | BI83: 0 | BJ83: =IF(BF83=AT25,BG83-BG82,"") ->  | CA83: 75 | CB83: =IF(BP27>0,HLOOKUP(BO22,BM116:WT216,CA83+1,FALSE),0) -> 0 | CD83: 0 | CE83: =IF(CA83=BO25,CB83-CB82,"") -> 
P84: 76 | Q84: =IF(E27>0,HLOOKUP(D22,B116:UI216,P84+1,FALSE),0) -> 0 | S84: 0 | T84: =IF(P84=D25,Q84-Q83,"") ->  | AK84: 76 | AL84: =IF(Z27>0,HLOOKUP(Y22,W116:VD216,AK84+1,FALSE),0) -> 0 | AN84: 0 | AO84: =IF(AK84=Y25,AL84-AL83,"") ->  | BF84: 76 | BG84: =IF(AU27>0,HLOOKUP(AT22,AR116:VY216,BF84+1,FALSE),0) -> 0 | BI84: 0 | BJ84: =IF(BF84=AT25,BG84-BG83,"") ->  | CA84: 76 | CB84: =IF(BP27>0,HLOOKUP(BO22,BM116:WT216,CA84+1,FALSE),0) -> 0 | CD84: 0 | CE84: =IF(CA84=BO25,CB84-CB83,"") -> 
P85: 77 | Q85: =IF(E27>0,HLOOKUP(D22,B116:UI216,P85+1,FALSE),0) -> 0 | S85: 0 | T85: =IF(P85=D25,Q85-Q84,"") ->  | AK85: 77 | AL85: =IF(Z27>0,HLOOKUP(Y22,W116:VD216,AK85+1,FALSE),0) -> 0 | AN85: 0 | AO85: =IF(AK85=Y25,AL85-AL84,"") ->  | BF85: 77 | BG85: =IF(AU27>0,HLOOKUP(AT22,AR116:VY216,BF85+1,FALSE),0) -> 0 | BI85: 0 | BJ85: =IF(BF85=AT25,BG85-BG84,"") ->  | CA85: 77 | CB85: =IF(BP27>0,HLOOKUP(BO22,BM116:WT216,CA85+1,FALSE),0) -> 0 | CD85: 0 | CE85: =IF(CA85=BO25,CB85-CB84,"") -> 
P86: 78 | Q86: =IF(E27>0,HLOOKUP(D22,B116:UI216,P86+1,FALSE),0) -> 0 | S86: 0 | T86: =IF(P86=D25,Q86-Q85,"") ->  | AK86: 78 | AL86: =IF(Z27>0,HLOOKUP(Y22,W116:VD216,AK86+1,FALSE),0) -> 0 | AN86: 0 | AO86: =IF(AK86=Y25,AL86-AL85,"") ->  | BF86: 78 | BG86: =IF(AU27>0,HLOOKUP(AT22,AR116:VY216,BF86+1,FALSE),0) -> 0 | BI86: 0 | BJ86: =IF(BF86=AT25,BG86-BG85,"") ->  | CA86: 78 | CB86: =IF(BP27>0,HLOOKUP(BO22,BM116:WT216,CA86+1,FALSE),0) -> 0 | CD86: 0 | CE86: =IF(CA86=BO25,CB86-CB85,"") -> 
P87: 79 | Q87: =IF(E27>0,HLOOKUP(D22,B116:UI216,P87+1,FALSE),0) -> 0 | S87: 0 | T87: =IF(P87=D25,Q87-Q86,"") ->  | AK87: 79 | AL87: =IF(Z27>0,HLOOKUP(Y22,W116:VD216,AK87+1,FALSE),0) -> 0 | AN87: 0 | AO87: =IF(AK87=Y25,AL87-AL86,"") ->  | BF87: 79 | BG87: =IF(AU27>0,HLOOKUP(AT22,AR116:VY216,BF87+1,FALSE),0) -> 0 | BI87: 0 | BJ87: =IF(BF87=AT25,BG87-BG86,"") ->  | CA87: 79 | CB87: =IF(BP27>0,HLOOKUP(BO22,BM116:WT216,CA87+1,FALSE),0) -> 0 | CD87: 0 | CE87: =IF(CA87=BO25,CB87-CB86,"") -> 
P88: 80 | Q88: =IF(E27>0,HLOOKUP(D22,B116:UI216,P88+1,FALSE),0) -> 0 | S88: 0 | T88: =IF(P88=D25,Q88-Q87,"") ->  | AK88: 80 | AL88: =IF(Z27>0,HLOOKUP(Y22,W116:VD216,AK88+1,FALSE),0) -> 0 | AN88: 0 | AO88: =IF(AK88=Y25,AL88-AL87,"") ->  | BF88: 80 | BG88: =IF(AU27>0,HLOOKUP(AT22,AR116:VY216,BF88+1,FALSE),0) -> 0 | BI88: 0 | BJ88: =IF(BF88=AT25,BG88-BG87,"") ->  | CA88: 80 | CB88: =IF(BP27>0,HLOOKUP(BO22,BM116:WT216,CA88+1,FALSE),0) -> 0 | CD88: 0 | CE88: =IF(CA88=BO25,CB88-CB87,"") -> 
P89: 81 | Q89: =IF(E27>0,HLOOKUP(D22,B116:UI216,P89+1,FALSE),0) -> 0 | S89: 0 | T89: =IF(P89=D25,Q89-Q88,"") ->  | AK89: 81 | AL89: =IF(Z27>0,HLOOKUP(Y22,W116:VD216,AK89+1,FALSE),0) -> 0 | AN89: 0 | AO89: =IF(AK89=Y25,AL89-AL88,"") ->  | BF89: 81 | BG89: =IF(AU27>0,HLOOKUP(AT22,AR116:VY216,BF89+1,FALSE),0) -> 0 | BI89: 0 | BJ89: =IF(BF89=AT25,BG89-BG88,"") ->  | CA89: 81 | CB89: =IF(BP27>0,HLOOKUP(BO22,BM116:WT216,CA89+1,FALSE),0) -> 0 | CD89: 0 | CE89: =IF(CA89=BO25,CB89-CB88,"") -> 
P90: 82 | Q90: =IF(E27>0,HLOOKUP(D22,B116:UI216,P90+1,FALSE),0) -> 0 | S90: 0 | T90: =IF(P90=D25,Q90-Q89,"") ->  | AK90: 82 | AL90: =IF(Z27>0,HLOOKUP(Y22,W116:VD216,AK90+1,FALSE),0) -> 0 | AN90: 0 | AO90: =IF(AK90=Y25,AL90-AL89,"") ->  | BF90: 82 | BG90: =IF(AU27>0,HLOOKUP(AT22,AR116:VY216,BF90+1,FALSE),0) -> 0 | BI90: 0 | BJ90: =IF(BF90=AT25,BG90-BG89,"") ->  | CA90: 82 | CB90: =IF(BP27>0,HLOOKUP(BO22,BM116:WT216,CA90+1,FALSE),0) -> 0 | CD90: 0 | CE90: =IF(CA90=BO25,CB90-CB89,"") -> 
P91: 83 | Q91: =IF(E27>0,HLOOKUP(D22,B116:UI216,P91+1,FALSE),0) -> 0 | S91: 0 | T91: =IF(P91=D25,Q91-Q90,"") ->  | AK91: 83 | AL91: =IF(Z27>0,HLOOKUP(Y22,W116:VD216,AK91+1,FALSE),0) -> 0 | AN91: 0 | AO91: =IF(AK91=Y25,AL91-AL90,"") ->  | BF91: 83 | BG91: =IF(AU27>0,HLOOKUP(AT22,AR116:VY216,BF91+1,FALSE),0) -> 0 | BI91: 0 | BJ91: =IF(BF91=AT25,BG91-BG90,"") ->  | CA91: 83 | CB91: =IF(BP27>0,HLOOKUP(BO22,BM116:WT216,CA91+1,FALSE),0) -> 0 | CD91: 0 | CE91: =IF(CA91=BO25,CB91-CB90,"") -> 
P92: 84 | Q92: =IF(E27>0,HLOOKUP(D22,B116:UI216,P92+1,FALSE),0) -> 0 | S92: 0 | T92: =IF(P92=D25,Q92-Q91,"") ->  | AK92: 84 | AL92: =IF(Z27>0,HLOOKUP(Y22,W116:VD216,AK92+1,FALSE),0) -> 0 | AN92: 0 | AO92: =IF(AK92=Y25,AL92-AL91,"") ->  | BF92: 84 | BG92: =IF(AU27>0,HLOOKUP(AT22,AR116:VY216,BF92+1,FALSE),0) -> 0 | BI92: 0 | BJ92: =IF(BF92=AT25,BG92-BG91,"") ->  | CA92: 84 | CB92: =IF(BP27>0,HLOOKUP(BO22,BM116:WT216,CA92+1,FALSE),0) -> 0 | CD92: 0 | CE92: =IF(CA92=BO25,CB92-CB91,"") -> 
P93: 85 | Q93: =IF(E27>0,HLOOKUP(D22,B116:UI216,P93+1,FALSE),0) -> 0 | S93: 0 | T93: =IF(P93=D25,Q93-Q92,"") ->  | AK93: 85 | AL93: =IF(Z27>0,HLOOKUP(Y22,W116:VD216,AK93+1,FALSE),0) -> 0 | AN93: 0 | AO93: =IF(AK93=Y25,AL93-AL92,"") ->  | BF93: 85 | BG93: =IF(AU27>0,HLOOKUP(AT22,AR116:VY216,BF93+1,FALSE),0) -> 0 | BI93: 0 | BJ93: =IF(BF93=AT25,BG93-BG92,"") ->  | CA93: 85 | CB93: =IF(BP27>0,HLOOKUP(BO22,BM116:WT216,CA93+1,FALSE),0) -> 0 | CD93: 0 | CE93: =IF(CA93=BO25,CB93-CB92,"") -> 
P94: 86 | Q94: =IF(E27>0,HLOOKUP(D22,B116:UI216,P94+1,FALSE),0) -> 0 | S94: 0 | T94: =IF(P94=D25,Q94-Q93,"") ->  | AK94: 86 | AL94: =IF(Z27>0,HLOOKUP(Y22,W116:VD216,AK94+1,FALSE),0) -> 0 | AN94: 0 | AO94: =IF(AK94=Y25,AL94-AL93,"") ->  | BF94: 86 | BG94: =IF(AU27>0,HLOOKUP(AT22,AR116:VY216,BF94+1,FALSE),0) -> 0 | BI94: 0 | BJ94: =IF(BF94=AT25,BG94-BG93,"") ->  | CA94: 86 | CB94: =IF(BP27>0,HLOOKUP(BO22,BM116:WT216,CA94+1,FALSE),0) -> 0 | CD94: 0 | CE94: =IF(CA94=BO25,CB94-CB93,"") -> 
P95: 87 | Q95: =IF(E27>0,HLOOKUP(D22,B116:UI216,P95+1,FALSE),0) -> 0 | S95: 0 | T95: =IF(P95=D25,Q95-Q94,"") ->  | AK95: 87 | AL95: =IF(Z27>0,HLOOKUP(Y22,W116:VD216,AK95+1,FALSE),0) -> 0 | AN95: 0 | AO95: =IF(AK95=Y25,AL95-AL94,"") ->  | BF95: 87 | BG95: =IF(AU27>0,HLOOKUP(AT22,AR116:VY216,BF95+1,FALSE),0) -> 0 | BI95: 0 | BJ95: =IF(BF95=AT25,BG95-BG94,"") ->  | CA95: 87 | CB95: =IF(BP27>0,HLOOKUP(BO22,BM116:WT216,CA95+1,FALSE),0) -> 0 | CD95: 0 | CE95: =IF(CA95=BO25,CB95-CB94,"") -> 
P96: 88 | Q96: =IF(E27>0,HLOOKUP(D22,B116:UI216,P96+1,FALSE),0) -> 0 | S96: 0 | T96: =IF(P96=D25,Q96-Q95,"") ->  | AK96: 88 | AL96: =IF(Z27>0,HLOOKUP(Y22,W116:VD216,AK96+1,FALSE),0) -> 0 | AN96: 0 | AO96: =IF(AK96=Y25,AL96-AL95,"") ->  | BF96: 88 | BG96: =IF(AU27>0,HLOOKUP(AT22,AR116:VY216,BF96+1,FALSE),0) -> 0 | BI96: 0 | BJ96: =IF(BF96=AT25,BG96-BG95,"") ->  | CA96: 88 | CB96: =IF(BP27>0,HLOOKUP(BO22,BM116:WT216,CA96+1,FALSE),0) -> 0 | CD96: 0 | CE96: =IF(CA96=BO25,CB96-CB95,"") -> 
P97: 89 | Q97: =IF(E27>0,HLOOKUP(D22,B116:UI216,P97+1,FALSE),0) -> 0 | S97: 0 | T97: =IF(P97=D25,Q97-Q96,"") ->  | AK97: 89 | AL97: =IF(Z27>0,HLOOKUP(Y22,W116:VD216,AK97+1,FALSE),0) -> 0 | AN97: 0 | AO97: =IF(AK97=Y25,AL97-AL96,"") ->  | BF97: 89 | BG97: =IF(AU27>0,HLOOKUP(AT22,AR116:VY216,BF97+1,FALSE),0) -> 0 | BI97: 0 | BJ97: =IF(BF97=AT25,BG97-BG96,"") ->  | CA97: 89 | CB97: =IF(BP27>0,HLOOKUP(BO22,BM116:WT216,CA97+1,FALSE),0) -> 0 | CD97: 0 | CE97: =IF(CA97=BO25,CB97-CB96,"") -> 
P98: 90 | Q98: =IF(E27>0,HLOOKUP(D22,B116:UI216,P98+1,FALSE),0) -> 0 | S98: 0 | T98: =IF(P98=D25,Q98-Q97,"") ->  | AK98: 90 | AL98: =IF(Z27>0,HLOOKUP(Y22,W116:VD216,AK98+1,FALSE),0) -> 0 | AN98: 0 | AO98: =IF(AK98=Y25,AL98-AL97,"") ->  | BF98: 90 | BG98: =IF(AU27>0,HLOOKUP(AT22,AR116:VY216,BF98+1,FALSE),0) -> 0 | BI98: 0 | BJ98: =IF(BF98=AT25,BG98-BG97,"") ->  | CA98: 90 | CB98: =IF(BP27>0,HLOOKUP(BO22,BM116:WT216,CA98+1,FALSE),0) -> 0 | CD98: 0 | CE98: =IF(CA98=BO25,CB98-CB97,"") -> 
P99: 91 | Q99: =IF(E27>0,HLOOKUP(D22,B116:UI216,P99+1,FALSE),0) -> 0 | S99: 0 | T99: =IF(P99=D25,Q99-Q98,"") ->  | AK99: 91 | AL99: =IF(Z27>0,HLOOKUP(Y22,W116:VD216,AK99+1,FALSE),0) -> 0 | AN99: 0 | AO99: =IF(AK99=Y25,AL99-AL98,"") ->  | BF99: 91 | BG99: =IF(AU27>0,HLOOKUP(AT22,AR116:VY216,BF99+1,FALSE),0) -> 0 | BI99: 0 | BJ99: =IF(BF99=AT25,BG99-BG98,"") ->  | CA99: 91 | CB99: =IF(BP27>0,HLOOKUP(BO22,BM116:WT216,CA99+1,FALSE),0) -> 0 | CD99: 0 | CE99: =IF(CA99=BO25,CB99-CB98,"") -> 
P100: 92 | Q100: =IF(E27>0,HLOOKUP(D22,B116:UI216,P100+1,FALSE),0) -> 0 | S100: 0 | T100: =IF(P100=D25,Q100-Q99,"") ->  | AK100: 92 | AL100: =IF(Z27>0,HLOOKUP(Y22,W116:VD216,AK100+1,FALSE),0) -> 0 | AN100: 0 | AO100: =IF(AK100=Y25,AL100-AL99,"") ->  | BF100: 92 | BG100: =IF(AU27>0,HLOOKUP(AT22,AR116:VY216,BF100+1,FALSE),0) -> 0 | BI100: 0 | BJ100: =IF(BF100=AT25,BG100-BG99,"") ->  | CA100: 92 | CB100: =IF(BP27>0,HLOOKUP(BO22,BM116:WT216,CA100+1,FALSE),0) -> 0 | CD100: 0 | CE100: =IF(CA100=BO25,CB100-CB99,"") -> 
P101: 93 | Q101: =IF(E27>0,HLOOKUP(D22,B116:UI216,P101+1,FALSE),0) -> 0 | S101: 0 | T101: =IF(P101=D25,Q101-Q100,"") ->  | AK101: 93 | AL101: =IF(Z27>0,HLOOKUP(Y22,W116:VD216,AK101+1,FALSE),0) -> 0 | AN101: 0 | AO101: =IF(AK101=Y25,AL101-AL100,"") ->  | BF101: 93 | BG101: =IF(AU27>0,HLOOKUP(AT22,AR116:VY216,BF101+1,FALSE),0) -> 0 | BI101: 0 | BJ101: =IF(BF101=AT25,BG101-BG100,"") ->  | CA101: 93 | CB101: =IF(BP27>0,HLOOKUP(BO22,BM116:WT216,CA101+1,FALSE),0) -> 0 | CD101: 0 | CE101: =IF(CA101=BO25,CB101-CB100,"") -> 
P102: 94 | Q102: =IF(E27>0,HLOOKUP(D22,B116:UI216,P102+1,FALSE),0) -> 0 | S102: 0 | T102: =IF(P102=D25,Q102-Q101,"") ->  | AK102: 94 | AL102: =IF(Z27>0,HLOOKUP(Y22,W116:VD216,AK102+1,FALSE),0) -> 0 | AN102: 0 | AO102: =IF(AK102=Y25,AL102-AL101,"") ->  | BF102: 94 | BG102: =IF(AU27>0,HLOOKUP(AT22,AR116:VY216,BF102+1,FALSE),0) -> 0 | BI102: 0 | BJ102: =IF(BF102=AT25,BG102-BG101,"") ->  | CA102: 94 | CB102: =IF(BP27>0,HLOOKUP(BO22,BM116:WT216,CA102+1,FALSE),0) -> 0 | CD102: 0 | CE102: =IF(CA102=BO25,CB102-CB101,"") -> 
P103: 95 | Q103: =IF(E27>0,HLOOKUP(D22,B116:UI216,P103+1,FALSE),0) -> 0 | S103: 0 | T103: =IF(P103=D25,Q103-Q102,"") ->  | AK103: 95 | AL103: =IF(Z27>0,HLOOKUP(Y22,W116:VD216,AK103+1,FALSE),0) -> 0 | AN103: 0 | AO103: =IF(AK103=Y25,AL103-AL102,"") ->  | BF103: 95 | BG103: =IF(AU27>0,HLOOKUP(AT22,AR116:VY216,BF103+1,FALSE),0) -> 0 | BI103: 0 | BJ103: =IF(BF103=AT25,BG103-BG102,"") ->  | CA103: 95 | CB103: =IF(BP27>0,HLOOKUP(BO22,BM116:WT216,CA103+1,FALSE),0) -> 0 | CD103: 0 | CE103: =IF(CA103=BO25,CB103-CB102,"") -> 
P104: 96 | Q104: =IF(E27>0,HLOOKUP(D22,B116:UI216,P104+1,FALSE),0) -> 0 | S104: 0 | T104: =IF(P104=D25,Q104-Q103,"") ->  | AK104: 96 | AL104: =IF(Z27>0,HLOOKUP(Y22,W116:VD216,AK104+1,FALSE),0) -> 0 | AN104: 0 | AO104: =IF(AK104=Y25,AL104-AL103,"") ->  | BF104: 96 | BG104: =IF(AU27>0,HLOOKUP(AT22,AR116:VY216,BF104+1,FALSE),0) -> 0 | BI104: 0 | BJ104: =IF(BF104=AT25,BG104-BG103,"") ->  | CA104: 96 | CB104: =IF(BP27>0,HLOOKUP(BO22,BM116:WT216,CA104+1,FALSE),0) -> 0 | CD104: 0 | CE104: =IF(CA104=BO25,CB104-CB103,"") -> 
P105: 97 | Q105: =IF(E27>0,HLOOKUP(D22,B116:UI216,P105+1,FALSE),0) -> 0 | S105: 0 | T105: =IF(P105=D25,Q105-Q104,"") ->  | AK105: 97 | AL105: =IF(Z27>0,HLOOKUP(Y22,W116:VD216,AK105+1,FALSE),0) -> 0 | AN105: 0 | AO105: =IF(AK105=Y25,AL105-AL104,"") ->  | BF105: 97 | BG105: =IF(AU27>0,HLOOKUP(AT22,AR116:VY216,BF105+1,FALSE),0) -> 0 | BI105: 0 | BJ105: =IF(BF105=AT25,BG105-BG104,"") ->  | CA105: 97 | CB105: =IF(BP27>0,HLOOKUP(BO22,BM116:WT216,CA105+1,FALSE),0) -> 0 | CD105: 0 | CE105: =IF(CA105=BO25,CB105-CB104,"") -> 
P106: 98 | Q106: =IF(E27>0,HLOOKUP(D22,B116:UI216,P106+1,FALSE),0) -> 0 | S106: 0 | T106: =IF(P106=D25,Q106-Q105,"") ->  | AK106: 98 | AL106: =IF(Z27>0,HLOOKUP(Y22,W116:VD216,AK106+1,FALSE),0) -> 0 | AN106: 0 | AO106: =IF(AK106=Y25,AL106-AL105,"") ->  | BF106: 98 | BG106: =IF(AU27>0,HLOOKUP(AT22,AR116:VY216,BF106+1,FALSE),0) -> 0 | BI106: 0 | BJ106: =IF(BF106=AT25,BG106-BG105,"") ->  | CA106: 98 | CB106: =IF(BP27>0,HLOOKUP(BO22,BM116:WT216,CA106+1,FALSE),0) -> 0 | CD106: 0 | CE106: =IF(CA106=BO25,CB106-CB105,"") -> 
P107: 99 | Q107: =IF(E27>0,HLOOKUP(D22,B116:UI216,P107+1,FALSE),0) -> 0 | S107: 0 | T107: =IF(P107=D25,Q107-Q106,"") ->  | AK107: 99 | AL107: =IF(Z27>0,HLOOKUP(Y22,W116:VD216,AK107+1,FALSE),0) -> 0 | AN107: 0 | AO107: =IF(AK107=Y25,AL107-AL106,"") ->  | BF107: 99 | BG107: =IF(AU27>0,HLOOKUP(AT22,AR116:VY216,BF107+1,FALSE),0) -> 0 | BI107: 0 | BJ107: =IF(BF107=AT25,BG107-BG106,"") ->  | CA107: 99 | CB107: =IF(BP27>0,HLOOKUP(BO22,BM116:WT216,CA107+1,FALSE),0) -> 0 | CD107: 0 | CE107: =IF(CA107=BO25,CB107-CB106,"") -> 
P108: 100 | Q108: =IF(E27>0,HLOOKUP(D22,B116:UI216,P108+1,FALSE),0) -> 0 | S108: 0 | T108: =IF(P108=D25,Q108-Q107,"") ->  | AK108: 100 | AL108: =IF(Z27>0,HLOOKUP(Y22,W116:VD216,AK108+1,FALSE),0) -> 0 | AN108: 0 | AO108: =IF(AK108=Y25,AL108-AL107,"") ->  | BF108: 100 | BG108: =IF(AU27>0,HLOOKUP(AT22,AR116:VY216,BF108+1,FALSE),0) -> 0 | BI108: 0 | BJ108: =IF(BF108=AT25,BG108-BG107,"") ->  | CA108: 100 | CB108: =IF(BP27>0,HLOOKUP(BO22,BM116:WT216,CA108+1,FALSE),0) -> 0 | CD108: 0 | CE108: =IF(CA108=BO25,CB108-CB107,"") -> 
PP110: R35T1S0
A112: FullCAM: Outputs from Plot Simulations
A113: Carbon (tree only) - tonnes/hectare
B114: 1 | C114: 1 | D114: 1 | E114: 1 | F114: 1 | G114: 1 | H114: 1 | I114: 1 | J114: 1 | K114: 1 | L114: 1 | M114: 1 | N114: 2 | O114: 2 | P114: 2 | Q114: 2 | R114: 2 | S114: 2 | T114: 2 | U114: 2 | V114: 2 | W114: 2 | X114: 2 | Y114: 2 | Z114: 3 | AA114: 3 | AB114: 3 | AC114: 3 | AD114: 3 | AE114: 3 | AF114: 3 | AG114: 3 | AH114: 3 | AI114: 3 | AJ114: 3 | AK114: 3 | AL114: 4 | AM114: 4 | AN114: 4 | AO114: 4 | AP114: 4 | AQ114: 4 | AR114: 4 | AS114: 4 | AT114: 4 | AU114: 4 | AV114: 4 | AW114: 4 | AX114: 5 | AY114: 5 | AZ114: 5 | BA114: 5 | BB114: 5 | BC114: 5 | BD114: 5 | BE114: 5 | BF114: 5 | BG114: 5 | BH114: 5 | BI114: 5 | BJ114: 6 | BK114: 6 | BL114: 6 | BM114: 6 | BN114: 6 | BO114: 6 | BP114: 6 | BQ114: 6 | BR114: 6 | BS114: 6 | BT114: 6 | BU114: 6 | BV114: 7 | BW114: 7 | BX114: 7 | BY114: 7 | BZ114: 7 | CA114: 7 | CB114: 7 | CC114: 7 | CD114: 7 | CE114: 7 | CF114: 7 | CG114: 7 | CH114: 8 | CI114: 8 | CJ114: 8 | CK114: 8 | CL114: 8 | CM114: 8 | CN114: 8 | CO114: 8 | CP114: 8 | CQ114: 8 | CR114: 8 | CS114: 8 | CT114: 9 | CU114: 9 | CV114: 9 | CW114: 9 | CX114: 9 | CY114: 9 | CZ114: 9 | DA114: 9 | DB114: 9 | DC114: 9 | DD114: 9 | DE114: 9 | DF114: 10 | DG114: 10 | DH114: 10 | DI114: 10 | DJ114: 10 | DK114: 10 | DL114: 10 | DM114: 10 | DN114: 10 | DO114: 10 | DP114: 10 | DQ114: 10 | DR114: 10 | DS114: 10 | DT114: 10 | DU114: 10 | DV114: 10 | DW114: 10 | DX114: 10 | DY114: 10 | DZ114: 10 | EA114: 10 | EB114: 10 | EC114: 10 | ED114: 11 | EE114: 11 | EF114: 11 | EG114: 11 | EH114: 11 | EI114: 11 | EJ114: 11 | EK114: 11 | EL114: 11 | EM114: 11 | EN114: 11 | EO114: 11 | EP114: 11 | EQ114: 11 | ER114: 12 | ES114: 12 | ET114: 12 | EU114: 12 | EV114: 12 | EW114: 12 | EX114: 12 | EY114: 12 | EZ114: 12 | FA114: 12 | FB114: 12 | FC114: 12 | FD114: 13 | FE114: 13 | FF114: 13 | FG114: 13 | FH114: 13 | FI114: 13 | FJ114: 13 | FK114: 13 | FL114: 13 | FM114: 13 | FN114: 13 | FO114: 13 | FP114: 14 | FQ114: 14 | FR114: 14 | FS114: 14 | FT114: 14 | FU114: 14 | FV114: 14 | FW114: 14 | FX114: 14 | FY114: 14 | FZ114: 14 | GA114: 14 | GB114: 15 | GC114: 15 | GD114: 15 | GE114: 15 | GF114: 15 | GG114: 15 | GH114: 15 | GI114: 15 | GJ114: 15 | GK114: 15 | GL114: 15 | GM114: 15 | GN114: 16 | GO114: 16 | GP114: 16 | GQ114: 16 | GR114: 16 | GS114: 16 | GT114: 16 | GU114: 16 | GV114: 16 | GW114: 16 | GX114: 16 | GY114: 16 | GZ114: 17 | HA114: 17 | HB114: 17 | HC114: 17 | HD114: 17 | HE114: 17 | HF114: 17 | HG114: 17 | HH114: 17 | HI114: 17 | HJ114: 17 | HK114: 17 | HL114: 18 | HM114: 18 | HN114: 18 | HO114: 18 | HP114: 18 | HQ114: 18 | HR114: 18 | HS114: 18 | HT114: 18 | HU114: 18 | HV114: 18 | HW114: 18 | HX114: 19 | HY114: 19 | HZ114: 19 | IA114: 19 | IB114: 19 | IC114: 19 | ID114: 19 | IE114: 19 | IF114: 19 | IG114: 19 | IH114: 19 | II114: 19 | IJ114: 20 | IK114: 20 | IL114: 20 | IM114: 20 | IN114: 20 | IO114: 20 | IP114: 20 | IQ114: 20 | IR114: 20 | IS114: 20 | IT114: 20 | IU114: 20 | IV114: 21 | IW114: 21 | IX114: 21 | IY114: 21 | IZ114: 21 | JA114: 21 | JB114: 21 | JC114: 21 | JD114: 21 | JE114: 21 | JF114: 21 | JG114: 21 | JH114: 22 | JI114: 22 | JJ114: 22 | JK114: 22 | JL114: 22 | JM114: 22 | JN114: 22 | JO114: 22 | JP114: 22 | JQ114: 22 | JR114: 22 | JS114: 22 | JT114: 23 | JU114: 23 | JV114: 23 | JW114: 23 | JX114: 23 | JY114: 23 | JZ114: 23 | KA114: 23 | KB114: 23 | KC114: 23 | KD114: 23 | KE114: 23 | KF114: 24 | KG114: 24 | KH114: 24 | KI114: 24 | KJ114: 24 | KK114: 24 | KL114: 24 | KM114: 24 | KN114: 24 | KO114: 24 | KP114: 24 | KQ114: 24 | KR114: 25 | KS114: 25 | KT114: 25 | KU114: 25 | KV114: 25 | KW114: 25 | KX114: 25 | KY114: 25 | KZ114: 25 | LA114: 25 | LB114: 25 | LC114: 25 | LD114: 26 | LE114: 26 | LF114: 26 | LG114: 26 | LH114: 26 | LI114: 26 | LJ114: 26 | LK114: 26 | LL114: 26 | LM114: 26 | LN114: 26 | LO114: 26 | LP114: 27 | LQ114: 27 | LR114: 27 | LS114: 27 | LT114: 27 | LU114: 27 | LV114: 27 | LW114: 27 | LX114: 27 | LY114: 27 | LZ114: 27 | MA114: 27 | MB114: 28 | MC114: 28 | MD114: 28 | ME114: 28 | MF114: 28 | MG114: 28 | MH114: 28 | MI114: 28 | MJ114: 28 | MK114: 28 | ML114: 28 | MM114: 28 | MN114: 29 | MO114: 29 | MP114: 29 | MQ114: 29 | MR114: 29 | MS114: 29 | MT114: 29 | MU114: 29 | MV114: 29 | MW114: 29 | MX114: 29 | MY114: 29 | MZ114: 30 | NA114: 30 | NB114: 30 | NC114: 30 | ND114: 30 | NE114: 30 | NF114: 30 | NG114: 30 | NH114: 30 | NI114: 30 | NJ114: 30 | NK114: 30 | NL114: 31 | NM114: 31 | NN114: 31 | NO114: 31 | NP114: 31 | NQ114: 31 | NR114: 31 | NS114: 31 | NT114: 31 | NU114: 31 | NV114: 31 | NW114: 31 | NX114: 32 | NY114: 32 | NZ114: 32 | OA114: 32 | OB114: 32 | OC114: 32 | OD114: 32 | OE114: 32 | OF114: 32 | OG114: 32 | OH114: 32 | OI114: 32 | OJ114: 33 | OK114: 33 | OL114: 33 | OM114: 33 | ON114: 33 | OO114: 33 | OP114: 33 | OQ114: 33 | OR114: 33 | OS114: 33 | OT114: 33 | OU114: 33 | OV114: 34 | OW114: 34 | OX114: 34 | OY114: 34 | OZ114: 34 | PA114: 34 | PB114: 34 | PC114: 34 | PD114: 34 | PE114: 34 | PF114: 34 | PG114: 34 | PH114: 35 | PI114: 35 | PJ114: 35 | PK114: 35 | PL114: 35 | PM114: 35 | PN114: 35 | PO114: 35 | PP114: 35 | PQ114: 35 | PR114: 35 | PS114: 35 | PT114: 36 | PU114: 36 | PV114: 36 | PW114: 36 | PX114: 36 | PY114: 36 | PZ114: 36 | QA114: 36 | QB114: 36 | QC114: 36 | QD114: 36 | QE114: 36 | QF114: 37 | QG114: 37 | QH114: 37 | QI114: 37 | QJ114: 37 | QK114: 37 | QL114: 37 | QM114: 37 | QN114: 37 | QO114: 37 | QP114: 37 | QQ114: 37 | QR114: 38 | QS114: 38 | QT114: 38 | QU114: 38 | QV114: 38 | QW114: 38 | QX114: 38 | QY114: 38 | QZ114: 38 | RA114: 38 | RB114: 38 | RC114: 38 | RD114: 39 | RE114: 39 | RF114: 39 | RG114: 39 | RH114: 39 | RI114: 39 | RJ114: 39 | RK114: 39 | RL114: 39 | RM114: 39 | RN114: 39 | RO114: 39 | RP114: 40 | RQ114: 40 | RR114: 40 | RS114: 40 | RT114: 40 | RU114: 40 | RV114: 40 | RW114: 40 | RX114: 40 | RY114: 40 | RZ114: 40 | SA114: 40 | SB114: 41 | SC114: 41 | SD114: 41 | SE114: 41 | SF114: 41 | SG114: 41 | SH114: 41 | SI114: 41 | SJ114: 41 | SK114: 41 | SL114: 41 | SM114: 41 | SN114: 42 | SO114: 42 | SP114: 42 | SQ114: 42 | SR114: 42 | SS114: 42 | ST114: 42 | SU114: 42 | SV114: 42 | SW114: 42 | SX114: 42 | SY114: 42 | SZ114: 43 | TA114: 43 | TB114: 43 | TC114: 43 | TD114: 43 | TE114: 43 | TF114: 43 | TG114: 43 | TH114: 43 | TI114: 43 | TJ114: 43 | TK114: 43 | TL114: 44 | TM114: 44 | TN114: 44 | TO114: 44 | TP114: 44 | TQ114: 44 | TR114: 44 | TS114: 44 | TT114: 44 | TU114: 44 | TV114: 44 | TW114: 44 | TX114: 45 | TY114: 45
A115: LookUp Ref | B115: WA | C115: WA | D115: WA | E115: WA | F115: WA | G115: WA | H115: WA | I115: WA | J115: WA | K115: WA | L115: WA | M115: WA | N115: WA | O115: WA | P115: WA | Q115: WA | R115: WA | S115: WA | T115: WA | U115: WA | V115: WA | W115: WA | X115: WA | Y115: WA | Z115: WA | AA115: WA | AB115: WA | AC115: WA | AD115: WA | AE115: WA | AF115: WA | AG115: WA | AH115: WA | AI115: WA | AJ115: WA | AK115: WA | AL115: WA | AM115: WA | AN115: WA | AO115: WA | AP115: WA | AQ115: WA | AR115: WA | AS115: WA | AT115: WA | AU115: WA | AV115: WA | AW115: WA | AX115: WA | AY115: WA | AZ115: WA | BA115: WA | BB115: WA | BC115: WA | BD115: WA | BE115: WA | BF115: WA | BG115: WA | BH115: WA | BI115: WA | BJ115: WA | BK115: WA | BL115: WA | BM115: WA | BN115: WA | BO115: WA | BP115: WA | BQ115: WA | BR115: WA | BS115: WA | BT115: WA | BU115: WA | BV115: WA | BW115: WA | BX115: WA | BY115: WA | BZ115: WA | CA115: WA | CB115: WA | CC115: WA | CD115: WA | CE115: WA | CF115: WA | CG115: WA | CH115: WA | CI115: WA | CJ115: WA | CK115: WA | CL115: WA | CM115: WA | CN115: WA | CO115: WA | CP115: WA | CQ115: WA | CR115: WA | CS115: WA | CT115: WA | CU115: WA | CV115: WA | CW115: WA | CX115: WA | CY115: WA | CZ115: WA | DA115: WA | DB115: WA | DC115: WA | DD115: WA | DE115: WA | DF115: NSW | DG115: NSW | DH115: NSW | DI115: NSW | DJ115: NSW | DK115: NSW | DL115: NSW | DM115: NSW | DN115: NSW | DO115: NSW | DP115: NSW | DQ115: NSW | DR115: NSW | DS115: NSW | DT115: NSW | DU115: NSW | DV115: NSW | DW115: NSW | DX115: NSW | DY115: NSW | DZ115: NSW | EA115: NSW | EB115: NSW | EC115: NSW | ED115: NSW | EE115: NSW | EF115: NSW | EG115: NSW | EH115: NSW | EI115: NSW | EJ115: NSW | EK115: NSW | EL115: NSW | EM115: NSW | EN115: NSW | EO115: NSW | EP115: NSW | EQ115: NSW | ER115: NSW | ES115: NSW | ET115: NSW | EU115: NSW | EV115: NSW | EW115: NSW | EX115: NSW | EY115: NSW | EZ115: NSW | FA115: NSW | FB115: NSW | FC115: NSW | FD115: NSW | FE115: NSW | FF115: NSW | FG115: NSW | FH115: NSW | FI115: NSW | FJ115: NSW | FK115: NSW | FL115: NSW | FM115: NSW | FN115: NSW | FO115: NSW | FP115: NSW | FQ115: NSW | FR115: NSW | FS115: NSW | FT115: NSW | FU115: NSW | FV115: NSW | FW115: NSW | FX115: NSW | FY115: NSW | FZ115: NSW | GA115: NSW | GB115: NSW | GC115: NSW | GD115: NSW | GE115: NSW | GF115: NSW | GG115: NSW | GH115: NSW | GI115: NSW | GJ115: NSW | GK115: NSW | GL115: NSW | GM115: NSW | GN115: NSW | GO115: NSW | GP115: NSW | GQ115: NSW | GR115: NSW | GS115: NSW | GT115: NSW | GU115: NSW | GV115: NSW | GW115: NSW | GX115: NSW | GY115: NSW | GZ115: Tas | HA115: Tas | HB115: Tas | HC115: Tas | HD115: Tas | HE115: Tas | HF115: Tas | HG115: Tas | HH115: Tas | HI115: Tas | HJ115: Tas | HK115: Tas | HL115: Tas | HM115: Tas | HN115: Tas | HO115: Tas | HP115: Tas | HQ115: Tas | HR115: Tas | HS115: Tas | HT115: Tas | HU115: Tas | HV115: Tas | HW115: Tas | HX115: Tas | HY115: Tas | HZ115: Tas | IA115: Tas | IB115: Tas | IC115: Tas | ID115: Tas | IE115: Tas | IF115: Tas | IG115: Tas | IH115: Tas | II115: Tas | IJ115: Tas | IK115: Tas | IL115: Tas | IM115: Tas | IN115: Tas | IO115: Tas | IP115: Tas | IQ115: Tas | IR115: Tas | IS115: Tas | IT115: Tas | IU115: Tas | IV115: Tas | IW115: Tas | IX115: Tas | IY115: Tas | IZ115: Tas | JA115: Tas | JB115: Tas | JC115: Tas | JD115: Tas | JE115: Tas | JF115: Tas | JG115: Tas | JH115: Tas | JI115: Tas | JJ115: Tas | JK115: Tas | JL115: Tas | JM115: Tas | JN115: Tas | JO115: Tas | JP115: Tas | JQ115: Tas | JR115: Tas | JS115: Tas | JT115: SA | JU115: SA | JV115: SA | JW115: SA | JX115: SA | JY115: SA | JZ115: SA | KA115: SA | KB115: SA | KC115: SA | KD115: SA | KE115: SA | KF115: SA | KG115: SA | KH115: SA | KI115: SA | KJ115: SA | KK115: SA | KL115: SA | KM115: SA | KN115: SA | KO115: SA | KP115: SA | KQ115: SA | KR115: SA | KS115: SA | KT115: SA | KU115: SA | KV115: SA | KW115: SA | KX115: SA | KY115: SA | KZ115: SA | LA115: SA | LB115: SA | LC115: SA | LD115: SA | LE115: SA | LF115: SA | LG115: SA | LH115: SA | LI115: SA | LJ115: SA | LK115: SA | LL115: SA | LM115: SA | LN115: SA | LO115: SA | LP115: SA | LQ115: SA | LR115: SA | LS115: SA | LT115: SA | LU115: SA | LV115: SA | LW115: SA | LX115: SA | LY115: SA | LZ115: SA | MA115: SA | MB115: Vic | MC115: Vic | MD115: Vic | ME115: Vic | MF115: Vic | MG115: Vic | MH115: Vic | MI115: Vic | MJ115: Vic | MK115: Vic | ML115: Vic | MM115: Vic | MN115: Vic | MO115: Vic | MP115: Vic | MQ115: Vic | MR115: Vic | MS115: Vic | MT115: Vic | MU115: Vic | MV115: Vic | MW115: Vic | MX115: Vic | MY115: Vic | MZ115: Vic | NA115: Vic | NB115: Vic | NC115: Vic | ND115: Vic | NE115: Vic | NF115: Vic | NG115: Vic | NH115: Vic | NI115: Vic | NJ115: Vic | NK115: Vic | NL115: Vic | NM115: Vic | NN115: Vic | NO115: Vic | NP115: Vic | NQ115: Vic | NR115: Vic | NS115: Vic | NT115: Vic | NU115: Vic | NV115: Vic | NW115: Vic | NX115: Vic | NY115: Vic | NZ115: Vic | OA115: Vic | OB115: Vic | OC115: Vic | OD115: Vic | OE115: Vic | OF115: Vic | OG115: Vic | OH115: Vic | OI115: Vic | OJ115: Vic | OK115: Vic | OL115: Vic | OM115: Vic | ON115: Vic | OO115: Vic | OP115: Vic | OQ115: Vic | OR115: Vic | OS115: Vic | OT115: Vic | OU115: Vic | OV115: Vic | OW115: Vic | OX115: Vic | OY115: Vic | OZ115: Vic | PA115: Vic | PB115: Vic | PC115: Vic | PD115: Vic | PE115: Vic | PF115: Vic | PG115: Vic | PH115: Vic | PI115: Vic | PJ115: Vic | PK115: Vic | PL115: Vic | PM115: Vic | PN115: Vic | PO115: Vic | PP115: Vic | PQ115: Vic | PR115: Vic | PS115: Vic | PT115: Qld | PU115: Qld | PV115: Qld | PW115: Qld | PX115: Qld | PY115: Qld | PZ115: Qld | QA115: Qld | QB115: Qld | QC115: Qld | QD115: Qld | QE115: Qld | QF115: Qld | QG115: Qld | QH115: Qld | QI115: Qld | QJ115: Qld | QK115: Qld | QL115: Qld | QM115: Qld | QN115: Qld | QO115: Qld | QP115: Qld | QQ115: Qld | QR115: Qld | QS115: Qld | QT115: Qld | QU115: Qld | QV115: Qld | QW115: Qld | QX115: Qld | QY115: Qld | QZ115: Qld | RA115: Qld | RB115: Qld | RC115: Qld | RD115: Qld | RE115: Qld | RF115: Qld | RG115: Qld | RH115: Qld | RI115: Qld | RJ115: Qld | RK115: Qld | RL115: Qld | RM115: Qld | RN115: Qld | RO115: Qld | RP115: Qld | RQ115: Qld | RR115: Qld | RS115: Qld | RT115: Qld | RU115: Qld | RV115: Qld | RW115: Qld | RX115: Qld | RY115: Qld | RZ115: Qld | SA115: Qld | SB115: Qld | SC115: Qld | SD115: Qld | SE115: Qld | SF115: Qld | SG115: Qld | SH115: Qld | SI115: Qld | SJ115: Qld | SK115: Qld | SL115: Qld | SM115: Qld | SN115: NT | SO115: NT | SP115: NT | SQ115: NT | SR115: NT | SS115: NT | ST115: NT | SU115: NT | SV115: NT | SW115: NT | SX115: NT | SY115: NT | SZ115: NT | TA115: NT | TB115: NT | TC115: NT | TD115: NT | TE115: NT | TF115: NT | TG115: NT | TH115: NT | TI115: NT | TJ115: NT | TK115: NT | TL115: NT | TM115: NT | TN115: NT | TO115: NT | TP115: NT | TQ115: NT | TR115: NT | TS115: NT | TT115: NT | TU115: NT | TV115: NT | TW115: NT | TX115: NT | TY115: NT
A116: Year | B116: R1T1S1 | C116: R1T1S2 | D116: R1T2S1 | E116: R1T2S2 | F116: R1T3S1 | G116: R1T3S2 | H116: R1T4S1 | I116: R1T4S2 | J116: R1T5S1 | K116: R1T5S2 | L116: R1T6S1 | M116: R1T6S2 | N116: R2T1S1 | O116: R2T1S2 | P116: R2T2S1 | Q116: R2T2S2 | R116: R2T3S1 | S116: R2T3S2 | T116: R2T4S1 | U116: R2T4S2 | V116: R2T5S1 | W116: R2T5S2 | X116: R2T6S1 | Y116: R2T6S2 | Z116: R3T1S1 | AA116: R3T1S2 | AB116: R3T2S1 | AC116: R3T2S2 | AD116: R3T3S1 | AE116: R3T3S2 | AF116: R3T4S1 | AG116: R3T4S2 | AH116: R3T5S1 | AI116: R3T5S2 | AJ116: R3T6S1 | AK116: R3T6S2 | AL116: R4T1S1 | AM116: R4T1S2 | AN116: R4T2S1 | AO116: R4T2S2 | AP116: R4T3S1 | AQ116: R4T3S2 | AR116: R4T4S1 | AS116: R4T4S2 | AT116: R4T5S1 | AU116: R4T5S2 | AV116: R4T6S1 | AW116: R4T6S2 | AX116: R5T1S1 | AY116: R5T1S2 | AZ116: R5T2S1 | BA116: R5T2S2 | BB116: R5T3S1 | BC116: R5T3S2 | BD116: R5T4S1 | BE116: R5T4S2 | BF116: R5T5S1 | BG116: R5T5S2 | BH116: R5T6S1 | BI116: R5T6S2 | BJ116: R6T1S1 | BK116: R6T1S2 | BL116: R6T2S1 | BM116: R6T2S2 | BN116: R6T3S1 | BO116: R6T3S2 | BP116: R6T4S1 | BQ116: R6T4S2 | BR116: R6T5S1 | BS116: R6T5S2 | BT116: R6T6S1 | BU116: R6T6S2 | BV116: R7T1S1 | BW116: R7T1S2 | BX116: R7T2S1 | BY116: R7T2S2 | BZ116: R7T3S1 | CA116: R7T3S2 | CB116: R7T4S1 | CC116: R7T4S2 | CD116: R7T5S1 | CE116: R7T5S2 | CF116: R7T6S1 | CG116: R7T6S2 | CH116: R8T1S1 | CI116: R8T1S2 | CJ116: R8T2S1 | CK116: R8T2S2 | CL116: R8T3S1 | CM116: R8T3S2 | CN116: R8T4S1 | CO116: R8T4S2 | CP116: R8T5S1 | CQ116: R8T5S2 | CR116: R8T6S1 | CS116: R8T6S2 | CT116: R9T1S1 | CU116: R9T1S2 | CV116: R9T2S1 | CW116: R9T2S2 | CX116: R9T3S1 | CY116: R9T3S2 | CZ116: R9T4S1 | DA116: R9T4S2 | DB116: R9T5S1 | DC116: R9T5S2 | DD116: R9T6S1 | DE116: R9T6S2 | DF116: R10T1S1 | DG116: R10T1S2 | DH116: R10T1HGS1 | DI116: R10T1HGS2 | DJ116: R10T2S1 | DK116: R10T2S2 | DL116: R10T2HGS1 | DM116: R10T2HGS2 | DN116: R10T3S1 | DO116: R10T3S2 | DP116: R10T3HGS1 | DQ116: R10T3HGS2 | DR116: R10T4S1 | DS116: R10T4S2 | DT116: R10T4HGS1 | DU116: R10T4HGS2 | DV116: R10T5S1 | DW116: R10T5S2 | DX116: R10T5HGS1 | DY116: R10T5HGS2 | DZ116: R10T6S1 | EA116: R10T6S2 | EB116: R10T6HGS1 | EC116: R10T6HGS2 | ED116: R11T1S1 | EE116: R11T1S2 | EF116: R11T1HGS1 | EG116: R11T1HGS2 | EH116: R11T2S1 | EI116: R11T2S2 | EJ116: R11T3S1 | EK116: R11T3S2 | EL116: R11T4S1 | EM116: R11T4S2 | EN116: R11T5S1 | EO116: R11T5S2 | EP116: R11T6S1 | EQ116: R11T6S2 | ER116: R12T1S1 | ES116: R12T1S2 | ET116: R12T2S1 | EU116: R12T2S2 | EV116: R12T3S1 | EW116: R12T3S2 | EX116: R12T4S1 | EY116: R12T4S2 | EZ116: R12T5S1 | FA116: R12T5S2 | FB116: R12T6S1 | FC116: R12T6S2 | FD116: R13T1S1 | FE116: R13T1S2 | FF116: R13T2S1 | FG116: R13T2S2 | FH116: R13T3S1 | FI116: R13T3S2 | FJ116: R13T4S1 | FK116: R13T4S2 | FL116: R13T5S1 | FM116: R13T5S2 | FN116: R13T6S1 | FO116: R13T6S2 | FP116: R14T1S1 | FQ116: R14T1S2 | FR116: R14T2S1 | FS116: R14T2S2 | FT116: R14T3S1 | FU116: R14T3S2 | FV116: R14T4S1 | FW116: R14T4S2 | FX116: R14T5S1 | FY116: R14T5S2 | FZ116: R14T6S1 | GA116: R14T6S2 | GB116: R15T1S1 | GC116: R15T1S2 | GD116: R15T2S1 | GE116: R15T2S2 | GF116: R15T3S1 | GG116: R15T3S2 | GH116: R15T4S1 | GI116: R15T4S2 | GJ116: R15T5S1 | GK116: R15T5S2 | GL116: R15T6S1 | GM116: R15T6S2 | GN116: R16T1S1 | GO116: R16T1S2 | GP116: R16T2S1 | GQ116: R16T2S2 | GR116: R16T3S1 | GS116: R16T3S2 | GT116: R16T4S1 | GU116: R16T4S2 | GV116: R16T5S1 | GW116: R16T5S2 | GX116: R16T6S1 | GY116: R16T6S2 | GZ116: R17T1S1 | HA116: R17T1S2 | HB116: R17T2S1 | HC116: R17T2S2 | HD116: R17T3S1 | HE116: R17T3S2 | HF116: R17T4S1 | HG116: R17T4S2 | HH116: R17T5S1 | HI116: R17T5S2 | HJ116: R17T6S1 | HK116: R17T6S2 | HL116: R18T1S1 | HM116: R18T1S2 | HN116: R18T2S1 | HO116: R18T2S2 | HP116: R18T3S1 | HQ116: R18T3S2 | HR116: R18T4S1 | HS116: R18T4S2 | HT116: R18T5S1 | HU116: R18T5S2 | HV116: R18T6S1 | HW116: R18T6S2 | HX116: R19T1S1 | HY116: R19T1S2 | HZ116: R19T2S1 | IA116: R19T2S2 | IB116: R19T3S1 | IC116: R19T3S2 | ID116: R19T4S1 | IE116: R19T4S2 | IF116: R19T5S1 | IG116: R19T5S2 | IH116: R19T6S1 | II116: R19T6S2 | IJ116: R20T1S1 | IK116: R20T1S2 | IL116: R20T2S1 | IM116: R20T2S2 | IN116: R20T3S1 | IO116: R20T3S2 | IP116: R20T4S1 | IQ116: R20T4S2 | IR116: R20T5S1 | IS116: R20T5S2 | IT116: R20T6S1 | IU116: R20T6S2 | IV116: R21T1S1 | IW116: R21T1S2 | IX116: R21T2S1 | IY116: R21T2S2 | IZ116: R21T3S1 | JA116: R21T3S2 | JB116: R21T4S1 | JC116: R21T4S2 | JD116: R21T5S1 | JE116: R21T5S2 | JF116: R21T6S1 | JG116: R21T6S2 | JH116: R22T1S1 | JI116: R22T1S2 | JJ116: R22T2S1 | JK116: R22T2S2 | JL116: R22T3S1 | JM116: R22T3S2 | JN116: R22T4S1 | JO116: R22T4S2 | JP116: R22T5S1 | JQ116: R22T5S2 | JR116: R22T6S1 | JS116: R22T6S2 | JT116: R23T1S1 | JU116: R23T1S2 | JV116: R23T2S1 | JW116: R23T2S2 | JX116: R23T3S1 | JY116: R23T3S2 | JZ116: R23T4S1 | KA116: R23T4S2 | KB116: R23T5S1 | KC116: R23T5S2 | KD116: R23T6S1 | KE116: R23T6S2 | KF116: R24T1S1 | KG116: R24T1S2 | KH116: R24T2S1 | KI116: R24T2S2 | KJ116: R24T3S1 | KK116: R24T3S2 | KL116: R24T4S1 | KM116: R24T4S2 | KN116: R24T5S1 | KO116: R24T5S2 | KP116: R24T6S1 | KQ116: R24T6S2 | KR116: R25T1S1 | KS116: R25T1S2 | KT116: R25T2S1 | KU116: R25T2S2 | KV116: R25T3S1 | KW116: R25T3S2 | KX116: R25T4S1 | KY116: R25T4S2 | KZ116: R25T5S1 | LA116: R25T5S2 | LB116: R25T6S1 | LC116: R25T6S2 | LD116: R26T1S1 | LE116: R26T1S2 | LF116: R26T2S1 | LG116: R26T2S2 | LH116: R26T3S1 | LI116: R26T3S2 | LJ116: R26T4S1 | LK116: R26T4S2 | LL116: R26T5S1 | LM116: R26T5S2 | LN116: R26T6S1 | LO116: R26T6S2 | LP116: R27T1S1 | LQ116: R27T1S2 | LR116: R27T2S1 | LS116: R27T2S2 | LT116: R27T3S1 | LU116: R27T3S2 | LV116: R27T4S1 | LW116: R27T4S2 | LX116: R27T5S1 | LY116: R27T5S2 | LZ116: R27T6S1 | MA116: R27T6S2 | MB116: R28T1S1 | MC116: R28T1S2 | MD116: R28T2S1 | ME116: R28T2S2 | MF116: R28T3S1 | MG116: R28T3S2 | MH116: R28T4S1 | MI116: R28T4S2 | MJ116: R28T5S1 | MK116: R28T5S2 | ML116: R28T6S1 | MM116: R28T6S2 | MN116: R29T1S1 | MO116: R29T1S2 | MP116: R29T2S1 | MQ116: R29T2S2 | MR116: R29T3S1 | MS116: R29T3S2 | MT116: R29T4S1 | MU116: R29T4S2 | MV116: R29T5S1 | MW116: R29T5S2 | MX116: R29T6S1 | MY116: R29T6S2 | MZ116: R30T1S1 | NA116: R30T1S2 | NB116: R30T2S1 | NC116: R30T2S2 | ND116: R30T3S1 | NE116: R30T3S2 | NF116: R30T4S1 | NG116: R30T4S2 | NH116: R30T5S1 | NI116: R30T5S2 | NJ116: R30T6S1 | NK116: R30T6S2 | NL116: R31T1S1 | NM116: R31T1S2 | NN116: R31T2S1 | NO116: R31T2S2 | NP116: R31T3S1 | NQ116: R31T3S2 | NR116: R31T4S1 | NS116: R31T4S2 | NT116: R31T5S1 | NU116: R31T5S2 | NV116: R31T6S1 | NW116: R31T6S2 | NX116: R32T1S1 | NY116: R32T1S2 | NZ116: R32T2S1 | OA116: R32T2S2 | OB116: R32T3S1 | OC116: R32T3S2 | OD116: R32T4S1 | OE116: R32T4S2 | OF116: R32T5S1 | OG116: R32T5S2 | OH116: R32T6S1 | OI116: R32T6S2 | OJ116: R33T1S1 | OK116: R33T1S2 | OL116: R33T2S1 | OM116: R33T2S2 | ON116: R33T3S1 | OO116: R33T3S2 | OP116: R33T4S1 | OQ116: R33T4S2 | OR116: R33T5S1 | OS116: R33T5S2 | OT116: R33T6S1 | OU116: R33T6S2 | OV116: R34T1S1 | OW116: R34T1S2 | OX116: R34T2S1 | OY116: R34T2S2 | OZ116: R34T3S1 | PA116: R34T3S2 | PB116: R34T4S1 | PC116: R34T4S2 | PD116: R34T5S1 | PE116: R34T5S2 | PF116: R34T6S1 | PG116: R34T6S2 | PH116: R35T1S1 | PI116: R35T1S2 | PJ116: R35T2S1 | PK116: R35T2S2 | PL116: R35T3S1 | PM116: R35T3S2 | PN116: R35T4S1 | PO116: R35T4S2 | PP116: R35T5S1 | PQ116: R35T5S2 | PR116: R35T6S1 | PS116: R35T6S2 | PT116: R36T1S1 | PU116: R36T1S2 | PV116: R36T2S1 | PW116: R36T2S2 | PX116: R36T3S1 | PY116: R36T3S2 | PZ116: R36T4S1 | QA116: R36T4S2 | QB116: R36T5S1 | QC116: R36T5S2 | QD116: R36T6S1 | QE116: R36T6S2 | QF116: R37T1S1 | QG116: R37T1S2 | QH116: R37T2S1 | QI116: R37T2S2 | QJ116: R37T3S1 | QK116: R37T3S2 | QL116: R37T4S1 | QM116: R37T4S2 | QN116: R37T5S1 | QO116: R37T5S2 | QP116: R37T6S1 | QQ116: R37T6S2 | QR116: R38T1S1 | QS116: R38T1S2 | QT116: R38T2S1 | QU116: R38T2S2 | QV116: R38T3S1 | QW116: R38T3S2 | QX116: R38T4S1 | QY116: R38T4S2 | QZ116: R38T5S1 | RA116: R38T5S2 | RB116: R38T6S1 | RC116: R38T6S2 | RD116: R39T1S1 | RE116: R39T1S2 | RF116: R39T2S1 | RG116: R39T2S2 | RH116: R39T3S1 | RI116: R39T3S2 | RJ116: R39T4S1 | RK116: R39T4S2 | RL116: R39T5S1 | RM116: R39T5S2 | RN116: R39T6S1 | RO116: R39T6S2 | RP116: R40T1S1 | RQ116: R40T1S2 | RR116: R40T2S1 | RS116: R40T2S2 | RT116: R40T3S1 | RU116: R40T3S2 | RV116: R40T4S1 | RW116: R40T4S2 | RX116: R40T5S1 | RY116: R40T5S2 | RZ116: R40T6S1 | SA116: R40T6S2 | SB116: R41T1S1 | SC116: R41T1S2 | SD116: R41T2S1 | SE116: R41T2S2 | SF116: R41T3S1 | SG116: R41T3S2 | SH116: R41T4S1 | SI116: R41T4S2 | SJ116: R41T5S1 | SK116: R41T5S2 | SL116: R41T6S1 | SM116: R41T6S2 | SN116: R42T1S1 | SO116: R42T1S2 | SP116: R42T2S1 | SQ116: R42T2S2 | SR116: R42T3S1 | SS116: R42T3S2 | ST116: R42T4S1 | SU116: R42T4S2 | SV116: R42T5S1 | SW116: R42T5S2 | SX116: R42T6S1 | SY116: R42T6S2 | SZ116: R43T1S1 | TA116: R43T1S2 | TB116: R43T2S1 | TC116: R43T2S2 | TD116: R43T3S1 | TE116: R43T3S2 | TF116: R43T4S1 | TG116: R43T4S2 | TH116: R43T5S1 | TI116: R43T5S2 | TJ116: R43T6S1 | TK116: R43T6S2 | TL116: R44T1S1 | TM116: R44T1S2 | TN116: R44T2S1 | TO116: R44T2S2 | TP116: R44T3S1 | TQ116: R44T3S2 | TR116: R44T4S1 | TS116: R44T4S2 | TT116: R44T5S1 | TU116: R44T5S2 | TV116: R44T6S1 | TW116: R44T6S2 | TX116: R45T1S1 | TY116: R45T1S2
A117: 1 | B117: 0.29 | C117: 0.29 | D117: 0.29 | E117: 0.29 | F117: 0.33 | G117: 0.33 | H117: 0.31 | I117: 0.31 | J117: 0.31 | K117: 0.31 | N117: Data not available | Z117: 0.29 | AA117: Nil data for other trees & soils | AL117: 0.29 | AM117: 0.29 | AX117: 0.29 | AY117: 0.29 | BJ117: 0.29 | BK117: Nil soil and other tree data | BV117: 0.29 | CH117: 0.29 | CI117: 0.29 | DF117: 0.29 | DG117: 0.29 | DH117: 0.29 | DI117: 0.29 | DJ117: 0.29 | DK117: 0.29 | DL117: 0.29 | DM117: 0.29 | DN117: 0.29 | DO117: 0.29 | DP117: 0.29 | DQ117: 0.29 | DR117: 0.29 | DS117: 0.29 | DT117: 0.29 | DU117: 0.29 | DV117: 0.31 | DW117: 0.31 | DX117: 0.31 | DY117: 0.31 | DZ117: 0.31 | EA117: 0.31 | EB117: 0.31 | EC117: 0.31 | ED117: 0.29 | EE117: 0.29 | EF117: 0.29 | EG117: 0.29 | EH117: 0.29 | EI117: 0.29 | EJ117: 0.29 | EK117: 0.29 | EL117: 0.29 | EM117: 0.29 | EN117: 0.31 | EO117: 0.31 | EP117: 0.31 | EQ117: 0.31 | ER117: 0.29 | ES117: 0.29 | ET117: 0.29 | EU117: 0.29 | EV117: 0.29 | EW117: 0.29 | EX117: 0.29 | EY117: 0.29 | EZ117: 0.31 | FA117: 0.31 | FB117: 0.31 | FC117: 0.31 | FD117: 0.29 | FE117: 0.29 | FF117: 0.29 | FG117: 0.29 | FH117: 0.29 | FI117: 0.29 | FJ117: 0.29 | FK117: 0.29 | FL117: 0.29 | FM117: 0.29 | FN117: 0.29 | FO117: 0.29 | FP117: 0.29 | FQ117: 0.29 | FR117: 0.29 | FS117: 0.29 | FT117: 0.29 | FU117: 0.29 | FV117: 0.29 | FW117: 0.29 | FX117: 0.29 | FY117: 0.29 | FZ117: 0.29 | GA117: 0.29 | GB117: 0.29 | GC117: 0.29 | GD117: 0.29 | GE117: 0.29 | GF117: 0.29 | GG117: 0.29 | GH117: 0.29 | GI117: 0.29 | GJ117: 0.31 | GK117: 0.31 | GL117: 0.31 | GM117: 0.31 | GN117: 0.29 | GO117: 0.29 | GP117: 0.31 | GQ117: 0.31 | GZ117: 0.29 | HA117: 0.29 | HB117: 0.3 | HC117: 0.3 | HD117: 0.3 | HE117: 0.3 | HF117: 0.31 | HG117: 0.31 | HH117: 0.31 | HI117: 0.31 | HJ117: 0.31 | HK117: 0.31 | HL117: 0.31 | HM117: 0.31 | HN117: 0.3 | HO117: 0.3 | HP117: 0.3 | HQ117: 0.3 | HR117: 0.31 | HS117: 0.31 | HT117: 0.31 | HU117: 0.31 | HX117: 0.29 | HY117: 0.29 | HZ117: 0.3 | IA117: 0.3 | IB117: 0.29 | IC117: 0.29 | ID117: 0.31 | IE117: 0.31 | IJ117: 2.29 | IK117: 2.29 | IL117: 0.5 | IM117: 0.5 | IN117: 0.34 | IO117: 0.34 | IP117: 0.34 | IQ117: 0.34 | IV117: 2.29 | IW117: 2.29 | IX117: 0.5 | IY117: 0.5 | IZ117: 0.34 | JA117: 0.34 | JB117: 0.34 | JC117: 0.34 | JH117: 0.29 | JI117: 0.29 | JJ117: 0.43 | JK117: 0.43 | JL117: 0.43 | JM117: 0.43 | JN117: 0.33 | JO117: 0.33 | JP117: 0.33 | JQ117: 0.33 | JT117: 0.29 | JU117: 0.29 | JV117: 0.29 | JW117: 0.29 | JX117: 0.29 | JY117: 0.29 | KF117: 0.29 | KG117: 0.29 | KH117: 0.29 | KI117: 0.29 | KJ117: 0.29 | KK117: 0.29 | KR117: 0.29 | KS117: 0.29 | KT117: 0.29 | KU117: 0.29 | KV117: 0.31 | KW117: 0.31 | LD117: 0.31 | LE117: 0.31 | LF117: 0.31 | LG117: 0.31 | LH117: 0.26 | LI117: 0.26 | LP117: 0.29 | LQ117: 0.29 | LR117: 0.29 | LS117: 0.29 | LT117: 0.31 | LU117: 0.31 | MB117: 0.29 | MC117: 0.29 | MD117: 0.29 | ME117: 0.29 | MF117: 0.29 | MG117: 0.29 | MH117: 0.29 | MI117: 0.29 | MJ117: 0.31 | MK117: 0.31 | ML117: 0.31 | MM117: 0.29 | MN117: 0.29 | MO117: 0.29 | MP117: 0.29 | MQ117: 0.29 | MR117: 0.29 | MS117: 0.29 | MT117: 0.31 | MU117: 0.31 | MV117: 0.31 | MW117: 0.31 | MX117: 0.31 | MY117: 0.31 | MZ117: 0.29 | NA117: 0.29 | NB117: 0.3 | NC117: 0.3 | ND117: 0.3 | NE117: 0.3 | NF117: =AVERAGE(NB117,ND117) -> 0.3 | NG117: =AVERAGE(NC117,NE117) -> 0.3 | NH117: 0.31 | NI117: 0.31 | NL117: 0.29 | NM117: 0.29 | NN117: 0.3 | NO117: 0.3 | NP117: 0.3 | NQ117: 0.3 | NR117: 0.3 | NS117: 0.3 | NT117: 0.31 | NU117: 0.31 | NX117: 0.29 | NY117: 0.29 | NZ117: 0.31 | OA117: 0.31 | OB117: 0.31 | OC117: 0.31 | OD117: 0.32 | OE117: 0.32 | OJ117: 0.29 | OK117: 0.29 | OL117: 0.36 | OM117: 0.36 | ON117: 0.36 | OO117: 0.36 | OP117: 0.29 | OQ117: 0.29 | OR117: 0.31 | OS117: 0.31 | OV117: 0.29 | OW117: 0.29 | OX117: 0.29 | OY117: 0.29 | OZ117: 0.29 | PA117: 0.29 | PB117: 0.29 | PC117: 0.29 | PD117: 0.31 | PE117: 0.31 | PH117: 0.29 | PI117: 0.29 | PJ117: 0.29 | PK117: 0.29 | PL117: 0.29 | PM117: 0.29 | PN117: 0.29 | PO117: 0.29 | PP117: 0.31 | PQ117: 0.31 | PT117: 0.29 | PU117: 0.29 | PV117: 0.31 | PW117: 0.31 | PX117: 0.29 | PY117: 0.29 | PZ117: 0.29 | QA117: 0.29 | QB117: 0.29 | QC117: 0.29 | QD117: 0.31 | QE117: 0.31 | QF117: 0.29 | QG117: 0.29 | QH117: 0.31 | QI117: 0.31 | QJ117: 0.29 | QK117: 0.29 | QL117: 0.29 | QM117: 0.29 | QN117: 0.29 | QO117: 0.29 | QP117: 0.31 | QQ117: 0.31 | QR117: 0.29 | QS117: 0.29 | QT117: 0.31 | QU117: 0.31 | QV117: 0.29 | QW117: 0.29 | QX117: 0.29 | QY117: 0.29 | QZ117: 0.29 | RA117: 0.29 | RB117: 0.31 | RC117: 0.31 | RD117: 0.29 | RE117: 0.29 | RF117: 0.31 | RG117: 0.31 | RH117: 0.29 | RI117: 0.29 | RJ117: 0.29 | RK117: 0.29 | RL117: 0.29 | RM117: 0.29 | RN117: 0.31 | RO117: 0.31 | RP117: 0.29 | RQ117: 0.29 | RR117: 0.31 | RS117: 0.31 | RT117: 0.29 | RU117: 0.29 | RV117: 0.29 | RW117: 0.29 | RX117: 0.29 | RY117: 0.29 | RZ117: 0.31 | SA117: 0.31 | SB117: 0.29 | SC117: 0.29 | SD117: 0.31 | SE117: 0.31 | SF117: 0.29 | SG117: 0.29 | SH117: 0.29 | SI117: 0.29 | SJ117: 0.29 | SK117: 0.29 | SL117: 0.31 | SM117: 0.31 | SN117: 0.29 | SO117: 0.29 | SZ117: 0.29 | TA117: 0.29 | TX117: 0.29 | TY117: 0.29
A118: 2 | B118: 0.34 | C118: 0.34 | D118: 0.7 | E118: 0.7 | F118: 0.57 | G118: 0.57 | H118: 0.35 | I118: 0.35 | J118: 0.43 | K118: 0.43 | Z118: 0.3 | AL118: 0.32 | AM118: 0.31 | AX118: 0.32 | AY118: 0.32 | BJ118: 0.31 | BV118: 0.3 | CH118: 0.31 | CI118: 0.31 | DF118: 0.43 | DG118: 0.43 | DH118: 0.59 | DI118: 0.44 | DJ118: 0.34 | DK118: 0.34 | DL118: 0.34 | DM118: 0.34 | DN118: 0.34 | DO118: 0.34 | DP118: 0.34 | DQ118: 0.34 | DR118: 0.34 | DS118: 0.34 | DT118: 0.34 | DU118: 0.34 | DV118: 0.37 | DW118: 0.36 | DX118: 0.37 | DY118: 0.37 | DZ118: 0.36 | EA118: 0.36 | EB118: 0.47 | EC118: 0.47 | ED118: 0.37 | EE118: 0.36 | EF118: 0.36 | EG118: 0.36 | EH118: 0.36 | EI118: 0.36 | EJ118: 0.4 | EK118: 0.4 | EL118: 0.4 | EM118: 0.42 | EN118: 0.34 | EO118: 0.34 | EP118: 0.35 | EQ118: 0.35 | ER118: 0.36 | ES118: 0.43 | ET118: 0.49 | EU118: 0.49 | EV118: 0.49 | EW118: 0.49 | EX118: 0.49 | EY118: 0.31 | EZ118: 0.32 | FA118: 0.32 | FB118: 0.32 | FC118: 0.32 | FD118: 0.33 | FE118: 0.33 | FF118: 0.33 | FG118: 0.33 | FH118: 0.33 | FI118: 0.33 | FJ118: 0.3 | FK118: 0.3 | FL118: 0.3 | FM118: 0.3 | FN118: 0.29 | FO118: 0.29 | FP118: 0.34 | FQ118: 0.34 | FR118: 0.34 | FS118: 0.34 | FT118: 0.36 | FU118: 0.36 | FV118: 0.36 | FW118: 0.36 | FX118: 0.36 | FY118: 0.36 | FZ118: 0.36 | GA118: 0.36 | GB118: 0.33 | GC118: 0.33 | GD118: 0.3 | GE118: 0.3 | GF118: 0.34 | GG118: 0.34 | GH118: 0.3 | GI118: 0.3 | GJ118: 0.31 | GK118: 0.31 | GL118: 0.31 | GM118: 0.31 | GN118: 0.3 | GO118: 0.3 | GP118: 0.31 | GQ118: 0.31 | GZ118: 0.35 | HA118: 0.35 | HB118: 0.57 | HC118: 0.57 | HD118: 0.57 | HE118: 0.57 | HF118: 0.41 | HG118: 0.41 | HH118: 0.41 | HI118: 0.41 | HJ118: 0.41 | HK118: 0.41 | HL118: 0.43 | HM118: 0.43 | HN118: 0.4 | HO118: 0.4 | HP118: 0.4 | HQ118: 0.4 | HR118: 0.47 | HS118: 0.47 | HT118: 0.47 | HU118: 0.47 | HX118: 0.35 | HY118: 0.35 | HZ118: 0.53 | IA118: 0.53 | IB118: 0.39 | IC118: 0.39 | ID118: 0.4 | IE118: 0.4 | IJ118: 4.47 | IK118: 4.47 | IL118: 2.78 | IM118: 2.78 | IN118: 1.2 | IO118: 1.2 | IP118: 1.2 | IQ118: 1.2 | IV118: 4.47 | IW118: 4.47 | IX118: 2.78 | IY118: 2.78 | IZ118: 1.2 | JA118: 1.2 | JB118: 1.2 | JC118: 1.2 | JH118: 0.41 | JI118: 0.41 | JJ118: 2.17 | JK118: 2.17 | JL118: 2.17 | JM118: 2.17 | JN118: 0.99 | JO118: 0.99 | JP118: 0.99 | JQ118: 0.99 | JT118: 0.32 | JU118: 0.32 | JV118: 0.32 | JW118: 0.32 | JX118: 0.32 | JY118: 0.32 | KF118: 0.31 | KG118: 0.31 | KH118: 0.29 | KI118: 0.29 | KJ118: 0.29 | KK118: 0.29 | KR118: 0.33 | KS118: 0.33 | KT118: 0.33 | KU118: 0.33 | KV118: 0.32 | KW118: 0.32 | LD118: 0.31 | LE118: 0.31 | LF118: 0.31 | LG118: 0.31 | LH118: 0.26 | LI118: 0.26 | LP118: 0.31 | LQ118: 0.31 | LR118: 0.31 | LS118: 0.31 | LT118: 0.31 | LU118: 0.31 | MB118: 0.31 | MC118: 0.32 | MD118: 0.3 | ME118: 0.3 | MF118: 0.3 | MG118: 0.3 | MH118: 0.3 | MI118: 0.3 | MJ118: 0.31 | MK118: 0.31 | ML118: 0.31 | MM118: 0.3 | MN118: 0.33 | MO118: 0.33 | MP118: 0.3 | MQ118: 0.3 | MR118: 0.31 | MS118: 0.31 | MT118: 0.37 | MU118: 0.37 | MV118: 0.37 | MW118: 0.37 | MX118: 0.37 | MY118: 0.37 | MZ118: 0.35 | NA118: 0.35 | NB118: 0.42 | NC118: 0.42 | ND118: 0.4 | NE118: 0.4 | NF118: 0.41 | NG118: 0.41 | NH118: 0.45 | NI118: 0.45 | NL118: 0.34 | NM118: 0.34 | NN118: 0.39 | NO118: 0.39 | NP118: 0.39 | NQ118: 0.39 | NR118: 0.37 | NS118: 0.37 | NT118: 0.39 | NU118: 0.39 | NX118: 0.41 | NY118: 0.41 | NZ118: 0.64 | OA118: 0.64 | OB118: 0.64 | OC118: 0.64 | OD118: 0.67 | OE118: 0.67 | OJ118: 0.37 | OK118: 0.37 | OL118: 1.31 | OM118: 1.31 | ON118: 1.31 | OO118: 1.31 | OP118: 0.3 | OQ118: 0.3 | OR118: 0.43 | OS118: 0.43 | OV118: 0.33 | OW118: 0.33 | OX118: 0.3 | OY118: 0.3 | OZ118: 0.3 | PA118: 0.3 | PB118: 0.3 | PC118: 0.3 | PD118: 0.37 | PE118: 0.37 | PH118: 0.34 | PI118: 0.34 | PJ118: 0.31 | PK118: 0.31 | PL118: 0.31 | PM118: 0.3 | PN118: 0.3 | PO118: 0.3 | PP118: 0.38 | PQ118: 0.38 | PT118: 0.32 | PU118: 0.32 | PV118: 0.31 | PW118: 0.31 | PX118: 0.3 | PY118: 0.3 | PZ118: 0.3 | QA118: 0.3 | QB118: 0.3 | QC118: 0.3 | QD118: 0.31 | QE118: 0.31 | QF118: 0.3 | QG118: 0.3 | QH118: 0.31 | QI118: 0.31 | QJ118: 0.29 | QK118: 0.29 | QL118: 0.29 | QM118: 0.29 | QN118: 0.29 | QO118: 0.29 | QP118: 0.31 | QQ118: 0.31 | QR118: 0.3 | QS118: 0.3 | QT118: 0.31 | QU118: 0.31 | QV118: 0.29 | QW118: 0.29 | QX118: 0.29 | QY118: 0.29 | QZ118: 0.29 | RA118: 0.29 | RB118: 0.31 | RC118: 0.31 | RD118: 0.31 | RE118: 0.31 | RF118: 0.31 | RG118: 0.31 | RH118: 0.29 | RI118: 0.29 | RJ118: 0.29 | RK118: 0.29 | RL118: 0.29 | RM118: 0.29 | RN118: 0.31 | RO118: 0.31 | RP118: 0.34 | RQ118: 0.34 | RR118: 0.31 | RS118: 0.31 | RT118: 0.3 | RU118: 0.3 | RV118: 0.3 | RW118: 0.3 | RX118: 0.3 | RY118: 0.3 | RZ118: 0.31 | SA118: 0.31 | SB118: 0.32 | SC118: 0.32 | SD118: 0.31 | SE118: 0.31 | SF118: 0.3 | SG118: 0.3 | SH118: 0.3 | SI118: 0.3 | SJ118: 0.3 | SK118: 0.3 | SL118: 0.31 | SM118: 0.31 | SN118: 0.31 | SO118: 0.31 | SZ118: 0.31 | TA118: 0.31 | TX118: 0.31 | TY118: 0.31
A119: 3 | B119: 0.55 | C119: 0.55 | D119: 1.39 | E119: 1.39 | F119: 1.31 | G119: 1.31 | H119: 0.58 | I119: 0.58 | J119: 0.9 | K119: 0.9 | Z119: 0.34 | AL119: 0.41 | AM119: 0.41 | AX119: 0.43 | AY119: 0.43 | BJ119: 0.37 | BV119: 0.31 | CH119: 0.36 | CI119: 0.36 | DF119: 1.08 | DG119: 1.08 | DH119: 2.49 | DI119: 1.09 | DJ119: 0.64 | DK119: 0.64 | DL119: 0.62 | DM119: 0.62 | DN119: 0.64 | DO119: 0.64 | DP119: 0.62 | DQ119: 0.64 | DR119: 0.64 | DS119: 0.64 | DT119: 0.62 | DU119: 0.62 | DV119: 0.79 | DW119: 0.78 | DX119: 0.79 | DY119: 0.79 | DZ119: 0.78 | EA119: 0.78 | EB119: 1.19 | EC119: 1.19 | ED119: 0.72 | EE119: 0.69 | EF119: 0.69 | EG119: 0.69 | EH119: 1.1 | EI119: 1.1 | EJ119: 0.88 | EK119: 0.88 | EL119: 0.88 | EM119: 0.97 | EN119: 0.62 | EO119: 0.62 | EP119: 0.64 | EQ119: 0.64 | ER119: 0.66 | ES119: 1.38 | ET119: 0.86 | EU119: 0.86 | EV119: 0.86 | EW119: 0.86 | EX119: 0.86 | EY119: 0.39 | EZ119: 0.46 | FA119: 0.46 | FB119: 0.46 | FC119: 0.46 | FD119: 0.5 | FE119: 0.5 | FF119: 0.5 | FG119: 0.5 | FH119: 0.5 | FI119: 0.5 | FJ119: 0.33 | FK119: 0.33 | FL119: 0.33 | FM119: 0.33 | FN119: 0.31 | FO119: 0.31 | FP119: 0.55 | FQ119: 0.55 | FR119: 0.55 | FS119: 0.55 | FT119: 0.7 | FU119: 0.7 | FV119: 0.7 | FW119: 0.7 | FX119: 0.7 | FY119: 0.7 | FZ119: 0.7 | GA119: 0.7 | GB119: 0.5 | GC119: 0.5 | GD119: 0.31 | GE119: 0.31 | GF119: 0.49 | GG119: 0.49 | GH119: 0.31 | GI119: 0.31 | GJ119: 0.31 | GK119: 0.31 | GL119: 0.31 | GM119: 0.31 | GN119: 0.34 | GO119: 0.34 | GP119: 0.31 | GQ119: 0.31 | GZ119: 0.61 | HA119: 0.61 | HB119: 1.36 | HC119: 1.36 | HD119: 1.36 | HE119: 1.36 | HF119: 0.82 | HG119: 0.82 | HH119: 0.82 | HI119: 0.82 | HJ119: 0.82 | HK119: 0.82 | HL119: 0.95 | HM119: 0.95 | HN119: 0.81 | HO119: 0.81 | HP119: 0.81 | HQ119: 0.81 | HR119: 1.06 | HS119: 1.06 | HT119: 1.06 | HU119: 1.06 | HX119: 0.58 | HY119: 0.58 | HZ119: 1.22 | IA119: 1.22 | IB119: 0.84 | IC119: 0.84 | ID119: 0.77 | IE119: 0.77 | IJ119: 7.49 | IK119: 7.49 | IL119: 7.09 | IM119: 7.09 | IN119: 3.44 | IO119: 3.44 | IP119: 3.44 | IQ119: 3.44 | IV119: 7.49 | IW119: 7.49 | IX119: 7.09 | IY119: 7.09 | IZ119: 3.44 | JA119: 3.44 | JB119: 3.44 | JC119: 3.44 | JH119: 0.95 | JI119: 0.95 | JJ119: 5.67 | JK119: 5.67 | JL119: 5.67 | JM119: 5.67 | JN119: 2.8 | JO119: 2.8 | JP119: 2.8 | JQ119: 2.8 | JT119: 0.46 | JU119: 0.46 | JV119: 0.46 | JW119: 0.46 | JX119: 0.46 | JY119: 0.46 | KF119: 0.37 | KG119: 0.37 | KH119: 0.3 | KI119: 0.3 | KJ119: 0.3 | KK119: 0.3 | KR119: 0.47 | KS119: 0.47 | KT119: 0.47 | KU119: 0.47 | KV119: 0.42 | KW119: 0.42 | LD119: 0.32 | LE119: 0.32 | LF119: 0.32 | LG119: 0.32 | LH119: 0.26 | LI119: 0.26 | LP119: 0.38 | LQ119: 0.38 | LR119: 0.38 | LS119: 0.38 | LT119: 0.31 | LU119: 0.31 | MB119: 0.38 | MC119: 0.55 | MD119: 0.3 | ME119: 0.3 | MF119: 0.3 | MG119: 0.3 | MH119: 0.31 | MI119: 0.31 | MJ119: 0.32 | MK119: 0.32 | ML119: 0.32 | MM119: 0.31 | MN119: 0.48 | MO119: 0.48 | MP119: 0.33 | MQ119: 0.33 | MR119: 0.37 | MS119: 0.37 | MT119: 0.62 | MU119: 0.62 | MV119: 0.62 | MW119: 0.62 | MX119: 0.62 | MY119: 0.62 | MZ119: 0.65 | NA119: 0.65 | NB119: 0.98 | NC119: 0.98 | ND119: 0.88 | NE119: 0.88 | NF119: 0.93 | NG119: 0.93 | NH119: 1.06 | NI119: 1.06 | NL119: 0.6 | NM119: 0.6 | NN119: 0.8 | NO119: 0.8 | NP119: 0.8 | NQ119: 0.8 | NR119: 0.74 | NS119: 0.74 | NT119: 0.79 | NU119: 0.79 | NX119: 0.93 | NY119: 0.93 | NZ119: 1.65 | OA119: 1.65 | OB119: 1.65 | OC119: 1.65 | OD119: 1.72 | OE119: 1.72 | OJ119: 0.79 | OK119: 0.79 | OL119: 3.67 | OM119: 3.67 | ON119: 3.67 | OO119: 3.67 | OP119: 0.37 | OQ119: 0.37 | OR119: 0.97 | OS119: 0.97 | OV119: 0.51 | OW119: 0.51 | OX119: 0.34 | OY119: 0.34 | OZ119: 0.34 | PA119: 0.34 | PB119: 0.34 | PC119: 0.34 | PD119: 0.67 | PE119: 0.67 | PH119: 0.55 | PI119: 0.55 | PJ119: 0.35 | PK119: 0.35 | PL119: 0.35 | PM119: 0.34 | PN119: 0.34 | PO119: 0.34 | PP119: 0.71 | PQ119: 0.71 | PT119: 0.46 | PU119: 0.46 | PV119: 0.31 | PW119: 0.31 | PX119: 0.31 | PY119: 0.31 | PZ119: 0.31 | QA119: 0.31 | QB119: 0.31 | QC119: 0.31 | QD119: 0.32 | QE119: 0.32 | QF119: 0.34 | QG119: 0.34 | QH119: 0.31 | QI119: 0.31 | QJ119: 0.3 | QK119: 0.3 | QL119: 0.3 | QM119: 0.3 | QN119: 0.3 | QO119: 0.3 | QP119: 0.31 | QQ119: 0.31 | QR119: 0.35 | QS119: 0.35 | QT119: 0.31 | QU119: 0.31 | QV119: 0.3 | QW119: 0.3 | QX119: 0.3 | QY119: 0.3 | QZ119: 0.3 | RA119: 0.3 | RB119: 0.31 | RC119: 0.31 | RD119: 0.38 | RE119: 0.38 | RF119: 0.31 | RG119: 0.31 | RH119: 0.3 | RI119: 0.3 | RJ119: 0.3 | RK119: 0.3 | RL119: 0.3 | RM119: 0.3 | RN119: 0.31 | RO119: 0.31 | RP119: 0.52 | RQ119: 0.52 | RR119: 0.31 | RS119: 0.31 | RT119: 0.33 | RU119: 0.33 | RV119: 0.33 | RW119: 0.33 | RX119: 0.33 | RY119: 0.33 | RZ119: 0.32 | SA119: 0.32 | SB119: 0.41 | SC119: 0.41 | SD119: 0.31 | SE119: 0.31 | SF119: 0.31 | SG119: 0.31 | SH119: 0.31 | SI119: 0.31 | SJ119: 0.31 | SK119: 0.31 | SL119: 0.31 | SM119: 0.31 | SN119: 0.39 | SO119: 0.39 | SZ119: 0.4 | TA119: 0.4 | TX119: 0.36 | TY119: 0.36
A120: 4 | B120: 1.04 | C120: 1.04 | D120: 2.35 | E120: 2.35 | F120: 2.78 | G120: 2.78 | H120: 1.22 | I120: 1.22 | J120: 2.13 | K120: 2.13 | Z120: 0.44 | AL120: 0.64 | AM120: 0.64 | AX120: 0.69 | AY120: 0.69 | BJ120: 0.5 | BV120: 0.35 | CH120: 0.48 | CI120: 0.48 | DF120: 2.6 | DG120: 2.6 | DH120: 4.88 | DI120: 2.6 | DJ120: 1.47 | DK120: 1.47 | DL120: 1.43 | DM120: 1.43 | DN120: 1.47 | DO120: 1.47 | DP120: 1.43 | DQ120: 1.47 | DR120: 1.47 | DS120: 1.47 | DT120: 1.43 | DU120: 1.43 | DV120: 2.06 | DW120: 2.02 | DX120: 2.06 | DY120: 2.06 | DZ120: 2.02 | EA120: 2.02 | EB120: 2.91 | EC120: 2.91 | ED120: 1.53 | EE120: 1.46 | EF120: 1.46 | EG120: 1.46 | EH120: 3.65 | EI120: 3.65 | EJ120: 2.08 | EK120: 2.08 | EL120: 2.08 | EM120: 2.29 | EN120: 1.51 | EO120: 1.51 | EP120: 1.55 | EQ120: 1.55 | ER120: 1.36 | ES120: 2.54 | ET120: 1.83 | EU120: 1.83 | EV120: 1.83 | EW120: 1.83 | EX120: 1.83 | EY120: 0.61 | EZ120: 0.94 | FA120: 0.94 | FB120: 0.94 | FC120: 0.94 | FD120: 0.88 | FE120: 0.88 | FF120: 0.88 | FG120: 0.88 | FH120: 0.88 | FI120: 0.88 | FJ120: 0.4 | FK120: 0.4 | FL120: 0.41 | FM120: 0.41 | FN120: 0.41 | FO120: 0.41 | FP120: 1.04 | FQ120: 1.04 | FR120: 1.04 | FS120: 1.04 | FT120: 1.58 | FU120: 1.58 | FV120: 1.58 | FW120: 1.58 | FX120: 1.58 | FY120: 1.58 | FZ120: 1.58 | GA120: 1.58 | GB120: 0.94 | GC120: 0.94 | GD120: 0.36 | GE120: 0.36 | GF120: 0.8 | GG120: 0.8 | GH120: 0.36 | GI120: 0.36 | GJ120: 0.35 | GK120: 0.35 | GL120: 0.35 | GM120: 0.35 | GN120: 0.44 | GO120: 0.44 | GP120: 0.31 | GQ120: 0.31 | GZ120: 1.2 | HA120: 1.2 | HB120: 2.97 | HC120: 2.97 | HD120: 2.97 | HE120: 2.97 | HF120: 1.83 | HG120: 1.83 | HH120: 1.83 | HI120: 1.83 | HJ120: 1.83 | HK120: 1.83 | HL120: 2.2 | HM120: 2.2 | HN120: 1.83 | HO120: 1.83 | HP120: 1.83 | HQ120: 1.83 | HR120: 2.44 | HS120: 2.44 | HT120: 2.44 | HU120: 2.44 | HX120: 1.11 | HY120: 1.11 | HZ120: 2.65 | IA120: 2.65 | IB120: 1.95 | IC120: 1.95 | ID120: 1.68 | IE120: 1.68 | IJ120: 11.26 | IK120: 11.26 | IL120: 13.8 | IM120: 13.8 | IN120: 7.65 | IO120: 7.65 | IP120: 7.65 | IQ120: 7.65 | IV120: 11.26 | IW120: 11.26 | IX120: 13.8 | IY120: 13.8 | IZ120: 7.65 | JA120: 7.65 | JB120: 7.65 | JC120: 7.65 | JH120: 2.19 | JI120: 2.19 | JJ120: 11.3 | JK120: 11.3 | JL120: 11.3 | JM120: 11.3 | JN120: 6.34 | JO120: 6.34 | JP120: 6.34 | JQ120: 6.34 | JT120: 0.79 | JU120: 0.79 | JV120: 0.79 | JW120: 0.79 | JX120: 0.79 | JY120: 0.79 | KF120: 0.51 | KG120: 0.51 | KH120: 0.35 | KI120: 0.35 | KJ120: 0.35 | KK120: 0.35 | KR120: 0.81 | KS120: 0.81 | KT120: 0.81 | KU120: 0.81 | KV120: 0.79 | KW120: 0.79 | LD120: 0.35 | LE120: 0.35 | LF120: 0.35 | LG120: 0.35 | LH120: 0.26 | LI120: 0.26 | LP120: 0.54 | LQ120: 0.54 | LR120: 0.54 | LS120: 0.54 | LT120: 0.33 | LU120: 0.33 | MB120: 0.54 | MC120: 0.81 | MD120: 0.33 | ME120: 0.33 | MF120: 0.33 | MG120: 0.33 | MH120: 0.36 | MI120: 0.36 | MJ120: 0.35 | MK120: 0.35 | ML120: 0.35 | MM120: 0.35 | MN120: 0.89 | MO120: 0.89 | MP120: 0.43 | MQ120: 0.43 | MR120: 0.53 | MS120: 0.53 | MT120: 1.4 | MU120: 1.4 | MV120: 1.4 | MW120: 1.4 | MX120: 1.4 | MY120: 1.4 | MZ120: 1.29 | NA120: 1.29 | NB120: 2.19 | NC120: 2.19 | ND120: 1.97 | NE120: 1.97 | NF120: 2.08 | NG120: 2.08 | NH120: 2.39 | NI120: 2.39 | NL120: 1.03 | NM120: 1.03 | NN120: 1.54 | NO120: 1.54 | NP120: 1.54 | NQ120: 1.54 | NR120: 1.42 | NS120: 1.42 | NT120: 1.52 | NU120: 1.52 | NX120: 2.35 | NY120: 2.35 | NZ120: 4.08 | OA120: 4.08 | OB120: 4.08 | OC120: 4.08 | OD120: 4.25 | OE120: 4.25 | OJ120: 1.61 | OK120: 1.61 | OL120: 7.09 | OM120: 7.09 | ON120: 7.09 | OO120: 7.09 | OP120: 0.58 | OQ120: 0.58 | OR120: 2.07 | OS120: 2.07 | OV120: 0.96 | OW120: 0.96 | OX120: 0.45 | OY120: 0.45 | OZ120: 0.44 | PA120: 0.44 | PB120: 0.43 | PC120: 0.43 | PD120: 1.49 | PE120: 1.49 | PH120: 1.06 | PI120: 1.06 | PJ120: 0.48 | PK120: 0.48 | PL120: 0.48 | PM120: 0.46 | PN120: 0.46 | PO120: 0.46 | PP120: 1.53 | PQ120: 1.53 | PT120: 0.76 | PU120: 0.76 | PV120: 0.33 | PW120: 0.33 | PX120: 0.36 | PY120: 0.36 | PZ120: 0.36 | QA120: 0.36 | QB120: 0.36 | QC120: 0.36 | QD120: 0.35 | QE120: 0.35 | QF120: 0.43 | QG120: 0.43 | QH120: 0.31 | QI120: 0.31 | QJ120: 0.31 | QK120: 0.31 | QL120: 0.31 | QM120: 0.31 | QN120: 0.31 | QO120: 0.31 | QP120: 0.32 | QQ120: 0.32 | QR120: 0.45 | QS120: 0.45 | QT120: 0.31 | QU120: 0.31 | QV120: 0.31 | QW120: 0.31 | QX120: 0.31 | QY120: 0.31 | QZ120: 0.31 | RA120: 0.31 | RB120: 0.32 | RC120: 0.32 | RD120: 0.54 | RE120: 0.54 | RF120: 0.32 | RG120: 0.32 | RH120: 0.32 | RI120: 0.32 | RJ120: 0.32 | RK120: 0.32 | RL120: 0.32 | RM120: 0.32 | RN120: 0.33 | RO120: 0.33 | RP120: 0.95 | RQ120: 0.95 | RR120: 0.34 | RS120: 0.34 | RT120: 0.4 | RU120: 0.4 | RV120: 0.4 | RW120: 0.4 | RX120: 0.4 | RY120: 0.4 | RZ120: 0.38 | SA120: 0.38 | SB120: 0.64 | SC120: 0.64 | SD120: 0.32 | SE120: 0.32 | SF120: 0.33 | SG120: 0.33 | SH120: 0.33 | SI120: 0.33 | SJ120: 0.33 | SK120: 0.33 | SL120: 0.34 | SM120: 0.34 | SN120: 0.58 | SO120: 0.58 | SZ120: 0.61 | TA120: 0.61 | TX120: 0.49 | TY120: 0.49
A121: 5 | B121: 1.85 | C121: 1.85 | D121: 3.59 | E121: 3.59 | F121: 5.1 | G121: 5.1 | H121: 2.43 | I121: 2.43 | J121: 4.65 | K121: 4.65 | Z121: 0.59 | AL121: 1.01 | AM121: 1.01 | AX121: 1.11 | AY121: 1.11 | BJ121: 0.73 | BV121: 0.41 | CH121: 0.68 | CI121: 0.68 | DF121: 5.11 | DG121: 5.11 | DH121: 8.22 | DI121: 5.12 | DJ121: 3.13 | DK121: 3.13 | DL121: 3.03 | DM121: 3.03 | DN121: 3.13 | DO121: 3.13 | DP121: 3.03 | DQ121: 3.13 | DR121: 3.13 | DS121: 3.13 | DT121: 3.03 | DU121: 3.03 | DV121: 4.56 | DW121: 4.45 | DX121: 4.56 | DY121: 4.56 | DZ121: 4.45 | EA121: 4.45 | EB121: 5.93 | EC121: 5.93 | ED121: 2.87 | EE121: 2.74 | EF121: 2.74 | EG121: 2.74 | EH121: 5.64 | EI121: 5.64 | EJ121: 4.23 | EK121: 4.23 | EL121: 4.23 | EM121: 4.62 | EN121: 3.3 | EO121: 3.3 | EP121: 3.37 | EQ121: 3.37 | ER121: 2.52 | ES121: 4.14 | ET121: 3.22 | EU121: 3.22 | EV121: 3.22 | EW121: 3.22 | EX121: 3.22 | EY121: 1.03 | EZ121: 2 | FA121: 2 | FB121: 2 | FC121: 2 | FD121: 1.52 | FE121: 1.52 | FF121: 1.52 | FG121: 1.52 | FH121: 1.52 | FI121: 1.52 | FJ121: 0.57 | FK121: 0.57 | FL121: 0.57 | FM121: 0.57 | FN121: 0.58 | FO121: 0.58 | FP121: 1.85 | FQ121: 1.85 | FR121: 1.85 | FS121: 1.85 | FT121: 3.21 | FU121: 3.21 | FV121: 3.21 | FW121: 3.21 | FX121: 3.21 | FY121: 3.21 | FZ121: 3.21 | GA121: 3.21 | GB121: 1.76 | GC121: 1.76 | GD121: 0.45 | GE121: 0.45 | GF121: 1.28 | GG121: 1.28 | GH121: 0.47 | GI121: 0.47 | GJ121: 0.43 | GK121: 0.43 | GL121: 0.43 | GM121: 0.43 | GN121: 0.6 | GO121: 0.6 | GP121: 0.33 | GQ121: 0.33 | GZ121: 2.17 | HA121: 2.17 | HB121: 5.5 | HC121: 5.5 | HD121: 5.5 | HE121: 5.5 | HF121: 3.62 | HG121: 3.62 | HH121: 3.62 | HI121: 3.62 | HJ121: 3.62 | HK121: 3.62 | HL121: 4.44 | HM121: 4.44 | HN121: 3.69 | HO121: 3.69 | HP121: 3.69 | HQ121: 3.69 | HR121: 4.84 | HS121: 4.84 | HT121: 4.84 | HU121: 4.84 | HX121: 2 | HY121: 2 | HZ121: 4.93 | IA121: 4.93 | IB121: 3.88 | IC121: 3.88 | ID121: 3.35 | IE121: 3.35 | IJ121: 15.65 | IK121: 15.65 | IL121: 22.62 | IM121: 22.62 | IN121: 13.95 | IO121: 13.95 | IP121: 13.95 | IQ121: 13.95 | IV121: 15.65 | IW121: 15.65 | IX121: 22.62 | IY121: 22.62 | IZ121: 13.95 | JA121: 13.95 | JB121: 13.95 | JC121: 13.95 | JH121: 4.25 | JI121: 4.25 | JJ121: 18.9 | JK121: 18.9 | JL121: 18.9 | JM121: 18.9 | JN121: 11.75 | JO121: 11.75 | JP121: 11.75 | JQ121: 11.75 | JT121: 1.32 | JU121: 1.32 | JV121: 1.32 | JW121: 1.32 | JX121: 1.32 | JY121: 1.32 | KF121: 0.75 | KG121: 0.75 | KH121: 0.44 | KI121: 0.44 | KJ121: 0.44 | KK121: 0.44 | KR121: 1.38 | KS121: 1.38 | KT121: 1.38 | KU121: 1.38 | KV121: 1.6 | KW121: 1.6 | LD121: 0.42 | LE121: 0.42 | LF121: 0.42 | LG121: 0.42 | LH121: 0.26 | LI121: 0.26 | LP121: 0.8 | LQ121: 0.8 | LR121: 0.8 | LS121: 0.8 | LT121: 0.37 | LU121: 0.37 | MB121: 0.76 | MC121: 1.11 | MD121: 0.37 | ME121: 0.37 | MF121: 0.37 | MG121: 0.37 | MH121: 0.42 | MI121: 0.42 | MJ121: 0.4 | MK121: 0.4 | ML121: 0.4 | MM121: 0.42 | MN121: 1.43 | MO121: 1.43 | MP121: 0.58 | MQ121: 0.58 | MR121: 0.75 | MS121: 0.75 | MT121: 2.55 | MU121: 2.55 | MV121: 2.55 | MW121: 2.55 | MX121: 2.55 | MY121: 2.55 | MZ121: 1.98 | NA121: 1.98 | NB121: 3.6 | NC121: 3.6 | ND121: 3.27 | NE121: 3.27 | NF121: 3.435 | NG121: 3.435 | NH121: 3.92 | NI121: 3.92 | NL121: 1.73 | NM121: 1.73 | NN121: 2.83 | NO121: 2.83 | NP121: 2.83 | NQ121: 2.83 | NR121: 2.64 | NS121: 2.64 | NT121: 2.82 | NU121: 2.82 | NX121: 3.81 | NY121: 3.81 | NZ121: 6.46 | OA121: 6.46 | OB121: 6.46 | OC121: 6.46 | OD121: 6.72 | OE121: 6.72 | OJ121: 2.71 | OK121: 2.71 | OL121: 10.9 | OM121: 10.9 | ON121: 10.9 | OO121: 10.9 | OP121: 0.95 | OQ121: 0.95 | OR121: 3.61 | OS121: 3.61 | OV121: 1.53 | OW121: 1.53 | OX121: 0.62 | OY121: 0.62 | OZ121: 0.59 | PA121: 0.59 | PB121: 0.58 | PC121: 0.58 | PD121: 2.68 | PE121: 2.68 | PH121: 1.73 | PI121: 1.73 | PJ121: 0.71 | PK121: 0.71 | PL121: 0.71 | PM121: 0.66 | PN121: 0.66 | PO121: 0.66 | PP121: 3.03 | PQ121: 3.03 | PT121: 1.27 | PU121: 1.27 | PV121: 0.37 | PW121: 0.37 | PX121: 0.45 | PY121: 0.45 | PZ121: 0.45 | QA121: 0.45 | QB121: 0.45 | QC121: 0.45 | QD121: 0.42 | QE121: 0.42 | QF121: 0.57 | QG121: 0.57 | QH121: 0.32 | QI121: 0.32 | QJ121: 0.33 | QK121: 0.33 | QL121: 0.33 | QM121: 0.33 | QN121: 0.33 | QO121: 0.33 | QP121: 0.33 | QQ121: 0.33 | QR121: 0.62 | QS121: 0.62 | QT121: 0.32 | QU121: 0.32 | QV121: 0.33 | QW121: 0.33 | QX121: 0.33 | QY121: 0.33 | QZ121: 0.33 | RA121: 0.33 | RB121: 0.34 | RC121: 0.34 | RD121: 0.81 | RE121: 0.81 | RF121: 0.34 | RG121: 0.34 | RH121: 0.36 | RI121: 0.36 | RJ121: 0.36 | RK121: 0.36 | RL121: 0.36 | RM121: 0.36 | RN121: 0.36 | RO121: 0.36 | RP121: 1.67 | RQ121: 1.67 | RR121: 0.42 | RS121: 0.42 | RT121: 0.54 | RU121: 0.54 | RV121: 0.54 | RW121: 0.54 | RX121: 0.54 | RY121: 0.54 | RZ121: 0.5 | SA121: 0.5 | SB121: 1.01 | SC121: 1.01 | SD121: 0.35 | SE121: 0.35 | SF121: 0.4 | SG121: 0.4 | SH121: 0.4 | SI121: 0.4 | SJ121: 0.4 | SK121: 0.4 | SL121: 0.39 | SM121: 0.39 | SN121: 0.9 | SO121: 0.9 | SZ121: 0.95 | TA121: 0.95 | TX121: 0.71 | TY121: 0.71
A122: 6 | B122: 2.96 | C122: 2.96 | D122: 5.1 | E122: 5.1 | F122: 8.27 | G122: 8.27 | H122: 4.31 | I122: 4.31 | J122: 8.39 | K122: 8.39 | Z122: 0.81 | AL122: 1.53 | AM122: 1.53 | AX122: 1.7 | AY122: 1.7 | BJ122: 1.05 | BV122: 0.49 | CH122: 0.96 | CI122: 0.96 | DF122: 8.6 | DG122: 8.6 | DH122: 12.42 | DI122: 8.61 | DJ122: 5.76 | DK122: 5.76 | DL122: 5.56 | DM122: 5.56 | DN122: 5.76 | DO122: 5.76 | DP122: 5.56 | DQ122: 5.76 | DR122: 5.76 | DS122: 5.76 | DT122: 5.56 | DU122: 5.56 | DV122: 8.46 | DW122: 8.24 | DX122: 8.46 | DY122: 8.46 | DZ122: 8.24 | EA122: 8.24 | EB122: 10.31 | EC122: 10.31 | ED122: 4.72 | EE122: 4.52 | EF122: 4.52 | EG122: 4.52 | EH122: 8.03 | EI122: 8.03 | EJ122: 7.4 | EK122: 7.4 | EL122: 7.4 | EM122: 8.02 | EN122: 6.15 | EO122: 6.15 | EP122: 6.25 | EQ122: 6.25 | ER122: 4.12 | ES122: 6.13 | ET122: 5.02 | EU122: 5.02 | EV122: 5.02 | EW122: 5.02 | EX122: 5.02 | EY122: 1.67 | EZ122: 3.78 | FA122: 3.78 | FB122: 3.78 | FC122: 3.78 | FD122: 2.41 | FE122: 2.41 | FF122: 2.41 | FG122: 2.41 | FH122: 2.41 | FI122: 2.41 | FJ122: 0.84 | FK122: 0.84 | FL122: 0.84 | FM122: 0.84 | FN122: 0.85 | FO122: 0.85 | FP122: 2.97 | FQ122: 2.97 | FR122: 2.97 | FS122: 2.97 | FT122: 5.67 | FU122: 5.67 | FV122: 5.67 | FW122: 5.67 | FX122: 5.67 | FY122: 5.67 | FZ122: 5.67 | GA122: 5.67 | GB122: 2.99 | GC122: 2.99 | GD122: 0.59 | GE122: 0.59 | GF122: 1.93 | GG122: 1.93 | GH122: 0.65 | GI122: 0.65 | GJ122: 0.58 | GK122: 0.58 | GL122: 0.58 | GM122: 0.58 | GN122: 0.82 | GO122: 0.82 | GP122: 0.37 | GQ122: 0.37 | GZ122: 3.53 | HA122: 3.53 | HB122: 8.95 | HC122: 8.95 | HD122: 8.95 | HE122: 8.95 | HF122: 6.32 | HG122: 6.32 | HH122: 6.32 | HI122: 6.32 | HJ122: 6.32 | HK122: 6.32 | HL122: 7.79 | HM122: 7.79 | HN122: 6.48 | HO122: 6.48 | HP122: 6.48 | HQ122: 6.48 | HR122: 8.34 | HS122: 8.34 | HT122: 8.34 | HU122: 8.34 | HX122: 3.23 | HY122: 3.23 | HZ122: 8.07 | IA122: 8.07 | IB122: 6.69 | IC122: 6.69 | ID122: 5.87 | IE122: 5.87 | IJ122: 20.55 | IK122: 20.55 | IL122: 33.11 | IM122: 33.11 | IN122: 22.19 | IO122: 22.19 | IP122: 22.19 | IQ122: 22.19 | IV122: 20.55 | IW122: 20.55 | IX122: 33.11 | IY122: 33.11 | IZ122: 22.19 | JA122: 22.19 | JB122: 22.19 | JC122: 22.19 | JH122: 7.1 | JI122: 7.1 | JJ122: 28.08 | JK122: 28.08 | JL122: 28.08 | JM122: 28.08 | JN122: 18.97 | JO122: 18.97 | JP122: 18.97 | JQ122: 18.97 | JT122: 2.07 | JU122: 2.07 | JV122: 2.07 | JW122: 2.07 | JX122: 2.07 | JY122: 2.07 | KF122: 1.08 | KG122: 1.08 | KH122: 0.59 | KI122: 0.59 | KJ122: 0.59 | KK122: 0.59 | KR122: 2.16 | KS122: 2.16 | KT122: 2.16 | KU122: 2.16 | KV122: 2.99 | KW122: 2.99 | LD122: 0.55 | LE122: 0.55 | LF122: 0.55 | LG122: 0.55 | LH122: 0.28 | LI122: 0.28 | LP122: 1.17 | LQ122: 1.17 | LR122: 1.17 | LS122: 1.17 | LT122: 0.44 | LU122: 0.44 | MB122: 1.32 | MC122: 1.82 | MD122: 0.5 | ME122: 0.5 | MF122: 0.49 | MG122: 0.49 | MH122: 0.62 | MI122: 0.62 | MJ122: 0.56 | MK122: 0.56 | ML122: 0.56 | MM122: 0.6 | MN122: 2.75 | MO122: 2.75 | MP122: 1 | MQ122: 1 | MR122: 1.34 | MS122: 1.34 | MT122: 5.69 | MU122: 5.69 | MV122: 5.69 | MW122: 5.69 | MX122: 5.69 | MY122: 5.69 | MZ122: 4.31 | NA122: 4.31 | NB122: 8.66 | NC122: 8.66 | ND122: 7.97 | NE122: 7.97 | NF122: 8.315 | NG122: 8.315 | NH122: 9.39 | NI122: 9.39 | NL122: 3.57 | NM122: 3.57 | NN122: 6.49 | NO122: 6.49 | NP122: 6.49 | NQ122: 6.49 | NR122: 6.11 | NS122: 6.11 | NT122: 6.52 | NU122: 6.52 | NX122: 6.94 | NY122: 6.94 | NZ122: 11.48 | OA122: 11.48 | OB122: 11.48 | OC122: 11.48 | OD122: 11.93 | OE122: 11.93 | OJ122: 4.9 | OK122: 4.9 | OL122: 17.69 | OM122: 17.69 | ON122: 17.69 | OO122: 17.69 | OP122: 1.91 | OQ122: 1.91 | OR122: 6.9 | OS122: 6.9 | OV122: 2.7 | OW122: 2.7 | OX122: 0.99 | OY122: 0.99 | OZ122: 0.94 | PA122: 0.94 | PB122: 0.93 | PC122: 0.93 | PD122: 5.34 | PE122: 5.34 | PH122: 2.95 | PI122: 2.95 | PJ122: 1.06 | PK122: 1.06 | PL122: 1.06 | PM122: 0.99 | PN122: 0.99 | PO122: 0.99 | PP122: 5.31 | PQ122: 5.31 | PT122: 1.97 | PU122: 1.97 | PV122: 0.46 | PW122: 0.46 | PX122: 0.59 | PY122: 0.59 | PZ122: 0.59 | QA122: 0.59 | QB122: 0.59 | QC122: 0.59 | QD122: 0.55 | QE122: 0.55 | QF122: 0.77 | QG122: 0.77 | QH122: 0.34 | QI122: 0.34 | QJ122: 0.36 | QK122: 0.36 | QL122: 0.36 | QM122: 0.36 | QN122: 0.36 | QO122: 0.36 | QP122: 0.36 | QQ122: 0.36 | QR122: 0.85 | QS122: 0.85 | QT122: 0.35 | QU122: 0.35 | QV122: 0.37 | QW122: 0.37 | QX122: 0.37 | QY122: 0.37 | QZ122: 0.37 | RA122: 0.37 | RB122: 0.37 | RC122: 0.37 | RD122: 1.18 | RE122: 1.18 | RF122: 0.37 | RG122: 0.37 | RH122: 0.43 | RI122: 0.43 | RJ122: 0.43 | RK122: 0.43 | RL122: 0.43 | RM122: 0.43 | RN122: 0.42 | RO122: 0.42 | RP122: 2.65 | RQ122: 2.65 | RR122: 0.56 | RS122: 0.56 | RT122: 0.77 | RU122: 0.77 | RV122: 0.77 | RW122: 0.77 | RX122: 0.77 | RY122: 0.77 | RZ122: 0.7 | SA122: 0.7 | SB122: 1.53 | SC122: 1.53 | SD122: 0.41 | SE122: 0.41 | SF122: 0.5 | SG122: 0.5 | SH122: 0.5 | SI122: 0.5 | SJ122: 0.5 | SK122: 0.5 | SL122: 0.47 | SM122: 0.47 | SN122: 1.33 | SO122: 1.33 | SZ122: 1.43 | TA122: 1.43 | TX122: 1.01 | TY122: 1.01
A123: 7 | B123: 4.35 | C123: 4.35 | D123: 6.8 | E123: 6.8 | F123: 12.24 | G123: 12.24 | H123: 7.11 | I123: 7.11 | J123: 13.24 | K123: 13.24 | Z123: 1.08 | AL123: 2.17 | AM123: 2.17 | AX123: 2.44 | AY123: 2.44 | BJ123: 1.44 | BV123: 0.59 | CH123: 1.31 | CI123: 1.31 | DF123: 12.96 | DG123: 12.96 | DH123: 17.3 | DI123: 12.96 | DJ123: 9.41 | DK123: 9.41 | DL123: 9.08 | DM123: 9.08 | DN123: 9.41 | DO123: 9.41 | DP123: 9.08 | DQ123: 9.41 | DR123: 9.41 | DS123: 9.41 | DT123: 9.08 | DU123: 9.08 | DV123: 13.76 | DW123: 13.39 | DX123: 13.76 | DY123: 13.76 | DZ123: 13.39 | EA123: 13.39 | EB123: 16.02 | EC123: 16.02 | ED123: 7.03 | EE123: 6.73 | EF123: 6.73 | EG123: 6.73 | EH123: 10.76 | EI123: 10.76 | EJ123: 11.58 | EK123: 11.58 | EL123: 11.58 | EM123: 12.46 | EN123: 10.07 | EO123: 10.07 | EP123: 10.2 | EQ123: 10.2 | ER123: 6.12 | ES123: 8.46 | ET123: 7.19 | EU123: 7.19 | EV123: 7.19 | EW123: 7.19 | EX123: 7.19 | EY123: 2.56 | EZ123: 6.32 | FA123: 6.32 | FB123: 6.32 | FC123: 6.32 | FD123: 3.51 | FE123: 3.51 | FF123: 3.51 | FG123: 3.51 | FH123: 3.51 | FI123: 3.51 | FJ123: 1.22 | FK123: 1.22 | FL123: 1.23 | FM123: 1.23 | FN123: 1.23 | FO123: 1.23 | FP123: 4.37 | FQ123: 4.37 | FR123: 4.37 | FS123: 4.37 | FT123: 8.96 | FU123: 8.96 | FV123: 8.96 | FW123: 8.96 | FX123: 8.96 | FY123: 8.96 | FZ123: 8.96 | GA123: 8.96 | GB123: 4.65 | GC123: 4.65 | GD123: 0.85 | GE123: 0.85 | GF123: 2.73 | GG123: 2.73 | GH123: 0.9 | GI123: 0.9 | GJ123: 0.8 | GK123: 0.8 | GL123: 0.8 | GM123: 0.8 | GN123: 1.1 | GO123: 1.1 | GP123: 0.42 | GQ123: 0.42 | GZ123: 5.21 | HA123: 5.21 | HB123: 13.24 | HC123: 13.24 | HD123: 13.24 | HE123: 13.24 | HF123: 9.91 | HG123: 9.91 | HH123: 9.91 | HI123: 9.91 | HJ123: 9.91 | HK123: 9.91 | HL123: 12.27 | HM123: 12.27 | HN123: 10.24 | HO123: 10.24 | HP123: 10.24 | HQ123: 10.24 | HR123: 12.93 | HS123: 12.93 | HT123: 12.93 | HU123: 12.93 | HX123: 4.76 | HY123: 4.76 | HZ123: 12 | IA123: 12 | IB123: 10.35 | IC123: 10.35 | ID123: 9.25 | IE123: 9.25 | IJ123: 25.38 | IK123: 25.38 | IL123: 44.41 | IM123: 44.41 | IN123: 32.15 | IO123: 32.15 | IP123: 32.15 | IQ123: 32.15 | IV123: 25.38 | IW123: 25.38 | IX123: 44.41 | IY123: 44.41 | IZ123: 32.15 | JA123: 32.15 | JB123: 32.15 | JC123: 32.15 | JH123: 10.66 | JI123: 10.66 | JJ123: 38.57 | JK123: 38.57 | JL123: 38.57 | JM123: 38.57 | JN123: 27.79 | JO123: 27.79 | JP123: 27.79 | JQ123: 27.79 | JT123: 3 | JU123: 3 | JV123: 3 | JW123: 3 | JX123: 3 | JY123: 3 | KF123: 1.49 | KG123: 1.49 | KH123: 0.81 | KI123: 0.81 | KJ123: 0.81 | KK123: 0.81 | KR123: 3.12 | KS123: 3.12 | KT123: 3.12 | KU123: 3.12 | KV123: 5.01 | KW123: 5.01 | LD123: 0.73 | LE123: 0.73 | LF123: 0.73 | LG123: 0.73 | LH123: 0.29 | LI123: 0.29 | LP123: 1.62 | LQ123: 1.62 | LR123: 1.62 | LS123: 1.62 | LT123: 0.55 | LU123: 0.55 | MB123: 1.94 | MC123: 2.54 | MD123: 0.67 | ME123: 0.67 | MF123: 0.65 | MG123: 0.65 | MH123: 0.85 | MI123: 0.85 | MJ123: 0.75 | MK123: 0.75 | ML123: 0.76 | MM123: 0.83 | MN123: 4.19 | MO123: 4.19 | MP123: 1.5 | MQ123: 1.5 | MR123: 2.03 | MS123: 2.03 | MT123: 9.43 | MU123: 9.43 | MV123: 9.43 | MW123: 9.43 | MX123: 9.43 | MY123: 9.43 | MZ123: 6.55 | NA123: 6.55 | NB123: 13.86 | NC123: 13.86 | ND123: 12.85 | NE123: 12.85 | NF123: 13.355 | NG123: 13.355 | NH123: 14.99 | NI123: 14.99 | NL123: 5.43 | NM123: 5.43 | NN123: 10.48 | NO123: 10.48 | NP123: 10.48 | NQ123: 10.48 | NR123: 9.94 | NS123: 9.94 | NT123: 10.57 | NU123: 10.57 | NX123: 10.66 | NY123: 10.66 | NZ123: 17.47 | OA123: 17.47 | OB123: 17.47 | OC123: 17.47 | OD123: 18.13 | OE123: 18.13 | OJ123: 7.18 | OK123: 7.18 | OL123: 24.26 | OM123: 24.26 | ON123: 24.26 | OO123: 24.26 | OP123: 3.14 | OQ123: 3.14 | OR123: 10.53 | OS123: 10.53 | OV123: 3.85 | OW123: 3.85 | OX123: 1.41 | OY123: 1.41 | OZ123: 1.33 | PA123: 1.33 | PB123: 1.31 | PC123: 1.31 | PD123: 8.22 | PE123: 8.22 | PH123: 4.17 | PI123: 4.17 | PJ123: 1.55 | PK123: 1.55 | PL123: 1.55 | PM123: 1.43 | PN123: 1.43 | PO123: 1.43 | PP123: 8.38 | PQ123: 8.38 | PT123: 2.84 | PU123: 2.84 | PV123: 0.6 | PW123: 0.6 | PX123: 0.8 | PY123: 0.8 | PZ123: 0.8 | QA123: 0.8 | QB123: 0.8 | QC123: 0.8 | QD123: 0.75 | QE123: 0.75 | QF123: 1.01 | QG123: 1.01 | QH123: 0.37 | QI123: 0.37 | QJ123: 0.41 | QK123: 0.41 | QL123: 0.41 | QM123: 0.41 | QN123: 0.41 | QO123: 0.41 | QP123: 0.41 | QQ123: 0.41 | QR123: 1.14 | QS123: 1.14 | QT123: 0.38 | QU123: 0.38 | QV123: 0.43 | QW123: 0.43 | QX123: 0.43 | QY123: 0.43 | QZ123: 0.43 | RA123: 0.43 | RB123: 0.43 | RC123: 0.43 | RD123: 1.64 | RE123: 1.64 | RF123: 0.44 | RG123: 0.44 | RH123: 0.53 | RI123: 0.53 | RJ123: 0.53 | RK123: 0.53 | RL123: 0.53 | RM123: 0.53 | RN123: 0.51 | RO123: 0.51 | RP123: 3.88 | RQ123: 3.88 | RR123: 0.77 | RS123: 0.77 | RT123: 1.1 | RU123: 1.1 | RV123: 1.1 | RW123: 1.1 | RX123: 1.1 | RY123: 1.1 | RZ123: 1 | SA123: 1 | SB123: 2.17 | SC123: 2.17 | SD123: 0.5 | SE123: 0.5 | SF123: 0.64 | SG123: 0.64 | SH123: 0.64 | SI123: 0.64 | SJ123: 0.64 | SK123: 0.64 | SL123: 0.61 | SM123: 0.61 | SN123: 1.87 | SO123: 1.87 | SZ123: 2.02 | TA123: 2.02 | TX123: 1.39 | TY123: 1.39
A124: 8 | B124: 5.97 | C124: 5.97 | D124: 8.6 | E124: 8.6 | F124: 16.93 | G124: 16.93 | H124: 11.18 | I124: 11.18 | J124: 19.54 | K124: 19.54 | Z124: 1.39 | AL124: 2.92 | AM124: 2.92 | AX124: 3.29 | AY124: 3.29 | BJ124: 1.9 | BV124: 0.71 | CH124: 1.71 | CI124: 1.71 | DF124: 18.03 | DG124: 18.03 | DH124: 22.78 | DI124: 18.04 | DJ124: 14.07 | DK124: 14.07 | DL124: 13.58 | DM124: 13.58 | DN124: 14.07 | DO124: 14.07 | DP124: 13.58 | DQ124: 14.07 | DR124: 14.07 | DS124: 14.07 | DT124: 13.58 | DU124: 13.58 | DV124: 20.35 | DW124: 19.8 | DX124: 20.35 | DY124: 20.35 | DZ124: 19.8 | EA124: 19.8 | EB124: 22.93 | EC124: 22.93 | ED124: 9.71 | EE124: 9.31 | EF124: 9.31 | EG124: 9.31 | EH124: 13.62 | EI124: 13.62 | EJ124: 16.71 | EK124: 16.71 | EL124: 16.71 | EM124: 17.86 | EN124: 14.68 | EO124: 14.68 | EP124: 14.93 | EQ124: 14.93 | ER124: 8.44 | ES124: 11.04 | ET124: 9.65 | EU124: 9.65 | EV124: 9.65 | EW124: 9.65 | EX124: 9.65 | EY124: 3.68 | EZ124: 9.63 | FA124: 9.63 | FB124: 9.63 | FC124: 9.63 | FD124: 4.8 | FE124: 4.8 | FF124: 4.8 | FG124: 4.8 | FH124: 4.8 | FI124: 4.8 | FJ124: 1.72 | FK124: 1.72 | FL124: 1.73 | FM124: 1.73 | FN124: 1.73 | FO124: 1.73 | FP124: 5.99 | FQ124: 5.99 | FR124: 5.99 | FS124: 5.99 | FT124: 13.04 | FU124: 13.04 | FV124: 13.04 | FW124: 13.04 | FX124: 13.04 | FY124: 13.04 | FZ124: 13.04 | GA124: 13.04 | GB124: 6.7 | GC124: 6.7 | GD124: 1.19 | GE124: 1.19 | GF124: 3.65 | GG124: 3.65 | GH124: 1.24 | GI124: 1.24 | GJ124: 1.11 | GK124: 1.11 | GL124: 1.11 | GM124: 1.11 | GN124: 1.42 | GO124: 1.42 | GP124: 0.5 | GQ124: 0.5 | GZ124: 7.17 | HA124: 7.17 | HB124: 18.28 | HC124: 18.28 | HD124: 18.28 | HE124: 18.28 | HF124: 14.37 | HG124: 14.37 | HH124: 14.37 | HI124: 14.37 | HJ124: 14.37 | HK124: 14.37 | HL124: 17.82 | HM124: 17.82 | HN124: 14.93 | HO124: 14.93 | HP124: 14.93 | HQ124: 14.93 | HR124: 18.54 | HS124: 18.54 | HT124: 18.54 | HU124: 18.54 | HX124: 6.54 | HY124: 6.54 | HZ124: 16.64 | IA124: 16.64 | IB124: 14.76 | IC124: 14.76 | ID124: 13.48 | IE124: 13.48 | IJ124: 30.06 | IK124: 30.06 | IL124: 55.41 | IM124: 55.41 | IN124: 43.54 | IO124: 43.54 | IP124: 43.54 | IQ124: 43.54 | IV124: 30.06 | IW124: 30.06 | IX124: 55.41 | IY124: 55.41 | IZ124: 43.54 | JA124: 43.54 | JB124: 43.54 | JC124: 43.54 | JH124: 14.8 | JI124: 14.8 | JJ124: 48.91 | JK124: 48.91 | JL124: 48.91 | JM124: 48.91 | JN124: 38 | JO124: 38 | JP124: 38 | JQ124: 38 | JT124: 4.08 | JU124: 4.08 | JV124: 4.08 | JW124: 4.08 | JX124: 4.08 | JY124: 4.08 | KF124: 1.96 | KG124: 1.96 | KH124: 1.09 | KI124: 1.09 | KJ124: 1.09 | KK124: 1.09 | KR124: 4.25 | KS124: 4.25 | KT124: 4.25 | KU124: 4.25 | KV124: 7.67 | KW124: 7.67 | LD124: 0.97 | LE124: 0.97 | LF124: 0.97 | LG124: 0.97 | LH124: 0.32 | LI124: 0.32 | LP124: 2.15 | LQ124: 2.15 | LR124: 2.15 | LS124: 2.15 | LT124: 0.7 | LU124: 0.7 | MB124: 2.63 | MC124: 3.3 | MD124: 0.87 | ME124: 0.87 | MF124: 0.85 | MG124: 0.85 | MH124: 1.13 | MI124: 1.13 | MJ124: 0.98 | MK124: 0.98 | ML124: 1 | MM124: 1.1 | MN124: 5.59 | MO124: 5.59 | MP124: 2.03 | MQ124: 2.03 | MR124: 2.74 | MS124: 2.74 | MT124: 13.37 | MU124: 13.37 | MV124: 13.37 | MW124: 13.37 | MX124: 13.37 | MY124: 13.37 | MZ124: 9.15 | NA124: 9.15 | NB124: 20.24 | NC124: 20.24 | ND124: 18.89 | NE124: 18.89 | NF124: 19.565 | NG124: 19.565 | NH124: 21.81 | NI124: 21.81 | NL124: 7.51 | NM124: 7.51 | NN124: 15.25 | NO124: 15.25 | NP124: 15.25 | NQ124: 15.25 | NR124: 14.56 | NS124: 14.56 | NT124: 15.42 | NU124: 15.42 | NX124: 14.48 | NY124: 14.48 | NZ124: 23.67 | OA124: 23.67 | OB124: 23.67 | OC124: 23.67 | OD124: 24.53 | OE124: 24.53 | OJ124: 10.07 | OK124: 10.07 | OL124: 31.77 | OM124: 31.77 | ON124: 31.77 | OO124: 31.77 | OP124: 4.97 | OQ124: 4.97 | OR124: 15.36 | OS124: 15.36 | OV124: 5.34 | OW124: 5.34 | OX124: 1.99 | OY124: 1.99 | OZ124: 1.88 | PA124: 1.88 | PB124: 1.85 | PC124: 1.85 | PD124: 12.24 | PE124: 12.24 | PH124: 6.04 | PI124: 6.04 | PJ124: 2.15 | PK124: 2.15 | PL124: 2.15 | PM124: 2 | PN124: 2 | PO124: 2 | PP124: 12.22 | PQ124: 12.22 | PT124: 3.86 | PU124: 3.86 | PV124: 0.79 | PW124: 0.79 | PX124: 1.08 | PY124: 1.08 | PZ124: 1.08 | QA124: 1.08 | QB124: 1.08 | QC124: 1.08 | QD124: 1.01 | QE124: 1.01 | QF124: 1.3 | QG124: 1.3 | QH124: 0.42 | QI124: 0.42 | QJ124: 0.48 | QK124: 0.48 | QL124: 0.48 | QM124: 0.48 | QN124: 0.48 | QO124: 0.48 | QP124: 0.47 | QQ124: 0.47 | QR124: 1.48 | QS124: 1.48 | QT124: 0.44 | QU124: 0.44 | QV124: 0.51 | QW124: 0.51 | QX124: 0.51 | QY124: 0.51 | QZ124: 0.51 | RA124: 0.51 | RB124: 0.51 | RC124: 0.51 | RD124: 2.18 | RE124: 2.18 | RF124: 0.53 | RG124: 0.53 | RH124: 0.66 | RI124: 0.66 | RJ124: 0.66 | RK124: 0.66 | RL124: 0.66 | RM124: 0.66 | RN124: 0.64 | RO124: 0.64 | RP124: 5.31 | RQ124: 5.31 | RR124: 1.07 | RS124: 1.07 | RT124: 1.53 | RU124: 1.53 | RV124: 1.53 | RW124: 1.53 | RX124: 1.53 | RY124: 1.53 | RZ124: 1.39 | SA124: 1.39 | SB124: 2.92 | SC124: 2.92 | SD124: 0.64 | SE124: 0.64 | SF124: 0.83 | SG124: 0.83 | SH124: 0.83 | SI124: 0.83 | SJ124: 0.83 | SK124: 0.83 | SL124: 0.79 | SM124: 0.79 | SN124: 2.5 | SO124: 2.5 | SZ124: 2.71 | TA124: 2.71 | TX124: 1.82 | TY124: 1.82
A125: 9 | B125: 7.77 | C125: 7.77 | D125: 10.34 | E125: 10.34 | F125: 22.21 | G125: 22.21 | H125: 16.11 | I125: 16.11 | J125: 26.76 | K125: 26.76 | Z125: 1.75 | AL125: 3.76 | AM125: 3.75 | AX125: 4.25 | AY125: 4.25 | BJ125: 2.41 | BV125: 0.85 | CH125: 2.16 | CI125: 2.16 | DF125: 23.68 | DG125: 23.68 | DH125: 28.36 | DI125: 23.69 | DJ125: 19.67 | DK125: 19.67 | DL125: 18.98 | DM125: 18.98 | DN125: 19.67 | DO125: 19.67 | DP125: 18.98 | DQ125: 19.67 | DR125: 19.67 | DS125: 19.67 | DT125: 18.98 | DU125: 18.98 | DV125: 28.09 | DW125: 27.32 | DX125: 28.09 | DY125: 28.09 | DZ125: 27.32 | EA125: 27.32 | EB125: 30.88 | EC125: 30.88 | ED125: 12.7 | EE125: 12.19 | EF125: 12.19 | EG125: 12.19 | EH125: 16.41 | EI125: 16.41 | EJ125: 22.67 | EK125: 22.67 | EL125: 22.67 | EM125: 24.1 | EN125: 20.51 | EO125: 20.51 | EP125: 20.78 | EQ125: 20.78 | ER125: 11.03 | ES125: 13.6 | ET125: 12.22 | EU125: 12.22 | EV125: 12.22 | EW125: 12.22 | EX125: 12.22 | EY125: 5 | EZ125: 13.64 | FA125: 13.64 | FB125: 13.64 | FC125: 13.64 | FD125: 6.24 | FE125: 6.24 | FF125: 6.24 | FG125: 6.24 | FH125: 6.24 | FI125: 6.24 | FJ125: 2.33 | FK125: 2.33 | FL125: 2.33 | FM125: 2.33 | FN125: 2.33 | FO125: 2.33 | FP125: 7.8 | FQ125: 7.8 | FR125: 7.8 | FS125: 7.8 | FT125: 17.83 | FU125: 17.83 | FV125: 17.83 | FW125: 17.83 | FX125: 17.83 | FY125: 17.83 | FZ125: 17.83 | GA125: 17.83 | GB125: 9.1 | GC125: 9.1 | GD125: 1.6 | GE125: 1.6 | GF125: 4.67 | GG125: 4.67 | GH125: 1.65 | GI125: 1.65 | GJ125: 1.5 | GK125: 1.5 | GL125: 1.5 | GM125: 1.5 | GN125: 1.78 | GO125: 1.78 | GP125: 0.61 | GQ125: 0.6 | GZ125: 9.35 | HA125: 9.35 | HB125: 23.95 | HC125: 23.95 | HD125: 23.95 | HE125: 23.95 | HF125: 19.62 | HG125: 19.62 | HH125: 19.62 | HI125: 19.62 | HJ125: 19.62 | HK125: 19.62 | HL125: 24.35 | HM125: 24.35 | HN125: 20.47 | HO125: 20.47 | HP125: 20.47 | HQ125: 20.47 | HR125: 25.06 | HS125: 25.06 | HT125: 25.06 | HU125: 25.06 | HX125: 8.52 | HY125: 8.52 | HZ125: 21.88 | IA125: 21.88 | IB125: 19.84 | IC125: 19.84 | ID125: 18.47 | IE125: 18.47 | IJ125: 34.56 | IK125: 34.56 | IL125: 65.94 | IM125: 65.94 | IN125: 55.67 | IO125: 55.67 | IP125: 55.67 | IQ125: 55.67 | IV125: 34.56 | IW125: 34.56 | IX125: 65.94 | IY125: 65.94 | IZ125: 55.67 | JA125: 55.67 | JB125: 55.67 | JC125: 55.67 | JH125: 19.41 | JI125: 19.41 | JJ125: 58.91 | JK125: 58.91 | JL125: 58.91 | JM125: 58.91 | JN125: 49.36 | JO125: 49.36 | JP125: 49.36 | JQ125: 49.36 | JT125: 5.29 | JU125: 5.29 | JV125: 5.29 | JW125: 5.29 | JX125: 5.29 | JY125: 5.29 | KF125: 2.5 | KG125: 2.5 | KH125: 1.43 | KI125: 1.43 | KJ125: 1.43 | KK125: 1.43 | KR125: 5.51 | KS125: 5.51 | KT125: 5.51 | KU125: 5.51 | KV125: 10.95 | KW125: 10.95 | LD125: 1.26 | LE125: 1.26 | LF125: 1.26 | LG125: 1.26 | LH125: 0.35 | LI125: 0.35 | LP125: 2.74 | LQ125: 2.74 | LR125: 2.74 | LS125: 2.74 | LT125: 0.88 | LU125: 0.88 | MB125: 3.14 | MC125: 3.8 | MD125: 1.04 | ME125: 1.04 | MF125: 1.01 | MG125: 1.01 | MH125: 1.35 | MI125: 1.35 | MJ125: 1.17 | MK125: 1.17 | ML125: 1.2 | MM125: 1.31 | MN125: 6.72 | MO125: 6.72 | MP125: 2.49 | MQ125: 2.49 | MR125: 3.34 | MS125: 3.34 | MT125: 16.78 | MU125: 16.78 | MV125: 16.78 | MW125: 16.78 | MX125: 16.78 | MY125: 16.78 | MZ125: 10.59 | NA125: 10.59 | NB125: 23.96 | NC125: 23.96 | ND125: 22.44 | NE125: 22.44 | NF125: 23.2 | NG125: 23.2 | NH125: 25.77 | NI125: 25.77 | NL125: 8.86 | NM125: 8.86 | NN125: 18.52 | NO125: 18.52 | NP125: 18.52 | NQ125: 18.52 | NR125: 17.73 | NS125: 17.73 | NT125: 18.74 | NU125: 18.74 | NX125: 18.54 | NY125: 18.54 | NZ125: 30.34 | OA125: 30.34 | OB125: 30.34 | OC125: 30.34 | OD125: 31.4 | OE125: 31.4 | OJ125: 13.23 | OK125: 13.23 | OL125: 38.96 | OM125: 38.96 | ON125: 38.96 | OO125: 38.96 | OP125: 7.29 | OQ125: 7.29 | OR125: 20.91 | OS125: 20.91 | OV125: 6.42 | OW125: 6.42 | OX125: 2.44 | OY125: 2.44 | OZ125: 2.31 | PA125: 2.31 | PB125: 2.27 | PC125: 2.27 | PD125: 15.36 | PE125: 15.36 | PH125: 7.74 | PI125: 7.74 | PJ125: 2.88 | PK125: 2.88 | PL125: 2.88 | PM125: 2.69 | PN125: 2.69 | PO125: 2.69 | PP125: 16.77 | PQ125: 16.77 | PT125: 4.99 | PU125: 4.99 | PV125: 1.04 | PW125: 1.04 | PX125: 1.43 | PY125: 1.43 | PZ125: 1.43 | QA125: 1.43 | QB125: 1.43 | QC125: 1.43 | QD125: 1.34 | QE125: 1.34 | QF125: 1.62 | QG125: 1.62 | QH125: 0.48 | QI125: 0.48 | QJ125: 0.56 | QK125: 0.56 | QL125: 0.56 | QM125: 0.56 | QN125: 0.56 | QO125: 0.56 | QP125: 0.55 | QQ125: 0.55 | QR125: 1.86 | QS125: 1.86 | QT125: 0.51 | QU125: 0.51 | QV125: 0.61 | QW125: 0.61 | QX125: 0.61 | QY125: 0.61 | QZ125: 0.61 | RA125: 0.61 | RB125: 0.6 | RC125: 0.6 | RD125: 2.78 | RE125: 2.78 | RF125: 0.65 | RG125: 0.65 | RH125: 0.83 | RI125: 0.83 | RJ125: 0.83 | RK125: 0.83 | RL125: 0.83 | RM125: 0.83 | RN125: 0.8 | RO125: 0.8 | RP125: 6.9 | RQ125: 6.9 | RR125: 1.45 | RS125: 1.45 | RT125: 2.06 | RU125: 2.06 | RV125: 2.06 | RW125: 2.06 | RX125: 2.06 | RY125: 2.06 | RZ125: 1.89 | SA125: 1.89 | SB125: 3.75 | SC125: 3.75 | SD125: 0.81 | SE125: 0.81 | SF125: 1.08 | SG125: 1.08 | SH125: 1.08 | SI125: 1.08 | SJ125: 1.08 | SK125: 1.08 | SL125: 1.02 | SM125: 1.02 | SN125: 3.2 | SO125: 3.2 | SZ125: 3.48 | TA125: 3.48 | TX125: 2.31 | TY125: 2.31
A126: 10 | B126: 9.55 | C126: 9.55 | D126: 12.03 | E126: 12.03 | F126: 28.02 | G126: 28.02 | H126: 21.77 | I126: 21.77 | J126: 33.58 | K126: 33.58 | Z126: 2.09 | AL126: 4.58 | AM126: 4.58 | AX126: 5.19 | AY126: 5.19 | BJ126: 2.91 | BV126: 0.98 | CH126: 2.61 | CI126: 2.61 | DF126: 29.26 | DG126: 29.26 | DH126: 33.77 | DI126: 29.27 | DJ126: 26.12 | DK126: 26.12 | DL126: 25.2 | DM126: 25.2 | DN126: 26.12 | DO126: 26.12 | DP126: 25.2 | DQ126: 26.12 | DR126: 26.12 | DS126: 26.12 | DT126: 25.2 | DU126: 25.2 | DV126: 36.81 | DW126: 35.79 | DX126: 36.81 | DY126: 36.81 | DZ126: 35.79 | EA126: 35.79 | EB126: 39.72 | EC126: 39.72 | ED126: 15.65 | EE126: 15.03 | EF126: 15.03 | EG126: 15.03 | EH126: 19.11 | EI126: 19.11 | EJ126: 29.34 | EK126: 29.34 | EL126: 29.34 | EM126: 31.06 | EN126: 27.12 | EO126: 27.12 | EP126: 27.41 | EQ126: 27.41 | ER126: 13.58 | ES126: 16.07 | ET126: 14.73 | EU126: 14.73 | EV126: 14.73 | EW126: 14.73 | EX126: 14.73 | EY126: 6.52 | EZ126: 18.29 | FA126: 18.29 | FB126: 18.29 | FC126: 18.29 | FD126: 7.65 | FE126: 7.65 | FF126: 7.65 | FG126: 7.65 | FH126: 7.65 | FI126: 7.65 | FJ126: 3.03 | FK126: 3.03 | FL126: 3.04 | FM126: 3.04 | FN126: 3.04 | FO126: 3.04 | FP126: 9.58 | FQ126: 9.58 | FR126: 9.58 | FS126: 9.58 | FT126: 23.24 | FU126: 23.24 | FV126: 23.24 | FW126: 23.24 | FX126: 23.24 | FY126: 23.24 | FZ126: 23.24 | GA126: 23.24 | GB126: 11.82 | GC126: 11.82 | GD126: 2.09 | GE126: 2.09 | GF126: 5.67 | GG126: 5.67 | GH126: 2.14 | GI126: 2.14 | GJ126: 1.97 | GK126: 1.97 | GL126: 1.97 | GM126: 1.97 | GN126: 2.13 | GO126: 2.13 | GP126: 0.74 | GQ126: 0.72 | GZ126: 11.51 | HA126: 11.51 | HB126: 29.99 | HC126: 29.99 | HD126: 29.99 | HE126: 29.99 | HF126: 25.56 | HG126: 25.56 | HH126: 25.56 | HI126: 25.56 | HJ126: 25.56 | HK126: 25.56 | HL126: 31.75 | HM126: 31.75 | HN126: 26.78 | HO126: 26.78 | HP126: 26.78 | HQ126: 26.78 | HR126: 32.38 | HS126: 32.38 | HT126: 32.38 | HU126: 32.38 | HX126: 10.47 | HY126: 10.47 | HZ126: 27.6 | IA126: 27.6 | IB126: 25.48 | IC126: 25.48 | ID126: 24.14 | IE126: 24.14 | IJ126: 38.84 | IK126: 38.84 | IL126: 75.93 | IM126: 75.93 | IN126: 67.6 | IO126: 67.6 | IP126: 67.6 | IQ126: 67.6 | IV126: 38.84 | IW126: 38.84 | IX126: 75.93 | IY126: 75.93 | IZ126: 67.6 | JA126: 67.6 | JB126: 67.6 | JC126: 67.6 | JH126: 23.96 | JI126: 23.96 | JJ126: 68.45 | JK126: 68.45 | JL126: 68.45 | JM126: 68.45 | JN126: 60.65 | JO126: 60.65 | JP126: 60.65 | JQ126: 60.65 | JT126: 6.48 | JU126: 6.48 | JV126: 6.48 | JW126: 6.48 | JX126: 6.48 | JY126: 6.48 | KF126: 3.02 | KG126: 3.02 | KH126: 1.81 | KI126: 1.81 | KJ126: 1.81 | KK126: 1.81 | KR126: 6.75 | KS126: 6.75 | KT126: 6.75 | KU126: 6.75 | KV126: 14.78 | KW126: 14.78 | LD126: 1.61 | LE126: 1.61 | LF126: 1.61 | LG126: 1.61 | LH126: 0.39 | LI126: 0.39 | LP126: 3.32 | LQ126: 3.32 | LR126: 3.32 | LS126: 3.32 | LT126: 1.11 | LU126: 1.11 | MB126: 3.61 | MC126: 4.26 | MD126: 1.23 | ME126: 1.23 | MF126: 1.2 | MG126: 1.2 | MH126: 1.59 | MI126: 1.59 | MJ126: 1.38 | MK126: 1.38 | ML126: 1.41 | MM126: 1.55 | MN126: 7.66 | MO126: 7.66 | MP126: 2.95 | MQ126: 2.95 | MR126: 3.92 | MS126: 3.92 | MT126: 20.08 | MU126: 20.08 | MV126: 20.08 | MW126: 20.08 | MX126: 20.08 | MY126: 20.08 | MZ126: 12.4 | NA126: 12.4 | NB126: 29.34 | NC126: 29.34 | ND126: 27.59 | NE126: 27.59 | NF126: 28.465 | NG126: 28.465 | NH126: 31.47 | NI126: 31.47 | NL126: 10.25 | NM126: 10.25 | NN126: 22.39 | NO126: 22.39 | NP126: 22.39 | NQ126: 22.39 | NR126: 21.52 | NS126: 21.52 | NT126: 22.69 | NU126: 22.69 | NX126: 22.59 | NY126: 22.59 | NZ126: 37.57 | OA126: 37.57 | OB126: 37.57 | OC126: 37.57 | OD126: 38.68 | OE126: 38.68 | OJ126: 16.08 | OK126: 16.08 | OL126: 45.3 | OM126: 45.3 | ON126: 45.3 | OO126: 45.3 | OP126: 9.87 | OQ126: 9.87 | OR126: 26.62 | OS126: 26.62 | OV126: 7.78 | OW126: 7.78 | OX126: 3.11 | OY126: 3.11 | OZ126: 2.95 | PA126: 2.95 | PB126: 2.9 | PC126: 2.9 | PD126: 19.91 | PE126: 19.91 | PH126: 9.16 | PI126: 9.16 | PJ126: 3.72 | PK126: 3.72 | PL126: 3.72 | PM126: 3.47 | PN126: 3.47 | PO126: 3.47 | PP126: 21.96 | PQ126: 21.96 | PT126: 6.11 | PU126: 6.11 | PV126: 1.35 | PW126: 1.35 | PX126: 1.84 | PY126: 1.84 | PZ126: 1.84 | QA126: 1.84 | QB126: 1.84 | QC126: 1.84 | QD126: 1.73 | QE126: 1.73 | QF126: 1.93 | QG126: 1.93 | QH126: 0.55 | QI126: 0.55 | QJ126: 0.66 | QK126: 0.66 | QL126: 0.66 | QM126: 0.66 | QN126: 0.66 | QO126: 0.66 | QP126: 0.65 | QQ126: 0.65 | QR126: 2.23 | QS126: 2.23 | QT126: 0.6 | QU126: 0.6 | QV126: 0.73 | QW126: 0.73 | QX126: 0.73 | QY126: 0.73 | QZ126: 0.73 | RA126: 0.73 | RB126: 0.72 | RC126: 0.72 | RD126: 3.37 | RE126: 3.37 | RF126: 0.8 | RG126: 0.8 | RH126: 1.02 | RI126: 1.02 | RJ126: 1.02 | RK126: 1.02 | RL126: 1.02 | RM126: 1.02 | RN126: 0.99 | RO126: 0.99 | RP126: 8.47 | RQ126: 8.47 | RR126: 1.93 | RS126: 1.93 | RT126: 2.68 | RU126: 2.68 | RV126: 2.68 | RW126: 2.68 | RX126: 2.68 | RY126: 2.68 | RZ126: 2.49 | SA126: 2.49 | SB126: 4.57 | SC126: 4.57 | SD126: 1.03 | SE126: 1.03 | SF126: 1.36 | SG126: 1.36 | SH126: 1.36 | SI126: 1.36 | SJ126: 1.36 | SK126: 1.36 | SL126: 1.3 | SM126: 1.3 | SN126: 3.89 | SO126: 3.88 | SZ126: 4.23 | TA126: 4.23 | TX126: 2.78 | TY126: 2.78
A127: 11 | B127: 11.27 | C127: 11.27 | D127: 13.63 | E127: 13.63 | F127: 33.9 | G127: 33.9 | H127: 28.02 | I127: 28.02 | J127: 40.25 | K127: 40.25 | Z127: 2.43 | AL127: 5.37 | AM127: 5.37 | AX127: 6.1 | AY127: 6.1 | BJ127: 3.39 | BV127: 1.11 | CH127: 3.04 | CI127: 3.04 | DF127: 34.67 | DG127: 34.67 | DH127: 38.97 | DI127: 34.68 | DJ127: 33.31 | DK127: 33.31 | DL127: 32.15 | DM127: 32.15 | DN127: 33.31 | DO127: 33.31 | DP127: 32.15 | DQ127: 33.31 | DR127: 33.31 | DS127: 33.31 | DT127: 32.15 | DU127: 32.15 | DV127: 46.24 | DW127: 44.97 | DX127: 46.24 | DY127: 46.24 | DZ127: 44.97 | EA127: 44.97 | EB127: 48.87 | EC127: 48.87 | ED127: 18.51 | EE127: 17.78 | EF127: 17.78 | EG127: 17.78 | EH127: 21.67 | EI127: 21.67 | EJ127: 36.58 | EK127: 36.58 | EL127: 36.58 | EM127: 38.59 | EN127: 34.4 | EO127: 34.4 | EP127: 34.71 | EQ127: 34.71 | ER127: 16.05 | ES127: 18.44 | ET127: 17.15 | EU127: 17.15 | EV127: 17.15 | EW127: 17.15 | EX127: 17.15 | EY127: 8.2 | EZ127: 23.5 | FA127: 23.5 | FB127: 23.5 | FC127: 23.5 | FD127: 9.03 | FE127: 9.03 | FF127: 9.03 | FG127: 9.03 | FH127: 9.03 | FI127: 9.03 | FJ127: 3.83 | FK127: 3.83 | FL127: 3.83 | FM127: 3.83 | FN127: 3.83 | FO127: 3.83 | FP127: 11.31 | FQ127: 11.31 | FR127: 11.31 | FS127: 11.31 | FT127: 29.18 | FU127: 29.18 | FV127: 29.18 | FW127: 29.18 | FX127: 29.18 | FY127: 29.18 | FZ127: 29.18 | GA127: 29.18 | GB127: 14.81 | GC127: 14.81 | GD127: 2.64 | GE127: 2.64 | GF127: 6.65 | GG127: 6.65 | GH127: 2.69 | GI127: 2.69 | GJ127: 2.5 | GK127: 2.5 | GL127: 2.5 | GM127: 2.5 | GN127: 2.48 | GO127: 2.48 | GP127: 0.89 | GQ127: 0.87 | GZ127: 13.59 | HA127: 13.59 | HB127: 35.95 | HC127: 35.95 | HD127: 35.95 | HE127: 35.95 | HF127: 32.12 | HG127: 32.12 | HH127: 32.12 | HI127: 32.12 | HJ127: 32.12 | HK127: 32.12 | HL127: 39.92 | HM127: 39.92 | HN127: 33.76 | HO127: 33.76 | HP127: 33.76 | HQ127: 33.76 | HR127: 40.39 | HS127: 40.39 | HT127: 40.39 | HU127: 40.39 | HX127: 12.37 | HY127: 12.37 | HZ127: 33.25 | IA127: 33.25 | IB127: 31.26 | IC127: 31.26 | ID127: 30.43 | IE127: 30.43 | IJ127: 42.91 | IK127: 42.91 | IL127: 85.35 | IM127: 85.35 | IN127: 79.23 | IO127: 79.23 | IP127: 79.23 | IQ127: 79.23 | IV127: 42.91 | IW127: 42.91 | IX127: 85.35 | IY127: 85.35 | IZ127: 79.23 | JA127: 79.23 | JB127: 79.23 | JC127: 79.23 | JH127: 28.37 | JI127: 28.37 | JJ127: 77.51 | JK127: 77.51 | JL127: 77.51 | JM127: 77.51 | JN127: 71.71 | JO127: 71.71 | JP127: 71.71 | JQ127: 71.71 | JT127: 7.64 | JU127: 7.64 | JV127: 7.64 | JW127: 7.64 | JX127: 7.64 | JY127: 7.64 | KF127: 3.53 | KG127: 3.53 | KH127: 2.24 | KI127: 2.24 | KJ127: 2.24 | KK127: 2.24 | KR127: 7.95 | KS127: 7.95 | KT127: 7.95 | KU127: 7.95 | KV127: 19.11 | KW127: 19.11 | LD127: 2 | LE127: 2 | LF127: 2 | LG127: 2 | LH127: 0.43 | LI127: 0.43 | LP127: 3.89 | LQ127: 3.89 | LR127: 3.89 | LS127: 3.89 | LT127: 1.37 | LU127: 1.37 | MB127: 4.24 | MC127: 4.87 | MD127: 1.52 | ME127: 1.52 | MF127: 1.48 | MG127: 1.48 | MH127: 1.97 | MI127: 1.97 | MJ127: 1.7 | MK127: 1.7 | ML127: 1.74 | MM127: 1.91 | MN127: 9.04 | MO127: 9.04 | MP127: 3.72 | MQ127: 3.72 | MR127: 4.88 | MS127: 4.88 | MT127: 25.68 | MU127: 25.68 | MV127: 25.68 | MW127: 25.68 | MX127: 25.68 | MY127: 25.68 | MZ127: 15.13 | NA127: 15.13 | NB127: 38.54 | NC127: 38.54 | ND127: 36.43 | NE127: 36.43 | NF127: 37.485 | NG127: 37.485 | NH127: 41.17 | NI127: 41.17 | NL127: 12.35 | NM127: 12.35 | NN127: 29.07 | NO127: 29.07 | NP127: 29.07 | NQ127: 29.07 | NR127: 28.06 | NS127: 28.06 | NT127: 29.5 | NU127: 29.5 | NX127: 27.35 | NY127: 27.35 | NZ127: 46.21 | OA127: 46.21 | OB127: 46.21 | OC127: 46.21 | OD127: 47.39 | OE127: 47.39 | OJ127: 19.45 | OK127: 19.45 | OL127: 52.69 | OM127: 52.69 | ON127: 52.69 | OO127: 52.69 | OP127: 13.55 | OQ127: 13.55 | OR127: 34.27 | OS127: 34.27 | OV127: 9.18 | OW127: 9.18 | OX127: 3.9 | OY127: 3.9 | OZ127: 3.71 | PA127: 3.71 | PB127: 3.65 | PC127: 3.65 | PD127: 25.28 | PE127: 25.28 | PH127: 10.76 | PI127: 10.76 | PJ127: 4.65 | PK127: 4.65 | PL127: 4.65 | PM127: 4.35 | PN127: 4.35 | PO127: 4.35 | PP127: 27.71 | PQ127: 27.71 | PT127: 7.19 | PU127: 7.19 | PV127: 1.72 | PW127: 1.72 | PX127: 2.3 | PY127: 2.3 | PZ127: 2.3 | QA127: 2.3 | QB127: 2.3 | QC127: 2.3 | QD127: 2.19 | QE127: 2.19 | QF127: 2.24 | QG127: 2.24 | QH127: 0.64 | QI127: 0.64 | QJ127: 0.78 | QK127: 0.78 | QL127: 0.78 | QM127: 0.78 | QN127: 0.78 | QO127: 0.78 | QP127: 0.77 | QQ127: 0.77 | QR127: 2.59 | QS127: 2.59 | QT127: 0.71 | QU127: 0.71 | QV127: 0.87 | QW127: 0.87 | QX127: 0.87 | QY127: 0.87 | QZ127: 0.87 | RA127: 0.87 | RB127: 0.86 | RC127: 0.86 | RD127: 3.94 | RE127: 3.94 | RF127: 0.98 | RG127: 0.98 | RH127: 1.25 | RI127: 1.25 | RJ127: 1.25 | RK127: 1.25 | RL127: 1.25 | RM127: 1.25 | RN127: 1.22 | RO127: 1.22 | RP127: 10 | RQ127: 10 | RR127: 2.48 | RS127: 2.48 | RT127: 3.38 | RU127: 3.38 | RV127: 3.38 | RW127: 3.38 | RX127: 3.38 | RY127: 3.38 | RZ127: 3.17 | SA127: 3.17 | SB127: 5.37 | SC127: 5.37 | SD127: 1.28 | SE127: 1.28 | SF127: 1.69 | SG127: 1.69 | SH127: 1.69 | SI127: 1.69 | SJ127: 1.69 | SK127: 1.69 | SL127: 1.62 | SM127: 1.62 | SN127: 4.55 | SO127: 4.55 | SZ127: 4.97 | TA127: 4.97 | TX127: 3.25 | TY127: 3.25
A128: 12 | B128: 12.93 | C128: 12.93 | D128: 15.16 | E128: 15.16 | F128: 39.68 | G128: 39.68 | H128: 33.72 | I128: 33.72 | J128: 46.7 | K128: 46.7 | Z128: 2.75 | AL128: 6.14 | AM128: 6.14 | AX128: 6.97 | AY128: 6.97 | BJ128: 3.86 | BV128: 1.23 | CH128: 3.45 | CI128: 3.45 | DF128: 39.87 | DG128: 39.87 | DH128: 43.91 | DI128: 39.88 | DJ128: 41.16 | DK128: 41.16 | DL128: 39.72 | DM128: 39.72 | DN128: 41.16 | DO128: 41.16 | DP128: 39.72 | DQ128: 41.16 | DR128: 41.16 | DS128: 41.16 | DT128: 39.72 | DU128: 39.72 | DV128: 55.57 | DW128: 54.04 | DX128: 55.57 | DY128: 55.57 | DZ128: 54.04 | EA128: 54.04 | EB128: 57.87 | EC128: 57.87 | ED128: 21.26 | EE128: 20.42 | EF128: 20.42 | EG128: 20.42 | EH128: 24.12 | EI128: 24.12 | EJ128: 43.75 | EK128: 43.75 | EL128: 43.75 | EM128: 46.01 | EN128: 41.71 | EO128: 41.71 | EP128: 42.02 | EQ128: 42.02 | ER128: 18.43 | ES128: 20.7 | ET128: 19.45 | EU128: 19.45 | EV128: 19.45 | EW128: 19.45 | EX128: 19.45 | EY128: 10.02 | EZ128: 29.19 | FA128: 29.19 | FB128: 29.19 | FC128: 29.19 | FD128: 10.35 | FE128: 10.35 | FF128: 10.35 | FG128: 10.35 | FH128: 10.35 | FI128: 10.35 | FJ128: 4.7 | FK128: 4.7 | FL128: 4.7 | FM128: 4.7 | FN128: 4.7 | FO128: 4.7 | FP128: 12.97 | FQ128: 12.97 | FR128: 12.97 | FS128: 12.97 | FT128: 35.28 | FU128: 35.28 | FV128: 35.28 | FW128: 35.28 | FX128: 35.28 | FY128: 35.28 | FZ128: 35.28 | GA128: 35.28 | GB128: 17.87 | GC128: 17.87 | GD128: 3.25 | GE128: 3.25 | GF128: 7.59 | GG128: 7.59 | GH128: 3.31 | GI128: 3.31 | GJ128: 3.1 | GK128: 3.1 | GL128: 3.1 | GM128: 3.1 | GN128: 2.81 | GO128: 2.81 | GP128: 1.06 | GQ128: 1.04 | GZ128: 15.6 | HA128: 15.6 | HB128: 41.76 | HC128: 41.76 | HD128: 41.76 | HE128: 41.76 | HF128: 39.06 | HG128: 39.06 | HH128: 39.06 | HI128: 39.06 | HJ128: 39.06 | HK128: 39.06 | HL128: 48.56 | HM128: 48.56 | HN128: 41.33 | HO128: 41.33 | HP128: 41.33 | HQ128: 41.33 | HR128: 48.45 | HS128: 48.45 | HT128: 48.45 | HU128: 48.45 | HX128: 14.18 | HY128: 14.18 | HZ128: 38.77 | IA128: 38.77 | IB128: 36.94 | IC128: 36.94 | ID128: 37.19 | IE128: 37.19 | IJ128: 46.77 | IK128: 46.77 | IL128: 94.2 | IM128: 94.2 | IN128: 90.43 | IO128: 90.43 | IP128: 90.43 | IQ128: 90.43 | IV128: 46.77 | IW128: 46.77 | IX128: 94.2 | IY128: 94.2 | IZ128: 90.43 | JA128: 90.43 | JB128: 90.43 | JC128: 90.43 | JH128: 32.61 | JI128: 32.61 | JJ128: 86.06 | JK128: 86.06 | JL128: 86.06 | JM128: 86.06 | JN128: 82.43 | JO128: 82.43 | JP128: 82.43 | JQ128: 82.43 | JT128: 8.75 | JU128: 8.75 | JV128: 8.75 | JW128: 8.75 | JX128: 8.75 | JY128: 8.75 | KF128: 4.02 | KG128: 4.02 | KH128: 2.67 | KI128: 2.67 | KJ128: 2.67 | KK128: 2.67 | KR128: 9.11 | KS128: 9.11 | KT128: 9.11 | KU128: 9.11 | KV128: 23.89 | KW128: 23.89 | LD128: 2.43 | LE128: 2.43 | LF128: 2.43 | LG128: 2.43 | LH128: 0.48 | LI128: 0.48 | LP128: 4.43 | LQ128: 4.43 | LR128: 4.43 | LS128: 4.43 | LT128: 1.67 | LU128: 1.67 | MB128: 4.84 | MC128: 5.44 | MD128: 1.85 | ME128: 1.85 | MF128: 1.8 | MG128: 1.8 | MH128: 2.37 | MI128: 2.37 | MJ128: 2.06 | MK128: 2.06 | ML128: 2.11 | MM128: 2.3 | MN128: 10.36 | MO128: 10.36 | MP128: 4.55 | MQ128: 4.55 | MR128: 5.88 | MS128: 5.88 | MT128: 31.68 | MU128: 31.68 | MV128: 31.68 | MW128: 31.68 | MX128: 31.68 | MY128: 31.68 | MZ128: 17.09 | NA128: 17.09 | NB128: 45.92 | NC128: 45.92 | ND128: 43.54 | NE128: 43.54 | NF128: 44.73 | NG128: 44.73 | NH128: 48.55 | NI128: 48.55 | NL128: 13.95 | NM128: 13.95 | NN128: 34.79 | NO128: 34.79 | NP128: 34.79 | NQ128: 34.79 | NR128: 33.69 | NS128: 33.69 | NT128: 35.29 | NU128: 35.29 | NX128: 29.9 | NY128: 29.9 | NZ128: 50.91 | OA128: 50.91 | OB128: 50.91 | OC128: 50.91 | OD128: 52.12 | OE128: 52.12 | OJ128: 22.11 | OK128: 22.11 | OL128: 58.44 | OM128: 58.44 | ON128: 58.44 | OO128: 58.44 | OP128: 16.98 | OQ128: 16.98 | OR128: 40.68 | OS128: 40.68 | OV128: 10.34 | OW128: 10.34 | OX128: 4.65 | OY128: 4.65 | OZ128: 4.43 | PA128: 4.43 | PB128: 4.36 | PC128: 4.36 | PD128: 30.32 | PE128: 30.32 | PH128: 12.31 | PI128: 12.31 | PJ128: 5.66 | PK128: 5.66 | PL128: 5.66 | PM128: 5.31 | PN128: 5.31 | PO128: 5.31 | PP128: 33.94 | PQ128: 33.94 | PT128: 8.23 | PU128: 8.23 | PV128: 2.14 | PW128: 2.14 | PX128: 2.82 | PY128: 2.82 | PZ128: 2.82 | QA128: 2.82 | QB128: 2.82 | QC128: 2.82 | QD128: 2.7 | QE128: 2.7 | QF128: 2.53 | QG128: 2.53 | QH128: 0.75 | QI128: 0.75 | QJ128: 0.91 | QK128: 0.91 | QL128: 0.91 | QM128: 0.91 | QN128: 0.91 | QO128: 0.91 | QP128: 0.9 | QQ128: 0.9 | QR128: 2.94 | QS128: 2.94 | QT128: 0.84 | QU128: 0.84 | QV128: 1.03 | QW128: 1.03 | QX128: 1.03 | QY128: 1.03 | QZ128: 1.03 | RA128: 1.03 | RB128: 1.02 | RC128: 1.02 | RD128: 4.49 | RE128: 4.49 | RF128: 1.18 | RG128: 1.18 | RH128: 1.51 | RI128: 1.51 | RJ128: 1.51 | RK128: 1.51 | RL128: 1.51 | RM128: 1.51 | RN128: 1.47 | RO128: 1.47 | RP128: 11.46 | RQ128: 11.46 | RR128: 3.11 | RS128: 3.11 | RT128: 4.16 | RU128: 4.16 | RV128: 4.16 | RW128: 4.16 | RX128: 4.16 | RY128: 4.16 | RZ128: 3.93 | SA128: 3.93 | SB128: 6.13 | SC128: 6.13 | SD128: 1.58 | SE128: 1.58 | SF128: 2.06 | SG128: 2.06 | SH128: 2.06 | SI128: 2.06 | SJ128: 2.06 | SK128: 2.06 | SL128: 1.99 | SM128: 1.99 | SN128: 5.2 | SO128: 5.2 | SZ128: 5.67 | TA128: 5.67 | TX128: 3.69 | TY128: 3.69
A129: 13 | B129: 14.5 | C129: 14.5 | D129: 16.62 | E129: 16.62 | F129: 45.31 | G129: 45.31 | H129: 38.81 | I129: 38.81 | J129: 52.89 | K129: 52.89 | Z129: 3.06 | AL129: 6.87 | AM129: 6.87 | AX129: 7.8 | AY129: 7.8 | BJ129: 4.3 | BV129: 1.35 | CH129: 3.85 | CI129: 3.85 | DF129: 44.81 | DG129: 44.81 | DH129: 48.61 | DI129: 44.82 | DJ129: 49.22 | DK129: 49.22 | DL129: 47.5 | DM129: 47.5 | DN129: 49.22 | DO129: 49.22 | DP129: 47.5 | DQ129: 49.22 | DR129: 49.22 | DS129: 49.22 | DT129: 47.5 | DU129: 47.5 | DV129: 64.71 | DW129: 62.92 | DX129: 64.71 | DY129: 64.71 | DZ129: 62.92 | EA129: 62.92 | EB129: 66.65 | EC129: 66.65 | ED129: 23.86 | EE129: 22.93 | EF129: 22.93 | EG129: 22.93 | EH129: 26.45 | EI129: 26.45 | EJ129: 50.78 | EK129: 50.78 | EL129: 50.78 | EM129: 53.28 | EN129: 48.89 | EO129: 48.89 | EP129: 49.19 | EQ129: 49.19 | ER129: 20.68 | ES129: 22.84 | ET129: 21.64 | EU129: 21.64 | EV129: 21.64 | EW129: 21.64 | EX129: 21.64 | EY129: 11.86 | EZ129: 34.95 | FA129: 34.95 | FB129: 34.95 | FC129: 34.95 | FD129: 11.6 | FE129: 11.6 | FF129: 11.6 | FG129: 11.6 | FH129: 11.6 | FI129: 11.6 | FJ129: 5.64 | FK129: 5.64 | FL129: 5.64 | FM129: 5.64 | FN129: 6.07 | FO129: 6.07 | FP129: 14.54 | FQ129: 14.54 | FR129: 14.54 | FS129: 14.54 | FT129: 41.28 | FU129: 41.28 | FV129: 41.28 | FW129: 41.28 | FX129: 41.28 | FY129: 41.28 | FZ129: 41.28 | GA129: 41.28 | GB129: 20.89 | GC129: 20.89 | GD129: 3.92 | GE129: 3.92 | GF129: 8.49 | GG129: 8.49 | GH129: 3.97 | GI129: 3.97 | GJ129: 3.76 | GK129: 3.76 | GL129: 3.76 | GM129: 3.76 | GN129: 3.12 | GO129: 3.12 | GP129: 1.24 | GQ129: 1.22 | GZ129: 17.5 | HA129: 17.5 | HB129: 47.39 | HC129: 47.39 | HD129: 47.39 | HE129: 47.39 | HF129: 45.92 | HG129: 45.92 | HH129: 45.92 | HI129: 45.92 | HJ129: 45.92 | HK129: 45.92 | HL129: 57.11 | HM129: 57.11 | HN129: 48.88 | HO129: 48.88 | HP129: 48.88 | HQ129: 48.88 | HR129: 56.38 | HS129: 56.38 | HT129: 56.38 | HU129: 56.38 | HX129: 15.91 | HY129: 15.91 | HZ129: 44.14 | IA129: 44.14 | IB129: 42.47 | IC129: 42.47 | ID129: 43.9 | IE129: 43.9 | IJ129: 50.44 | IK129: 50.44 | IL129: 102.51 | IM129: 102.51 | IN129: 101.18 | IO129: 101.18 | IP129: 101.18 | IQ129: 101.18 | IV129: 50.44 | IW129: 50.44 | IX129: 102.51 | IY129: 102.51 | IZ129: 101.18 | JA129: 101.18 | JB129: 101.18 | JC129: 101.18 | JH129: 36.63 | JI129: 36.63 | JJ129: 94.12 | JK129: 94.12 | JL129: 94.12 | JM129: 94.12 | JN129: 92.75 | JO129: 92.75 | JP129: 92.75 | JQ129: 92.75 | JT129: 9.8 | JU129: 9.8 | JV129: 9.8 | JW129: 9.8 | JX129: 9.8 | JY129: 9.8 | KF129: 4.48 | KG129: 4.48 | KH129: 3.1 | KI129: 3.1 | KJ129: 3.1 | KK129: 3.1 | KR129: 10.2 | KS129: 10.2 | KT129: 10.2 | KU129: 10.2 | KV129: 29 | KW129: 29 | LD129: 2.88 | LE129: 2.88 | LF129: 2.88 | LG129: 2.88 | LH129: 0.54 | LI129: 0.54 | LP129: 4.94 | LQ129: 4.94 | LR129: 4.94 | LS129: 4.94 | LT129: 1.99 | LU129: 1.99 | MB129: 5.35 | MC129: 5.92 | MD129: 2.16 | ME129: 2.16 | MF129: 2.11 | MG129: 2.11 | MH129: 2.75 | MI129: 2.75 | MJ129: 2.4 | MK129: 2.4 | ML129: 2.46 | MM129: 2.66 | MN129: 11.6 | MO129: 11.6 | MP129: 5.45 | MQ129: 5.45 | MR129: 6.87 | MS129: 6.87 | MT129: 37.8 | MU129: 37.8 | MV129: 37.8 | MW129: 37.8 | MX129: 37.8 | MY129: 37.8 | MZ129: 19.09 | NA129: 19.09 | NB129: 53.81 | NC129: 53.81 | ND129: 51.17 | NE129: 51.17 | NF129: 52.49 | NG129: 52.49 | NH129: 56.42 | NI129: 56.42 | NL129: 15.51 | NM129: 15.51 | NN129: 40.7 | NO129: 40.7 | NP129: 40.7 | NQ129: 40.7 | NR129: 39.52 | NS129: 39.52 | NT129: 41.19 | NU129: 41.19 | NX129: 33.63 | NY129: 33.63 | NZ129: 57.94 | OA129: 57.94 | OB129: 57.94 | OC129: 57.94 | OD129: 59.19 | OE129: 59.19 | OJ129: 24.98 | OK129: 24.98 | OL129: 64.64 | OM129: 64.64 | ON129: 64.64 | OO129: 64.64 | OP129: 21.31 | OQ129: 21.31 | OR129: 47.88 | OS129: 47.88 | OV129: 11.69 | OW129: 11.69 | OX129: 5.63 | OY129: 5.63 | OZ129: 5.38 | PA129: 5.38 | PB129: 5.3 | PC129: 5.3 | PD129: 36.59 | PE129: 36.59 | PH129: 13.62 | PI129: 13.62 | PJ129: 6.73 | PK129: 6.73 | PL129: 6.73 | PM129: 6.33 | PN129: 6.33 | PO129: 6.33 | PP129: 40.14 | PQ129: 40.14 | PT129: 9.22 | PU129: 9.22 | PV129: 2.6 | PW129: 2.6 | PX129: 3.39 | PY129: 3.39 | PZ129: 3.39 | QA129: 3.39 | QB129: 3.39 | QC129: 3.39 | QD129: 3.26 | QE129: 3.26 | QF129: 2.81 | QG129: 2.81 | QH129: 0.87 | QI129: 0.87 | QJ129: 1.05 | QK129: 1.05 | QL129: 1.05 | QM129: 1.05 | QN129: 1.05 | QO129: 1.05 | QP129: 1.04 | QQ129: 1.04 | QR129: 3.27 | QS129: 3.27 | QT129: 0.98 | QU129: 0.98 | QV129: 1.2 | QW129: 1.2 | QX129: 1.2 | QY129: 1.2 | QZ129: 1.2 | RA129: 1.2 | RB129: 1.19 | RC129: 1.19 | RD129: 5.01 | RE129: 5.01 | RF129: 1.41 | RG129: 1.41 | RH129: 1.78 | RI129: 1.78 | RJ129: 1.78 | RK129: 1.78 | RL129: 1.78 | RM129: 1.78 | RN129: 1.75 | RO129: 1.75 | RP129: 12.85 | RQ129: 12.85 | RR129: 3.81 | RS129: 3.81 | RT129: 5.01 | RU129: 5.01 | RV129: 5.01 | RW129: 5.01 | RX129: 5.01 | RY129: 5.01 | RZ129: 4.76 | SA129: 4.76 | SB129: 6.86 | SC129: 6.86 | SD129: 1.91 | SE129: 1.91 | SF129: 2.46 | SG129: 2.46 | SH129: 2.46 | SI129: 2.46 | SJ129: 2.46 | SK129: 2.46 | SL129: 2.39 | SM129: 2.39 | SN129: 5.81 | SO129: 5.8 | SZ129: 6.34 | TA129: 6.34 | TX129: 4.12 | TY129: 4.12
A130: 14 | B130: 15.99 | C130: 15.99 | D130: 18 | E130: 18 | F130: 50.76 | G130: 50.76 | H130: 43.78 | I130: 43.78 | J130: 58.81 | K130: 58.81 | Z130: 3.35 | AL130: 7.56 | AM130: 7.56 | AX130: 8.59 | AY130: 8.59 | BJ130: 4.73 | BV130: 1.46 | CH130: 4.22 | CI130: 4.22 | DF130: 49.51 | DG130: 49.51 | DH130: 53.08 | DI130: 49.52 | DJ130: 57.18 | DK130: 57.18 | DL130: 55.18 | DM130: 55.18 | DN130: 57.18 | DO130: 57.18 | DP130: 55.18 | DQ130: 57.18 | DR130: 57.18 | DS130: 57.18 | DT130: 55.18 | DU130: 55.18 | DV130: 73.59 | DW130: 71.56 | DX130: 73.59 | DY130: 73.59 | DZ130: 71.56 | EA130: 71.56 | EB130: 75.17 | EC130: 75.17 | ED130: 26.34 | EE130: 25.32 | EF130: 25.32 | EG130: 25.32 | EH130: 28.66 | EI130: 28.66 | EJ130: 57.63 | EK130: 57.63 | EL130: 57.63 | EM130: 60.3 | EN130: 55.89 | EO130: 55.89 | EP130: 56.18 | EQ130: 56.18 | ER130: 22.83 | ES130: 24.88 | ET130: 23.72 | EU130: 23.72 | EV130: 23.72 | EW130: 23.72 | EX130: 23.72 | EY130: 13.65 | EZ130: 40.62 | FA130: 40.62 | FB130: 40.62 | FC130: 40.62 | FD130: 12.8 | FE130: 12.8 | FF130: 12.8 | FG130: 12.8 | FH130: 12.8 | FI130: 12.8 | FJ130: 6.58 | FK130: 6.58 | FL130: 6.58 | FM130: 6.58 | FN130: 7.5 | FO130: 7.5 | FP130: 16.04 | FQ130: 16.04 | FR130: 16.04 | FS130: 16.04 | FT130: 47.16 | FU130: 47.16 | FV130: 47.16 | FW130: 47.16 | FX130: 47.16 | FY130: 47.16 | FZ130: 47.16 | GA130: 47.16 | GB130: 23.84 | GC130: 23.84 | GD130: 4.61 | GE130: 4.61 | GF130: 9.35 | GG130: 9.35 | GH130: 4.66 | GI130: 4.66 | GJ130: 4.45 | GK130: 4.45 | GL130: 4.45 | GM130: 4.45 | GN130: 3.42 | GO130: 3.42 | GP130: 1.45 | GQ130: 1.42 | GZ130: 19.31 | HA130: 19.31 | HB130: 52.82 | HC130: 52.82 | HD130: 52.82 | HE130: 52.82 | HF130: 52.67 | HG130: 52.67 | HH130: 52.67 | HI130: 52.67 | HJ130: 52.67 | HK130: 52.67 | HL130: 65.51 | HM130: 65.51 | HN130: 56.33 | HO130: 56.33 | HP130: 56.33 | HQ130: 56.33 | HR130: 64.13 | HS130: 64.13 | HT130: 64.13 | HU130: 64.13 | HX130: 17.55 | HY130: 17.55 | HZ130: 49.33 | IA130: 49.33 | IB130: 47.83 | IC130: 47.83 | ID130: 50.51 | IE130: 50.51 | IJ130: 53.91 | IK130: 53.91 | IL130: 110.29 | IM130: 110.29 | IN130: 111.45 | IO130: 111.45 | IP130: 111.45 | IQ130: 111.45 | IV130: 53.91 | IW130: 53.91 | IX130: 110.29 | IY130: 110.29 | IZ130: 111.45 | JA130: 111.45 | JB130: 111.45 | JC130: 111.45 | JH130: 40.46 | JI130: 40.46 | JJ130: 101.7 | JK130: 101.7 | JL130: 101.7 | JM130: 101.7 | JN130: 102.65 | JO130: 102.65 | JP130: 102.65 | JQ130: 102.65 | JT130: 10.81 | JU130: 10.81 | JV130: 10.81 | JW130: 10.81 | JX130: 10.81 | JY130: 10.81 | KF130: 4.93 | KG130: 4.93 | KH130: 3.52 | KI130: 3.52 | KJ130: 3.52 | KK130: 3.52 | KR130: 11.25 | KS130: 11.25 | KT130: 11.25 | KU130: 11.25 | KV130: 34.07 | KW130: 34.07 | LD130: 3.34 | LE130: 3.34 | LF130: 3.34 | LG130: 3.34 | LH130: 0.6 | LI130: 0.6 | LP130: 5.43 | LQ130: 5.43 | LR130: 5.43 | LS130: 5.43 | LT130: 2.33 | LU130: 2.33 | MB130: 5.78 | MC130: 6.33 | MD130: 2.46 | ME130: 2.46 | MF130: 2.41 | MG130: 2.41 | MH130: 3.08 | MI130: 3.08 | MJ130: 2.71 | MK130: 2.71 | ML130: 2.77 | MM130: 2.98 | MN130: 12.66 | MO130: 12.66 | MP130: 6.25 | MQ130: 6.25 | MR130: 7.74 | MS130: 7.74 | MT130: 43.22 | MU130: 43.22 | MV130: 43.22 | MW130: 43.22 | MX130: 43.22 | MY130: 43.22 | MZ130: 20.78 | NA130: 20.78 | NB130: 60.63 | NC130: 60.63 | ND130: 57.82 | NE130: 57.82 | NF130: 59.225 | NG130: 59.225 | NH130: 63.26 | NI130: 63.26 | NL130: 16.95 | NM130: 16.95 | NN130: 46.31 | NO130: 46.31 | NP130: 46.31 | NQ130: 46.31 | NR130: 45.09 | NS130: 45.09 | NT130: 46.81 | NU130: 46.81 | NX130: 37.16 | NY130: 37.16 | NZ130: 64.7 | OA130: 64.7 | OB130: 64.7 | OC130: 64.7 | OD130: 65.98 | OE130: 65.98 | OJ130: 27.05 | OK130: 27.05 | OL130: 69.08 | OM130: 69.08 | ON130: 69.08 | OO130: 69.08 | OP130: 24.89 | OQ130: 24.89 | OR130: 53.22 | OS130: 53.22 | OV130: 12.74 | OW130: 12.74 | OX130: 6.43 | OY130: 6.43 | OZ130: 6.17 | PA130: 6.17 | PB130: 6.07 | PC130: 6.07 | PD130: 41.68 | PE130: 41.68 | PH130: 14.79 | PI130: 14.79 | PJ130: 7.78 | PK130: 7.78 | PL130: 7.78 | PM130: 7.34 | PN130: 7.34 | PO130: 7.34 | PP130: 46.26 | PQ130: 46.26 | PT130: 10.16 | PU130: 10.16 | PV130: 3.11 | PW130: 3.11 | PX130: 4 | PY130: 4 | PZ130: 4 | QA130: 4 | QB130: 4 | QC130: 4 | QD130: 3.87 | QE130: 3.87 | QF130: 3.07 | QG130: 3.07 | QH130: 1 | QI130: 1 | QJ130: 1.21 | QK130: 1.21 | QL130: 1.21 | QM130: 1.21 | QN130: 1.21 | QO130: 1.21 | QP130: 1.2 | QQ130: 1.2 | QR130: 3.58 | QS130: 3.58 | QT130: 1.13 | QU130: 1.13 | QV130: 1.38 | QW130: 1.38 | QX130: 1.38 | QY130: 1.38 | QZ130: 1.38 | RA130: 1.38 | RB130: 1.37 | RC130: 1.37 | RD130: 5.5 | RE130: 5.5 | RF130: 1.66 | RG130: 1.66 | RH130: 2.09 | RI130: 2.09 | RJ130: 2.09 | RK130: 2.09 | RL130: 2.09 | RM130: 2.09 | RN130: 2.05 | RO130: 2.05 | RP130: 14.17 | RQ130: 14.17 | RR130: 4.57 | RS130: 4.57 | RT130: 5.91 | RU130: 5.91 | RV130: 5.91 | RW130: 5.91 | RX130: 5.91 | RY130: 5.91 | RZ130: 5.65 | SA130: 5.65 | SB130: 7.55 | SC130: 7.55 | SD130: 2.27 | SE130: 2.27 | SF130: 2.89 | SG130: 2.89 | SH130: 2.89 | SI130: 2.89 | SJ130: 2.89 | SK130: 2.89 | SL130: 2.82 | SM130: 2.82 | SN130: 6.39 | SO130: 6.38 | SZ130: 6.98 | TA130: 6.98 | TX130: 4.52 | TY130: 4.52
A131: 15 | B131: 17.41 | C131: 17.41 | D131: 19.31 | E131: 19.31 | F131: 56.03 | G131: 56.03 | H131: 48.62 | I131: 48.62 | J131: 64.45 | K131: 64.45 | Z131: 3.63 | AL131: 8.21 | AM131: 8.21 | AX131: 9.34 | AY131: 9.34 | BJ131: 5.13 | BV131: 1.56 | CH131: 4.58 | CI131: 4.58 | DF131: 53.98 | DG131: 53.98 | DH131: 57.31 | DI131: 53.98 | DJ131: 64.99 | DK131: 64.99 | DL131: 62.72 | DM131: 62.72 | DN131: 64.99 | DO131: 64.99 | DP131: 62.72 | DQ131: 64.99 | DR131: 64.99 | DS131: 64.99 | DT131: 62.72 | DU131: 62.72 | DV131: 82.18 | DW131: 79.91 | DX131: 82.18 | DY131: 82.18 | DZ131: 79.91 | EA131: 79.91 | EB131: 83.39 | EC131: 83.39 | ED131: 28.7 | EE131: 27.59 | EF131: 27.59 | EG131: 27.59 | EH131: 30.75 | EI131: 30.75 | EJ131: 64.26 | EK131: 64.26 | EL131: 64.26 | EM131: 67.08 | EN131: 62.67 | EO131: 62.67 | EP131: 62.96 | EQ131: 62.96 | ER131: 24.86 | ES131: 26.81 | ET131: 25.7 | EU131: 25.7 | EV131: 25.7 | EW131: 25.7 | EX131: 25.7 | EY131: 15.4 | EZ131: 46.17 | FA131: 46.17 | FB131: 46.17 | FC131: 46.17 | FD131: 13.93 | FE131: 13.93 | FF131: 13.93 | FG131: 13.93 | FH131: 13.93 | FI131: 13.93 | FJ131: 7.5 | FK131: 7.5 | FL131: 7.51 | FM131: 7.51 | FN131: 8.41 | FO131: 8.41 | FP131: 17.47 | FQ131: 17.47 | FR131: 17.47 | FS131: 17.47 | FT131: 52.87 | FU131: 52.87 | FV131: 52.87 | FW131: 52.87 | FX131: 52.87 | FY131: 52.87 | FZ131: 52.87 | GA131: 52.87 | GB131: 26.71 | GC131: 26.71 | GD131: 5.3 | GE131: 5.3 | GF131: 10.18 | GG131: 10.18 | GH131: 5.35 | GI131: 5.35 | GJ131: 5.14 | GK131: 5.14 | GL131: 5.14 | GM131: 5.14 | GN131: 3.71 | GO131: 3.71 | GP131: 1.66 | GQ131: 1.63 | GZ131: 21.02 | HA131: 21.02 | HB131: 58.04 | HC131: 58.04 | HD131: 58.04 | HE131: 58.04 | HF131: 59.27 | HG131: 59.27 | HH131: 59.27 | HI131: 59.27 | HJ131: 59.27 | HK131: 59.27 | HL131: 73.72 | HM131: 73.72 | HN131: 63.61 | HO131: 63.61 | HP131: 63.61 | HQ131: 63.61 | HR131: 71.68 | HS131: 71.68 | HT131: 71.68 | HU131: 71.68 | HX131: 19.11 | HY131: 19.11 | HZ131: 54.32 | IA131: 54.32 | IB131: 52.99 | IC131: 52.99 | ID131: 56.98 | IE131: 56.98 | IJ131: 57.2 | IK131: 57.2 | IL131: 117.58 | IM131: 117.58 | IN131: 121.23 | IO131: 121.23 | IP131: 121.23 | IQ131: 121.23 | IV131: 57.2 | IW131: 57.2 | IX131: 117.58 | IY131: 117.58 | IZ131: 121.23 | JA131: 121.23 | JB131: 121.23 | JC131: 121.23 | JH131: 44.1 | JI131: 44.1 | JJ131: 108.82 | JK131: 108.82 | JL131: 108.82 | JM131: 108.82 | JN131: 112.11 | JO131: 112.11 | JP131: 112.11 | JQ131: 112.11 | JT131: 11.76 | JU131: 11.76 | JV131: 11.76 | JW131: 11.76 | JX131: 11.76 | JY131: 11.76 | KF131: 5.35 | KG131: 5.35 | KH131: 3.93 | KI131: 3.93 | KJ131: 3.93 | KK131: 3.93 | KR131: 12.23 | KS131: 12.23 | KT131: 12.23 | KU131: 12.23 | KV131: 39.07 | KW131: 39.07 | LD131: 3.79 | LE131: 3.79 | LF131: 3.79 | LG131: 3.79 | LH131: 0.66 | LI131: 0.66 | LP131: 5.9 | LQ131: 5.9 | LR131: 5.9 | LS131: 5.9 | LT131: 2.68 | LU131: 2.68 | MB131: 5.95 | MC131: 6.49 | MD131: 2.59 | ME131: 2.59 | MF131: 2.53 | MG131: 2.53 | MH131: 3.22 | MI131: 3.22 | MJ131: 2.84 | MK131: 2.84 | ML131: 2.91 | MM131: 3.12 | MN131: 13.14 | MO131: 13.14 | MP131: 6.63 | MQ131: 6.63 | MR131: 8.14 | MS131: 8.14 | MT131: 45.76 | MU131: 45.76 | MV131: 45.76 | MW131: 45.76 | MX131: 45.76 | MY131: 45.76 | MZ131: 21.76 | NA131: 21.76 | NB131: 64.71 | NC131: 64.71 | ND131: 61.8 | NE131: 61.8 | NF131: 63.255 | NG131: 63.255 | NH131: 67.33 | NI131: 67.33 | NL131: 17.79 | NM131: 17.79 | NN131: 49.7 | NO131: 49.7 | NP131: 49.7 | NQ131: 49.7 | NR131: 48.47 | NS131: 48.47 | NT131: 50.22 | NU131: 50.22 | NX131: 40.06 | NY131: 40.06 | NZ131: 70.31 | OA131: 70.31 | OB131: 70.31 | OC131: 70.31 | OD131: 71.6 | OE131: 71.6 | OJ131: 28.94 | OK131: 28.94 | OL131: 73.13 | OM131: 73.13 | ON131: 73.13 | OO131: 73.13 | OP131: 28.61 | OQ131: 28.61 | OR131: 58.25 | OS131: 58.25 | OV131: 13.58 | OW131: 13.58 | OX131: 7.1 | OY131: 7.1 | OZ131: 6.82 | PA131: 6.82 | PB131: 6.71 | PC131: 6.71 | PD131: 45.9 | PE131: 45.9 | PH131: 15.59 | PI131: 15.59 | PJ131: 8.82 | PK131: 8.82 | PL131: 8.82 | PM131: 8.34 | PN131: 8.34 | PO131: 8.34 | PP131: 52.25 | PQ131: 52.25 | PT131: 11.05 | PU131: 11.05 | PV131: 3.66 | PW131: 3.66 | PX131: 4.62 | PY131: 4.62 | PZ131: 4.62 | QA131: 4.62 | QB131: 4.62 | QC131: 4.62 | QD131: 4.5 | QE131: 4.5 | QF131: 3.32 | QG131: 3.32 | QH131: 1.14 | QI131: 1.14 | QJ131: 1.37 | QK131: 1.37 | QL131: 1.37 | QM131: 1.37 | QN131: 1.37 | QO131: 1.37 | QP131: 1.37 | QQ131: 1.37 | QR131: 3.88 | QS131: 3.88 | QT131: 1.3 | QU131: 1.3 | QV131: 1.58 | QW131: 1.58 | QX131: 1.58 | QY131: 1.58 | QZ131: 1.58 | RA131: 1.58 | RB131: 1.57 | RC131: 1.57 | RD131: 5.97 | RE131: 5.97 | RF131: 1.93 | RG131: 1.93 | RH131: 2.41 | RI131: 2.41 | RJ131: 2.41 | RK131: 2.41 | RL131: 2.41 | RM131: 2.41 | RN131: 2.37 | RO131: 2.37 | RP131: 15.42 | RQ131: 15.42 | RR131: 5.38 | RS131: 5.38 | RT131: 6.81 | RU131: 6.81 | RV131: 6.81 | RW131: 6.81 | RX131: 6.81 | RY131: 6.81 | RZ131: 6.55 | SA131: 6.55 | SB131: 8.21 | SC131: 8.21 | SD131: 2.66 | SE131: 2.66 | SF131: 3.34 | SG131: 3.34 | SH131: 3.34 | SI131: 3.34 | SJ131: 3.34 | SK131: 3.34 | SL131: 3.27 | SM131: 3.27 | SN131: 6.94 | SO131: 6.93 | SZ131: 7.58 | TA131: 7.58 | TX131: 4.9 | TY131: 4.9
A132: 16 | B132: 18.75 | C132: 18.75 | D132: 20.54 | E132: 20.54 | F132: 61.1 | G132: 61.1 | H132: 53.31 | I132: 53.31 | J132: 69.81 | K132: 69.81 | Z132: 3.89 | AL132: 8.84 | AM132: 8.84 | AX132: 10.05 | AY132: 10.05 | BJ132: 5.51 | BV132: 1.66 | CH132: 4.91 | CI132: 4.91 | DF132: 58.21 | DG132: 58.21 | DH132: 61.32 | DI132: 58.22 | DJ132: 72.61 | DK132: 72.61 | DL132: 70.08 | DM132: 70.08 | DN132: 72.61 | DO132: 72.61 | DP132: 70.08 | DQ132: 72.61 | DR132: 72.61 | DS132: 72.61 | DT132: 70.08 | DU132: 70.08 | DV132: 90.46 | DW132: 87.96 | DX132: 90.46 | DY132: 90.46 | DZ132: 87.96 | EA132: 87.96 | EB132: 91.3 | EC132: 91.3 | ED132: 30.93 | EE132: 29.75 | EF132: 29.75 | EG132: 29.75 | EH132: 32.74 | EI132: 32.74 | EJ132: 70.67 | EK132: 70.67 | EL132: 70.67 | EM132: 73.63 | EN132: 69.23 | EO132: 69.23 | EP132: 69.51 | EQ132: 69.51 | ER132: 26.79 | ES132: 28.64 | ET132: 27.58 | EU132: 27.58 | EV132: 27.58 | EW132: 27.58 | EX132: 27.58 | EY132: 17.11 | EZ132: 51.58 | FA132: 51.58 | FB132: 51.58 | FC132: 51.58 | FD132: 15.01 | FE132: 15.01 | FF132: 15.01 | FG132: 15.01 | FH132: 15.01 | FI132: 15.01 | FJ132: 8.41 | FK132: 8.41 | FL132: 8.42 | FM132: 8.42 | FN132: 9.3 | FO132: 9.3 | FP132: 18.82 | FQ132: 18.82 | FR132: 18.82 | FS132: 18.82 | FT132: 58.4 | FU132: 58.4 | FV132: 58.4 | FW132: 58.4 | FX132: 58.4 | FY132: 58.4 | FZ132: 58.4 | GA132: 58.4 | GB132: 29.49 | GC132: 29.49 | GD132: 5.97 | GE132: 5.97 | GF132: 10.96 | GG132: 10.96 | GH132: 6.02 | GI132: 6.02 | GJ132: 5.82 | GK132: 5.82 | GL132: 5.82 | GM132: 5.82 | GN132: 3.97 | GO132: 3.97 | GP132: 1.88 | GQ132: 1.84 | GZ132: 22.65 | HA132: 22.65 | HB132: 63.04 | HC132: 63.04 | HD132: 63.04 | HE132: 63.04 | HF132: 65.68 | HG132: 65.68 | HH132: 65.68 | HI132: 65.68 | HJ132: 65.68 | HK132: 65.68 | HL132: 81.71 | HM132: 81.71 | HN132: 70.72 | HO132: 70.72 | HP132: 70.72 | HQ132: 70.72 | HR132: 78.98 | HS132: 78.98 | HT132: 78.98 | HU132: 78.98 | HX132: 20.59 | HY132: 20.59 | HZ132: 59.11 | IA132: 59.11 | IB132: 57.95 | IC132: 57.95 | ID132: 63.28 | IE132: 63.28 | IJ132: 60.31 | IK132: 60.31 | IL132: 124.42 | IM132: 124.42 | IN132: 130.54 | IO132: 130.54 | IP132: 130.54 | IQ132: 130.54 | IV132: 60.31 | IW132: 60.31 | IX132: 124.42 | IY132: 124.42 | IZ132: 130.54 | JA132: 130.54 | JB132: 130.54 | JC132: 130.54 | JH132: 47.55 | JI132: 47.55 | JJ132: 115.52 | JK132: 115.52 | JL132: 115.52 | JM132: 115.52 | JN132: 121.14 | JO132: 121.14 | JP132: 121.14 | JQ132: 121.14 | JT132: 12.66 | JU132: 12.66 | JV132: 12.66 | JW132: 12.66 | JX132: 12.66 | JY132: 12.66 | KF132: 5.74 | KG132: 5.74 | KH132: 4.32 | KI132: 4.32 | KJ132: 4.32 | KK132: 4.32 | KR132: 13.17 | KS132: 13.17 | KT132: 13.17 | KU132: 13.17 | KV132: 43.96 | KW132: 43.96 | LD132: 4.23 | LE132: 4.23 | LF132: 4.23 | LG132: 4.23 | LH132: 0.72 | LI132: 0.72 | LP132: 6.34 | LQ132: 6.34 | LR132: 6.34 | LS132: 6.34 | LT132: 3.02 | LU132: 3.02 | MB132: 6.46 | MC132: 6.98 | MD132: 2.98 | ME132: 2.98 | MF132: 2.93 | MG132: 2.93 | MH132: 3.65 | MI132: 3.65 | MJ132: 3.24 | MK132: 3.24 | ML132: 3.32 | MM132: 3.53 | MN132: 14.45 | MO132: 14.45 | MP132: 7.69 | MQ132: 7.69 | MR132: 9.27 | MS132: 9.27 | MT132: 52.9 | MU132: 52.9 | MV132: 52.9 | MW132: 52.9 | MX132: 52.9 | MY132: 52.9 | MZ132: 23.47 | NA132: 23.47 | NB132: 72.01 | NC132: 72.01 | ND132: 68.94 | NE132: 68.94 | NF132: 70.475 | NG132: 70.475 | NH132: 74.6 | NI132: 74.6 | NL132: 19.38 | NM132: 19.38 | NN132: 56.27 | NO132: 56.27 | NP132: 56.27 | NQ132: 56.27 | NR132: 55.01 | NS132: 55.01 | NT132: 56.8 | NU132: 56.8 | NX132: 43 | NY132: 43 | NZ132: 76.06 | OA132: 76.06 | OB132: 76.06 | OC132: 76.06 | OD132: 77.37 | OE132: 77.37 | OJ132: 31.36 | OK132: 31.36 | OL132: 78.26 | OM132: 78.26 | ON132: 78.26 | OO132: 78.26 | OP132: 33.9 | OQ132: 33.9 | OR132: 64.81 | OS132: 64.81 | OV132: 14.72 | OW132: 14.72 | OX132: 8.03 | OY132: 8.03 | OZ132: 7.73 | PA132: 7.73 | PB132: 7.6 | PC132: 7.6 | PD132: 51.75 | PE132: 51.75 | PH132: 16.94 | PI132: 16.94 | PJ132: 9.83 | PK132: 9.83 | PL132: 9.83 | PM132: 9.31 | PN132: 9.31 | PO132: 9.31 | PP132: 58.09 | PQ132: 58.09 | PT132: 11.9 | PU132: 11.9 | PV132: 4.24 | PW132: 4.24 | PX132: 5.24 | PY132: 5.24 | PZ132: 5.24 | QA132: 5.24 | QB132: 5.24 | QC132: 5.24 | QD132: 5.12 | QE132: 5.12 | QF132: 3.56 | QG132: 3.56 | QH132: 1.29 | QI132: 1.29 | QJ132: 1.54 | QK132: 1.54 | QL132: 1.54 | QM132: 1.54 | QN132: 1.54 | QO132: 1.54 | QP132: 1.54 | QQ132: 1.54 | QR132: 4.16 | QS132: 4.16 | QT132: 1.48 | QU132: 1.48 | QV132: 1.78 | QW132: 1.78 | QX132: 1.78 | QY132: 1.78 | QZ132: 1.78 | RA132: 1.78 | RB132: 1.77 | RC132: 1.77 | RD132: 6.42 | RE132: 6.42 | RF132: 2.22 | RG132: 2.22 | RH132: 2.72 | RI132: 2.72 | RJ132: 2.72 | RK132: 2.72 | RL132: 2.72 | RM132: 2.72 | RN132: 2.7 | RO132: 2.7 | RP132: 16.61 | RQ132: 16.61 | RR132: 6.22 | RS132: 6.22 | RT132: 7.7 | RU132: 7.7 | RV132: 7.7 | RW132: 7.7 | RX132: 7.7 | RY132: 7.7 | RZ132: 7.45 | SA132: 7.45 | SB132: 8.83 | SC132: 8.83 | SD132: 3.07 | SE132: 3.07 | SF132: 3.79 | SG132: 3.79 | SH132: 3.79 | SI132: 3.79 | SJ132: 3.79 | SK132: 3.79 | SL132: 3.73 | SM132: 3.73 | SN132: 7.46 | SO132: 7.46 | SZ132: 8.15 | TA132: 8.15 | TX132: 5.26 | TY132: 5.26
A133: 17 | B133: 20.03 | C133: 20.03 | D133: 21.72 | E133: 21.72 | F133: 65.97 | G133: 65.97 | H133: 57.85 | I133: 57.85 | J133: 74.91 | K133: 74.91 | Z133: 4.14 | AL133: 9.43 | AM133: 9.43 | AX133: 10.72 | AY133: 10.72 | BJ133: 5.87 | BV133: 1.75 | CH133: 5.23 | CI133: 5.23 | DF133: 62.22 | DG133: 62.22 | DH133: 65.11 | DI133: 62.22 | DJ133: 80.03 | DK133: 80.03 | DL133: 77.23 | DM133: 77.23 | DN133: 80.03 | DO133: 80.03 | DP133: 77.23 | DQ133: 80.03 | DR133: 80.03 | DS133: 80.03 | DT133: 77.23 | DU133: 77.23 | DV133: 98.42 | DW133: 95.69 | DX133: 98.42 | DY133: 98.42 | DZ133: 95.69 | EA133: 95.69 | EB133: 98.9 | EC133: 98.9 | ED133: 33.04 | EE133: 31.79 | EF133: 31.79 | EG133: 31.79 | EH133: 34.61 | EI133: 34.61 | EJ133: 76.83 | EK133: 76.83 | EL133: 76.83 | EM133: 79.92 | EN133: 75.53 | EO133: 75.53 | EP133: 75.81 | EQ133: 75.81 | ER133: 28.62 | ES133: 30.37 | ET133: 29.35 | EU133: 29.35 | EV133: 29.35 | EW133: 29.35 | EX133: 29.35 | EY133: 18.76 | EZ133: 56.82 | FA133: 56.82 | FB133: 56.82 | FC133: 56.82 | FD133: 16.02 | FE133: 16.02 | FF133: 16.02 | FG133: 16.02 | FH133: 16.02 | FI133: 16.02 | FJ133: 9.3 | FK133: 9.3 | FL133: 9.3 | FM133: 9.3 | FN133: 10.16 | FO133: 10.16 | FP133: 20.09 | FQ133: 20.09 | FR133: 20.09 | FS133: 20.09 | FT133: 63.74 | FU133: 63.74 | FV133: 63.74 | FW133: 63.74 | FX133: 63.74 | FY133: 63.74 | FZ133: 63.74 | GA133: 63.74 | GB133: 32.17 | GC133: 32.17 | GD133: 6.63 | GE133: 6.63 | GF133: 11.7 | GG133: 11.7 | GH133: 6.69 | GI133: 6.69 | GJ133: 6.48 | GK133: 6.48 | GL133: 6.48 | GM133: 6.48 | GN133: 4.23 | GO133: 4.23 | GP133: 2.09 | GQ133: 2.04 | GZ133: 24.2 | HA133: 24.2 | HB133: 67.82 | HC133: 67.82 | HD133: 67.82 | HE133: 67.82 | HF133: 71.9 | HG133: 71.9 | HH133: 71.9 | HI133: 71.9 | HJ133: 71.9 | HK133: 71.9 | HL133: 89.45 | HM133: 89.45 | HN133: 77.62 | HO133: 77.62 | HP133: 77.62 | HQ133: 77.62 | HR133: 86.05 | HS133: 86.05 | HT133: 86.05 | HU133: 86.05 | HX133: 21.99 | HY133: 21.99 | HZ133: 63.7 | IA133: 63.7 | IB133: 62.7 | IC133: 62.7 | ID133: 69.4 | IE133: 69.4 | IJ133: 63.25 | IK133: 63.25 | IL133: 130.84 | IM133: 130.84 | IN133: 139.39 | IO133: 139.39 | IP133: 139.39 | IQ133: 139.39 | IV133: 63.25 | IW133: 63.25 | IX133: 130.84 | IY133: 130.84 | IZ133: 139.39 | JA133: 139.39 | JB133: 139.39 | JC133: 139.39 | JH133: 50.81 | JI133: 50.81 | JJ133: 121.83 | JK133: 121.83 | JL133: 121.83 | JM133: 121.83 | JN133: 129.75 | JO133: 129.75 | JP133: 129.75 | JQ133: 129.75 | JT133: 13.52 | JU133: 13.52 | JV133: 13.52 | JW133: 13.52 | JX133: 13.52 | JY133: 13.52 | KF133: 6.12 | KG133: 6.12 | KH133: 4.7 | KI133: 4.7 | KJ133: 4.7 | KK133: 4.7 | KR133: 14.06 | KS133: 14.06 | KT133: 14.06 | KU133: 14.06 | KV133: 48.73 | KW133: 48.73 | LD133: 4.66 | LE133: 4.66 | LF133: 4.66 | LG133: 4.66 | LH133: 0.79 | LI133: 0.79 | LP133: 6.75 | LQ133: 6.75 | LR133: 6.75 | LS133: 6.75 | LT133: 3.36 | LU133: 3.36 | MB133: 6.73 | MC133: 7.23 | MD133: 3.19 | ME133: 3.19 | MF133: 3.14 | MG133: 3.14 | MH133: 3.87 | MI133: 3.87 | MJ133: 3.45 | MK133: 3.45 | ML133: 3.54 | MM133: 3.74 | MN133: 15.38 | MO133: 15.38 | MP133: 8.47 | MQ133: 8.47 | MR133: 10.09 | MS133: 10.09 | MT133: 58.12 | MU133: 58.12 | MV133: 58.12 | MW133: 58.12 | MX133: 58.12 | MY133: 58.12 | MZ133: 24.9 | NA133: 24.9 | NB133: 78.22 | NC133: 78.22 | ND133: 75.02 | NE133: 75.02 | NF133: 76.62 | NG133: 76.62 | NH133: 80.77 | NI133: 80.77 | NL133: 20.5 | NM133: 20.5 | NN133: 61.02 | NO133: 61.02 | NP133: 61.02 | NQ133: 61.02 | NR133: 59.75 | NS133: 59.75 | NT133: 61.57 | NU133: 61.57 | NX133: 46.36 | NY133: 46.36 | NZ133: 82.7 | OA133: 82.7 | OB133: 82.7 | OC133: 82.7 | OD133: 84.01 | OE133: 84.01 | OJ133: 33.66 | OK133: 33.66 | OL133: 83.11 | OM133: 83.11 | ON133: 83.11 | OO133: 83.11 | OP133: 39.17 | OQ133: 39.17 | OR133: 71.16 | OS133: 71.16 | OV133: 15.89 | OW133: 15.89 | OX133: 9.01 | OY133: 9.01 | OZ133: 8.69 | PA133: 8.69 | PB133: 8.55 | PC133: 8.55 | PD133: 57.93 | PE133: 57.93 | PH133: 18.19 | PI133: 18.19 | PJ133: 10.82 | PK133: 10.82 | PL133: 10.82 | PM133: 10.26 | PN133: 10.26 | PO133: 10.26 | PP133: 63.76 | PQ133: 63.76 | PT133: 12.7 | PU133: 12.7 | PV133: 4.82 | PW133: 4.82 | PX133: 5.85 | PY133: 5.85 | PZ133: 5.85 | QA133: 5.85 | QB133: 5.85 | QC133: 5.85 | QD133: 5.74 | QE133: 5.74 | QF133: 3.78 | QG133: 3.78 | QH133: 1.44 | QI133: 1.44 | QJ133: 1.7 | QK133: 1.7 | QL133: 1.7 | QM133: 1.7 | QN133: 1.7 | QO133: 1.7 | QP133: 1.71 | QQ133: 1.71 | QR133: 4.43 | QS133: 4.43 | QT133: 1.66 | QU133: 1.66 | QV133: 1.98 | QW133: 1.98 | QX133: 1.98 | QY133: 1.98 | QZ133: 1.98 | RA133: 1.98 | RB133: 1.97 | RC133: 1.97 | RD133: 6.84 | RE133: 6.84 | RF133: 2.52 | RG133: 2.52 | RH133: 3.04 | RI133: 3.04 | RJ133: 3.04 | RK133: 3.04 | RL133: 3.04 | RM133: 3.04 | RN133: 3.01 | RO133: 3.01 | RP133: 17.73 | RQ133: 17.73 | RR133: 7.06 | RS133: 7.06 | RT133: 8.57 | RU133: 8.57 | RV133: 8.57 | RW133: 8.57 | RX133: 8.57 | RY133: 8.57 | RZ133: 8.33 | SA133: 8.33 | SB133: 9.42 | SC133: 9.42 | SD133: 3.5 | SE133: 3.5 | SF133: 4.23 | SG133: 4.23 | SH133: 4.23 | SI133: 4.23 | SJ133: 4.23 | SK133: 4.23 | SL133: 4.18 | SM133: 4.18 | SN133: 7.95 | SO133: 7.95 | SZ133: 8.69 | TA133: 8.69 | TX133: 5.6 | TY133: 5.6
A134: 18 | B134: 21.23 | C134: 21.23 | D134: 22.83 | E134: 22.83 | F134: 70.63 | G134: 70.63 | H134: 62.23 | I134: 62.23 | J134: 79.28 | K134: 79.28 | Z134: 4.37 | AL134: 9.98 | AM134: 9.98 | AX134: 11.36 | AY134: 11.36 | BJ134: 6.21 | BV134: 1.84 | CH134: 5.53 | CI134: 5.53 | DF134: 66.01 | DG134: 66.01 | DH134: 68.71 | DI134: 66.02 | DJ134: 87.21 | DK134: 87.21 | DL134: 84.16 | DM134: 84.16 | DN134: 87.21 | DO134: 87.21 | DP134: 84.16 | DQ134: 87.21 | DR134: 87.21 | DS134: 87.21 | DT134: 84.16 | DU134: 84.16 | DV134: 106.05 | DW134: 103.11 | DX134: 106.05 | DY134: 106.05 | DZ134: 103.11 | EA134: 103.11 | EB134: 106.18 | EC134: 106.18 | ED134: 35.05 | EE134: 33.72 | EF134: 33.72 | EG134: 33.72 | EH134: 36.39 | EI134: 36.39 | EJ134: 82.76 | EK134: 82.76 | EL134: 82.76 | EM134: 85.97 | EN134: 81.59 | EO134: 81.59 | EP134: 81.86 | EQ134: 81.86 | ER134: 30.35 | ES134: 32.01 | ET134: 31.03 | EU134: 31.03 | EV134: 31.03 | EW134: 31.03 | EX134: 31.03 | EY134: 20.36 | EZ134: 61.9 | FA134: 61.9 | FB134: 61.9 | FC134: 61.9 | FD134: 16.99 | FE134: 16.99 | FF134: 16.99 | FG134: 16.99 | FH134: 16.99 | FI134: 16.99 | FJ134: 10.17 | FK134: 10.17 | FL134: 10.17 | FM134: 10.17 | FN134: 11 | FO134: 11 | FP134: 21.3 | FQ134: 21.3 | FR134: 21.3 | FS134: 21.3 | FT134: 68.89 | FU134: 68.89 | FV134: 68.89 | FW134: 68.89 | FX134: 68.89 | FY134: 68.89 | FZ134: 68.89 | GA134: 68.89 | GB134: 34.76 | GC134: 34.76 | GD134: 7.28 | GE134: 7.28 | GF134: 12.41 | GG134: 12.41 | GH134: 7.33 | GI134: 7.33 | GJ134: 7.13 | GK134: 7.13 | GL134: 7.13 | GM134: 7.13 | GN134: 4.47 | GO134: 4.47 | GP134: 2.3 | GQ134: 2.25 | GZ134: 25.66 | HA134: 25.66 | HB134: 72.39 | HC134: 72.39 | HD134: 72.39 | HE134: 72.39 | HF134: 77.91 | HG134: 77.91 | HH134: 77.91 | HI134: 77.91 | HJ134: 77.91 | HK134: 77.91 | HL134: 96.93 | HM134: 96.93 | HN134: 84.3 | HO134: 84.3 | HP134: 84.3 | HQ134: 84.3 | HR134: 92.85 | HS134: 92.85 | HT134: 92.85 | HU134: 92.85 | HX134: 23.32 | HY134: 23.32 | HZ134: 68.09 | IA134: 68.09 | IB134: 67.26 | IC134: 67.26 | ID134: 75.33 | IE134: 75.33 | IJ134: 66.05 | IK134: 66.05 | IL134: 136.87 | IM134: 136.87 | IN134: 147.81 | IO134: 147.81 | IP134: 147.81 | IQ134: 147.81 | IV134: 66.05 | IW134: 66.05 | IX134: 136.87 | IY134: 136.87 | IZ134: 147.81 | JA134: 147.81 | JB134: 147.81 | JC134: 147.81 | JH134: 53.9 | JI134: 53.9 | JJ134: 127.76 | JK134: 127.76 | JL134: 127.76 | JM134: 127.76 | JN134: 137.95 | JO134: 137.95 | JP134: 137.95 | JQ134: 137.95 | JT134: 14.33 | JU134: 14.33 | JV134: 14.33 | JW134: 14.33 | JX134: 14.33 | JY134: 14.33 | KF134: 6.48 | KG134: 6.48 | KH134: 5.06 | KI134: 5.06 | KJ134: 5.06 | KK134: 5.06 | KR134: 14.9 | KS134: 14.9 | KT134: 14.9 | KU134: 14.9 | KV134: 53.37 | KW134: 53.37 | LD134: 5.08 | LE134: 5.08 | LF134: 5.08 | LG134: 5.08 | LH134: 0.85 | LI134: 0.85 | LP134: 7.15 | LQ134: 7.15 | LR134: 7.15 | LS134: 7.15 | LT134: 3.69 | LU134: 3.69 | MB134: 7.08 | MC134: 7.56 | MD134: 3.49 | ME134: 3.49 | MF134: 3.43 | MG134: 3.43 | MH134: 4.18 | MI134: 4.18 | MJ134: 3.74 | MK134: 3.74 | ML134: 3.84 | MM134: 4.04 | MN134: 16.31 | MO134: 16.31 | MP134: 9.28 | MQ134: 9.28 | MR134: 10.93 | MS134: 10.93 | MT134: 63.5 | MU134: 63.5 | MV134: 63.5 | MW134: 63.5 | MX134: 63.5 | MY134: 63.5 | MZ134: 26.15 | NA134: 26.15 | NB134: 83.82 | NC134: 83.82 | ND134: 80.51 | NE134: 80.51 | NF134: 82.165 | NG134: 82.165 | NH134: 86.32 | NI134: 86.32 | NL134: 21.79 | NM134: 21.79 | NN134: 66.62 | NO134: 66.62 | NP134: 66.62 | NQ134: 66.62 | NR134: 65.34 | NS134: 65.34 | NT134: 67.18 | NU134: 67.18 | NX134: 49.4 | NY134: 49.4 | NZ134: 88.77 | OA134: 88.77 | OB134: 88.77 | OC134: 88.77 | OD134: 90.08 | OE134: 90.08 | OJ134: 35.79 | OK134: 35.79 | OL134: 87.61 | OM134: 87.61 | ON134: 87.61 | OO134: 87.61 | OP134: 44.31 | OQ134: 44.31 | OR134: 77.19 | OS134: 77.19 | OV134: 16.85 | OW134: 16.85 | OX134: 9.84 | OY134: 9.84 | OZ134: 9.5 | PA134: 9.5 | PB134: 9.35 | PC134: 9.35 | PD134: 63.13 | PE134: 63.13 | PH134: 19.34 | PI134: 19.34 | PJ134: 11.78 | PK134: 11.78 | PL134: 11.78 | PM134: 11.19 | PN134: 11.19 | PO134: 11.19 | PP134: 69.26 | PQ134: 69.26 | PT134: 13.45 | PU134: 13.45 | PV134: 5.4 | PW134: 5.4 | PX134: 6.45 | PY134: 6.45 | PZ134: 6.45 | QA134: 6.45 | QB134: 6.45 | QC134: 6.45 | QD134: 6.34 | QE134: 6.34 | QF134: 4 | QG134: 4 | QH134: 1.6 | QI134: 1.6 | QJ134: 1.87 | QK134: 1.87 | QL134: 1.87 | QM134: 1.87 | QN134: 1.87 | QO134: 1.87 | QP134: 1.87 | QQ134: 1.87 | QR134: 4.68 | QS134: 4.68 | QT134: 1.85 | QU134: 1.85 | QV134: 2.17 | QW134: 2.17 | QX134: 2.17 | QY134: 2.17 | QZ134: 2.17 | RA134: 2.17 | RB134: 2.17 | RC134: 2.17 | RD134: 7.24 | RE134: 7.24 | RF134: 2.82 | RG134: 2.82 | RH134: 3.35 | RI134: 3.35 | RJ134: 3.35 | RK134: 3.35 | RL134: 3.35 | RM134: 3.35 | RN134: 3.33 | RO134: 3.33 | RP134: 18.8 | RQ134: 18.8 | RR134: 7.88 | RS134: 7.88 | RT134: 9.42 | RU134: 9.42 | RV134: 9.42 | RW134: 9.42 | RX134: 9.42 | RY134: 9.42 | RZ134: 9.19 | SA134: 9.19 | SB134: 9.98 | SC134: 9.98 | SD134: 3.91 | SE134: 3.91 | SF134: 4.66 | SG134: 4.66 | SH134: 4.66 | SI134: 4.66 | SJ134: 4.66 | SK134: 4.66 | SL134: 4.62 | SM134: 4.62 | SN134: 8.42 | SO134: 8.42 | SZ134: 9.21 | TA134: 9.21 | TX134: 5.93 | TY134: 5.93
